Workbook

Sheet Overview
C1: ******************************************************************************************************************************************************
C2: COPYRIGHT NOTIFICATION
C4: GREET™ SOFTWARE
C6: GREET1 MODEL
C8: Email contact: greet@anl.gov
C9: ******************************************************************************************************************************************************
C11: © COPYRIGHT 2012 UChicago Argonne, LLC ALL RIGHTS RESERVED
C13: THIS SOFTWARE DISCLOSES MATERIAL PROTECTED UNDER COPYRIGHT LAW, AND FURTHER DISSEMINATION IS PROHIBITED WITHOUT PRIOR WRITTEN CONSENT OF THE PATENT COUNSEL OF ARGONNE NATIONAL LABORATORY, EXCEPT AS NOTED IN THE “LICENSING TERMS AND CONDITIONS” NOTED BELOW.
C15: ******************************************************************************************************************************************************
C17: ARGONNE NATIONAL LABORATORY, WITH A FACILITY IN THE STATE OF ILLINOIS, IS OWNED BY THE UNITED STATES GOVERNMENT, AND OPERATED BY UCHICAGO ARGONNE, LLC UNDER PROVISION OF A CONTRACT WITH THE DEPARTMENT OF ENERGY.
C20: ******************************************************************************************************************************************************
C22: GOVERNMENT LICENSE
C24: ******************************************************************************************************************************************************
C26: NOTICE: This data was produced by UChicago Argonne, LLC under Contract No. DE-AC02-06CH11357 with the Department of Energy. For 5 years from May 2012, the Government is granted for itself and others acting on its behalf a nonexclusive, paid-up, irrevocable worldwide license in this data to reproduce, prepare derivative works, and perform publicly and display publicly, by or on behalf of the Government. There is provision for the possible extension of the term of this license. Subsequent to that period or any extension granted, the Government is granted for itself and others acting on its behalf a nonexclusive, paid-up, irrevocable worldwide license in this ﻿data to reproduce, prepare derivative works, distribute copies to the public, perform publicly and display publicly, and to permit others to do so. The specific term of the license can be identified by inquiry made to UChicago Argonne, LLC or DOE.
C28: ******************************************************************************************************************************************************
C30: END-USER LICENSING TERMS AND CONDITIONS
C32: ******************************************************************************************************************************************************
C34: Redistribution and use of the GREET software is permitted provided that the following conditions are met:
C36: 1. Redistributions of the GREET software must retain the above copyright notice, this list of conditions and the following disclaimer. Modification or reverse compilation of the source code is not permitted.
C38: 2. Neither the names of UChicago Argonne, LLC or the Department of Energy nor the names of its contributors may be used to endorse or promote products derived from this software without prior written permission.
C40: 3. The software redistribution, if any, must include the following acknowledgment: "This product includes software produced by UChicago Argonne, LLC under Contract No. DE-AC02-06CH11357 with the Department of Energy.”
C42: 4. Any published results should indicate that the GREET software was developed by Argonne National Laboratory. If you publish results generated using GREET you should identify the GREET software version number. If you publish results generated using input data other than the input data supplied with the GREET software you must indicate that these results relied upon changed input data.
C44: *****************************************************************************************************************************************************
C46: DISCLAIMER
C48: *****************************************************************************************************************************************************
C51: THIS SOFTWARE AND MANUAL ARE SUPPLIED "AS IS" WITHOUT WARRANTY OF ANY KIND.
C52: Neither the United States GOVERNMENT, nor the United States Department of Energy, NOR uchicago argonne, LLC, nor any of their employees, makes any warranty, express or implied, or assumes any legal liability or responsibility for the accuracy, completeness, or usefulness of any information, data, apparatus, product, or process disclosed, or represents that its use would not infringe privately owned rights
C56: Color Scheme for Cells in the GREET Model
C57: Clear cells are primarily for calculations and secondary assumptions
C60: Yellow cells are key input assumptions that users can change for their own simulations
C63: Peach cells are key options that users can select for their own simulations from drop-down menu
C66: Green cells are key input assumptions with probability distribution functions built in
C69: Blue cells are GREET forecast cells for running stochastic simulations
C72: Gray cells are placeholder pathways. Even though simulations of these pathways are completed in GREET, no thorough research was conducted to examine key input assumptions for the pathways.
C75: Cells with red triangle in the upper right corner contain comments. Users are advised to read the comments
C77: Color Scheme for Tabs in the GREET Model
C78: Clear tab is for GREET overview
C81: Yellow tabs indicate worksheets for input assumptions
C84: Peach tabs indicate worksheets for fuel production
C87: Green tabs indicate worksheets for stochastic simulations
C90: Gray tabs indicate supporting worksheets
C93: Blue tabs indicate worksheets for well-to-wheels and well-to-wake results
C97: Brief Descriptions of GREET 1_2013 Worksheets
A98: Sheet | C98: Description
A99: Inputs | C99: Key input parameters that users can specify for GREET simulations. If users use the GREET GUI program, the GUI input values interact mostly with values in this sheet.
A100: Results | C100: Well-to-pump and well-to-wheels energy use and emissions results for vehicle/fuel technology combinations
A101: Petroleum | C101: Calculations of well-to-pump energy use and emissions for petroleum-based fuels (including production of additives)
A102: NG | C102: Calculations of well-to-pump energy use and emissions for NG-based fuels
A103: MeOH&FTD | C103: Calculations of well-to-pump energy use and emissions for methanol (MeOH), dimethyl ether (DME), Fischer-Tropsch diesel (FTD), and Fischer-Tropsch (FT) naphtha
A104: EtOH | C104: Calculations of well-to-pump energy use and emissions for producing ethanol from corn, sugarcane, and cellulosic biomass and producing butanol from corn
A105: Electric | C105: Calculations of energy use and emissions for electricity generation
A106: Hydrogen | C106: Calculations of well-to-pump energy use and emissions for hydrogen production pathways
A107: BioOil | C107: Calculations of well-to-pump energy use and emissions for biodiesel, renewable diesel, and renewable gasoline from soybeans, palm, rapeseed, jatropha and camelina
A108: Algae | C108: Calculations of well-to-pump energy use and emissions for biodiesel, renewable diesel, and renewable gasoline from algae
A109: RNG | C109: Calculations of well-to-pump energy use and emissions for renewable natural gas from landfill gas, manure anaerobic digestion and wastewater sludge anaerobic digestion
A110: Pyrolysis | C110: Calculations of well-to-pump energy use and emissions for pyrolysis-based renewable gasoline and diesel
A111: Fuel_Prod_TS | C111: Time-series tables for key parametric assumptions for well-to-pump fuel production processes. This sheet interacts with other fuel production sheets
A112: EF_TS | C112: Time-series tables for emission factors of combustion technologies applied to stationary sources
A113: EF | C113: Emission factors of combustion technologies by fuel type. This sheet interacts with EF_TS sheet.
A114: Fuel_Specs | C114: Specifications of individual fuels and global warming potentials of GHGs
A115: Car_TS | C115: Time-series tables of fuel economy and emission rates/changes associated with vehicle operations for passenger cars
A116: LDT1_TS | C116: Time-series tables of fuel economy and emission rates/changes associated with vehicle operations for light duty truck 1
A117: LDT2_TS | C117: Time-series tables of fuel economy and emission rates/changes associated with vehicle operations for light duty truck 2
A118: Vehicles | C118: Calculations of energy use and emissions for vehicle operations
A119: Urban_Shares | C119: Share of urban emissions out of total emissions of criteria pollutants for major GREET simulated activities
A120: Compression | C120: Calculations of energy use and efficiency of natural gas and hydrogen compression processes
A121: Coal | C121: Calculations of well-to-pump energy use and emissions for coal mining
A122: T&D_Flowcharts | C122: Flowcharts of transportation and distribution for each energy feedstock and fuel
A123: T&D | C123: Calculations of energy use and emissions for transportation and distribution of energy feedstocks and fuels
A124: Uranium | C124: Calculations of well-to-pump energy use and emissions for uranium ore mining and uranium fuel production
A125: Ag_Inputs | C125: Calculations of energy use and emissions for manufacturing agricultural inputs including fertilizers, herbicides, and insecticides and manufacturing agricultural machinery
A126: Enzymes_Yeast | C126: Calculations of energy use and emissions for manufacturing enzymes and yeast
A127: E-D_Additives | C127: Calculations of well-to-pump energy use and emissions for additives to blend ethanol in diesel fuel
A128: JetFuel_WTP | C128: Calculations of well-to-pump energy use and emissions for jet A, Fischer-Tropsch jet and hydrotreated renewable jet
A129: JetFuel_PTWa | C129: Calculations for pump-to-wake energy use and emissions for passenger and freight aircrafts
A130: JetFuel_WTWa | C130: Well-to-pump and well-to-wake energy use and emissions results for jet fuel/aircraft technology combinations
A131: MarineFuel_PTH | C131: Calculations for pump-to-haul energy use and emissions for marine vessels
A132: MarineFuel_WTH | C132: Well-to-pump and well-to-haul energy use and emissions results for marine fuel/vessel technology combinations
A133: Dist_Specs | C133: Detailed specifications of the input parameters built with distribution functions. The user is cautioned against making any changes to this sheet.
A134: Forecast_Specs | C134: Detailed information of defined forecast items for a particular stochastic simulation run. The user is cautioned against making any changes to this sheet.
A135: Forecast_Deleted | C135: List of the forecast items that were deleted, if any, as specified by the user. The user is cautioned against making any changes to this sheet.
C137: Key Notes for GREET Simulations
A138: 1 | C138: The cells which are colored as yellow and green present default assumptions for GREET calculations. Users can simply place their own
C139: assumptions regarding given issues in these cells to replace the default assumptions.
A140: 2 | C140: The GREET model is designed with the so-called circular calculation feature in Excel in order to account for secondary energy and emission
C141: effects. In circular calculations, if a cell requiring a value is accidentally inputted with a non-value entry, the whole model may be corrupted,
C142: and the model cannot be repaired by inputting a value to the same cell. Users are strongly recommended to save their work frequently
C143: and keep the original copy of the GREET model as a backup.
A144: 3 | C144: The Automatic Calculation feature is disabled to avoid error messages stemming from GREET’s use of circular calculation. Clicking on
C145: the Results tab will prompt GREET to recalculate the entire workbook whenever changes are made for input assumptions. When
C146: changes are made for the worksheets without time-series tables, users can make GREET recalculate results by pressing the F9 key.
C147: However, the manual recalculation with the F9 key is disabled in the worksheets with time-series tables because it interferes with the
C148: macro interpolating time-series parameters. The changes made for the worksheets with time-series tables become effective when users
C149: leave the worksheet.
A150: 4 | C150: The AutoSave feature is disabled to improve stability. The feature is enabled when GREET is closed so that other Excel files will auto save.
A151: 5 | C151: Some add-ins (e.g. Acrobat PDFMaker Office COM add-in) are unloaded when GREET is closed in order to keep Excel from prompting
C152: for VBA Password.
C155: This software was authored by:
C157: Michael Wang
C158: Center for Transportation Research
C159: Energy Systems Division
C160: Argonne National Laboratory
C161: 9700 S. Cass Avenue
C162: Argonne, IL 60439 USA
C163: Phone: 630/252-2819
C164: E-mail: mqwang@anl.gov

Sheet T2 Calculator
B1: Tier 2 Fuel Carbon Intensity Calculator for the Low Carbon Fuel Standard | Q1: Option 1 (Pathways coverd by GREET) | S1: CI, g/MJ | T1: Option 2 (Pathways not covered by GREET) | V1: CI, g/MJ | AA1: 1 | AB1: 1-U.S Ave Mix | AC1: 1 | AE1: Feedstock | AH1: Transportation | AK1: CI Results
Q2: =Q3 -> Miscanthus | R2: =C6 -> Ethanol | S2: =SUM(S3:S6) -> 19.21955437 | T2: =AF17 -> User Defined Fuel Pathway | V2: =SUM(V3:V6) -> 0 | AA2: 2 | AB2: 2-User Defined Mix | AC2: 2 | AE2: Corn Ethanol - Dry Mill | AH2: Select | AK2: =SUM(AK3:AK6) -> 92.67073409
Q3: =B6 -> Miscanthus | R3: Production | S3: 14.23 | T3: =B7 -> ABC feedstock (sample) | U3: Production | V3: =C715 -> 0 | AA3: 3 | AB3: 3-CAMX Mix | AC3: 3 | AE3: Sugarcane | AH3: Ocean Tanker | AK3: 23.5
A4: LCFS Baseline Year: 2010 | B4: Release Date: September 29, 2015 | D4: Color Scheme for cells | E4: User Inputs | F4: Recorded CI | G4: Final CI | Q4: =R2 -> Ethanol | R4: Production | S4: 4.98955437 | T4: =AF17 -> User Defined Fuel Pathway | U4: Production | V4: =G712+G714 -> 0 | AA4: 4 | AB4: 4-NWPP Mix | AC4: 4 | AE4: Grain Sorghum | AH4: Barge | AK4: 49.37073409
A5: Tier 2 Calulator consits of two options, user first selects option 1 or 2, then click SELECT OPTION | D5: Option 1 - Feedstock is covered in the model | Q5: Tank-to-Wheel | S5: 0 | T5: Tank-to-Wheel | V5: =G713 -> 0 | AA5: 5 | AB5: 5-AZNM Mix | AC5: 5 | AE5: Others | AH5: Pipeline | AK5: 0
A6: Option 1: Select feedstock in yellow cell B6, then select the fuel pathway in yellow cell B7 from the drop down menu. | B6: Miscanthus | C6: Ethanol | E6: Double-click at the BLUE button G6 to naviagate directly to your feedstock and fuel tab to input your values. | G6: =AK7 -> EtOH | Q6: Indirect Land Use Change | S6: 0 | T6: Indirect Land Use Change | V6: =G715 -> 0 | AA6: 6 | AB6: 6-RMPA Mix | AC6: 6 | AE6: ------------------ | AH6: Rail | AK6: 19.8
A7: Option 2: If Feedstock is not covered in the model, define Feedstock in the YELLOW cell B7 then select Fuel Pathway next | B7: ABC feedstock (sample) | D7: Double click GO button to select Fuel Pathway, then follow steps below | Q7: Enter the "User defined electricity mix" below, if cell "User Defined Mix" is selected | V7: Enter the "User defined crude sources" below, if "User Defined" is selected | AA7: 7 | AB7: 7-MROW Mix | AC7: 7 | AE7: Soybean Biodiesel | AH7: MD Truck | AK7: =IF($C$6="Petroleum","Petroleum",IF($C$6="Ethanol","EtOH",IF($C$6="Ethanol - Dry Mill","EtOH",IF($C$6="Ethanol - Wet Mill","EtOH",IF($C$6="CNG","NG",IF($C$6="LNG","NG",IF($C$6="L-CNG","NG",IF($C$6="CNG (RNG sources)","RNG",IF($C$6="LNG (RNG sources)","RNG",IF($C$6="L-CNG (RNG sources)","RNG",IF(AND($B$6="Algae",C6="Biodiesel"),"Algae",IF($C$6="Biodiesel","BioOil",IF($C$6="Renewable Diesel","BioOil",IF($C$6="Gaseous Hydrogen - Central Plant","Hydrogen",IF($C$6="Liquid Hydrogen - Central Plant","Hydrogen",IF($C$6="Gaseous Hydrogen - Refueling Station","Hydrogen",IF($C$6="Methanol","MeOH&FTD",IF($C$6="FTD","MeOH&FTD",IF($C$6="DME","MeOH&FTD",IF($C$6="Electricity","Electric",IF(OR(OR(OR($C$6="Pyrolysis Gasoline (Integrated)",$C$6="Pyrolysis Diesel (Integrated)",$C$6="Pyrolysis Gasoline (Distributed)",$C$6="Pyrolysis Diesel (Distributed)"))),"Pyrolysis","N/A"))))))))))))))))))))) -> EtOH
A8: Step 1a) Select Feedstock Production to calculate Feedstock CI | C8: Feedstock Production | E8: Step 2a) Select Fuel Production to calculate Fuel CI | Q8: =IF(OR(C9=2,F9=2),"2-User Defined Mix","") ->  | R8: Average | S8: Average | T8: Brazillian Mix | W8: U.S Ave | X8: =IF(OR(C10=2,F10=2),"User Defined Crude","") ->  | Y8: CA-2010-Crude | AA8: 8 | AB8: 8-SPNO Mix | AC8: 8 | AE8: Tallow Biodiesel | AH8: HDD Truck
A9: Step 1b) Select Regional Electricity Mix for Feedstock (shown in the U.S. map far right) | B9: 1-U.S Ave Mix | C9: =VLOOKUP(B9,$AB$1:$AC$29,2,FALSE) -> 1 | D9: Step 2b) Select Regional Electricity Mix for Fuel (as shown in the U.S. map far right) | E9: 1-U.S Ave Mix | F9: =VLOOKUP(E9,$AB$1:$AC$29,2,FALSE) -> 1 | Q9: Resid Oil/Fossil fuels | R9: 0.03 | S9: =R9 -> 0.03 | T9: 0.0337 | V9: U.S Domestic | W9: 0.3727 | X9: 0 | Y9: =38.78%+14.48% -> 0.5326 | AA9: 9 | AB9: 9-SPSO Mix | AC9: 9 | AE9: Used Cooking Oil Biodiesel
A10: Step 1c) Select Region for Crude Oil Use | B10: U.S. Ave Crude | C10: =VLOOKUP(B10,R45:S56,2,FALSE) -> 1 | D10: Step 2c) Select Region for Crude Oil Use | E10: U.S. Ave Crude | F10: =VLOOKUP(E10,$R45:S56,2,FALSE) -> 1 | Q10: Natural gas | R10: 0.6 | S10: =R10 -> 0.6 | T10: 0.0789 | V10: Canada-Oil Sands | W10: 0.08 | X10: 0 | Y10: 0.0333 | AA10: 10 | AB10: 10-ERCT Mix | AC10: 10 | AE10: Soybean Renewable Diesel | AH10: N/A
A11: Step 2d) Enter your input values to yellow cells below, then, go to the end of your selected fuel tab to perform the FEEDSTOCK calculaltions. Click CALCULATE to compute the feedstock CI then record CI to the orange cell. | E11: Step 2d) Enter your input values to yellow cells below, then, go to the end of your selected fuel tab to perform the FUEL calculaltions. Click CALCULATE again to obtain the final CI | J11: Electricity Mix from U.S. EPA eGRID for 2010 | Q11: Coal | R11: 0.37 | S11: 0.37 | T11: 0.0187 | V11: Canada-Conv. crude | W11: 0.0542 | X11: 0 | Y11: 0.0045 | AA11: 11 | AB11: 11-MROE Mix | AC11: 11 | AE11: Tallow Renewable Diesel
A12: Option 2: Ethanol Pathway | B12: Value | C12: Unit | E12: Value | F12: Unit | J12: Ethanol Pathway Ethanol Pathway Ethanol Pathway Ethanol Pathway Ethanol Pathway Ethanol Pathway Ethanol Pathway Ethanol Pathway Ethanol Pathway Ethanol Pathway Ethanol Pathway Ethanol Pathway Ethanol Pathway | Q12: Nuclear power | R12: 0 | S12: 0 | T12: 0.026 | V12: Mexico | W12: 0.0783 | X12: 0 | Y12: 0 | AA12: 12 | AB12: 12-SRMW Mix | AC12: 12 | AE12: Used Cooking Oil Renewable Diesel | AH12: Yes
A13: Feedstock yield | B13: 45 | C13: ton/acre | D13: Ethanol yield | E13: =B14 -> 43.3 | F13: =C14 -> gal/ton | Q13: Biomass | R13: 0 | S13: 0 | T13: 0.0698 | V13: Middle East | W13: 0.1165 | X13: 0.05 | Y13: 0.2051 | AA13: 13 | AB13: 13-SRMV Mix | AC13: 13 | AE13: ---------- | AH13: No
A14: Ethanol yield | B14: 43.3 | C14: gal/ton | D14: Ethanol produced, gal | E14: 100000000 | Q14: Hydroelectric | R14: 0 | S14: 0 | T14: 0.7645 | V14: Latin America | W14: 0.1206 | X14: 0.91 | Y14: 0.1802 | AA14: 14 | AB14: 14-RFCM Mix | AC14: 14 | AE14: North American NG | AH14: N/A
A15: Convert to other unit, if needed | B15: 0 | C15: gal/bushel | D15: Total thermal energy use, MMBtu in LHV | E15: =E19*E14/10^6 -> 2278721 | Q15: Geothermal | R15: 0 | S15: 0 | T15: 0 | V15: Africa | W15: 0.1437 | X15: 0 | Y15: 0.0136 | AA15: 15 | AB15: 15-RFCW Mix | AC15: 15
A16: Moisture content in wet ton | B16: 0 | D16: Total electricity use, kWh | E16: =E27*E14 -> 82013874.6 | Q16: Wind | R16: 0 | S16: 0 | T16: 0.0083 | V16: Others | W16: =1-SUM(W9:W15) -> 0.034 | X16: =100%-(SUM(X9:X15)) -> 0.04 | Y16: =1-SUM(Y9:Y15) -> 0.0307 | AA16: 16 | AB16: 16-SRTV Mix | AC16: 16 | AE16: For Tier 2 -Option 2
A17: Feedstock Farming/Collection, g/MJ | C17: =EtOH!GI435 -> 0.9624112094 | D17: User's Production Data | E17: Btu/gal | F17: % | G17: =EtOH!GS435 -> 29.31678942 | Q17: Solar PV | R17: 0 | S17: 0 | T17: 0 | V17: Total | W17: =SUM(W9:W16) -> 1 | AA17: 17 | AB17: 17-SRSO Mix | AC17: 17 | AE17: 18 | AF17: =VLOOKUP(AE17,$AD$18:$AE$46,2,FALSE) -> User Defined Fuel Pathway | AH17: Feedstock Production
A18: Farming/Collection energy, Btu | B18: 33734.76 | C18: Per ton | D18: Total Plant Energy, Btu/gal | E18: =(E19+E27*kWh2BTU) -> 25585.63956 | Q18: Others (purchased) | R18: =1-(SUM(R9:R17)+0.0000000001) -> -1.000000083e-10 | S18: -1.000000083e-10 | T18: 0 | AA18: 18 | AB18: 18-NEWE Mix | AC18: 18 | AD18: 1 | AE18: SELECT TIER 2 FUELS | AH18: Fuel Production
D19: Plant Thermal Energy, Btu/gal | E19: =SUM(E20:E26,E28) -> 22787.21 | Q19: Total | R19: =SUM(R9:R17,R18) -> 0.9999999999 | S19: =SUM(S9:S18) -> 0.9999999999 | T19: =SUM(T9:T18) -> 0.9999 | AA19: 19 | AB19: 19-NYUP Mix | AC19: 19 | AD19: 2 | AE19: Ethanol Pathway | AF19: DNAVT2ETOH | AH19: =IF(Q10="Natural Gas",1,0) -> 1 | AK19: Feedstock | AL19: Fuel
A20: Residual oil, % | B20: 0 | D20: Residual oil | E20: 0 | F20: =E20/$E$18 -> 0 | AA20: 20 | AB20: 20-RFCE Mix | AC20: 20 | AD20: 3 | AE20: Plant Oil to Biodiesel Pathway | AF20: DNAVT2BD | AK20: User Defined | AL20: Petroleum
A21: Diesel fuel, % | B21: 0.49227 | D21: Diesel fuel | E21: 0 | F21: 0 | K21: Note: Applicant is advised to go to EtOH tab for calculating OPTION 2 ethanol pathways | AA21: 21 | AB21: 21-NYLI Mix | AC21: 21 | AD21: 4 | AE21: Waste Oil to Biodiesel Pathway | AF21: DNAVT2WOBD | AK21: --- Ethanol | AL21: Ethanol
A22: Gasoline, % | B22: 0.1470254659 | D22: Gasoline | E22: 0 | F22: 0 | K22: cell GF300 (for User Defined Ethanol) | AA22: 22 | AB22: 22-NYCW Mix | AC22: 22 | AD22: 5 | AE22: Renewable Diesel Pathway (Plant Oil) | AF22: DNAVT2RD | AH22: Petroleum | AK22: Corn | AL22: Ethanol - Dry Mill
A23: Natural gas, % | B23: 0.1354529545 | D23: Natural gas | E23: 22787.21 | F23: 0.8906249909 | AA23: 23 | AB23: 23-SRVC Mix | AC23: 23 | AD23: 6 | AE23: Renewable Diesel Pathway (Waste Oil) | AF23: DNAVT2WORD | AH23: NG | AK23: Willow Trees | AL23: Ethanol - Wet Mill
A24: Coal, % | B24: =0%*(1-B29) -> 0 | D24: Coal | E24: 0 | F24: 0 | AA24: 24 | AB24: 24-FRCC Mix | AC24: 24 | AD24: 7 | AE24: CNG Pathway | AF24: DNAVT2CNG | AH24: MeOH&FTD | AK24: Poplar Trees | AL24: CNG
A25: Liquefied petroleum gas, % | B25: 0.1793122194 | D25: Liquefied petroleum gas | F25: 0 | AA25: 25 | AB25: 25-AKMS Mix | AC25: 25 | AD25: 8 | AE25: LNG Pathway | AF25: DNAVT2LNG | AH25: EtOH | AK25: Switchgrass | AL25: LNG
A26: Biomass, % | B26: 0 | D26: Biomass | E26: 0 | F26: 0 | AA26: 26 | AB26: 26-AKGD Mix | AC26: 26 | AD26: 9 | AE26: L-CNG Pathway | AF26: DNAVT2LCNG | AH26: Electric | AK26: Miscanthus | AL26: L-CNG
A27: Electricity, % | B27: 0.0459 | D27: Electricity, kWh/gal | E27: 0.820138746 | F27: =E27*kWh2BTU/$E$18 -> 0.1093750091 | AA27: 27 | AB27: 27-HIOA Mix | AC27: 27 | AD27: 10 | AE27: CNG Pathway (RNG Source) | AF27: DNAVT2RNGCNG | AH27: Hydrogen | AK27: Corn Stover | AL27: CNG (RNG sources)
A28: Renewable natural gas, % | B28: =1-B20-B21-B22-B23-B24-B25-B26-B27 -> 3.936010313e-05 | D28: Renewable natural gas | E28: 0 | F28: =E28/$E$18 -> 0 | AA28: 28 | AB28: 28-HIMS Mix | AC28: 28 | AD28: 11 | AE28: LNG Pathway (RNG Source) | AF28: DNAVT2RNGLNG | AH28: BioOil | AK28: Forest Residue | AL28: LNG (RNG sources)
A29: Feed Loss, % | B29: 0 | D29: Feed Loss | E29: 0 | F29: =E29/$E$18 -> 0 | AA29: 29 | AB29: 29- Brazillian Mix | AC29: 29 | AD29: 12 | AE29: L-CNG Pathway (RNG Source) | AF29: DNAVT2RNGLCNG | AH29: Algea | AK29: Sugarcane | AL29: L-CNG (RNG sources)
D30: Alpha Amylase (grams/gal) | E30: 2.66 | AD30: 13 | AE30: Methanol Pathway | AF30: DNAVT2MEOH | AH30: RNG | AK30: Grain Sorghum | AL30: Biodiesel
D31: Gluco Amylase (grams/gal) | E31: 5.73 | AD31: 14 | AE31: Dimethyl Ether (DME) Pathway | AF31: DNAVT2DME | AH31: Pyrolosis | AK31: Sweet Sorghum | AL31: Renewable Diesel
A32: Fertilizers, g/MJ | C32: =EtOH!GJ435 -> 2.54941552 | D32: Cellulase (grams/gal) | E32: 0 | AD32: 15 | AE32: Fischer-Tropsch Diesel (FTD) Pathway | AF32: DNAVT2FTD | AK32: Forage Sorghum | AL32: Gaseous Hydrogen - Central Plant
A33: Nitrogen, grams | B33: 1016.807354 | C33: =C18 -> Per ton | D33: Yeast (grams/gal) | E33: 2.9 | AD33: 16 | AE33: Hydrogen Pathway | AF33: DNAVT2H2 | AK33: ---Biodiesel and RD | AL33: Liquid Hydrogen - Central Plant
A34: P2O5, grams | B34: 573.773628 | D34: Sulfuric acid (H2SO4, (grams/gal) | E34: 18.07 | AD34: 17 | AE34: Pyrolysis Pathway | AF34: DNAVT2PYR | AG34: DNAVT2ELEC | AK34: Soybean | AL34: Gaseous Hydrogen - Refueling Station
A35: K2O, grams | B35: 595.4180378 | D35: Ammonia (NH3, (grams/gal) | E35: 18.07 | AD35: 18 | AE35: User Defined Fuel Pathway | AF35: DNAVT2UDFUEL | AK35: Palm Fresh Fruit Bunches | AL35: Methanol
A36: CaCO3, grams | B36: 4525.255794 | D36: NaOH (grams/gal) | E36: 22.66 | AD36: 19 | AK36: Canola | AL36: FTD
A37: Herbicide, grams | B37: 31.87631266 | D37: Lime (CaO, grams/gal) | E37: 10.81 | AD37: 20 | AK37: Jatropha | AL37: DME
A38: Insecticide, grams | B38: 2.676036125 | D38: Urea (grams/gal) | E38: 0 | AD38: 21 | AK38: Camelina | AL38: Electricity
A39: N2O in Soil, g/MJ | C39: =EtOH!GK435 -> 1.810802198 | AD39: 22 | AK39: Tallow | AL39: Pyrolysis Gasoline (Integrated)
A40: N in N2O as % of N in N fertilizer | B40: =Inputs!$M$330 -> 0.01325 | AD40: 23 | AK40: Used Cooking Oil | AL40: Pyrolysis Diesel (Integrated)
A41: N in N2O as % of N in biomass | B41: =Inputs!$E$330 -> 0.01225 | AD41: 24 | AK41: Corn Oil from DGS | AL41: Pyrolysis Gasoline (Distributed)
A42: N above and below ground biomass | B42: 0 | C42: g/ton | D42: EtOH Transport and Distribution, g/MJ | G42: =EtOH!GX435 -> 2.301652045 | AD42: 25 | AK42: Algae | AL42: Pyrolysis Diesel (Distributed)
A43: Feedstock Transportation, g/MJ | C43: =EtOH!GQ435 -> 0.9956169039 | D43: From where to where? | E43: Pipeline | AD43: 26 | AK43: ---CNG, LNG, and L-CNG
A44: From Field to Stack | B44: Medium Duty Diesel Truck | D44: Shares | E44: 1 | R44: Crude | AD44: 27 | AK44: North American NG
A45: Shares | B45: 1 | D45: Miles | E45: 0 | R45: U.S. Ave Crude | S45: 1 | AD45: 28 | AK45: Non - North American NG
A46: Miles | B46: 10 | D46: From where to where? | E46: HDD Truck | R46: User Defined Crude | S46: 2 | AD46: 29 | AK46: Flared Gas
A47: From Stack to ___________ | B47: HDD Truck | D47: Shares | E47: 1 | R47: CA Crude | S47: 3 | AB47: 'For Option 1 | AE47: 'SELECT FEEDSTOCK | AF47: =VLOOKUP(Q2,$AE$49:$AH$107,4,FALSE) -> EtOH | AH47: =VLOOKUP(B6,$AE$49:$AH$107,4,FALSE) -> EtOH | AK47: Landfill Gas
A48: Shares | B48: 1 | D48: Miles | E48: 50 | AE48: ---Ethanol | AK48: Animal Waste
A49: Miles | B49: 40 | D49: From where to where? | E49: Ocean Tanker | AE49: Corn | AF49: FNAVT2CORN | AH49: EtOH | AK49: Waste Water Treatment
A50: From where to where? | B50: Ocean Tanker | D50: Shares | E50: 1 | AE50: Willow Trees | AF50: FNAVT2WILL | AH50: EtOH | AK50: ---Methanol, DME and Fischer-Tropsch
A51: Shares | B51: 1 | D51: Miles | E51: 0 | AE51: Poplar Trees | AF51: FNAVT2POP | AH51: EtOH | AK51: Natural Gas
A52: Miles | B52: 0 | D52: From where to where? | E52: Barge | AE52: Switchgrass | AF52: FNAVT2SWIT | AH52: EtOH | AK52: Flared Gas
A53: From where to where? | B53: Barge | D53: Shares | E53: 0 | AE53: Miscanthus | AF53: FNAVT2MISC | AH53: EtOH | AK53: Landfill Gas
A54: Shares | B54: 1 | D54: Miles | E54: 0 | AE54: Corn Stover | AF54: FNAVT2CSTOV | AH54: EtOH
A55: Miles | B55: 0 | D55: From where to where? | E55: Rail | AE55: Forest Residue | AF55: FNAVT2FR | AH55: EtOH
A56: From where to where? | B56: Rail | D56: Shares | E56: 1 | AE56: Sugarcane | AF56: FNAVT2SC | AH56: EtOH | AK56: ---Hydrogen
A57: Shares | B57: 1 | D57: Miles | E57: 0 | AE57: Grain Sorghum | AF57: FNAVT2GSG | AH57: EtOH | AK57: North American NG
A58: Miles | B58: 0 | D58: From where to where? | E58: HDD Truck | AE58: Sweet Sorghum | AF58: FNAVT2SSG | AH58: EtOH | AK58: Solar Energy
A59: From where to where? | B59: HDD Truck | D59: Shares | E59: 1 | AE59: Forage Sorghum | AF59: FNAVT2FSG | AH59: EtOH | AK59: Nuclear Energy
A60: Shares | B60: 1 | D60: Miles | E60: 40 | AF60: FNAVT2UDETOH | AK60: Electrolysis
A61: Miles | B61: 0 | AE61: ---Biodiesel and RD | AK61: Biomass
A62: From where to where? | B62: Pipeline | AE62: Soybean | AF62: FNAVT2SB | AH62: BioOil | AK62: Coal
A63: Shares | B63: 1 | AE63: Palm Fresh Fruit Bunches | AF63: FNAVT2FFB | AH63: BioOil | AK63: Coke Oven Gas
A64: Miles | B64: 0 | D64: Place Holder for a Different and Innovative Process | G64: =EtOH!GU435 -> 0 | AE64: Canola | AF64: FNAVT2CANO | AH64: BioOil | AK64: Pet Coke
A65: Co-product credit for animal feed displacement, g/MJ | C65: =EtOH!GO435 -> -2.571278908 | AE65: Jatropha | AF65: FNAVT2JATR | AH65: BioOil | AK65: Ethanol
A66: Co-product Yield | B66: 5.69 | C66: lbs co-prod/gal | AE66: Camelina | AF66: FNAVT2CAME | AH66: BioOil | AK66: Methanol
A67: Displacement of corn | B67: 1 | C67: lbs /lb co-prod | AE67: Tallow | AF67: FNAVT2TALLOW | AH67: BioOil | AK67: ---Pyrolysis
A68: Displacement of ___ | B68: 0 | AE68: Used Cooking Oil | AF68: FNAVT2UCO | AH68: BioOil | AK68: Corn Stover
A69: Displacement of ___ | B69: 0 | AE69: Corn Oil from DGS | AF69: FNAVT2CO | AH69: BioOil | AK69: Forest Residue
A70: Displacement of ___ | AE70: Algea | AF70: FNAVT2ALGEA | AH70: BioOil
A71: Displacement of ___ | AF71: FNAVT2UDBDRD | AH71: BioOil
A72: Co-product credit , g/MJ | C72: =EtOH!GN435 -> 0 | D72: Place Holder for a Different and Innovative Process | G72: =EtOH!GV435 -> 0 | AE72: ---CNG, LNG, and L-CNG
AE73: North American Natural Gas | AF73: FNAVT2NANG | AH73: NG
AE74: Non - North American NG | AF74: FNAVT2NNANG | AH74: NG
A75: Co-product credit for electricity, g/MJ | C75: =EtOH!GT435 -> 0 | AE75: Flare Gas | AF75: FNAVT2FLG | AH75: NG
A76: Electricity Yield, kWh/gal | B76: 0 | AE76: Landfill Gas | AF76: FNAVT2LFG | AH76: RNG
AE77: Animal Waste | AF77: FNAVT2AW | AH77: RNG
A78: Place Holder for a Different Process, g/MJ | C78: =EtOH!GL435 -> 0 | AE78: Waste Water Treatment | AF78: FNAVT2WWT | AH78: RNG
AF79: FNAVT2UDNG | AH79: RNG
AE80: ---Methanol
AE81: Natural Gas | AF81: FNAVT2NGMEOH | AH81: MeOH&FTD
AE82: Flared Gas | AF82: FNAVT2FLGMEOH | AH82: MeOH&FTD
AE83: ---DME and Fischer-Tropsch
A84: Place Holder for a Different Process, g/MJ | C84: =EtOH!GM435 -> 0 | AE84: Natural Gas | AF84: FNAVT2NGDME | AH84: DME_FTD
AE85: Flared Gas | AF85: FNAVT2FGDME | AH85: DME_FTD
D86: Place Holder for a Different and Innovative Process | G86: =+EtOH!GW435 -> 0 | AE86: Landfill Gas | AF86: FNAVT2LFGDME | AH86: DME_FTD
AE87: Biomass | AF87: FNAVT2BMDME | AH87: DME_FTD
AE88: Coal | AF88: FNAVT2CLDME | AH88: DME_FTD
A89: Treatment, Storage, Handling, g/MJ | C89: =EtOH!GP435 -> 0.02687463248 | AE89: Natural Gas
AE90: Flared Gas
AE91: Landfill Gas
AE92: Biomass
A93: Total Feedstock CI, g/MJ | C93: =C17+C39+C32+C43+C65+C72+C78+C75+C84+C89 -> 3.773841556 | E93: Total Fuel CI, g/MJ | G93: =G17+G64+G42+G72+G86 -> 31.61844146
E94: Total Tank-to-Wheel, g/MJ | G94: =EtOH!GZ438 -> 0 | AE94: FTD Naptha
E95: Denaturant, g/MJ | G95: =EtOH!GZ439 -> 2.305102792 | AE95: ---Hydrogen
E96: Indirect Land Use, g/MJ | G96: =EtOH!GZ440 -> 0 | AE96: North American NG | AF96: FNAVT2NGH2 | AH96: Hydrogen
A97: Step 1d) | B97: Record Feedstock CI above | C97: 4.24 | E97: Total Well-to-Tank CI, g/MJ | G97: =C97+G93+G94+G95+G96 -> 38.16354426 | AE97: Solar Energy | AF97: FNAVT2SLRH2 | AH97: Hydrogen
AE98: Nuclear Energy | AF98: FNAVT2NCLH2 | AH98: Hydrogen
AE99: Electrolysis | AF99: FNAVT2ELTLH2 | AH99: Hydrogen
AE100: Biomass | AF100: FNAVT2BMLH2 | AH100: Hydrogen
A101: Option 2: Plant Oil to Biodiesel Pathway | D101: User's Production Data | E101: Btu/lb oil | J101: Plant Oil to Biodiesel Plant Oil to Biodiesel Plant Oil to Biodiesel Plant Oil to Biodiesel Plant Oil to Biodiesel Plant Oil to Biodiesel Plant Oil to Biodiesel Plant Oil to Biodiesel Plant Oil to Biodiesel Plant Oil to Biodiesel | L101: Note: Applicant is advised to go to BioOil tab for calculating OPTION 2 BD and RD pathways | AE101: Coal | AF101: FNAVT2CLTLH2 | AH101: Hydrogen
A102: Oil yield, lb oil/unit of feedstock | B102: 400 | D102: Fuel yield, lb biodiesel/lb soy oil | E102: =B103 -> 1.04 | L102: cell EU201 (for Plant Oil to BD) | AE102: Coke Oven Gas | AF102: FNAVT2COGTLH2 | AH102: Hydrogen
A103: Biodiesel yield, lb biodiesel/lb oil | B103: 1.04 | D103: Biodiesel produced, lbs | E103: 9615000 | L103: cell FM201 (for Plant Oil to RD) | AE103: Pet Coke | AF103: FNAVT2PCTLH2 | AH103: Hydrogen
A104: Convert to lb biodiesel/bushel | B104: =B105/B103 -> 50.19230769 | D104: Total thermal energy use, MMBtu | E104: =E108/10^6*E103 -> 18975.0102 | L104: cell GE201 (for Waste Oil to BD) | AE104: Ethanol | AF104: FNAVT2ETOHH2 | AH104: Hydrogen
A105: Feedstock yield, lb/dry bushel | B105: 52.2 | D105: Total electricity use, kWh | E105: =E117/kWh2BTU*E103 -> 407098.8837 | L105: cell GW201 (for Waste Oil to RD) | AE105: Methanol | AF105: FNAVT2MEOHH2 | AH105: Hydrogen
A106: Moisture content in wet ton | B106: 0.15 | AE106: ---Pyrolosis
A107: Farming | C107: =BioOil!EX349 -> 0 | D107: Transesterifiacation | E107: Btu/lb BD | F107: % | G107: CI, g/MJ | AE107: Pyrolosis | AF107: FNAVT2PYR | AH107: Pyrolosis
A108: Farming energy, Btu | B108: 16718 | C108: Per bushel | D108: Total Energy | E108: =E109+E117 -> 1973.48 | G108: =BioOil!FG349 -> 0
D109: Thermal Energy | E109: =SUM(E110:E116,E118:E121) -> 1829.01
A110: Residual oil | B110: 0 | D110: Residual oil | E110: 0 | F110: =E110/$E$108 -> 0
A111: Diesel fuel | B111: 0.644 | D111: Diesel fuel | E111: 0 | F111: 0
A112: Gasoline | B112: 0.178 | D112: Gasoline | E112: 0 | F112: 0
A113: Natural gas | B113: 0.073 | D113: Natural gas | E113: 995.3 | F113: 0.5043375155
A114: Coal | B114: =0%*(1-B119) -> 0 | D114: Coal | E114: 0 | F114: 0
A115: Liquefied petroleum gas | B115: 0.076 | D115: Liquefied petroleum gas | E115: 0 | F115: 0
A116: Electricity | B116: 0 | D116: Electricity | E116: 0 | F116: 0
A117: Renewable Natural Gas | B117: 0.029 | D117: Renewable Natural Gas | E117: 144.47 | F117: 0.07320570768
A118: Biomass | B118: =1-B110-B111-B112-B113-B114-B115-B116-B117 -> 0 | D118: Biomass | E118: 0 | F118: 0
A119: Feed Loss, % | B119: 0 | D119: N-hexane (a solvent from crude) | F119: 0
A120: Fertilizers | C120: =BioOil!EY349 -> 0 | D120: Methanol | E120: 833.71 | F120: 0.4224567769
A121: Nitrogen, g | B121: =49.9 -> 49.9 | C121: Per bushel | D121: Hydrogen | F121: 0
A122: P2O5, g | B122: =206.7 -> 206.7 | D122: Sodium hydroxide (grams) | E122: 0.44
A123: K2O, g | B123: =344.4 -> 344.4 | D123: Sodium methoxide (grams) | E123: 10.48
A124: CaCO3, g | B124: 0 | D124: Hydrochloric acid (grams) | E124: 19.68
A125: Herbicide, g | B125: =20.7 -> 20.7 | D125: Phosphoric acid (grams) | E125: 0.45
A126: Insecticide, g | B126: =0.6 -> 0.6 | D126: Citric acid (grams) | E126: 0.33
A127: N2O in Soil | C127: =BioOil!EZ349 -> 0
A128: N in N2O as % of N in N fertilizer | B128: =Inputs!$M$330 -> 0.01325 | D128: Place Holder for different processes | G128: =BioOil!FH349 -> 0
A129: N in N2O as % of N in biomass | B129: =Inputs!$F$493 -> 0.01225 | D129: Energy
A130: N above and below ground biomass: g/bushel | B130: 200.7
A131: Feedstock Transportation | C131: =BioOil!FA349 -> 0
A132: From field to stack | B132: Medium Duty Diesel Truck
A133: Miles | B133: 10
A134: From stack to oil extraction mill | B134: HDD Truck
A135: Share | B135: 1
A136: Miles | B136: 40
A137: =IF(B131="Yes","From port to CA","From stack to oil extraction mill") -> From stack to oil extraction mill | B137: Barge
A138: Share | B138: 1
A139: Miles | B139: 0
A140: =IF(B131="Yes","From railyard to CA","From stack to oil extraction mill") -> From stack to oil extraction mill | B140: Rail
A141: Share | B141: 1
A142: Miles | B142: 1400
A143: Oil yield, lb/bu | B143: =E102*BioOil!B66 -> 54.288
A144: Oil produced, lbs | B144: 10000000
A145: Total thermal energy use, MMBtu in LHV | B145: =B149/10^6*B144 -> 32408.7
A146: Total electricity use, kWh | B146: =B157/kWh2BTU*B144 -> 1307477.965
A147: Oil Extraction | C147: =BioOil!FB349 -> 0
A148: Total Energy, Btu/lb oil | B148: =B149+B157 -> 3687
A149: Thermal Energy, Btu/lb oil | B149: =SUM(B150:B156,B158:B159) -> 3240.87
A150: Residual oil | B150: 32.08 | C150: =B150/$B$148 -> 0.008700840792
A151: Diesel fuel | B151: 15.85 | C151: 0.004298887985
A152: Gasoline | B152: 0 | C152: 0
A153: Natural gas | B153: 2068.04 | C153: 0.5609004611
A154: Coal | B154: 1017.98 | C154: 0.2760998101 | D154: Place Holder for different processes | G154: =BioOil!FI349 -> 0
A155: Liquefied petroleum gas | C155: 0
A156: Electricity | B156: 32.08 | C156: 0.008700840792
A157: Renewable Natural Gas | B157: 446.13 | C157: 0.1210008137
A158: Biomass | B158: 15.85 | C158: 0.004298887985
A159: N-Hexane | B159: 58.99 | C159: 0.01599945755
A160: Oil Transportation | C160: =BioOil!FC349 -> 0
A161: From extraction mill to BD plant | B161: Ocean Tanker
A162: Share | B162: 0
A163: Miles | B163: 0
A164: From extraction mill to BD plant | B164: Barge
A165: Share | B165: 0
A166: Miles | B166: 0
A167: From extraction mill to BD plant | B167: Rail
A168: Share | B168: 1
A169: Miles | B169: 1400
A170: From extraction mill to BD plant | B170: HDD Truck
A171: Share | B171: 1
A172: Miles | B172: 50
A173: Co-product credit for displacement
A174: Allocation Method | B174: Hybrid (Mass for feedtock oil and energy for glycerine)
A175: Oil mass allocation | B175: =BioOil!EW206 -> 0.2
A176: Glycerine yield, lb/lb BD | B176: =BioOil!C51 -> 0.11 | D176: Biodiesel Transportation | G176: =BioOil!FJ349 -> 1.710335556
D177: BD from plant to port/yard or to blending term. | E177: HDD Truck
A178: System energy allocation to BD | B178: =BioOil!B175/(BioOil!B175+BioOil!B193*BioOil!C95) -> 0.9506365545 | D178: Shares | E178: =IF(E176="No",0,100%) -> 1
A179: System energy allocation to glycerin | B179: =1-B178 -> 0.04936344555 | D179: Miles | E179: 50
D180: BD from railyard to CA | E180: Rail
A181: Place Holder for different processes | C181: =BioOil!FD349 -> 0 | D181: Shares | E181: 1
A182: Residual oil | D182: Miles | E182: 1400
A183: Diesel fuel | D183: BD from port to CA | E183: Ocean Tanker
A184: Gasoline | D184: Shares | E184: 1
A185: Natural gas | D185: Miles | E185: 0
A186: Coal | D186: Biodiesel Distribution
A187: Liquefied petroleum gas | D187: =IF(E176="No","Fuel from CA BD plant to blending terminal","From CA port/railyard to blending terminal") -> From CA port/railyard to blending terminal | E187: HDD Truck
A188: Biomass | D188: Shares | E188: 0.8
A189: Electricity | D189: Miles | E189: 50
A190: Renewable natural gas | D190: From blending term. to fuel stations | E190: HDD Truck
A191: N-Hexane | D191: Shares | E191: 1
A192: Place Holder for different processes | C192: =BioOil!FE349 -> 0 | D192: Miles | E192: 50
A194: Total Feedstock CI, g/MJ | C194: =C107+C127+C120+C131+C147+C160+C181+C192 -> 0 | E194: Total Fuel CI, g/MJ | G194: =G108+G176+G128+G154 -> 1.710335556
E195: Total Tank-to-Wheel, g/MJ | G195: =BioOil!GR352 -> 0.7562433006
E196: Denaturant, g/MJ | G196: 0
E197: Indirect Land Use, g/MJ | G197: 0
B198: Record Feedstock CI above -> | C198: 25.88 | E198: Total Well-to-Tank CI, g/MJ | G198: =C198+G194+G195+G196+G197 -> 28.34657886
A199: Option 2: Waste Oil to Biodiesel (Used Cooking Oil or Similar Used Oil) | D199: User's Production Data | J199: Waste Oil Biodiesel Waste Oil Biodiesel Waste Oil Biodiesel Waste Oil Biodiesel Waste Oil Biodiesel Waste Oil Biodiesel Waste Oil Biodiesel Waste Oil Biodiesel | L199: Note: Applicant is advised to go to BioOil tab for calculating OPTION 2 BD and RD pathways
A200: Rendering Yield, lb oil/lb of waste oil | B200: 1 | D200: BD yield, lb biodiesel/ lb rendered oil | E200: =B201 -> 0.96 | L200: cell EU201 (for Plant Oil to BD)
A201: Biodiesel yield, lb biodiesel/ lb rendered oil | B201: 0.96 | D201: Biodiesel produced, lbs | E201: =B201*B217 -> 4800000 | L201: cell FM201 (for Plant Oil to RD)
... 306 more rows

Sheet Inputs
A6: Scenario Control Variables and Input Assumptions
A7: 1. Key Options for Simulation
B8: 1.1) Target Year for Simulation
E9: 2010
B11: 1.2) Point-Estimation or Probability-Estimation Option
E12: no | F12: yes | G12: … To run probability-based simulations
F13: no | G13: ... Not to run probability-based simulations (instead, to run point-estimation simulations)
A15: 2. Vehicle Types for Simulation
E16: 2 | F16: 1 -- Passenger Cars; 2 -- Light-Duty Trucks 1; 3 -- Light-Duty Trucks 2
A18: 3. Petroleum-Based Fuels
B19: 3.1) Petroleum Recovery Options
C20: 3.1.a) Share of crude oil sources
E21: =IF('T2 Calculator'!C8="Feedstock Production",'T2 Calculator'!C10,IF('T2 Calculator'!C8="Fuel Production",'T2 Calculator'!F10,1)) -> 1 | F21: Basis of share of crude oil sources: 1 -- EIA projection, 2 -- User defined, 3 -- CA Crude
F22: U.S. Domestic | G22: Canada (Oil Sands) | H22: Canada (Conv. Crude) | I22: Mexico | J22: Middle East | K22: Latin America | L22: Africa | M22: Others
E23: EIA projection | F23: =Fuel_Prod_TS!$AJ$9 -> 0.353 | G23: =Fuel_Prod_TS!$AK$9 -> 0.057 | H23: =Fuel_Prod_TS!$AL$9 -> 0.076 | I23: =Fuel_Prod_TS!$AM$9 -> 0.07833 | J23: =Fuel_Prod_TS!$AN$9 -> 0.114 | K23: =Fuel_Prod_TS!$AO$9 -> 0.135 | L23: =Fuel_Prod_TS!$AP$9 -> 0.148 | M23: =1-SUM(F23:L23) -> 0.03867
E24: User defined | F24: ='T2 Calculator'!X9 -> 0 | G24: ='T2 Calculator'!X10 -> 0 | H24: ='T2 Calculator'!X11 -> 0 | I24: ='T2 Calculator'!X12 -> 0 | J24: ='T2 Calculator'!X13 -> 0.05 | K24: ='T2 Calculator'!X14 -> 0.91 | L24: ='T2 Calculator'!X15 -> 0 | M24: =1-SUM(F24:L24) -> 0.04
E25: California | F25: ='T2 Calculator'!Y9 -> 0.5326 | G25: ='T2 Calculator'!Y10 -> 0.0333 | H25: ='T2 Calculator'!Y11 -> 0.0045 | I25: ='T2 Calculator'!Y12 -> 0 | J25: ='T2 Calculator'!Y13 -> 0.2051 | K25: ='T2 Calculator'!Y14 -> 0.1802 | L25: ='T2 Calculator'!Y15 -> 0.0136 | M25: =1-SUM(F25:L25) -> 0.0307
E26: Used in calculation | F26: =IF($E21=1,F23,IF($E$21=2,F24,F25)) -> 0.353 | G26: 0.057 | H26: 0.076 | I26: 0.07833 | J26: 0.114 | K26: 0.135 | L26: 0.148 | M26: =IF($E21=1,M23,M24) -> 0.03867
E27: API gravity | F27: 30.7 | G27: =32*(OilSands_IMUProcess_Share*I35+OilSands_InSituProcess_Share*I36)+21*(OilSands_IMUProcess_Share*J35+OilSands_InSituProcess_Share*J36) -> 26.5 | H27: 26.5 | I27: 26.5 | J27: 31.8 | K27: 24.8 | L27: 38.3 | M27: 32
E28: S Content (wt %) | F28: 1.39 | G28: =Fuel_Specs!H8*(OilSands_IMUProcess_Share*I35+OilSands_InSituProcess_Share*I36)+Fuel_Specs!H9*(OilSands_IMUProcess_Share*J35+OilSands_InSituProcess_Share*J36)*100 -> 1.9009 | H28: 1.94 | I28: 2.2 | J28: 2.26 | K28: 2.8 | L28: 0.289 | M28: 0.764
E29: Average transportation distances (mi) | F29: See T&D_Flowcharts tab | G29: 1708 | H29: 1708 | I29: 797 | J29: 14596 | K29: 4620 | L29: 7280 | M29: 6128
C30: 3.1.b) Efficiency for Petroleum Recovery
D31: 3.1.b.i) Conventional Crude Recovery
E32: =Fuel_Prod_TS!$C$9 -> 0.98
D33: 3.1.b.ii) Oil Sands Recovery and Upgrading
F34: Bitumen recovery | G34: Bitumen Upgrading | H34: H2 Use for Upgrading: SCF/mmBtu product | I34: Share of Upgrading in Oil Sand Recovery | J34: Share of Refining in Oil Sand Recovery
E35: Surface Mining | F35: =Fuel_Prod_TS!$C$22 -> 0.948 | G35: =Fuel_Prod_TS!$G$22 -> 0.986 | H35: =Fuel_Prod_TS!$AA$22 -> 290.3 | I35: 1 | J35: =1-I35 -> 0
E36: In Situ Production | F36: =Fuel_Prod_TS!$K$22 -> 0.843 | G36: =Fuel_Prod_TS!$O$22 -> 0.986 | H36: =Fuel_Prod_TS!$AE$22 -> 111.6 | I36: 0 | J36: =1-I36 -> 1
C37: 3.1.c) Selection of Oil Sands Recovery Methods
E38: Surface Mining | F38: =Fuel_Prod_TS!$S$22 -> 0.5
E39: In Situ Production | F39: =1-F38 -> 0.5
C40: 3.1.d) Source of H2 Production for Use in Oil Sands Recovery
E41: 1 | F41: 1 -- NG; 2 -- Nuclear (Thermo-Chemical Water Cracking); 3 -- Electrolysis (Nuclear HTGR); 4 -- Coal; 5 -- Pet Coke
C42: 3.1.e) Source of Steam Production for Use in Oil Sands Recovery
E43: 1 | F43: 1-- NG; 2 -- Nuclear (HTGR); 3 -- Coal; 4 -- Pet Coke
B45: 3.2) Conventional Crude Transport Options | K45: California Crude Transport (from OPGEE model 2010)
F46: Domestic: Alaska | G46: Domestic: U.S. 48 States | H46: Imported: Offshore Countries | I46: Imported Canada and Mexico | L46: Domestic: Alaska | M46: Domestic: U.S. 48 States | N46: Imported: Offshore Countries | O46: Imported Canada and Mexico
E47: Domestic Share of Crude Input to Refineries | G47: =1-F49-H49-I50-I51 -> 0.3743372216 | K47: Domestic Share of Crude Input to CA Refineries
E48: Mode Shares | K48: Mode Shares
E49: Ocean Tanker | F49: =MIN(3.5%,F24) -> 0 | H49: =IFERROR(SUM(J26:M26)/(1-G26),0) -> 0.4620042418 | K49: Ocean Tanker | L49: 0.1099 | N49: 0.4043
E50: Pipeline | G50: See T&D_Flowcharts tab | I50: =IFERROR(H26/(1-G26),0) -> 0.08059384942 | K50: Pipeline | L50: 0.0372 | M50: 0.3773 | N50: 0.032 | O50: 0.0155
E51: Rail | G51: See T&D_Flowcharts tab | I51: =IFERROR(I26/(1-G26),0) -> 0.08306468717 | K51: Rail | M51: 0.0008 | O51: 0.023
E52: Average transportation distances (mi) | K52: Average transportation distances (mi)
E53: Ocean Tanker | F53: 2100 | H53: =IFERROR(SUMPRODUCT(J26:M26,J29:M29)/SUM(J26:M26),AVERAGE(J29:M29)) -> 8267.848968 | K53: Ocean Tanker | L53: 2364 | N53: 3709
E54: Pipeline | G54: See T&D_Flowcharts tab | I54: =H29 -> 1708 | K54: Pipeline | L54: 800 | M54: 100 | N54: 38 | O54: 900
E55: Rail | G55: See T&D_Flowcharts tab | I55: =I29 -> 797 | K55: Rail | M55: 2000 | O55: 1336
B57: 3.3) Petroleum Refining Efficiency
C58: 3.3.a) Simulation scenarios
E59: =IF('T2 Calculator'!E10="U.S. Ave Crude",10,9) -> 10 | F59: 1 -- Crude oil mixes defined in Section 3.1); 2 -- User defined crude quality, refinery product slate and complexity index; 3 -- Low API, high HP%; 4-- Low API, high S%; 5 -- Med. API, high S%; 6 -- Med API, med S%; 7 -- High API, high S%; 8 -- High API, low S%
C60: 3.3.b) Crude Quality, refinery product slate and complexity index
H61: Scenario | I61: 3 | J61: 4 | K61: 5 | L61: 6 | M61: 7 | N61: 8 | O61: 9 | P61: 10
F62: Used in calculation | G62: User defined | H62: Description | I62: Low API, high HP% | J62: Low API, high S% | K62: Med. API, high S% | L62: Med API, med S% | M62: High API, high S% | N62: High API, low S% | O62: California | P62: US average
E63: API gravity of Average Crude to Refineries | F63: =IF($E$59=10,SUMPRODUCT(F$26:M$26,F27:M27),IF($E$59=9,O63,IF($E$59=2,G63,INDEX(I$63:P$66,1,$E$59)))) -> 30.316385 | G63: 30.36 | I63: 16 | J63: 20 | K63: 26 | L63: 28 | M63: 30 | N63: 34 | O63: 25.16 | P63: =F27*F23+G27*G23+H27*H23+I27*I23+J27*J23+K27*K23+L27*L23+M27*M23 -> 30.316385
E64: S Content of Average Crude to Refineries (wt %) | F64: =IF($E$59=10,SUMPRODUCT(F$26:M$26,F28:M28),IF($E$59=9,O64,IF($E$59=2,G64,INDEX(I$63:N$66,2,$E$59+2)))) -> 1.62674318 | G64: 1.62 | I64: 1 | J64: 3.5 | K64: 2.5 | L64: 2 | M64: 2.5 | N64: 1 | O64: 1.3596 | P64: =F28*F23+G28*G23+H28*H23+I28*I23+J28*J23+K28*K23+L28*L23+M28*M23 -> 1.62674318
E65: Refinery Heavy Product Yield (mmBtu of mmBtu of total refinery products) | F65: =IF($E$59=10,11%,IF($E$59=9,O65,IF($E$59=2,G65,INDEX(I$63:N$66,2,$E$59+2)))) -> 0.11 | G65: 0.11 | I65: 0.22 | J65: 0.12 | K65: 0.09 | L65: 0.1 | M65: 0.09 | N65: 0.09 | O65: 0.11 | P65: 0.11
E66: Refinery Complexity Index | F66: =IF($E$59=10,10.8,IF($E$59=9,O66,IF($E$59=2,G66,INDEX(I$63:N$66,2,$E$59+2)))) -> 10.8 | G66: 10.8 | I66: 14 | J66: 13 | K66: 11 | L66: 12 | M66: 10 | N66: 9 | O66: 13.8305 | P66: 10.8
C67: 3.3.b) Overall Refinery and Product Specific Efficiency
F68: Overall | G68: Gasoline | H68: Diesel | I68: Jet | J68: Residual Oil | K68: LPG | L68: Naphtha
E69: Energy consumption ratio | G69: 1.105 | H69: 1.105 | J69: 0.41 | K69: 1.105 | L69: 0.41
E70: Estimated refinery efficiency with the share of crude oil sources (User defined in Section 3.1.a) | F70: =(0.8759+0.002008*F63-0.007628*F64+0.07874*F65-0.001847*F66)*0.9874/0.984*1 -> 0.9162352564 | G70: =1/((1/$F70-1)*G69+1) -> 0.9082469537 | H70: =1/((1/$F70-1)*H69+1) -> 0.9082469537 | I70: =H70+0.005 -> 0.9132469537 | J70: =1/((1/$F70-1)*J69+1) -> 0.9638709123 | K70: =1/((1/$F70-1)*K69+1) -> 0.9082469537 | L70: =1/((1/$F70-1)*L69+1) -> 0.9638709123
E71: Efficiency defined in the time-series tables (based on EIA projected crude oil sources, see Section 3.1.a) | G71: =Fuel_Prod_TS!$G$9 -> 0.892353 | H71: =Fuel_Prod_TS!$S$9 -> 0.8923534 | I71: =Petro_LSD_Ref_Eff+0.005 -> 0.8973534 | J71: =Petro_CNaph_Ref_Eff -> 0.9572928533 | K71: =Fuel_Prod_TS!$AA$9 -> 0.8923534 | L71: =Fuel_Prod_TS!$W$9 -> 0.9572928533
E72: Used in calculation | G72: =IF(OR($E$21=2,$E21=3),G70,G71) -> 0.892353 | H72: =IF(AND($E$21=1,$E$58=1),H71,H70) -> 0.9082469537 | I72: =IF(OR($E$21=2,$E$21=3),I70,I71) -> 0.8973534 | J72: =IF(OR($E$21=2,$E$21=3),J70,J71) -> 0.9572928533 | K72: =IF(OR($E$21=2,$E$21=3),K70,K71) -> 0.8923534 | L72: =IF(OR($E$21=2,$E$21=3),L70,L71) -> 0.9572928533
B74: 3.4) Gasoline Fuel Options
C75: 3.4.a) Ethanol blending level specification
E76: 1 | F76: 1-- By volume; 2 -- By O2 content (wt.)
C77: 3.4.b) Gasoline Specifications and Refining Efficiencies for Gasoline
F78: Ethanol blending level (by volume) | G78: Share of gasoline added in EtOH as denaturant (by volume) | H78: O2 content by wt. | I78: Sulfur level, ppm | J78: Refining Efficiency | K78: Additive type | L78: Note: Additive Types | N78: CA Refinery Efficiency
E79: Gasoline Blendstock | H79: 0 | I79: =CG_S_Ratio -> 25.5 | J79: =G72 -> 0.892353 | K79: 5 | L79: 1 -- MTBE | M79: 4 -- Ethanol
E80: Gasoline | F80: 0.1 | G80: 0.02 | H80: 0.03593740923 | I80: =FRFG_S_Ratio -> 22.86665536 | J80: =Fuel_Prod_TS!$AS$9 -> 0.8926691237 | K80: 4 | L80: 2 -- ETBE | M80: 5 -- No additive
E81: CA Gasoline | F81: 0.1 | G81: 0.054 | H81: 0.03593740923 | I81: =CARFG_S_Ratio -> 22.9024935 | J81: =Fuel_Prod_TS!$K$9 -> 0 | K81: 4 | L81: 3 -- TAME | N81: 0.89
C82: 3.4.c) Ethanol Production Options for Gasoline if ETBE or Ethanol Is Selected as the Additive
F83: Corn | G83: Willow | H83: Poplar | I83: Switchgrass | J83: Miscanthus | K83: Corn Stover | L83: Forest Residue | M83: Sorghum | N83: Sugarcane
E84: Share of Ethanol Feedstock | F84: 1 | G84: 0 | H84: 0 | I84: 0 | J84: 0 | K84: 0 | L84: 0 | M84: 0 | N84: =1-SUM(F84:M84) -> 0
B86: 3.5) Diesel and Other Petroleum-Based Fuel Options
C87: 3.5.a) Share of Low-Sulfur Diesel in Total Diesel Use, by volume
E88: =Fuel_Prod_TS!$AE$9 -> 1
C89: 3.5.b) Fuel Specifications and Refining Efficiencies
F90: Selection for U.S. or CA Use | G90: Sulfur Level, ppm | H90: Refining Efficiency | I90: Note:
E91: Conventional Diesel | F91: 2 | G91: =IF(F91=1,CD_S_Ratio,CA_CD_S_Ratio) -> 120 | H91: =Fuel_Prod_TS!$O$9 -> 0.8923534 | I91: 1 -- Fuel for U.S. use
E92: Low-Sulfur Diesel | F92: =IF(E21=3,2,1) -> 1 | G92: =LSD_S_Ratio -> 11 | H92: =H72 -> 0.9082469537 | I92: 2 -- Fuel for California use
E93: Crude Oil Naphtha | F93: 2 | G93: =CNaph_S_Ratio -> 1 | H93: =L72 -> 0.9572928533
B95: 3.6) Source of H2 Production for Use in Refineries
E96: 1 | F96: 1 -- NG; 2 -- Nuclear (Thermo-Chemical Water Cracking); 3 -- Electrolysis (Nuclear HTGR); 4 -- Coal; 5 -- Pet Coke
B98: 3.7) To include energy and emissions for petroleum well infrastructure?
E99: No | F99: (The well infrastructure includes well drilling)
A101: 4. Natural Gas to Compressed Natural Gas (CNG), Liquefied Natural Gas (LNG) and Liquefied Petroleum Gas (LPG)
B102: 4.1) Simulation Options for NG-Based Fuel Pathways
F103: Compressed Natural Gas | G103: NG-based Liquified Petroluem Gas (NGL) | H103: Liquefied Natural Gas as a Transportation Fuel | I103: Note: Feedstock Sources:
E104: Feedstock Source | F104: =IF(OR(OR('T2 Calculator'!T2="Landfill Gas - CNG",'T2 Calculator'!T2="Landfill Gas - LNG",'T2 Calculator'!T2="Landfill Gas - L-CNG")), 4,1) -> 1 | G104: 1 | H104: =IF(OR(OR('T2 Calculator'!T2="Landfill Gas - CNG",'T2 Calculator'!T2="Landfill Gas - LNG",'T2 Calculator'!T2="Landfill Gas - L-CNG")), 4,1) -> 1 | I104: 1 -- North American NG, 4 -- Renewable natural gas
B106: 4.2) Share of Conventional and Shale Gas for North America NG Supply
E107: Conventional Gas | F107: =1-F108 -> 0.772
E108: Shale Gas | F108: =Fuel_Prod_TS!$AY$35 -> 0.228
B110: 4.3) CH4 leakage rate for each stage in conventional NG and shale gas pathways (see Burnham et al. 2013 for more details) | I110: vol. % of CH4 over NG throughput | K110: Weighted average
F111: Unit | G111: Conventional NG | H111: Shale gas | I111: Conventional NG | J111: Shale gas
E112: Recovery - Completion CH4 Venting | F112: g CH4/mmBtu NG | G112: 0.5427772305 | H112: 12.38361645 | I112: =G112/Fuel_Specs!$E$54/mmBTU2BTU*Fuel_Specs!$B$53 -> 2.62832521e-05 | J112: =H112/Fuel_Specs!$E$54/mmBTU2BTU*Fuel_Specs!$B$53 -> 0.0005996598506 | K112: =I112*$F$107+J112*$F$108 -> 0.0001570131166
E113: Recovery - Workover CH4 Venting | F113: g CH4/mmBtu NG | G113: 0.0076447497 | H113: 2.47672329 | I113: =G113/Fuel_Specs!$E$54/mmBTU2BTU*Fuel_Specs!$B$53 -> 3.70186648e-07 | J113: =H113/Fuel_Specs!$E$54/mmBTU2BTU*Fuel_Specs!$B$53 -> 0.0001199319701 | K113: 2.763027328e-05
E114: Recovery - Liquid Unloading CH4 Venting | F114: g CH4/mmBtu NG | G114: 10.35683898 | H114: 10.35683898 | I114: =G114/Fuel_Specs!$E$54/mmBTU2BTU*Fuel_Specs!$B$53 -> 0.0005015158973 | J114: =H114/Fuel_Specs!$E$54/mmBTU2BTU*Fuel_Specs!$B$53 -> 0.0005015158973 | K114: 0.0005015158973
E115: Well Equipment - CH4 Venting and Leakage | F115: g CH4/mmBtu NG | G115: 51.34508914 | H115: 51.34508914 | I115: =G115/Fuel_Specs!$E$54/mmBTU2BTU*Fuel_Specs!$B$53 -> 0.002486316385 | J115: =H115/Fuel_Specs!$E$54/mmBTU2BTU*Fuel_Specs!$B$53 -> 0.002486316385 | K115: 0.002486316385
E116: Processing - CH4 Venting and Leakage | F116: g CH4/mmBtu NG | G116: 26.70974262 | H116: 26.70974262 | I116: =G116/Fuel_Specs!$E$54/mmBTU2BTU*Fuel_Specs!$B$53 -> 0.001293383103 | J116: =H116/Fuel_Specs!$E$54/mmBTU2BTU*Fuel_Specs!$B$53 -> 0.001293383103 | K116: 0.001293383103
E117: Transmission and Storage - CH4 Venting and Leakage | F117: g CH4/mmBtu NG/680 miles | G117: 81.18863666 | H117: 81.18863666 | I117: =G117/Fuel_Specs!$E$54/mmBTU2BTU*Fuel_Specs!$B$53 -> 0.003931449746 | J117: =H117/Fuel_Specs!$E$54/mmBTU2BTU*Fuel_Specs!$B$53 -> 0.003931449746 | K117: 0.003931449746
E118: Distribution - CH4 Venting and Leakage | F118: g CH4/mmBtu NG | G118: 63.63482228 | H118: 63.63482228 | I118: =G118/Fuel_Specs!$E$54/mmBTU2BTU*Fuel_Specs!$B$53 -> 0.003081430064 | J118: =H118/Fuel_Specs!$E$54/mmBTU2BTU*Fuel_Specs!$B$53 -> 0.003081430064 | K118: 0.003081430064
F119: Total | G119: =SUM(G112:G118)*Fuel_Specs!$B$85/BTU2J*F107 -> 4.276608803 | H119: =SUM(H112:H118)*Fuel_Specs!$B$85/BTU2J*NG_NASG_NANG_Supply_Share -> 1.34035006 | I119: =SUM(I112:I118) -> 0.01132074863 | J119: =SUM(J112:J118) -> 0.01201368702 | K119: 0.01147873859
B120: 4.4) Flaring energy and CO2 emission rate for recovery and processing in conventional NG and shale gas pathways
F121: Unit | G121: Conventional NG | H121: Shale gas
E122: Recovery - Flaring | F122: Btu NG/mmBtu NG | G122: 8370 | H122: 8292 | J122: Total Leakage | K122: =G119+H119 -> 5.616958863 | L122: scf NG
E123: Recovery - Venting | F123: g CO2/mmBtu NG | G123: 13 | H123: 12 | K123: =1000000/Fuel_Specs!B53 -> 1017.293998 | L123: scf NG
E124: Processing - Acid Gas Removal Equipment Venting | F124: g CO2/mmBtu NG | G124: 810 | H124: =G124 -> 810 | K124: =K123*Fuel_Specs!E53 -> 22380.46796 | L124: g CH4
K125: =K124*99% -> 22156.66328 | L125: g CH4
B126: 4.5) Share of Petroleum and NG for Production of Liquefied Petroleum Gas | K126: =K125*K119 -> 254.3305457 | L126: g/MMBtu
F127: NG | G127: Petroleum | K127: =K126*25/BTU2J -> 6.026471135 | L127: g/MJ
E128: Liquefied Petroleum Gas | F128: =Fuel_Prod_TS!$G$49 -> 0.65 | G128: =1-F128 -> 0.35
B130: 4.6) To include energy and emissions for NG well infrastructure?
E131: No | F131: (The well infrastructure includes pipeline construction, well drilling and workover, and fraccing.)
A133: 5. Natural Gas, Biomass and Coal to Methanol (MeOH), Dimethyl Ether (DME), Fischer-Tropsch Diesel (FTD), and Fischer-Tropsch Naphtha (FTN)
B134: 5.1) Simulation Options for MeOH, DME, FTD and FTN Pathways
F135: Feedstock Source | G135: Plant Design Type When Natual Gas is Feedstock | H135: Plant Design Type When Flared Gas is Feedstock | I135: Plant Design Type When Landfill Gas is Feedstock | J135: Plant Design Type When Biomass is Feedstock | K135: Plant Design Type When Coal is Feedstock | L135: Plant Design Type When Coal/Biomass is Feedstock | M135: Note: Feedstock Sources: | O135: Note: Plant Design Types:
E136: Methanol | F136: 1 | G136: 1 | H136: 1 | J136: 0 | K136: 0 | M136: 1 -- North American NG | O136: 0 -- No co-products
E137: Dimethyl Ether | F137: 1 | G137: 1 | H137: 1 | I137: 0 | J137: 0 | K137: 0 | M137: 2 -- Non-North American NG | O137: 1 -- Steam co-production
E138: Fischer-Tropsch Diesel | F138: 1 | G138: 1 | H138: 0 | I138: 0 | J138: 0 | K138: 0 | L138: 0 | M138: 3 -- Non-North American flared gas | O138: 2 -- Electricity co-production
E139: Fischer-Tropsch Naphtha | F139: 1 | G139: 1 | H139: 0 | I139: 0 | M139: 5 -- Biomass
M140: 6 -- Coal via gasification (only for MeOH, DME, and FTD)
B141: 5.2) Share of Petroleum and NG for Production of FT Naphtha | M141: 7 -- Coal/Biomass (only for FTD)
F142: NG | G142: Petroleum
E143: Naphtha | F143: 1 | G143: =1-F143 -> 0
B145: 5.3) Share of Willow, Poplar, Switchgras, Miscanthus, Corn Stover, Forest Residue out of Total Biomass for Methanol, Dimethyl Ether, and Fischer-Tropsch Diesel Production
F146: Willow | G146: Poplar | H146: Switchgrass | I146: Miscanthus | J146: Corn Stover | K146: Forest Residue
E147: Methanol | F147: 0 | G147: 0 | H147: 0 | I147: 0 | J147: 0 | K147: =1-SUM(F147:J147) -> 1
E148: Dimetyl Ether | F148: 0 | G148: 0 | H148: 0 | I148: 0 | J148: 0 | K148: =1-SUM(F148:J148) -> 1
E149: Fischer-Tropsch Diesel | F149: 0 | G149: 0 | H149: 0 | I149: 0 | J149: 0 | K149: =1-SUM(F149:J149) -> 1
B151: 5.4) CO2 Sequestration Options for MeOH, DME and FTD Plants
E152: Feedstock | F152: NG | G152: RNG | H152: Biomass | I152: Coal | J152: Coal/Biomass | K152: Note:
E153: Methanol | I153: 1 | K153: 1 -- Without CO2 sequestration
E154: Dimetyl Ether | I154: 1 | K154: 2 -- With CO2 sequestration
E155: Fischer-Tropsch Diesel | F155: 1 | G155: 1 | H155: 1 | I155: 1 | J155: 1
B157: 5.5) Mass-based Share of Coal and Biomass out of Total Feedstock for Coal/Biomass co-feeding to Fischer-Tropsch Diesel Production
E158: Coal | F158: =1-Coal_Biomass_FTD_BiomassShare -> 0.8 | G158: (this is the coal as received)
E159: Biomass | F159: 0.2 | G159: (This is biomass on bone-dry basis)
B161: 5.6) Selection of Method for Estimating Credits of Co-Products for NG Based Fuel Pathways (Co-products are defined in Section 5.1)
E162: Feedstock | F162: NANG or NNANG | G162: Flared Gas | H162: RNG | I162: Biomass | J162: Coal | K162: Coal/Biomass
E163: Methanol | F163: 1 | G163: 1 | I163: 1 | J163: 1 | L163: 1 -- Displacement method
E164: Dimetyl Ether | F164: 1 | G164: 1 | H164: 1 | I164: 1 | J164: 1 | L164: 2 -- Btu-based Allocation
E165: Fischer-Tropsch Diesel | F165: 1 | G165: 1 | H165: 1 | I165: 1 | J165: 1 | K165: 1 | L165: 3 -- Market value-based Allocation
E166: Fischer-Tropsch Naphtha | F166: 1 | G166: 1 | H166: 1
B168: 5.7) Selection of FTD Plant Design with Electricity Co-production when Biomass, Coal or Coal/Biomass is Feedstock
E169: 1 | F169: 1 -- Recycled Design, 2 -- Once-Through Design
B171: 5.8) To include energy and emissions for coal well infrastructure?
E172: No | F172: (The well infrastructure includes coal mine and rail construction.)
A174: 6. Hydrogen Production
B175: 6.1) Basis of H2 Producion Assumptions for H2 from Central Coal, NG, Biomass, Electrolysis and Nuclear HTGR, and Distributed NG, Electrolysis and Ethanol
E176: 2 | F176: 1 -- H2A Model by NREL, 2 -- User Defined
C177: 6.1.a) Scenarios for H2A Model Cases
E178: 1 | F178: 1 -- Current, 2 -- Future (For the simulated years after 2015, the future scenario is recommended)
B180: 6.2) Share of H2 Production by Location
F181: Gaseous H2 | G181: Liquid H2
E182: Central Plants | F182: =Fuel_Prod_TS!$C$216 -> 0 | G182: =Fuel_Prod_TS!$C$230 -> 1
E183: Refueling Stations | F183: =1-F182 -> 1 | G183: =1-G182 -> 0
B185: 6.3) Share of H2 Feedstock Sources in Central Plants
F186: Gaseous H2 | G186: Liquid H2
E187: NG | F187: =Fuel_Prod_TS!$G$216 -> 1 | G187: =Fuel_Prod_TS!$G$230 -> 1
E188: Solar Photovoltacs | F188: =Fuel_Prod_TS!$K$216 -> 0 | G188: =Fuel_Prod_TS!$K$230 -> 0
E189: Nuclear (Thermo-Chemical Cracking of Water) | F189: =Fuel_Prod_TS!$O$216 -> 0 | G189: =Fuel_Prod_TS!$O$230 -> 0
E190: Electrolysis (Nuclear HTGR) | F190: =Fuel_Prod_TS!$S$216 -> 0 | G190: =Fuel_Prod_TS!$S$230 -> 0
E191: Coal | F191: =Fuel_Prod_TS!$W$216 -> 0 | G191: =Fuel_Prod_TS!$W$230 -> 0
E192: Biomass | F192: =Fuel_Prod_TS!$AA$216 -> 0 | G192: =Fuel_Prod_TS!$AA$230 -> 0
E193: Coke Oven Gas | F193: =Fuel_Prod_TS!$AE$216 -> 0 | G193: =1-SUM(G187:G192) -> 0
E194: Pet Coke | F194: =1-SUM(F187:F193) -> 0
B196: 6.4) Share of H2 Feedstock Sources at Refueling Stations
F197: Gaseous H2 | G197: Liquid H2
E198: NG | F198: =Fuel_Prod_TS!$AI$216 -> 1 | G198: =Fuel_Prod_TS!$AE$230 -> 1
E199: Electrolysis | F199: =Fuel_Prod_TS!$AM$216 -> 0 | G199: =Fuel_Prod_TS!$AI$230 -> 0
E200: EtOH | F200: =Fuel_Prod_TS!$AQ$216 -> 0 | G200: =Fuel_Prod_TS!$AM$230 -> 0
E201: MeOH | F201: =1-SUM(F198:F200) -> 0 | G201: =1-SUM(G198:G200) -> 0
B203: 6.5) NG Feedstock Options for H2 Production
F204: Gaseous H2 | G204: Liquid H2 | H204: Note:
E205: Central Plants | F205: 1 | G205: 1 | H205: 1 -- North American NG, 4 -- Renewable Natural Gas
E206: Refueling Stations | F206: 1 | G206: 1
B208: 6.6) CO2 Sequestration Options for Central Plant H2 Production
F209: Gaseous H2 | G209: Liquid H2
E210: NG-Based H2 Plants | F210: 1 | G210: 1
E211: Coal-Based H2 Plants | F211: 1 | G211: 1 | H211: Note:
E212: Biomass-Based H2 Plants (No CCS with H2A Model) | F212: 1 | G212: 1 | H212: 1 -- Without CO2 sequestration
E213: Pet Coke-to-H2 Plant | F213: 1 | H213: 2 -- With CO2 sequestration
B215: 6.7) Selection of H2 Plant Design Types (Not Applicable with H2A Model)
F216: NG/RNG | G216: Coal | H216: Biomass | I216: Petcoke | J216: Note:
E217: Central Plant G.H2 | F217: 0 | G217: 0 | H217: 0 | I217: 0 | J217: 0 -- No co-products
E218: Refueling Station G.H2 | F218: 0 | J218: 1 -- Steam co-production
E219: Central Plant L.H2 | F219: 0 | G219: 0 | H219: 0 | J219: 2 -- Electricity co-production
E220: Refueling Station L.H2 | F220: 0
B222: 6.8) Selection of Method for Estimating Credits of Co-Products for NG Based Fuel Pathways (Co-products are defined in Section 6.7)
F223: NG/RNG | G223: Coal | H223: Biomass | I223: Petcoke | J223: Note:
E224: Central Plant G.H2 | F224: 1 | G224: 1 | H224: 1 | I224: 1 | J224: 1 -- Displacement method
E225: Refueling Station G.H2 | F225: 1 | J225: 2 -- Btu-based Allocation
E226: Central Plant L.H2 | F226: 1 | G226: 1 | H226: 1 | J226: 3 -- Market value-based Allocation
E227: Refueling Station L.H2 | F227: 1
B229: 6.9) Electric Generation Source for H2 Production via Electrolysis at Refueling Stations
E230: Gaseous H2 | F230: Liquid H2 | G230: 1 -- Oil Power Plants, 2 -- NG Power Plants, 3 -- Coal Power Plants, 4 -- Nuclear Power Plants
E231: 6 | F231: 6 | G231: 5 -- Hydro Power Plants, 6 -- Mix for transportation use (see 10.2.a), 7 -- NGCC Turbine
B233: 6.10) Shares of Willow, Poplar, Switchgrass, and Miscanthus for H2 production in central plants
F234: Willow | G234: Poplar | H234: Switchgrass | I234: Miscanthus
E235: Gaseous H2 | F235: 0 | G235: 1 | H235: 0 | I235: =1-SUM(F235:H235) -> 0
... 300 more rows

Sheet Results
B1: WTW Results Menu | D1: Select a vehicle type from a pink drop down menu, then press "Go"
B2: SI ICE Vehicles | F2: SI Hybrid Vehicles (HEV) | K2: SI Plug-in Hybrids (PHEV) | Q2: Per Vehicle Distnace Travelled | X2: Per Energy in Fuels
B3: SI - MeOH FFV | F3: Select Fuels | K3: Select Fuels | Q3: Energy Unit | R3: Btu | S3: mBtu | T3: J | U3: kJ | V3: MJ | X3: Energy Unit | Y3: Btu | Z3: mBtu | AA3: J | AB3: kJ | AC3: MJ
B4: SIDI ICE Vehicles | F4: CIDI Hybrid Vehicles (HEV) | K4: CIDI Plug-in Hybrids (PHEV) | R4: 1 | S4: 0.001 | T4: =BTU2J -> 1055.055853 | U4: =BTU2kJ -> 1.055055853 | V4: =BTU2MJ -> 0.001055055853 | Y4: 1 | Z4: 0.001 | AA4: =BTU2J -> 1055.055853 | AB4: =BTU2kJ -> 1.055055853 | AC4: =BTU2MJ -> 0.001055055853
B5: SIDI - CA gasoline | F5: Select Fuels | K5: Select Fuels | Q5: Emission Unit | R5: g | S5: mg | T5: kg | U5: lb | V5: oz | X5: Emission Unit | Y5: g | Z5: mg | AA5: kg | AB5: lb | AC5: oz
B6: CIDI ICE Vehicles | F6: Battery Electric Vehicles (BEV) and Fuel Cell Vehicles (FCV) | R6: 1 | S6: 1000 | T6: =g2kg -> 0.001 | U6: =g2lb -> 0.002204622622 | V6: =g2lb*16 -> 0.03527396195 | Y6: 1 | Z6: 1000 | AA6: =g2kg -> 0.001 | AB6: =g2lb -> 0.002204622622 | AC6: =g2lb*16 -> 0.03527396195
B7: CIDI - Diesel | F7: Select Fuels | Q7: Functional Unit | R7: mile | S7: km | X7: Functional Unit | Y7: mBtu | Z7: mmBtu | AA7: J | AB7: kJ | AC7: MJ
B8: Unit Selection | D8: Select units from a pink drop down menu for the Results | R8: 1 | S8: 1.60934 | Y8: 0.001 | Z8: 1e-06 | AA8: =BTU2J -> 1055.055853 | AB8: =BTU2kJ -> 1.055055853 | AC8: =BTU2MJ -> 0.001055055853
B9: Per Vehicle Distance Travelled | F9: Per Energy in Fuels
B10: Energy Unit: | C10: Btu | D10: Emission Unit: | E10: g | F10: Energy Unit: | G10: Btu | H10: Emission Unit: | I10: g
D11: Service Functional Unit: | E11: mile | H11: Energy Functional Unit: | I11: mmBtu
A12: ="1. Well-to-Pump Energy Consumption and Emissions: "&Results_EnergyUnit_Energy&" or "&Results_EnergyUnit_Emission&" per "&Results_EnergyFunctionalUnit&" of Fuel Available at Fuel Station Pumps" -> 1. Well-to-Pump Energy Consumption and Emissions: Btu or g per mmBtu of Fuel Available at Fuel Station Pumps
B13: Baseline Gasoline | C13: CA Gasoline | D13: ="Low-Level EtOH Blend with Gasoline (E"&Inputs!F628*100&", "&IF(EtOH!C6=1,"Corn"&IF(EtOH!C104=1,", dry",IF(EtOH!C104=0,", wet","")),IF(EtOH!D6=1,"Willow",IF(EtOH!E6=1,"Poplar",IF(EtOH!F6=1,"Switchgrass",IF(EtOH!G6=1,"Miscanthus",IF(EtOH!H6=1,"Corn Stover",IF(EtOH!I6=1,"Forest Residue",IF(EtOH!K6=1,"Sugarcane",IF(EtOH!J6=1,IF(EtOH!D144=1,"Grain",IF(EtOH!D144=3,"Forage","Sweet"))&" Sorghum","Mixed Source")))))))))&")" -> Low-Level EtOH Blend with Gasoline (E10, Corn, dry) | E13: Baseline Conventional and LS Diesel | F13: ="Compressed Natural Gas, " & IF(Inputs!F104=1,"NA NG",IF(Inputs!F104=2,"nNA NG",IF(Inputs!F104=3,"FG",IF(RNG!D5=1,"LFG",IF(RNG!D6=1,"AD Gas","RNG"))))) -> Compressed Natural Gas, NA NG | G13: ="Liquefied Natural Gas, "&IF(NG_LNG_FeedstockShare=1,"NA NG",IF(NG_LNG_FeedstockShare=2,"nNA NG",IF(NG_LNG_FeedstockShare=3,"FG",IF(RNG_LNG_LFGShare=1,"LFG",IF(RNG_LNG_LFGShare=0,"AD Gas","RNG"))))) -> Liquefied Natural Gas, NA NG | H13: ="Liquefied Petroleum Gas, "&IF(NG!C5=1,"Crude",IF(NG!C5=0,IF(NG_LPG_FeedstockShare=1,"NA NG",IF(NG_LPG_FeedstockShare=2,"nNA NG",IF(NG_LPG_FeedstockShare=3,"FG",IF(RNG_LPG_LFGShare=1,"LFG",IF(RNG_LNG_LFGShare=0,"AD Gas","RNG"))))),"Crude and NG Mix")) -> Liquefied Petroleum Gas, Crude and NG Mix | I13: ="Naphtha, "&IF('MeOH&FTD'!E9=1,"Crude",IF('MeOH&FTD'!E9=0,IF(Inputs!F139=1,"NA NG",IF(Inputs!F139=2,"nNA NG",IF(Inputs!F139=3,"FG",IF(RNG!B5=1,"LFG",IF(RNG!B6=1,"AD Gas","RNG"))))),"Mixed Sources")) -> Naphtha, NA NG | J13: ="M"&TEXT(Vehicles!C5*100,"0")&" for MeOH FFV, "&IF(Inputs!F136=1,"NA NG",IF(Inputs!F136=2,"nNA NG",IF(Inputs!F136=3,"FG",IF(Inputs!F136=4,IF(RNG!B5=1,"LFG",IF(RNG!B6=1,"AD Gas","RNG")),IF(Inputs!F136=5,"Biomass","Coal"))))) -> M85 for MeOH FFV, NA NG | K13: ="M"&TEXT(Vehicles!C6*100,"0")&" for Dedi. MeOH Vehicles, "&IF(Inputs!F136=1,"NA NG",IF(Inputs!F136=2,"nNA NG",IF(Inputs!F136=3,"FG",IF(Inputs!F136=4,IF(RNG!B5=1,"LFG",IF(RNG!B6=1,"AD Gas","RNG")),IF(Inputs!F136=5,"Biomass","Coal"))))) -> M90 for Dedi. MeOH Vehicles, NA NG | L13: ="MeOH for FCV: "&IF(Inputs!F136=1,"NA NG",IF(Inputs!F136=2,"nNA NG",IF(Inputs!F136=3,"FG",IF(Inputs!F136=4,IF(RNG!B5=1,"LFG",IF(RNG!B6=1,"AD Gas","RNG")),IF(Inputs!F136=5,"Biomass","Coal"))))) -> MeOH for FCV: NA NG | M13: ="E"&TEXT(Inputs!F629*100,"0")&" for FFV, "&IF(EtOH!C6=1,"Corn"&IF(EtOH!C104=1,", dry",IF(EtOH!C104=0,", wet","")),IF(EtOH!D6=1,"Willow",IF(EtOH!E6=1,"Poplar",IF(EtOH!F6=1,"Switchgrass",IF(EtOH!G6=1,"Miscanthus",IF(EtOH!H6=1,"Corn Stover",IF(EtOH!I6=1,"Forest Residue",IF(EtOH!K6=1,"Sugarcane",IF(EtOH!J6=1,IF(EtOH!D144=1,"Grain",IF(EtOH!D144=3,"Forage","Sweet"))&" Sorghum","Mixed Source"))))))))) -> E85 for FFV, Corn, dry | N13: ="BtOH for FFV: BtOH"&TEXT(Vehicles!C10*100,"0")&", Corn" -> BtOH for FFV: BtOH100, Corn | O13: ="E"&TEXT(Inputs!F630*100,"0")&" for Dedi. EtOH Vehicle, "&IF(EtOH!C6=1,"Corn"&IF(EtOH!C104=1,", dry",IF(EtOH!C104=0,", wet","")),IF(EtOH!D6=1,"Willow",IF(EtOH!E6=1,"Poplar",IF(EtOH!F6=1,"Switchgrass",IF(EtOH!G6=1,"Miscanthus",IF(EtOH!H6=1,"Corn Stover",IF(EtOH!I6=1,"Forest Residue",IF(EtOH!K6=1,"Sugarcane",IF(EtOH!J6=1,IF(EtOH!D144=1,"Grain",IF(EtOH!D144=3,"Forage","Sweet"))&" Sorghum","Mixed Source"))))))))) -> E85 for Dedi. EtOH Vehicle, Corn, dry | P13: ="EtOH for FCV, "&IF(EtOH!C6=1,"Corn"&IF(EtOH!C104=1,", dry",IF(EtOH!C104=0,", wet","")),IF(EtOH!D6=1,"Willow",IF(EtOH!E6=1,"Poplar",IF(EtOH!F6=1,"Switchgrass",IF(EtOH!G6=1,"Miscanthus",IF(EtOH!H6=1,"Corn Stover",IF(EtOH!I6=1,"Forest Residue",IF(EtOH!K6=1,"Sugarcane",IF(EtOH!J6=1,IF(EtOH!D144=1,"Grain",IF(EtOH!D144=3,"Forage","Sweet"))&" Sorghum","Mixed Source"))))))))) -> EtOH for FCV, Corn, dry | Q13: =IF(Inputs!$J$470=2,"Palm",IF(Inputs!$J$470=3,"Rapeseed",IF(Inputs!$J$470=4,"Jatropha",IF(Inputs!$J$470=5,"Camelina",IF(Inputs!$J$470=6,"Algae","Soybean")))))&"-based RG"&TEXT(Vehicles!C14*100,"0") -> Soybean-based RG100 | R13: =IF(Pyrolysis!B26=1,"Corn Stover","Forest Residue")&"-based Pyrolysis RG"&TEXT(Vehicles!C14*100,"0") -> Forest Residue-based Pyrolysis RG100 | S13: ="Grid-Connected SI PHEV: Gasoline and Electricity ("&VLOOKUP(Inputs!$F$510,Inputs!$I$491:$J$509,2,FALSE)&")" ->  | T13: ="Grid-Connected SI PHEV: CA gasoline and Electricity ("&VLOOKUP(Inputs!$F$510,Inputs!$I$491:$J$509,2,FALSE)&")" ->  | U13: ="Grid-Connected SI PHEV: Low-Level EtOH Blend with Gasoline (E"&Inputs!F628*100&", "&IF(EtOH!C6=1,"Corn"&IF(EtOH!C104=1,", dry",IF(EtOH!C104=0,", wet","")),IF(EtOH!D6=1,"Willow",IF(EtOH!E6=1,"Poplar",IF(EtOH!F6=1,"Switchgrass",IF(EtOH!G6=1,"Miscanthus",IF(EtOH!H6=1,"Corn Stover",IF(EtOH!I6=1,"Forest Residue",IF(EtOH!K6=1,"Sugarcane",IF(EtOH!J6=1,IF(EtOH!D144=1,"Grain",IF(EtOH!D144=3,"Forage","Sweet"))&" Sorghum","Mixed Source")))))))))&") and Electricity ("&VLOOKUP(Inputs!$F$510,Inputs!$I$491:$J$509,2,FALSE)&")" ->  | V13: ="Grid-Connected SI PHEV: CNG ("&IF(Inputs!F104=1,"NA NG",IF(Inputs!F104=2,"nNA NG",IF(Inputs!F104=3,"FG",IF(RNG!D5=1,"LFG",IF(RNG!D6=1,"AD Gas","RNG")))))&") and Electricity ("&VLOOKUP(Inputs!$F$510,Inputs!$I$491:$J$509,2,FALSE)&")" ->  | W13: ="Grid-Connected SI PHEV: LNG ("&IF(NG_LNG_FeedstockShare=1,"NA NG",IF(NG_LNG_FeedstockShare=2,"nNA NG",IF(NG_LNG_FeedstockShare=3,"FG",IF(RNG_LNG_LFGShare=1,"LFG",IF(RNG_LNG_LFGShare=0,"AD Gas","RNG")))))&") and Electricity ("&VLOOKUP(Inputs!$F$510,Inputs!$I$491:$J$509,2,FALSE)&")" ->  | X13: ="Grid-Connected SI PHEV: LPG ("&IF(NG!C5=1,"Crude",IF(NG!C5=0,IF(NG_LPG_FeedstockShare=1,"NA NG",IF(NG_LPG_FeedstockShare=2,"nNA NG",IF(NG_LPG_FeedstockShare=3,"FG",IF(RNG_LPG_LFGShare=1,"LFG",IF(RNG_LNG_LFGShare=0,"AD Gas","RNG"))))),"Crude and NG Mix"))&") and Electricity ("&VLOOKUP(Inputs!$F$510,Inputs!$I$491:$J$509,2,FALSE)&")" ->  | Y13: ="Grid-Connected SI PHEV: M"&TEXT(Vehicles!C6*100,"0")&" ("&IF(Inputs!F136=1,"NA NG",IF(Inputs!F136=2,"nNA NG",IF(Inputs!F136=3,"FG",IF(Inputs!F136=4,IF(RNG!B5=1,"LFG",IF(RNG!B6=1,"AD Gas","RNG")),IF(Inputs!F136=5,"Biomass","Coal")))))&") and Electricity ("&VLOOKUP(Inputs!$F$510,Inputs!$I$491:$J$509,2,FALSE)&")" ->  | Z13: ="Grid-Connected SI PHEV: E"&TEXT(Inputs!F630*100,"0")&" ("&IF(EtOH!C6=1,"Corn"&IF(EtOH!C104=1,", dry",IF(EtOH!C104=0,", wet","")),IF(EtOH!D6=1,"Willow",IF(EtOH!E6=1,"Poplar",IF(EtOH!F6=1,"Switchgrass",IF(EtOH!G6=1,"Miscanthus",IF(EtOH!H6=1,"Corn Stover",IF(EtOH!I6=1,"Forest Residue",IF(EtOH!K6=1,"Sugarcane",IF(EtOH!J6=1,IF(EtOH!D144=1,"Grain",IF(EtOH!D144=3,"Forage","Sweet"))&" Sorghum","Mixed Source")))))))))&") and Electricity ("&VLOOKUP(Inputs!$F$510,Inputs!$I$491:$J$509,2,FALSE)&")" ->  | AA13: ="Grid-Connected SI PHEV: G.H2 ("&IF(Inputs!F182=1,"Central Plants, "&IF(Inputs!F187=1,IF(Inputs!F205=1,"NA NG",IF(Inputs!F205=2,"nNA NG",IF(Inputs!F205=3,"FG",IF(RNG!D5=1,"LFG",IF(RNG!D6=1,"Manure-based AD Gas",IF(RNG!D7=1,"WWTP-based AD Gas","RNG")))))),"")&IF(Inputs!F188=1,"Solar","")&IF(C143=1,"Nuclear","")&IF(C144=1,"Electrolysis (Nuclear HTGR)","")&IF(C145=1,"Coal","")&IF(C146=1,"Biomass","")&IF(C147=1,"Coke Oven Gas","")&IF(C148=1,"Pet Coke","")&IF(MAX(Inputs!F187:F194)<1,"Mixed Sources",""),"Refueling Station, "&IF(Inputs!F198=1,IF(Inputs!F206=1,"NA NG",IF(Inputs!F206=2,"nNA NG",IF(Inputs!F206=3,"FG",IF(RNG!D5=1,"LFG",IF(RNG!D6=1,"Manure-based AD Gas",IF(RNG!D7=1,"WWTP-based AD Gas","RNG")))))))&IF(Inputs!F199=1,"Electrolysis","")&IF(Inputs!F200,"EtOH","")&IF(Inputs!F201,"MeOH","")&IF(MAX(Inputs!F198:F201)<1,"Mixed Sources",""))&") and Electricity ("&VLOOKUP(Inputs!$F$510,Inputs!$I$491:$J$509,2,FALSE)&")" ->  | AB13: ="Grid-Connected SI PHEV: L.H2 ("&IF(Inputs!G182=1,"Central Plants, "&IF(Inputs!G187=1,IF(Inputs!G205=1,"NA NG",IF(Inputs!G205=2,"nNA NG",IF(Inputs!G205=3,"FG",IF(RNG!E5=1,"LFG",IF(RNG!E6=1,"Manure-based AD Gas",IF(RNG!E7=1,"WWTP-based AD Gas","RNG")))))),"")&IF(Inputs!G188=1,"Solar","")&IF(D143=1,"Nuclear","")&IF(D144=1,"Electrolysis (Nuclear HTGR)","")&IF(D145=1,"Coal","")&IF(D146=1,"Biomass","")&IF(D147=1,"Coke Oven Gas","")&IF(D148=1,"Pet Coke","")&IF(MAX(Inputs!G187:G194)<1,"Mixed Sources",""),"Refueling Station, "&IF(Inputs!G198=1,IF(Inputs!G206=1,"NA NG",IF(Inputs!G206=2,"nNA NG",IF(Inputs!G206=3,"FG",IF(RNG!E5=1,"LFG",IF(RNG!E6=1,"Manure-based AD Gas",IF(RNG!E7=1,"WWTP-based AD Gas","RNG")))))))&IF(Inputs!G199=1,"Electrolysis","")&IF(Inputs!G200,"EtOH","")&IF(Inputs!G201,"MeOH","")&IF(MAX(Inputs!G198:G201)<1,"Mixed Sources",""))&") and Electricity ("&VLOOKUP(Inputs!$F$510,Inputs!$I$491:$J$509,2,FALSE)&")" ->  | AC13: ="DME: "&IF(Inputs!F137=1,"NA NG",IF(Inputs!F137=2,"nNA NG",IF(Inputs!F137=3,"FG",IF(Inputs!F137=4,IF(RNG!B5=1,"LFG",IF(RNG!B6=1,"AD Gas","RNG")),IF(Inputs!F137=5,"Biomass","Coal"))))) -> DME: NA NG | AD13: ="FTD"&TEXT(Vehicles!C11*100,"0")&": "&IF(Inputs!F138=1,"NA NG",IF(Inputs!F138=2,"nNA NG",IF(Inputs!F138=3,"FG",IF(Inputs!F138=4,IF(RNG!B5=1,"LFG",IF(RNG!B6=1,"AD Gas","RNG")),IF(Inputs!F138=5,"Biomass",IF(Inputs!F138=6,"Coal","Coal/Biomass("&TEXT(Inputs!F158*100,"0")&"/"&TEXT(Inputs!F159*100,"0")&")")))))) -> FTD100: NA NG | AE13: =IF(Inputs!$F$470=2,"Palm",IF(Inputs!$F$470=3,"Rapeseed",IF(Inputs!$F$470=4,"Jatropha",IF(Inputs!$F$470=5,"Camelina",IF(Inputs!$F$470=6,"Algae","Soybean")))))&"-based BD"&TEXT(Vehicles!C12*100,"0") -> Soybean-based BD20 | AF13: =IF(Inputs!E499=1,IF(Inputs!$G$470=2,"Palm",IF(Inputs!$G$470=3,"Rapeseed",IF(Inputs!$G$470=4,"Jatropha",IF(Inputs!$G$470=5,"Camelina",IF(Inputs!$G$470=6,"Algae","Soybean"))))),IF(Inputs!E499=3,IF(Inputs!$I$470=2,"Palm",IF(Inputs!$I$470=3,"Rapeseed",IF(Inputs!$I$470=4,"Jatropha",IF(Inputs!$I$470=5,"Camelina",IF(Inputs!$I$470=6,"Algae","Soybean"))))),IF(Inputs!$H$470=2,"Palm",IF(Inputs!$H$470=3,"Rapeseed",IF(Inputs!$H$470=4,"Jatropha",IF(Inputs!$H$470=5,"Camelina",IF(Inputs!$H$470=6,"Algae","Soybean")))))))&"-based RD"&IF(RD_Type=3,"III","II")&" "&TEXT(Vehicles!C13*100,"0") -> Soybean-based RDII 100 | AG13: =IF(Pyrolysis!$B$26=1,"Corn Stover","Forest Residue")&"-based RD"&IF(Inputs!E499=1,"I ","II ")&TEXT(Vehicles!C13*100,"0") -> Forest Residue-based RDII 100 | AH13: ="E-Diesel, "&IF(EtOH!C6=1,"Corn"&IF(EtOH!C104=1,", dry",IF(EtOH!C104=0,", wet","")),IF(EtOH!D6=1,"Willow",IF(EtOH!E6=1,"Poplar",IF(EtOH!F6=1,"Switchgrass",IF(EtOH!G6=1,"Miscanthus",IF(EtOH!H6=1,"Corn Stover",IF(EtOH!I6=1,"Forest Residue",IF(EtOH!K6=1,"Sugarcane",IF(EtOH!J6=1,IF(EtOH!D144=1,"Grain",IF(EtOH!D144=3,"Forage","Sweet"))&" Sorghum","Mixed Source"))))))))) -> E-Diesel, Corn, dry | AI13: ="Grid-Connected CIDI PHEV: Diesel and Electricity ("&VLOOKUP(Inputs!$F$510,Inputs!$I$491:$J$509,2,FALSE)&")" ->  | AJ13: ="Grid-Connected CIDI PHEV: DME ("&IF(Inputs!F137=1,"NA NG",IF(Inputs!F137=2,"nNA NG",IF(Inputs!F137=3,"FG",IF(Inputs!F137=4,IF(RNG!B5=1,"LFG",IF(RNG!B6=1,"AD Gas","RNG")),IF(Inputs!F137=5,"Biomass","Coal")))))&") and Electricity ("&VLOOKUP(Inputs!$F$510,Inputs!$I$491:$J$509,2,FALSE)&")" ->  | AK13: ="Grid-Connected CIDI PHEV: FTD"&TEXT(Vehicles!C11*100,"0")&" ("&IF(Inputs!F138=1,"NA NG",IF(Inputs!F138=2,"nNA NG",IF(Inputs!F138=3,"FG",IF(Inputs!F138=4,IF(RNG!B5=1,"LFG",IF(RNG!B6=1,"AD Gas","RNG")),IF(Inputs!F138=5,"Biomass",IF(Inputs!F138=6,"Coal","Coal/Biomass("&TEXT(Inputs!F158*100,"0")&"/"&TEXT(Inputs!F159*100,"0")&")")))))) &") and Electricity ("&VLOOKUP(Inputs!$F$510,Inputs!$I$491:$J$509,2,FALSE)&")" ->  | AL13: ="Grid-Connected CIDI PHEV: BD"&TEXT(Vehicles!C12*100,"0")&" ("&IF(Inputs!$F$470=2,"Palm",IF(Inputs!$F$470=3,"Rapeseed",IF(Inputs!$F$470=4,"Jatropha",IF(Inputs!$F$470=5,"Camelina",IF(Inputs!$F$470=6,"Algae","Soybean")))))&") and Electricity ("&VLOOKUP(Inputs!$F$510,Inputs!$I$491:$J$509,2,FALSE)&")" ->  | AM13: ="Grid-Connected CIDI PHEV: E-Diesel ("&IF(EtOH!C6=1,"Corn"&IF(EtOH!C104=1,", dry",IF(EtOH!C104=0,", wet","")),IF(EtOH!D6=1,"Willow",IF(EtOH!E6=1,"Poplar",IF(EtOH!F6=1,"Switchgrass",IF(EtOH!G6=1,"Miscanthus",IF(EtOH!H6=1,"Corn Stover",IF(EtOH!I6=1,"Forest Residue",IF(EtOH!K6=1,"Sugarcane",IF(EtOH!J6=1,IF(EtOH!D144=1,"Grain",IF(EtOH!D144=3,"Forage","Sweet"))&" Sorghum","Mixed Source")))))))))&") and Electricity ("&VLOOKUP(Inputs!$F$510,Inputs!$I$491:$J$509,2,FALSE)&")" ->  | AN13: ="Electricity ("&VLOOKUP(Inputs!$F$510,Inputs!$I$491:$J$509,2,FALSE)&")" ->  | AO13: ="FCV: G.H2"&IF(Inputs!F182=1,", Central Plants, "&IF(Inputs!F187=1,IF(Inputs!F205=1,"NA NG",IF(Inputs!F205=2,"nNA NG",IF(Inputs!F205=3,"FG",IF(RNG!D5=1,"LFG",IF(RNG!D6=1,"Manure-based AD Gas",IF(RNG!D7=1,"WWTP-based AD Gas","RNG")))))),"")&IF(Inputs!F188=1,"Solar","")&IF(C143=1,"Nuclear","")&IF(C144=1,"Electrolysis (Nuclear HTGR)","")&IF(C145=1,"Coal","")&IF(C146=1,"Biomass","")&IF(C147=1,"Coke Oven Gas","")&IF(C148=1,"Pet Coke","")&IF(MAX(Inputs!F187:F194)<1,"Mixed Sources",""),", Refueling Station, "&IF(Inputs!F198=1,IF(Inputs!F206=1,"NA NG",IF(Inputs!F206=2,"nNA NG",IF(Inputs!F206=3,"FG",IF(RNG!D5=1,"LFG",IF(RNG!D6=1,"Manure-based AD Gas",IF(RNG!D7=1,"WWTP-based AD Gas","RNG")))))))&IF(Inputs!F199=1,"Electrolysis","")&IF(Inputs!F200,"EtOH","")&IF(Inputs!F201,"MeOH","")&IF(MAX(Inputs!F198:F201)<1,"Mixed Sources","")) -> FCV: G.H2, Refueling Station, NA NG | AP13: ="FCV: L.H2"&IF(Inputs!G182=1,", Central Plants, "&IF(Inputs!G187=1,IF(Inputs!G205=1,"NA NG",IF(Inputs!G205=2,"nNA NG",IF(Inputs!G205=3,"FG",IF(RNG!E5=1,"LFG",IF(RNG!E6=1,"Manure-based AD Gas",IF(RNG!E7=1,"WWTP-based AD Gas","RNG")))))),"")&IF(Inputs!G188=1,"Solar","")&IF(D143=1,"Nuclear","")&IF(D144=1,"Electrolysis (Nuclear HTGR)","")&IF(D145=1,"Coal","")&IF(D146=1,"Biomass","")&IF(D147=1,"Coke Oven Gas","")&IF(D148=1,"Pet Coke","")&IF(MAX(Inputs!G187:G194)<1,"Mixed Sources",""),", Refueling Station, "&IF(Inputs!G198=1,IF(Inputs!G206=1,"NA NG",IF(Inputs!G206=2,"nNA NG",IF(Inputs!G206=3,"FG",IF(RNG!E5=1,"LFG",IF(RNG!E6=1,"Manure-based AD Gas",IF(RNG!E7=1,"WWTP-based AD Gas","RNG")))))))&IF(Inputs!G199=1,"Electrolysis","")&IF(Inputs!G200,"EtOH","")&IF(Inputs!G201,"MeOH","")&IF(MAX(Inputs!G198:G201)<1,"Mixed Sources","")) -> FCV: L.H2, Central Plants, NA NG | AQ13: ="Grid-Connected FC PHEV: G.H2 ("&IF(Inputs!F182=1,"Central Plants, "&IF(Inputs!F187=1,IF(Inputs!F205=1,"NA NG",IF(Inputs!F205=2,"nNA NG",IF(Inputs!F205=3,"FG",IF(RNG!D5=1,"LFG",IF(RNG!D6=1,"Manure-based AD Gas",IF(RNG!D7=1,"WWTP-based AD Gas","RNG")))))),"")&IF(Inputs!F188=1,"Solar","")&IF(C143=1,"Nuclear","")&IF(C144=1,"Electrolysis (Nuclear HTGR)","")&IF(C145=1,"Coal","")&IF(C146=1,"Biomass","")&IF(C147=1,"Coke Oven Gas","")&IF(C148=1,"Pet Coke","")&IF(MAX(Inputs!F187:F194)<1,"Mixed Sources",""),"Refueling Station, "&IF(Inputs!F198=1,IF(Inputs!F206=1,"NA NG",IF(Inputs!F206=2,"nNA NG",IF(Inputs!F206=3,"FG",IF(RNG!D5=1,"LFG",IF(RNG!D6=1,"Manure-based AD Gas",IF(RNG!D7=1,"WWTP-based AD Gas","RNG")))))))&IF(Inputs!F199=1,"Electrolysis","")&IF(Inputs!F200,"EtOH","")&IF(Inputs!F201,"MeOH","")&IF(MAX(Inputs!F198:F201)<1,"Mixed Sources",""))&") and Electricity ("&VLOOKUP(Inputs!$F$510,Inputs!$I$491:$J$509,2,FALSE)&")" ->  | AR13: ="Grid-Connected FC PHEV: L.H2 ("&IF(Inputs!G182=1,"Central Plants, "&IF(Inputs!G187=1,IF(Inputs!G205=1,"NA NG",IF(Inputs!G205=2,"nNA NG",IF(Inputs!G205=3,"FG",IF(RNG!E5=1,"LFG",IF(RNG!E6=1,"Manure-based AD Gas",IF(RNG!E7=1,"WWTP-based AD Gas","RNG")))))),"")&IF(Inputs!G188=1,"Solar","")&IF(D143=1,"Nuclear","")&IF(D144=1,"Electrolysis (Nuclear HTGR)","")&IF(D145=1,"Coal","")&IF(D146=1,"Biomass","")&IF(D147=1,"Coke Oven Gas","")&IF(D148=1,"Pet Coke","")&IF(MAX(Inputs!G187:G194)<1,"Mixed Sources",""),"Refueling Station, "&IF(Inputs!G198=1,IF(Inputs!G206=1,"NA NG",IF(Inputs!G206=2,"nNA NG",IF(Inputs!G206=3,"FG",IF(RNG!E5=1,"LFG",IF(RNG!E6=1,"Manure-based AD Gas",IF(RNG!E7=1,"WWTP-based AD Gas","RNG")))))))&IF(Inputs!G199=1,"Electrolysis","")&IF(Inputs!G200,"EtOH","")&IF(Inputs!G201,"MeOH","")&IF(MAX(Inputs!G198:G201)<1,"Mixed Sources",""))&") and Electricity ("&VLOOKUP(Inputs!$F$510,Inputs!$I$491:$J$509,2,FALSE)&")" -> 
A14: Total Energy | B14: =(Inputs!$E$1056*(Petroleum!$B219*Petroleum!$F$218+Petroleum!$F219)+(1-Inputs!$E$1056)*(Petroleum!$B219*Petroleum!$D$218+Petroleum!$D219))/1000000*HLOOKUP($G$10,$Y$3:$AC$4,2,FALSE)/HLOOKUP($I$11,$Y$7:$AC$8,2,FALSE) -> 301821.5261 | C14: =(Petroleum!$C219*Petroleum!$G$218+Petroleum!$G219)/1000000*HLOOKUP($G$10,$Y$3:$AC$4,2,FALSE)/HLOOKUP($I$11,$Y$7:$AC$8,2,FALSE) -> 356218.5089 | D14: =((1-Vehicles!$C$26)*(1-Vehicles!$C$7)*Fuel_Specs!$B$11/((1-Vehicles!$C$26)*(1-Vehicles!$C$7)*Fuel_Specs!$B$11+Vehicles!$C$26*(1-Vehicles!$C$7)*Fuel_Specs!$B$13+Vehicles!$C$7*Fuel_Specs!$B$26)*(Petroleum!$B219*Petroleum!$D$218+Petroleum!$D219)+Vehicles!$C$26*(1-Vehicles!$C$7)*Fuel_Specs!$B$13/((1-Vehicles!$C$26)*(1-Vehicles!$C$7)*Fuel_Specs!$B$11+Vehicles!$C$26*(1-Vehicles!$C$7)*Fuel_Specs!$B$13+Vehicles!$C$7*Fuel_Specs!$B$26)*(Petroleum!B219*Petroleum!$F$218+Petroleum!$F219)+Vehicles!$C$7*Fuel_Specs!$B$26/((1-Vehicles!$C$26)*(1-Vehicles!$C$7)*Fuel_Specs!$B$11+Vehicles!$C$26*(1-Vehicles!$C$7)*Fuel_Specs!$B$13+Vehicles!$C$7*Fuel_Specs!$B$26)*(EtOH!BE402*EtOH!$BF$401+EtOH!$BF402))/1000000*HLOOKUP($G$10,$Y$3:$AC$4,2,FALSE)/HLOOKUP($I$11,$Y$7:$AC$8,2,FALSE) -> 301615.1801 | E14: =(Inputs!$E$88*(IF(Inputs!F$92=1,Petroleum!$B219,Petroleum!$C219)*Petroleum!$K$218+Petroleum!$K219)+(1-Inputs!$E$88)*(IF(Inputs!F$91=1,Petroleum!$B219,Petroleum!$C219)*Petroleum!$J$218+Petroleum!$J219))/1000000*HLOOKUP($G$10,$Y$3:$AC$4,2,FALSE)/HLOOKUP($I$11,$Y$7:$AC$8,2,FALSE) -> 259700.66 | F14: =(NG!$H81*NG!$I$80+NG!$I81)/1000000*HLOOKUP($G$10,$Y$3:$AC$4,2,FALSE)/HLOOKUP($I$11,$Y$7:$AC$8,2,FALSE) -> 181822.0319 | G14: =(NG!$P81*NG!$Q$80+NG!$Q81)/1000000*HLOOKUP($G$10,$Y$3:$AC$4,2,FALSE)/HLOOKUP($I$11,$Y$7:$AC$8,2,FALSE) -> 272226.403 | H14: =(NG!$V81*NG!$W$80+NG!$W81)/1000000*HLOOKUP($G$10,$Y$3:$AC$4,2,FALSE)/HLOOKUP($I$11,$Y$7:$AC$8,2,FALSE) -> 168657.3656 | I14: =('MeOH&FTD'!AV133*'MeOH&FTD'!AW$132+'MeOH&FTD'!AW133)/1000000*HLOOKUP($G$10,$Y$3:$AC$4,2,FALSE)/HLOOKUP($I$11,$Y$7:$AC$8,2,FALSE) -> 693944.7371 | J14: =((1-Vehicles!$C$25)*(1-Vehicles!$C$5)*Fuel_Specs!$B$11/((1-Vehicles!$C$25)*(1-Vehicles!$C$5)*Fuel_Specs!$B$11+Vehicles!$C$25*(1-Vehicles!$C$5)*Fuel_Specs!$B$13+Vehicles!$C$5*Fuel_Specs!$B$25)*(Petroleum!$B219*Petroleum!$D$218+Petroleum!$D219)+Vehicles!$C$25*(1-Vehicles!$C$5)*Fuel_Specs!$B$13/((1-Vehicles!$C$25)*(1-Vehicles!$C$5)*Fuel_Specs!$B$11+Vehicles!$C$25*(1-Vehicles!$C$5)*Fuel_Specs!$B$13+Vehicles!$C$5*Fuel_Specs!$B$25)*(Petroleum!B219*Petroleum!$F$218+Petroleum!$F219)+Vehicles!$C$5*Fuel_Specs!$B$25/((1-Vehicles!$C$25)*(1-Vehicles!$C$5)*Fuel_Specs!$B$11+Vehicles!$C$25*(1-Vehicles!$C$5)*Fuel_Specs!$B$13+Vehicles!$C$5*Fuel_Specs!$B$25)*('MeOH&FTD'!$L133*'MeOH&FTD'!$M$132+'MeOH&FTD'!$M133))/1000000*HLOOKUP($G$10,$Y$3:$AC$4,2,FALSE)/HLOOKUP($I$11,$Y$7:$AC$8,2,FALSE) -> 507926.4052 | K14: =((1-Vehicles!$C$25)*(1-Vehicles!$C$6)*Fuel_Specs!$B$11/((1-Vehicles!$C$25)*(1-Vehicles!$C$6)*Fuel_Specs!$B$11+Vehicles!$C$25*(1-Vehicles!$C$6)*Fuel_Specs!$B$13+Vehicles!$C$6*Fuel_Specs!$B$25)*(Petroleum!$B219*Petroleum!$D$218+Petroleum!$D219)+Vehicles!$C$25*(1-Vehicles!$C$6)*Fuel_Specs!$B$13/((1-Vehicles!$C$25)*(1-Vehicles!$C$6)*Fuel_Specs!$B$11+Vehicles!$C$25*(1-Vehicles!$C$6)*Fuel_Specs!$B$13+Vehicles!$C$6*Fuel_Specs!$B$25)*(Petroleum!B219*Petroleum!$F$218+Petroleum!$F219)+Vehicles!$C$6*Fuel_Specs!$B$25/((1-Vehicles!$C$25)*(1-Vehicles!$C$6)*Fuel_Specs!$B$11+Vehicles!$C$25*(1-Vehicles!$C$6)*Fuel_Specs!$B$13+Vehicles!$C$6*Fuel_Specs!$B$25)*('MeOH&FTD'!$L133*'MeOH&FTD'!$M$132+'MeOH&FTD'!$M133))/1000000*HLOOKUP($G$10,$Y$3:$AC$4,2,FALSE)/HLOOKUP($I$11,$Y$7:$AC$8,2,FALSE) -> 537353.7827 | L14: =('MeOH&FTD'!$L133*'MeOH&FTD'!$M$132+'MeOH&FTD'!$M133)/1000000*HLOOKUP($G$10,$Y$3:$AC$4,2,FALSE)/HLOOKUP($I$11,$Y$7:$AC$8,2,FALSE) -> 605281.9363 | M14: =((1-Vehicles!$C$27)*(1-Vehicles!$C$8)*Fuel_Specs!$B$11/((1-Vehicles!$C$27)*(1-Vehicles!$C$8)*Fuel_Specs!$B$11+Vehicles!$C$27*(1-Vehicles!$C$8)*Fuel_Specs!$B$13+Vehicles!$C$8*Fuel_Specs!$B$26)*(Petroleum!$B219*Petroleum!$D$218+Petroleum!$D219)+Vehicles!$C$27*(1-Vehicles!$C$8)*Fuel_Specs!$B$13/((1-Vehicles!$C$27)*(1-Vehicles!$C$8)*Fuel_Specs!$B$11+Vehicles!$C$27*(1-Vehicles!$C$8)*Fuel_Specs!$B$13+Vehicles!$C$8*Fuel_Specs!$B$26)*(Petroleum!B219*Petroleum!$F$218+Petroleum!$F219)+Vehicles!$C$8*Fuel_Specs!$B$26/((1-Vehicles!$C$27)*(1-Vehicles!$C$8)*Fuel_Specs!$B$11+Vehicles!$C$27*(1-Vehicles!$C$8)*Fuel_Specs!$B$13+Vehicles!$C$8*Fuel_Specs!$B$26)*(EtOH!BE402*EtOH!$BF$401+EtOH!$BF402))/1000000*HLOOKUP($G$10,$Y$3:$AC$4,2,FALSE)/HLOOKUP($I$11,$Y$7:$AC$8,2,FALSE) -> 991601.993 | N14: =((1-Vehicles!$C$28)*(1-Vehicles!$C$10)*Fuel_Specs!$B$11/((1-Vehicles!$C$28)*(1-Vehicles!$C$10)*Fuel_Specs!$B$11+Vehicles!$C$28*(1-Vehicles!$C$10)*Fuel_Specs!$B$13+Vehicles!$C$10*Fuel_Specs!$B$27)*(Petroleum!$B219*Petroleum!$D$218+Petroleum!$D219)+Vehicles!$C$28*(1-Vehicles!$C$10)*Fuel_Specs!$B$13/((1-Vehicles!$C$28)*(1-Vehicles!$C$10)*Fuel_Specs!$B$11+Vehicles!$C$28*(1-Vehicles!$C$10)*Fuel_Specs!$B$13+Vehicles!$C$10*Fuel_Specs!$B$27)*(Petroleum!B219*Petroleum!$F$218+Petroleum!$F219)+Vehicles!$C$10*Fuel_Specs!$B$27/((1-Vehicles!$C$28)*(1-Vehicles!$C$10)*Fuel_Specs!$B$11+Vehicles!$C$28*(1-Vehicles!$C$10)*Fuel_Specs!$B$13+Vehicles!$C$10*Fuel_Specs!$B$27)*(EtOH!$BI402*EtOH!$BJ$401+EtOH!$BJ402))/1000000*HLOOKUP($G$10,$Y$3:$AC$4,2,FALSE)/HLOOKUP($I$11,$Y$7:$AC$8,2,FALSE) -> 749747.5342 | O14: =((1-Vehicles!$C$27)*(1-Vehicles!$C$9)*Fuel_Specs!$B$11/((1-Vehicles!$C$27)*(1-Vehicles!$C$9)*Fuel_Specs!$B$11+Vehicles!$C$27*(1-Vehicles!$C$9)*Fuel_Specs!$B$13+Vehicles!$C$9*Fuel_Specs!$B$26)*(Petroleum!$B219*Petroleum!$D$218+Petroleum!$D219)+Vehicles!$C$27*(1-Vehicles!$C$9)*Fuel_Specs!$B$13/((1-Vehicles!$C$27)*(1-Vehicles!$C$9)*Fuel_Specs!$B$11+Vehicles!$C$27*(1-Vehicles!$C$9)*Fuel_Specs!$B$13+Vehicles!$C$9*Fuel_Specs!$B$26)*(Petroleum!B219*Petroleum!$F$218+Petroleum!$F219)+Vehicles!$C$9*Fuel_Specs!$B$26/((1-Vehicles!$C$27)*(1-Vehicles!$C$9)*Fuel_Specs!$B$11+Vehicles!$C$27*(1-Vehicles!$C$9)*Fuel_Specs!$B$13+Vehicles!$C$9*Fuel_Specs!$B$26)*(EtOH!BE402*EtOH!$BF$401+EtOH!$BF402))/1000000*HLOOKUP($G$10,$Y$3:$AC$4,2,FALSE)/HLOOKUP($I$11,$Y$7:$AC$8,2,FALSE) -> 991601.993 | P14: =(EtOH!$BE402*EtOH!$BF$401+EtOH!$BF402)/1000000*HLOOKUP($G$10,$Y$3:$AC$4,2,FALSE)/HLOOKUP($I$11,$Y$7:$AC$8,2,FALSE) -> 1222033.805 | Q14: =((1-Vehicles!$C$29)*(1-Vehicles!$C$14)*Fuel_Specs!$B$11/((1-Vehicles!$C$29)*(1-Vehicles!$C$14)*Fuel_Specs!$B$11+Vehicles!$C$29*(1-Vehicles!$C$14)*Fuel_Specs!$B$13+Vehicles!$C$14*Fuel_Specs!$B$39)*(Petroleum!$B219*Petroleum!$D$218+Petroleum!$D219)+Vehicles!$C$29*(1-Vehicles!$C$14)*Fuel_Specs!$B$13/((1-Vehicles!$C$29)*(1-Vehicles!$C$14)*Fuel_Specs!$B$11+Vehicles!$C$29*(1-Vehicles!$C$14)*Fuel_Specs!$B$13+Vehicles!$C$14*Fuel_Specs!$B$39)*(Petroleum!B219*Petroleum!$F$218+Petroleum!$F219)+Vehicles!$C$14*Fuel_Specs!$B$39/((1-Vehicles!$C$29)*(1-Vehicles!$C$14)*Fuel_Specs!$B$11+Vehicles!$C$29*(1-Vehicles!$C$14)*Fuel_Specs!$B$13+Vehicles!$C$14*Fuel_Specs!$B$39)*(BioOil!$BQ315*BioOil!$BR$313+BioOil!$BR315))/1000000*HLOOKUP($G$10,$Y$3:$AC$4,2,FALSE)/HLOOKUP($I$11,$Y$7:$AC$8,2,FALSE) -> 825645.997 | R14: =((1-Vehicles!$C$29)*(1-Vehicles!$C$14)*Fuel_Specs!$B$11/((1-Vehicles!$C$29)*(1-Vehicles!$C$14)*Fuel_Specs!$B$11+Vehicles!$C$29*(1-Vehicles!$C$14)*Fuel_Specs!$B$13+Vehicles!$C$14*Fuel_Specs!$B$39)*(Petroleum!$B219*Petroleum!$D$218+Petroleum!$D219)+Vehicles!$C$29*(1-Vehicles!$C$14)*Fuel_Specs!$B$13/((1-Vehicles!$C$29)*(1-Vehicles!$C$14)*Fuel_Specs!$B$11+Vehicles!$C$29*(1-Vehicles!$C$14)*Fuel_Specs!$B$13+Vehicles!$C$14*Fuel_Specs!$B$39)*(Petroleum!B219*Petroleum!$F$218+Petroleum!$F219)+Vehicles!$C$14*Fuel_Specs!$B$39/((1-Vehicles!$C$29)*(1-Vehicles!$C$14)*Fuel_Specs!$B$11+Vehicles!$C$29*(1-Vehicles!$C$14)*Fuel_Specs!$B$13+Vehicles!$C$14*Fuel_Specs!$B$39)*(Pyrolysis!$Z167*Pyrolysis!$AA$166+Pyrolysis!$AA167))/1000000*HLOOKUP($G$10,$Y$3:$AC$4,2,FALSE)/HLOOKUP($I$11,$Y$7:$AC$8,2,FALSE) -> 791044.3109 | S14: =AN14*(Vehicles!$C$21/Vehicles!$AN$53)/(Vehicles!$C$21*(1/Vehicles!$AN$53+1/Vehicles!$AO$53)+Vehicles!$C$22/Vehicles!$AP$53)+B14*(Vehicles!$C$21/Vehicles!$AO$53+Vehicles!$C$22/Vehicles!$AP$53)/(Vehicles!$C$21*(1/Vehicles!$AN$53+1/Vehicles!$AO$53)+Vehicles!$C$22/Vehicles!$AP$53) -> 574620.1129 | T14: =AN14*(Vehicles!$D$21/Vehicles!$AR$53)/(Vehicles!$D$21*(1/Vehicles!$AR$53+1/Vehicles!$AS$53)+Vehicles!$D$22/Vehicles!$AT$53)+C14*(Vehicles!$D$21/Vehicles!$AS$53+Vehicles!$D$22/Vehicles!$AT$53)/(Vehicles!$D$21*(1/Vehicles!$AR$53+1/Vehicles!$AS$53)+Vehicles!$D$22/Vehicles!$AT$53) -> 616405.6214 | U14: =AN14*(Vehicles!$F$21/Vehicles!$AZ$53)/(Vehicles!$F$21*(1/Vehicles!$AZ$53+1/Vehicles!$BA$53)+Vehicles!$F$22/Vehicles!$BB$53)+D14*(Vehicles!$F$21/Vehicles!$BA$53+Vehicles!$F$22/Vehicles!$BB$53)/(Vehicles!$F$21*(1/Vehicles!$AZ$53+1/Vehicles!$BA$53)+Vehicles!$F$22/Vehicles!$BB$53) -> 574461.6064 | V14: =AN14*(Vehicles!$G$21/Vehicles!$BD$53)/(Vehicles!$G$21*(1/Vehicles!$BD$53+1/Vehicles!$BE$53)+Vehicles!$G$22/Vehicles!$BF$53)+F14*(Vehicles!$G$21/Vehicles!$BE$53+Vehicles!$G$22/Vehicles!$BF$53)/(Vehicles!$G$21*(1/Vehicles!$BD$53+1/Vehicles!$BE$53)+Vehicles!$G$22/Vehicles!$BF$53) -> 482441.473 | W14: =AN14*(Vehicles!$H$21/Vehicles!$BH$53)/(Vehicles!$H$21*(1/Vehicles!$BH$53+1/Vehicles!$BI$53)+Vehicles!$H$22/Vehicles!$BJ$53)+G14*(Vehicles!$H$21/Vehicles!$BI$53+Vehicles!$H$22/Vehicles!$BJ$53)/(Vehicles!$H$21*(1/Vehicles!$BH$53+1/Vehicles!$BI$53)+Vehicles!$H$22/Vehicles!$BJ$53) -> 551886.3655 | X14: =AN14*(Vehicles!$I$21/Vehicles!$BL$53)/(Vehicles!$I$21*(1/Vehicles!$BL$53+1/Vehicles!$BM$53)+Vehicles!$I$22/Vehicles!$BN$53)+H14*(Vehicles!$I$21/Vehicles!$BM$53+Vehicles!$I$22/Vehicles!$BN$53)/(Vehicles!$I$21*(1/Vehicles!$BL$53+1/Vehicles!$BM$53)+Vehicles!$I$22/Vehicles!$BN$53) -> 472328.9218 | Y14: =AN14*(Vehicles!$J$21/Vehicles!$BP$53)/(Vehicles!$J$21*(1/Vehicles!$BP$53+1/Vehicles!$BQ$53)+Vehicles!$J$22/Vehicles!$BR$53)+K14*(Vehicles!$J$21/Vehicles!$BQ$53+Vehicles!$J$22/Vehicles!$BR$53)/(Vehicles!$J$21*(1/Vehicles!$BP$53+1/Vehicles!$BQ$53)+Vehicles!$J$22/Vehicles!$BR$53) -> 755546.2344 | Z14: =AN14*(Vehicles!$K$21/Vehicles!$BT$53)/(Vehicles!$K$21*(1/Vehicles!$BT$53+1/Vehicles!$BU$53)+Vehicles!$K$22/Vehicles!$BV$53)+O14*(Vehicles!$K$21/Vehicles!$BU$53+Vehicles!$K$22/Vehicles!$BV$53)/(Vehicles!$K$21*(1/Vehicles!$BT$53+1/Vehicles!$BU$53)+Vehicles!$K$22/Vehicles!$BV$53) -> 1098862.808 | AA14: =AN14*(Vehicles!$L$21/Vehicles!$BX$53)/(Vehicles!$L$21*(1/Vehicles!$BX$53+1/Vehicles!$BY$53)+Vehicles!$L$22/Vehicles!$BZ$53)+AO14*(Vehicles!$L$21/Vehicles!$BY$53+Vehicles!$L$22/Vehicles!$BZ$53)/(Vehicles!$L$21*(1/Vehicles!$BX$53+1/Vehicles!$BY$53)+Vehicles!$L$22/Vehicles!$BZ$53) -> 1000083.459 | AB14: =AN14*(Vehicles!$L$21/Vehicles!$BX$53)/(Vehicles!$L$21*(1/Vehicles!$BX$53+1/Vehicles!$BY$53)+Vehicles!$L$22/Vehicles!$CA$53)+AP14*(Vehicles!$L$21/Vehicles!$BY$53+Vehicles!$L$22/Vehicles!$CA$53)/(Vehicles!$L$21*(1/Vehicles!$BX$53+1/Vehicles!$BY$53)+Vehicles!$L$22/Vehicles!$CA$53) -> 1622065.091 | AC14: =('MeOH&FTD'!$X133*'MeOH&FTD'!$Y$132+'MeOH&FTD'!$Y133)/1000000*HLOOKUP($G$10,$Y$3:$AC$4,2,FALSE)/HLOOKUP($I$11,$Y$7:$AC$8,2,FALSE) -> 548332.6212 | AD14: =((1-Vehicles!$C$30)*(1-Vehicles!$C$11)*Fuel_Specs!$B$15/((1-Vehicles!$C$30)*(1-Vehicles!$C$11)*Fuel_Specs!$B$15+Vehicles!$C$30*(1-Vehicles!$C$11)*Fuel_Specs!$B$18+Vehicles!$C$11*Fuel_Specs!$B$35)*(Petroleum!B219*Petroleum!$J$218+Petroleum!$J219)+Vehicles!$C$30*(1-Vehicles!$C$11)*Fuel_Specs!$B$18/((1-Vehicles!$C$30)*(1-Vehicles!$C$11)*Fuel_Specs!$B$15+Vehicles!$C$30*(1-Vehicles!$C$11)*Fuel_Specs!$B$18+Vehicles!$C$11*Fuel_Specs!$B$35)*(Petroleum!B219*Petroleum!$K$218+Petroleum!$K219)+Vehicles!$C$11*Fuel_Specs!$B$35/((1-Vehicles!$C$30)*(1-Vehicles!$C$11)*Fuel_Specs!$B$15+Vehicles!$C$30*(1-Vehicles!$C$11)*Fuel_Specs!$B$18+Vehicles!$C$11*Fuel_Specs!$B$35)*('MeOH&FTD'!$AL133*'MeOH&FTD'!$AM$132+'MeOH&FTD'!$AM133))/1000000*HLOOKUP($G$10,$Y$3:$AC$4,2,FALSE)/HLOOKUP($I$11,$Y$7:$AC$8,2,FALSE) -> 703321.4449 | AE14: =((1-Vehicles!$C$31)*(1-Vehicles!$C$12)*Fuel_Specs!$B$15/((1-Vehicles!$C$31)*(1-Vehicles!$C$12)*Fuel_Specs!$B$15+Vehicles!$C$31*(1-Vehicles!$C$12)*Fuel_Specs!$B$18+Vehicles!$C$12*Fuel_Specs!$B$34)*(Petroleum!B219*Petroleum!$J$218+Petroleum!$J219)+Vehicles!$C$31*(1-Vehicles!$C$12)*Fuel_Specs!$B$18/((1-Vehicles!$C$31)*(1-Vehicles!$C$12)*Fuel_Specs!$B$15+Vehicles!$C$31*(1-Vehicles!$C$12)*Fuel_Specs!$B$18+Vehicles!$C$12*Fuel_Specs!$B$34)*(Petroleum!B219*Petroleum!$K$218+Petroleum!$K219)+Vehicles!$C$12*Fuel_Specs!$B$34/((1-Vehicles!$C$31)*(1-Vehicles!$C$12)*Fuel_Specs!$B$15+Vehicles!$C$31*(1-Vehicles!$C$12)*Fuel_Specs!$B$18+Vehicles!$C$12*Fuel_Specs!$B$34)*(BioOil!$Y315*BioOil!$Z$313+BioOil!$Z315))/1000000*HLOOKUP($G$10,$Y$3:$AC$4,2,FALSE)/HLOOKUP($I$11,$Y$7:$AC$8,2,FALSE) -> 324867.8589 | AF14: =((1-Vehicles!$C$32)*(1-Vehicles!$C$13)*Fuel_Specs!$B$15/((1-Vehicles!$C$32)*(1-Vehicles!$C$13)*Fuel_Specs!$B$15+Vehicles!$C$32*(1-Vehicles!$C$13)*Fuel_Specs!$B$18+Vehicles!$C$13*IF(Inputs!$E$499=1,IF(Inputs!$E$499=1,Fuel_Specs!$B$36,IF(Inputs!$E$499=3,Fuel_Specs!$B$38,Fuel_Specs!$B$37)),Fuel_Specs!$B$37))*(Petroleum!B219*Petroleum!$J$218+Petroleum!$J219)+Vehicles!$C$32*(1-Vehicles!$C$13)*Fuel_Specs!$B$18/((1-Vehicles!$C$32)*(1-Vehicles!$C$13)*Fuel_Specs!$B$15+Vehicles!$C$32*(1-Vehicles!$C$13)*Fuel_Specs!$B$18+Vehicles!$C$13*IF(Inputs!$E$499=1,IF(Inputs!$E$499=1,Fuel_Specs!$B$36,IF(Inputs!$E$499=3,Fuel_Specs!$B$38,Fuel_Specs!$B$37)),Fuel_Specs!$B$37))*(Petroleum!B219*Petroleum!$K$218+Petroleum!$K219)+Vehicles!$C$13*IF(Inputs!$E$499=1,IF(Inputs!$E$499=1,Fuel_Specs!$B$36,IF(Inputs!$E$499=3,Fuel_Specs!$B$38,Fuel_Specs!$B$37)),Fuel_Specs!$B$37)/((1-Vehicles!$C$32)*(1-Vehicles!$C$13)*Fuel_Specs!$B$15+Vehicles!$C$32*(1-Vehicles!$C$13)*Fuel_Specs!$B$18+Vehicles!$C$13*IF(Inputs!$E$499=1,IF(Inputs!$E$499=1,Fuel_Specs!$B$36,IF(Inputs!$E$499=3,Fuel_Specs!$B$38,Fuel_Specs!$B$37)),Fuel_Specs!$B$37))*(BioOil!$BE315*BioOil!$BF$313+BioOil!$BF315))/1000000*HLOOKUP($G$10,$Y$3:$AC$4,2,FALSE)/HLOOKUP($I$11,$Y$7:$AC$8,2,FALSE) -> 134051.9524 | AG14: =((1-Vehicles!$C$32)*(1-Vehicles!$C$13)*Fuel_Specs!$B$15/((1-Vehicles!$C$32)*(1-Vehicles!$C$13)*Fuel_Specs!$B$15+Vehicles!$C$32*(1-Vehicles!$C$13)*Fuel_Specs!$B$18+Vehicles!$C$13*IF(Inputs!$E$499=1,Fuel_Specs!$B$36,Fuel_Specs!$B$37))*(Petroleum!B219*Petroleum!$J$218+Petroleum!$J219)+Vehicles!$C$32*(1-Vehicles!$C$13)*Fuel_Specs!$B$18/((1-Vehicles!$C$32)*(1-Vehicles!$C$13)*Fuel_Specs!$B$15+Vehicles!$C$32*(1-Vehicles!$C$13)*Fuel_Specs!$B$18+Vehicles!$C$13*IF(Inputs!$E$499=1,Fuel_Specs!$B$36,Fuel_Specs!$B$37))*(Petroleum!B219*Petroleum!$K$218+Petroleum!$K219)+Vehicles!$C$13*IF(Inputs!$E$499=1,Fuel_Specs!$B$36,Fuel_Specs!$B$37)/((1-Vehicles!$C$32)*(1-Vehicles!$C$13)*Fuel_Specs!$B$15+Vehicles!$C$32*(1-Vehicles!$C$13)*Fuel_Specs!$B$18+Vehicles!$C$13*IF(Inputs!$E$499=1,Fuel_Specs!$B$36,Fuel_Specs!$B$37))*(Pyrolysis!$AB167*Pyrolysis!$AC$166+Pyrolysis!$AC167))/1000000*HLOOKUP($G$10,$Y$3:$AC$4,2,FALSE)/HLOOKUP($I$11,$Y$7:$AC$8,2,FALSE) -> 805938.9086 | AH14: =(((1-Vehicles!$C$33)*(1-Vehicles!$C$15-Vehicles!$C$16)*Fuel_Specs!$B$15*(Petroleum!B219*Petroleum!$J$218+Petroleum!$J219)+Vehicles!$C$33*(1-Vehicles!$C$15-Vehicles!$C$16)*Fuel_Specs!$B$18*(Petroleum!B219*Petroleum!$K$218+Petroleum!$K219)+Vehicles!$C$15*Fuel_Specs!$B$26*(EtOH!BE402*EtOH!$BF$401+EtOH!$BF402)+Vehicles!$C$16*Fuel_Specs!$B$29*('E-D Additives'!$B49*'E-D Additives'!$B$48))/((1-Vehicles!$C$33)*(1-Vehicles!$C$15-Vehicles!$C$16)*Fuel_Specs!$B$15+Vehicles!$C$33*(1-Vehicles!$C$15-Vehicles!$C$16)*Fuel_Specs!$B$18+Vehicles!$C$15*Fuel_Specs!$B$26+Vehicles!$C$16*Fuel_Specs!$B$29))/1000000*HLOOKUP($G$10,$Y$3:$AC$4,2,FALSE)/HLOOKUP($I$11,$Y$7:$AC$8,2,FALSE) -> 321495.7345 | AI14: =AN14*(Vehicles!$M$21/Vehicles!$CI$53)/(Vehicles!$M$21*(1/Vehicles!$CI$53+1/Vehicles!$CJ$53)+Vehicles!$M$22/Vehicles!$CK$53)+E14*(Vehicles!$M$21/Vehicles!$CJ$53+Vehicles!$M$22/Vehicles!$CK$53)/(Vehicles!$M$21*(1/Vehicles!$CI$53+1/Vehicles!$CJ$53)+Vehicles!$M$22/Vehicles!$CK$53) -> 552778.5026 | AJ14: =AN14*(Vehicles!$N$21/Vehicles!$CM$53)/(Vehicles!$N$21*(1/Vehicles!$CM$53+1/Vehicles!$CN$53)+Vehicles!$N$22/Vehicles!$CO$53)+AC14*(Vehicles!$N$21/Vehicles!$CN$53+Vehicles!$N$22/Vehicles!$CO$53)/(Vehicles!$N$21*(1/Vehicles!$CM$53+1/Vehicles!$CN$53)+Vehicles!$N$22/Vehicles!$CO$53) -> 772003.715 | AK14: =AN14*(Vehicles!$O$21/Vehicles!$CQ$53)/(Vehicles!$O$21*(1/Vehicles!$CQ$53+1/Vehicles!$CR$53)+Vehicles!$O$22/Vehicles!$CS$53)+AD14*(Vehicles!$O$21/Vehicles!$CR$53+Vehicles!$O$22/Vehicles!$CS$53)/(Vehicles!$O$21*(1/Vehicles!$CQ$53+1/Vehicles!$CR$53)+Vehicles!$O$22/Vehicles!$CS$53) -> 889722.687 | AL14: =AN14*(Vehicles!$P$21/Vehicles!$CU$53)/(Vehicles!$P$21*(1/Vehicles!$CU$53+1/Vehicles!$CV$53)+Vehicles!$P$22/Vehicles!$CW$53)+AE14*(Vehicles!$P$21/Vehicles!$CV$53+Vehicles!$P$22/Vehicles!$CW$53)/(Vehicles!$P$21*(1/Vehicles!$CU$53+1/Vehicles!$CV$53)+Vehicles!$P$22/Vehicles!$CW$53) -> 602275.076 | AM14: =AN14*(Vehicles!$R$21/Vehicles!$DC$53)/(Vehicles!$R$21*(1/Vehicles!$DC$53+1/Vehicles!$DD$53)+Vehicles!$R$22/Vehicles!$DE$53)+AH14*(Vehicles!$R$21/Vehicles!$DD$53+Vehicles!$R$22/Vehicles!$DE$53)/(Vehicles!$R$21*(1/Vehicles!$DC$53+1/Vehicles!$DD$53)+Vehicles!$R$22/Vehicles!$DE$53) -> 599713.8395 | AN14: =(Electric!$G171+Electric!$F171-1000000)/1000000*HLOOKUP($G$10,$Y$3:$AC$4,2,FALSE)/HLOOKUP($I$11,$Y$7:$AC$8,2,FALSE) -> 1478481.741 | AO14: =((Hydrogen!$Z148*Hydrogen!$AA$147+Hydrogen!$AA148)-1000000*(Hydrogen!$K$7+Hydrogen!$C$7+Hydrogen!$D$7+Hydrogen!$E$7))/1000000*HLOOKUP($G$10,$Y$3:$AC$4,2,FALSE)/HLOOKUP($I$11,$Y$7:$AC$8,2,FALSE) -> 843567.0216 | AP14: =((Hydrogen!$AX148*Hydrogen!$AY$147+Hydrogen!$AY148)-1000000*(Hydrogen!$K$8+Hydrogen!$C$8+Hydrogen!$D$8+Hydrogen!$E$8))/1000000*HLOOKUP($G$10,$Y$3:$AC$4,2,FALSE)/HLOOKUP($I$11,$Y$7:$AC$8,2,FALSE) -> 1669040.916 | AQ14: =AN14*(Vehicles!$S$21/Vehicles!$DS$53)/(Vehicles!$S$21*(1/Vehicles!$DS$53+1/Vehicles!$DT$53)+Vehicles!$S$22/Vehicles!$DU$53)+AO14*(Vehicles!$S$21/Vehicles!$DT$53+Vehicles!$S$22/Vehicles!$DU$53)/(Vehicles!$S$21*(1/Vehicles!$DS$53+1/Vehicles!$DT$53)+Vehicles!$S$22/Vehicles!$DU$53) -> 1037387.884 | AR14: =AN14*(Vehicles!$S$21/Vehicles!$DS$53)/(Vehicles!$S$21*(1/Vehicles!$DS$53+1/Vehicles!$DT$53)+Vehicles!$S$22/Vehicles!$DU$53)+AP14*(Vehicles!$S$21/Vehicles!$DT$53+Vehicles!$S$22/Vehicles!$DU$53)/(Vehicles!$S$21*(1/Vehicles!$DS$53+1/Vehicles!$DT$53)+Vehicles!$S$22/Vehicles!$DU$53) -> 1610868.783
A15: WTP Efficiency | B15: =HLOOKUP($G$10,$Y$3:$AC$4,2,FALSE)/HLOOKUP($I$11,$Y$7:$AC$8,2,FALSE)/(HLOOKUP($G$10,$Y$3:$AC$4,2,FALSE)/HLOOKUP($I$11,$Y$7:$AC$8,2,FALSE)+B14) -> 0.7681544513 | C15: 0.7373443095 | D15: 0.7682762274 | E15: 0.7938393872 | F15: 0.8461510896 | G15: 0.7860236179 | H15: 0.8556827941 | I15: 0.5903380306 | J15: 0.6631623377 | K15: 0.650468364 | L15: 0.6229435325 | M15: 0.5021083547 | N15: 0.5715110211 | O15: 0.5021083547 | P15: 0.4500381578 | Q15: 0.5477513174 | R15: 0.5583334783 | S15: 0.6350738135 | T15: 0.6186565963 | U15: 0.6351377486 | V15: 0.6745628871 | W15: 0.644377077 | X15: 0.6791960581 | Y15: 0.5696232776 | Z15: 0.4764484825 | AA15: 0.499979136 | AB15: 0.3813787856 | AC15: 0.6458560559 | AD15: 0.5870882463 | AE15: 0.7547922559 | AF15: 0.8817938172 | AG15: 0.553728587 | AH15: 0.7567182957 | AI15: 0.644006855 | AJ15: 0.5643329027 | AK15: 0.5291781735 | AL15: 0.6241125603 | AM15: 0.6251118014 | AN15: 0.4034728129 | AO15: 0.5424267131 | AP15: 0.3746664181 | AQ15: 0.4908245542 | AR15: 0.3830142696
A16: Fossil Fuels | B16: =(Inputs!$E$1056*(Petroleum!$B220*Petroleum!$F$218+Petroleum!$F220)+(1-Inputs!$E$1056)*(Petroleum!$B220*Petroleum!$D$218+Petroleum!$D220))/1000000*HLOOKUP($G$10,$Y$3:$AC$4,2,FALSE)/HLOOKUP($I$11,$Y$7:$AC$8,2,FALSE) -> 244415.4832 | C16: =(Petroleum!$C220*Petroleum!$G$218+Petroleum!$G220)/1000000*HLOOKUP($G$10,$Y$3:$AC$4,2,FALSE)/HLOOKUP($I$11,$Y$7:$AC$8,2,FALSE) -> 300836.1454 | D16: =((1-Vehicles!$C$26)*(1-Vehicles!$C$7)*Fuel_Specs!$B$11/((1-Vehicles!$C$26)*(1-Vehicles!$C$7)*Fuel_Specs!$B$11+Vehicles!$C$26*(1-Vehicles!$C$7)*Fuel_Specs!$B$13+Vehicles!$C$7*Fuel_Specs!$B$26)*(Petroleum!$B220*Petroleum!$D$218+Petroleum!$D220)+Vehicles!$C$26*(1-Vehicles!$C$7)*Fuel_Specs!$B$13/((1-Vehicles!$C$26)*(1-Vehicles!$C$7)*Fuel_Specs!$B$11+Vehicles!$C$26*(1-Vehicles!$C$7)*Fuel_Specs!$B$13+Vehicles!$C$7*Fuel_Specs!$B$26)*(Petroleum!B220*Petroleum!$F$218+Petroleum!$F220)+Vehicles!$C$7*Fuel_Specs!$B$26/((1-Vehicles!$C$26)*(1-Vehicles!$C$7)*Fuel_Specs!$B$11+Vehicles!$C$26*(1-Vehicles!$C$7)*Fuel_Specs!$B$13+Vehicles!$C$7*Fuel_Specs!$B$26)*(EtOH!BE403*EtOH!$BF$401+EtOH!$BF403))/1000000*HLOOKUP($G$10,$Y$3:$AC$4,2,FALSE)/HLOOKUP($I$11,$Y$7:$AC$8,2,FALSE) -> 244210.1656 | E16: =(Inputs!$E$88*(IF(Inputs!F$92=1,Petroleum!$B220,Petroleum!$C220)*Petroleum!$K$218+Petroleum!$K220)+(1-Inputs!$E$88)*(IF(Inputs!F$91=1,Petroleum!$B220,Petroleum!$C220)*Petroleum!$J$218+Petroleum!$J220))/1000000*HLOOKUP($G$10,$Y$3:$AC$4,2,FALSE)/HLOOKUP($I$11,$Y$7:$AC$8,2,FALSE) -> 253644.5248 | F16: =(NG!$H82*NG!$I$80+NG!$I82)/1000000*HLOOKUP($G$10,$Y$3:$AC$4,2,FALSE)/HLOOKUP($I$11,$Y$7:$AC$8,2,FALSE) -> 172688.9151 | G16: =(NG!$P82*NG!$Q$80+NG!$Q82)/1000000*HLOOKUP($G$10,$Y$3:$AC$4,2,FALSE)/HLOOKUP($I$11,$Y$7:$AC$8,2,FALSE) -> 270933.6355 | H16: =(NG!$V82*NG!$W$80+NG!$W82)/1000000*HLOOKUP($G$10,$Y$3:$AC$4,2,FALSE)/HLOOKUP($I$11,$Y$7:$AC$8,2,FALSE) -> 164926.0187 | I16: =('MeOH&FTD'!AV134*'MeOH&FTD'!AW$132+'MeOH&FTD'!AW134)/1000000*HLOOKUP($G$10,$Y$3:$AC$4,2,FALSE)/HLOOKUP($I$11,$Y$7:$AC$8,2,FALSE) -> 692524.7117 | J16: =((1-Vehicles!$C$25)*(1-Vehicles!$C$5)*Fuel_Specs!$B$11/((1-Vehicles!$C$25)*(1-Vehicles!$C$5)*Fuel_Specs!$B$11+Vehicles!$C$25*(1-Vehicles!$C$5)*Fuel_Specs!$B$13+Vehicles!$C$5*Fuel_Specs!$B$25)*(Petroleum!$B220*Petroleum!$D$218+Petroleum!$D220)+Vehicles!$C$25*(1-Vehicles!$C$5)*Fuel_Specs!$B$13/((1-Vehicles!$C$25)*(1-Vehicles!$C$5)*Fuel_Specs!$B$11+Vehicles!$C$25*(1-Vehicles!$C$5)*Fuel_Specs!$B$13+Vehicles!$C$5*Fuel_Specs!$B$25)*(Petroleum!B220*Petroleum!$F$218+Petroleum!$F220)+Vehicles!$C$5*Fuel_Specs!$B$25/((1-Vehicles!$C$25)*(1-Vehicles!$C$5)*Fuel_Specs!$B$11+Vehicles!$C$25*(1-Vehicles!$C$5)*Fuel_Specs!$B$13+Vehicles!$C$5*Fuel_Specs!$B$25)*('MeOH&FTD'!$L134*'MeOH&FTD'!$M$132+'MeOH&FTD'!$M134))/1000000*HLOOKUP($G$10,$Y$3:$AC$4,2,FALSE)/HLOOKUP($I$11,$Y$7:$AC$8,2,FALSE) -> 504138.4959 | K16: =((1-Vehicles!$C$25)*(1-Vehicles!$C$6)*Fuel_Specs!$B$11/((1-Vehicles!$C$25)*(1-Vehicles!$C$6)*Fuel_Specs!$B$11+Vehicles!$C$25*(1-Vehicles!$C$6)*Fuel_Specs!$B$13+Vehicles!$C$6*Fuel_Specs!$B$25)*(Petroleum!$B220*Petroleum!$D$218+Petroleum!$D220)+Vehicles!$C$25*(1-Vehicles!$C$6)*Fuel_Specs!$B$13/((1-Vehicles!$C$25)*(1-Vehicles!$C$6)*Fuel_Specs!$B$11+Vehicles!$C$25*(1-Vehicles!$C$6)*Fuel_Specs!$B$13+Vehicles!$C$6*Fuel_Specs!$B$25)*(Petroleum!B220*Petroleum!$F$218+Petroleum!$F220)+Vehicles!$C$6*Fuel_Specs!$B$25/((1-Vehicles!$C$25)*(1-Vehicles!$C$6)*Fuel_Specs!$B$11+Vehicles!$C$25*(1-Vehicles!$C$6)*Fuel_Specs!$B$13+Vehicles!$C$6*Fuel_Specs!$B$25)*('MeOH&FTD'!$L134*'MeOH&FTD'!$M$132+'MeOH&FTD'!$M134))/1000000*HLOOKUP($G$10,$Y$3:$AC$4,2,FALSE)/HLOOKUP($I$11,$Y$7:$AC$8,2,FALSE) -> 533841.9356 | L16: =('MeOH&FTD'!$L134*'MeOH&FTD'!$M$132+'MeOH&FTD'!$M134)/1000000*HLOOKUP($G$10,$Y$3:$AC$4,2,FALSE)/HLOOKUP($I$11,$Y$7:$AC$8,2,FALSE) -> 602407.3324 | M16: =((1-Vehicles!$C$27)*(1-Vehicles!$C$8)*Fuel_Specs!$B$11/((1-Vehicles!$C$27)*(1-Vehicles!$C$8)*Fuel_Specs!$B$11+Vehicles!$C$27*(1-Vehicles!$C$8)*Fuel_Specs!$B$13+Vehicles!$C$8*Fuel_Specs!$B$26)*(Petroleum!$B220*Petroleum!$D$218+Petroleum!$D220)+Vehicles!$C$27*(1-Vehicles!$C$8)*Fuel_Specs!$B$13/((1-Vehicles!$C$27)*(1-Vehicles!$C$8)*Fuel_Specs!$B$11+Vehicles!$C$27*(1-Vehicles!$C$8)*Fuel_Specs!$B$13+Vehicles!$C$8*Fuel_Specs!$B$26)*(Petroleum!B220*Petroleum!$F$218+Petroleum!$F220)+Vehicles!$C$8*Fuel_Specs!$B$26/((1-Vehicles!$C$27)*(1-Vehicles!$C$8)*Fuel_Specs!$B$11+Vehicles!$C$27*(1-Vehicles!$C$8)*Fuel_Specs!$B$13+Vehicles!$C$8*Fuel_Specs!$B$26)*(EtOH!BE403*EtOH!$BF$401+EtOH!$BF403))/1000000*HLOOKUP($G$10,$Y$3:$AC$4,2,FALSE)/HLOOKUP($I$11,$Y$7:$AC$8,2,FALSE) -> 398329.4383 | N16: =((1-Vehicles!$C$28)*(1-Vehicles!$C$10)*Fuel_Specs!$B$11/((1-Vehicles!$C$28)*(1-Vehicles!$C$10)*Fuel_Specs!$B$11+Vehicles!$C$28*(1-Vehicles!$C$10)*Fuel_Specs!$B$13+Vehicles!$C$10*Fuel_Specs!$B$27)*(Petroleum!$B220*Petroleum!$D$218+Petroleum!$D220)+Vehicles!$C$28*(1-Vehicles!$C$10)*Fuel_Specs!$B$13/((1-Vehicles!$C$28)*(1-Vehicles!$C$10)*Fuel_Specs!$B$11+Vehicles!$C$28*(1-Vehicles!$C$10)*Fuel_Specs!$B$13+Vehicles!$C$10*Fuel_Specs!$B$27)*(Petroleum!B220*Petroleum!$F$218+Petroleum!$F220)+Vehicles!$C$10*Fuel_Specs!$B$27/((1-Vehicles!$C$28)*(1-Vehicles!$C$10)*Fuel_Specs!$B$11+Vehicles!$C$28*(1-Vehicles!$C$10)*Fuel_Specs!$B$13+Vehicles!$C$10*Fuel_Specs!$B$27)*(EtOH!$BI403*EtOH!$BJ$401+EtOH!$BJ403))/1000000*HLOOKUP($G$10,$Y$3:$AC$4,2,FALSE)/HLOOKUP($I$11,$Y$7:$AC$8,2,FALSE) -> 715906.0415 | O16: =((1-Vehicles!$C$27)*(1-Vehicles!$C$9)*Fuel_Specs!$B$11/((1-Vehicles!$C$27)*(1-Vehicles!$C$9)*Fuel_Specs!$B$11+Vehicles!$C$27*(1-Vehicles!$C$9)*Fuel_Specs!$B$13+Vehicles!$C$9*Fuel_Specs!$B$26)*(Petroleum!$B220*Petroleum!$D$218+Petroleum!$D220)+Vehicles!$C$27*(1-Vehicles!$C$9)*Fuel_Specs!$B$13/((1-Vehicles!$C$27)*(1-Vehicles!$C$9)*Fuel_Specs!$B$11+Vehicles!$C$27*(1-Vehicles!$C$9)*Fuel_Specs!$B$13+Vehicles!$C$9*Fuel_Specs!$B$26)*(Petroleum!B220*Petroleum!$F$218+Petroleum!$F220)+Vehicles!$C$9*Fuel_Specs!$B$26/((1-Vehicles!$C$27)*(1-Vehicles!$C$9)*Fuel_Specs!$B$11+Vehicles!$C$27*(1-Vehicles!$C$9)*Fuel_Specs!$B$13+Vehicles!$C$9*Fuel_Specs!$B$26)*(EtOH!BE403*EtOH!$BF$401+EtOH!$BF403))/1000000*HLOOKUP($G$10,$Y$3:$AC$4,2,FALSE)/HLOOKUP($I$11,$Y$7:$AC$8,2,FALSE) -> 398329.4383 | P16: =(EtOH!$BE403*EtOH!$BF$401+EtOH!$BF403)/1000000*HLOOKUP($G$10,$Y$3:$AC$4,2,FALSE)/HLOOKUP($I$11,$Y$7:$AC$8,2,FALSE) -> 449799.9629 | Q16: =((1-Vehicles!$C$29)*(1-Vehicles!$C$14)*Fuel_Specs!$B$11/((1-Vehicles!$C$29)*(1-Vehicles!$C$14)*Fuel_Specs!$B$11+Vehicles!$C$29*(1-Vehicles!$C$14)*Fuel_Specs!$B$13+Vehicles!$C$14*Fuel_Specs!$B$39)*(Petroleum!$B220*Petroleum!$D$218+Petroleum!$D220)+Vehicles!$C$29*(1-Vehicles!$C$14)*Fuel_Specs!$B$13/((1-Vehicles!$C$29)*(1-Vehicles!$C$14)*Fuel_Specs!$B$11+Vehicles!$C$29*(1-Vehicles!$C$14)*Fuel_Specs!$B$13+Vehicles!$C$14*Fuel_Specs!$B$39)*(Petroleum!B220*Petroleum!$F$218+Petroleum!$F220)+Vehicles!$C$14*Fuel_Specs!$B$39/((1-Vehicles!$C$29)*(1-Vehicles!$C$14)*Fuel_Specs!$B$11+Vehicles!$C$29*(1-Vehicles!$C$14)*Fuel_Specs!$B$13+Vehicles!$C$14*Fuel_Specs!$B$39)*(BioOil!$BQ316*BioOil!$BR$313+BioOil!$BR316))/1000000*HLOOKUP($G$10,$Y$3:$AC$4,2,FALSE)/HLOOKUP($I$11,$Y$7:$AC$8,2,FALSE) -> 268183.7519 | R16: =((1-Vehicles!$C$29)*(1-Vehicles!$C$14)*Fuel_Specs!$B$11/((1-Vehicles!$C$29)*(1-Vehicles!$C$14)*Fuel_Specs!$B$11+Vehicles!$C$29*(1-Vehicles!$C$14)*Fuel_Specs!$B$13+Vehicles!$C$14*Fuel_Specs!$B$39)*(Petroleum!$B220*Petroleum!$D$218+Petroleum!$D220)+Vehicles!$C$29*(1-Vehicles!$C$14)*Fuel_Specs!$B$13/((1-Vehicles!$C$29)*(1-Vehicles!$C$14)*Fuel_Specs!$B$11+Vehicles!$C$29*(1-Vehicles!$C$14)*Fuel_Specs!$B$13+Vehicles!$C$14*Fuel_Specs!$B$39)*(Petroleum!B220*Petroleum!$F$218+Petroleum!$F220)+Vehicles!$C$14*Fuel_Specs!$B$39/((1-Vehicles!$C$29)*(1-Vehicles!$C$14)*Fuel_Specs!$B$11+Vehicles!$C$29*(1-Vehicles!$C$14)*Fuel_Specs!$B$13+Vehicles!$C$14*Fuel_Specs!$B$39)*(Pyrolysis!$Z168*Pyrolysis!$AA$166+Pyrolysis!$AA168))/1000000*HLOOKUP($G$10,$Y$3:$AC$4,2,FALSE)/HLOOKUP($I$11,$Y$7:$AC$8,2,FALSE) -> 428053.9465 | S16: =AN16*(Vehicles!$C$21/Vehicles!$AN$53)/(Vehicles!$C$21*(1/Vehicles!$AN$53+1/Vehicles!$AO$53)+Vehicles!$C$22/Vehicles!$AP$53)+B16*(Vehicles!$C$21/Vehicles!$AO$53+Vehicles!$C$22/Vehicles!$AP$53)/(Vehicles!$C$21*(1/Vehicles!$AN$53+1/Vehicles!$AO$53)+Vehicles!$C$22/Vehicles!$AP$53) -> 478871.3535 | T16: =AN16*(Vehicles!$D$21/Vehicles!$AR$53)/(Vehicles!$D$21*(1/Vehicles!$AR$53+1/Vehicles!$AS$53)+Vehicles!$D$22/Vehicles!$AT$53)+C16*(Vehicles!$D$21/Vehicles!$AS$53+Vehicles!$D$22/Vehicles!$AT$53)/(Vehicles!$D$21*(1/Vehicles!$AR$53+1/Vehicles!$AS$53)+Vehicles!$D$22/Vehicles!$AT$53) -> 522211.3686 | U16: =AN16*(Vehicles!$F$21/Vehicles!$AZ$53)/(Vehicles!$F$21*(1/Vehicles!$AZ$53+1/Vehicles!$BA$53)+Vehicles!$F$22/Vehicles!$BB$53)+D16*(Vehicles!$F$21/Vehicles!$BA$53+Vehicles!$F$22/Vehicles!$BB$53)/(Vehicles!$F$21*(1/Vehicles!$AZ$53+1/Vehicles!$BA$53)+Vehicles!$F$22/Vehicles!$BB$53) -> 478713.637 | V16: =AN16*(Vehicles!$G$21/Vehicles!$BD$53)/(Vehicles!$G$21*(1/Vehicles!$BD$53+1/Vehicles!$BE$53)+Vehicles!$G$22/Vehicles!$BF$53)+F16*(Vehicles!$G$21/Vehicles!$BE$53+Vehicles!$G$22/Vehicles!$BF$53)/(Vehicles!$G$21*(1/Vehicles!$BD$53+1/Vehicles!$BE$53)+Vehicles!$G$22/Vehicles!$BF$53) -> 423773.9755 | W16: =AN16*(Vehicles!$H$21/Vehicles!$BH$53)/(Vehicles!$H$21*(1/Vehicles!$BH$53+1/Vehicles!$BI$53)+Vehicles!$H$22/Vehicles!$BJ$53)+G16*(Vehicles!$H$21/Vehicles!$BI$53+Vehicles!$H$22/Vehicles!$BJ$53)/(Vehicles!$H$21*(1/Vehicles!$BH$53+1/Vehicles!$BI$53)+Vehicles!$H$22/Vehicles!$BJ$53) -> 499241.4994 | X16: =AN16*(Vehicles!$I$21/Vehicles!$BL$53)/(Vehicles!$I$21*(1/Vehicles!$BL$53+1/Vehicles!$BM$53)+Vehicles!$I$22/Vehicles!$BN$53)+H16*(Vehicles!$I$21/Vehicles!$BM$53+Vehicles!$I$22/Vehicles!$BN$53)/(Vehicles!$I$21*(1/Vehicles!$BL$53+1/Vehicles!$BM$53)+Vehicles!$I$22/Vehicles!$BN$53) -> 417810.84 | Y16: =AN16*(Vehicles!$J$21/Vehicles!$BP$53)/(Vehicles!$J$21*(1/Vehicles!$BP$53+1/Vehicles!$BQ$53)+Vehicles!$J$22/Vehicles!$BR$53)+K16*(Vehicles!$J$21/Vehicles!$BQ$53+Vehicles!$J$22/Vehicles!$BR$53)/(Vehicles!$J$21*(1/Vehicles!$BP$53+1/Vehicles!$BQ$53)+Vehicles!$J$22/Vehicles!$BR$53) -> 701196.7633 | Z16: =AN16*(Vehicles!$K$21/Vehicles!$BT$53)/(Vehicles!$K$21*(1/Vehicles!$BT$53+1/Vehicles!$BU$53)+Vehicles!$K$22/Vehicles!$BV$53)+O16*(Vehicles!$K$21/Vehicles!$BU$53+Vehicles!$K$22/Vehicles!$BV$53)/(Vehicles!$K$21*(1/Vehicles!$BT$53+1/Vehicles!$BU$53)+Vehicles!$K$22/Vehicles!$BV$53) -> 587208.6087 | AA16: =AN16*(Vehicles!$L$21/Vehicles!$BX$53)/(Vehicles!$L$21*(1/Vehicles!$BX$53+1/Vehicles!$BY$53)+Vehicles!$L$22/Vehicles!$BZ$53)+AO16*(Vehicles!$L$21/Vehicles!$BY$53+Vehicles!$L$22/Vehicles!$BZ$53)/(Vehicles!$L$21*(1/Vehicles!$BX$53+1/Vehicles!$BY$53)+Vehicles!$L$22/Vehicles!$BZ$53) -> 912355.415 | AB16: =AN16*(Vehicles!$L$21/Vehicles!$BX$53)/(Vehicles!$L$21*(1/Vehicles!$BX$53+1/Vehicles!$BY$53)+Vehicles!$L$22/Vehicles!$CA$53)+AP16*(Vehicles!$L$21/Vehicles!$BY$53+Vehicles!$L$22/Vehicles!$CA$53)/(Vehicles!$L$21*(1/Vehicles!$BX$53+1/Vehicles!$BY$53)+Vehicles!$L$22/Vehicles!$CA$53) -> 1445288.98 | AC16: =('MeOH&FTD'!$X134*'MeOH&FTD'!$Y$132+'MeOH&FTD'!$Y134)/1000000*HLOOKUP($G$10,$Y$3:$AC$4,2,FALSE)/HLOOKUP($I$11,$Y$7:$AC$8,2,FALSE) -> 544880.2675 | AD16: =((1-Vehicles!$C$30)*(1-Vehicles!$C$11)*Fuel_Specs!$B$15/((1-Vehicles!$C$30)*(1-Vehicles!$C$11)*Fuel_Specs!$B$15+Vehicles!$C$30*(1-Vehicles!$C$11)*Fuel_Specs!$B$18+Vehicles!$C$11*Fuel_Specs!$B$35)*(Petroleum!B220*Petroleum!$J$218+Petroleum!$J220)+Vehicles!$C$30*(1-Vehicles!$C$11)*Fuel_Specs!$B$18/((1-Vehicles!$C$30)*(1-Vehicles!$C$11)*Fuel_Specs!$B$15+Vehicles!$C$30*(1-Vehicles!$C$11)*Fuel_Specs!$B$18+Vehicles!$C$11*Fuel_Specs!$B$35)*(Petroleum!B220*Petroleum!$K$218+Petroleum!$K220)+Vehicles!$C$11*Fuel_Specs!$B$35/((1-Vehicles!$C$30)*(1-Vehicles!$C$11)*Fuel_Specs!$B$15+Vehicles!$C$30*(1-Vehicles!$C$11)*Fuel_Specs!$B$18+Vehicles!$C$11*Fuel_Specs!$B$35)*('MeOH&FTD'!$AL134*'MeOH&FTD'!$AM$132+'MeOH&FTD'!$AM134))/1000000*HLOOKUP($G$10,$Y$3:$AC$4,2,FALSE)/HLOOKUP($I$11,$Y$7:$AC$8,2,FALSE) -> 700275.1136 | AE16: =((1-Vehicles!$C$31)*(1-Vehicles!$C$12)*Fuel_Specs!$B$15/((1-Vehicles!$C$31)*(1-Vehicles!$C$12)*Fuel_Specs!$B$15+Vehicles!$C$31*(1-Vehicles!$C$12)*Fuel_Specs!$B$18+Vehicles!$C$12*Fuel_Specs!$B$34)*(Petroleum!B220*Petroleum!$J$218+Petroleum!$J220)+Vehicles!$C$31*(1-Vehicles!$C$12)*Fuel_Specs!$B$18/((1-Vehicles!$C$31)*(1-Vehicles!$C$12)*Fuel_Specs!$B$15+Vehicles!$C$31*(1-Vehicles!$C$12)*Fuel_Specs!$B$18+Vehicles!$C$12*Fuel_Specs!$B$34)*(Petroleum!B220*Petroleum!$K$218+Petroleum!$K220)+Vehicles!$C$12*Fuel_Specs!$B$34/((1-Vehicles!$C$31)*(1-Vehicles!$C$12)*Fuel_Specs!$B$15+Vehicles!$C$31*(1-Vehicles!$C$12)*Fuel_Specs!$B$18+Vehicles!$C$12*Fuel_Specs!$B$34)*(BioOil!$Y316*BioOil!$Z$313+BioOil!$Z316))/1000000*HLOOKUP($G$10,$Y$3:$AC$4,2,FALSE)/HLOOKUP($I$11,$Y$7:$AC$8,2,FALSE) -> 263256.4631 | AF16: =((1-Vehicles!$C$32)*(1-Vehicles!$C$13)*Fuel_Specs!$B$15/((1-Vehicles!$C$32)*(1-Vehicles!$C$13)*Fuel_Specs!$B$15+Vehicles!$C$32*(1-Vehicles!$C$13)*Fuel_Specs!$B$18+Vehicles!$C$13*IF(Inputs!$E$499=1,IF(Inputs!$E$499=1,Fuel_Specs!$B$36,IF(Inputs!$E$499=3,Fuel_Specs!$B$38,Fuel_Specs!$B$37)),Fuel_Specs!$B$37))*(Petroleum!B220*Petroleum!$J$218+Petroleum!$J220)+Vehicles!$C$32*(1-Vehicles!$C$13)*Fuel_Specs!$B$18/((1-Vehicles!$C$32)*(1-Vehicles!$C$13)*Fuel_Specs!$B$15+Vehicles!$C$32*(1-Vehicles!$C$13)*Fuel_Specs!$B$18+Vehicles!$C$13*IF(Inputs!$E$499=1,IF(Inputs!$E$499=1,Fuel_Specs!$B$36,IF(Inputs!$E$499=3,Fuel_Specs!$B$38,Fuel_Specs!$B$37)),Fuel_Specs!$B$37))*(Petroleum!B220*Petroleum!$K$218+Petroleum!$K220)+Vehicles!$C$13*IF(Inputs!$E$499=1,IF(Inputs!$E$499=1,Fuel_Specs!$B$36,IF(Inputs!$E$499=3,Fuel_Specs!$B$38,Fuel_Specs!$B$37)),Fuel_Specs!$B$37)/((1-Vehicles!$C$32)*(1-Vehicles!$C$13)*Fuel_Specs!$B$15+Vehicles!$C$32*(1-Vehicles!$C$13)*Fuel_Specs!$B$18+Vehicles!$C$13*IF(Inputs!$E$499=1,IF(Inputs!$E$499=1,Fuel_Specs!$B$36,IF(Inputs!$E$499=3,Fuel_Specs!$B$38,Fuel_Specs!$B$37)),Fuel_Specs!$B$37))*(BioOil!$BE316*BioOil!$BF$313+BioOil!$BF316))/1000000*HLOOKUP($G$10,$Y$3:$AC$4,2,FALSE)/HLOOKUP($I$11,$Y$7:$AC$8,2,FALSE) -> 119797.3484 | AG16: =((1-Vehicles!$C$32)*(1-Vehicles!$C$13)*Fuel_Specs!$B$15/((1-Vehicles!$C$32)*(1-Vehicles!$C$13)*Fuel_Specs!$B$15+Vehicles!$C$32*(1-Vehicles!$C$13)*Fuel_Specs!$B$18+Vehicles!$C$13*IF(Inputs!$E$499=1,Fuel_Specs!$B$36,Fuel_Specs!$B$37))*(Petroleum!B220*Petroleum!$J$218+Petroleum!$J220)+Vehicles!$C$32*(1-Vehicles!$C$13)*Fuel_Specs!$B$18/((1-Vehicles!$C$32)*(1-Vehicles!$C$13)*Fuel_Specs!$B$15+Vehicles!$C$32*(1-Vehicles!$C$13)*Fuel_Specs!$B$18+Vehicles!$C$13*IF(Inputs!$E$499=1,Fuel_Specs!$B$36,Fuel_Specs!$B$37))*(Petroleum!B220*Petroleum!$K$218+Petroleum!$K220)+Vehicles!$C$13*IF(Inputs!$E$499=1,Fuel_Specs!$B$36,Fuel_Specs!$B$37)/((1-Vehicles!$C$32)*(1-Vehicles!$C$13)*Fuel_Specs!$B$15+Vehicles!$C$32*(1-Vehicles!$C$13)*Fuel_Specs!$B$18+Vehicles!$C$13*IF(Inputs!$E$499=1,Fuel_Specs!$B$36,Fuel_Specs!$B$37))*(Pyrolysis!$AB168*Pyrolysis!$AC$166+Pyrolysis!$AC168))/1000000*HLOOKUP($G$10,$Y$3:$AC$4,2,FALSE)/HLOOKUP($I$11,$Y$7:$AC$8,2,FALSE) -> 444102.6023 | AH16: =(((1-Vehicles!$C$33)*(1-Vehicles!$C$15-Vehicles!$C$16)*Fuel_Specs!$B$15*(Petroleum!B220*Petroleum!$J$218+Petroleum!$J220)+Vehicles!$C$33*(1-Vehicles!$C$15-Vehicles!$C$16)*Fuel_Specs!$B$18*(Petroleum!B220*Petroleum!$K$218+Petroleum!$K220)+Vehicles!$C$15*Fuel_Specs!$B$26*(EtOH!BE403*EtOH!$BF$401+EtOH!$BF403)+Vehicles!$C$16*Fuel_Specs!$B$29*('E-D Additives'!$B50*'E-D Additives'!$B$48))/((1-Vehicles!$C$33)*(1-Vehicles!$C$15-Vehicles!$C$16)*Fuel_Specs!$B$15+Vehicles!$C$33*(1-Vehicles!$C$15-Vehicles!$C$16)*Fuel_Specs!$B$18+Vehicles!$C$15*Fuel_Specs!$B$26+Vehicles!$C$16*Fuel_Specs!$B$29))/1000000*HLOOKUP($G$10,$Y$3:$AC$4,2,FALSE)/HLOOKUP($I$11,$Y$7:$AC$8,2,FALSE) -> 267431.5564 | AI16: =AN16*(Vehicles!$M$21/Vehicles!$CI$53)/(Vehicles!$M$21*(1/Vehicles!$CI$53+1/Vehicles!$CJ$53)+Vehicles!$M$22/Vehicles!$CK$53)+E16*(Vehicles!$M$21/Vehicles!$CJ$53+Vehicles!$M$22/Vehicles!$CK$53)/(Vehicles!$M$21*(1/Vehicles!$CI$53+1/Vehicles!$CJ$53)+Vehicles!$M$22/Vehicles!$CK$53) -> 494604.9512 | AJ16: =AN16*(Vehicles!$N$21/Vehicles!$CM$53)/(Vehicles!$N$21*(1/Vehicles!$CM$53+1/Vehicles!$CN$53)+Vehicles!$N$22/Vehicles!$CO$53)+AC16*(Vehicles!$N$21/Vehicles!$CN$53+Vehicles!$N$22/Vehicles!$CO$53)/(Vehicles!$N$21*(1/Vehicles!$CM$53+1/Vehicles!$CN$53)+Vehicles!$N$22/Vehicles!$CO$53) -> 715807.8188 | AK16: =AN16*(Vehicles!$O$21/Vehicles!$CQ$53)/(Vehicles!$O$21*(1/Vehicles!$CQ$53+1/Vehicles!$CR$53)+Vehicles!$O$22/Vehicles!$CS$53)+AD16*(Vehicles!$O$21/Vehicles!$CR$53+Vehicles!$O$22/Vehicles!$CS$53)/(Vehicles!$O$21*(1/Vehicles!$CQ$53+1/Vehicles!$CR$53)+Vehicles!$O$22/Vehicles!$CS$53) -> 833835.1779 | AL16: =AN16*(Vehicles!$P$21/Vehicles!$CU$53)/(Vehicles!$P$21*(1/Vehicles!$CU$53+1/Vehicles!$CV$53)+Vehicles!$P$22/Vehicles!$CW$53)+AE16*(Vehicles!$P$21/Vehicles!$CV$53+Vehicles!$P$22/Vehicles!$CW$53)/(Vehicles!$P$21*(1/Vehicles!$CU$53+1/Vehicles!$CV$53)+Vehicles!$P$22/Vehicles!$CW$53) -> 501905.5259 | AM16: =AN16*(Vehicles!$R$21/Vehicles!$DC$53)/(Vehicles!$R$21*(1/Vehicles!$DC$53+1/Vehicles!$DD$53)+Vehicles!$R$22/Vehicles!$DE$53)+AH16*(Vehicles!$R$21/Vehicles!$DD$53+Vehicles!$R$22/Vehicles!$DE$53)/(Vehicles!$R$21*(1/Vehicles!$DC$53+1/Vehicles!$DD$53)+Vehicles!$R$22/Vehicles!$DE$53) -> 505076.6429 | AN16: =(Electric!$G172+Electric!$F172-1000000*(Electric!$F172+Electric!$G172)/(Electric!$F$171+Electric!$G$171))/1000000*HLOOKUP($G$10,$Y$3:$AC$4,2,FALSE)/HLOOKUP($I$11,$Y$7:$AC$8,2,FALSE) -> 1255692.33 | AO16: =((Hydrogen!$Z149*Hydrogen!$AA$147+Hydrogen!$AA149)-1000000*(Hydrogen!$K$7+Hydrogen!$C$7+Hydrogen!$D$7+Hydrogen!$E$7))/1000000*HLOOKUP($G$10,$Y$3:$AC$4,2,FALSE)/HLOOKUP($I$11,$Y$7:$AC$8,2,FALSE) -> 800026.686 | AP16: =((Hydrogen!$AX149*Hydrogen!$AY$147+Hydrogen!$AY149)-1000000*(Hydrogen!$K$8+Hydrogen!$C$8+Hydrogen!$D$8+Hydrogen!$E$8))/1000000*HLOOKUP($G$10,$Y$3:$AC$4,2,FALSE)/HLOOKUP($I$11,$Y$7:$AC$8,2,FALSE) -> 1507318.869 | AQ16: =AN16*(Vehicles!$S$21/Vehicles!$DS$53)/(Vehicles!$S$21*(1/Vehicles!$DS$53+1/Vehicles!$DT$53)+Vehicles!$S$22/Vehicles!$DU$53)+AO16*(Vehicles!$S$21/Vehicles!$DT$53+Vehicles!$S$22/Vehicles!$DU$53)/(Vehicles!$S$21*(1/Vehicles!$DS$53+1/Vehicles!$DT$53)+Vehicles!$S$22/Vehicles!$DU$53) -> 939128.0574 | AR16: =AN16*(Vehicles!$S$21/Vehicles!$DS$53)/(Vehicles!$S$21*(1/Vehicles!$DS$53+1/Vehicles!$DT$53)+Vehicles!$S$22/Vehicles!$DU$53)+AP16*(Vehicles!$S$21/Vehicles!$DT$53+Vehicles!$S$22/Vehicles!$DU$53)/(Vehicles!$S$21*(1/Vehicles!$DS$53+1/Vehicles!$DT$53)+Vehicles!$S$22/Vehicles!$DU$53) -> 1430504.659
A17: Coal | B17: =(Inputs!$E$1056*(Petroleum!$B221*Petroleum!$F$218+Petroleum!$F221)+(1-Inputs!$E$1056)*(Petroleum!$B221*Petroleum!$D$218+Petroleum!$D221))/1000000*HLOOKUP($G$10,$Y$3:$AC$4,2,FALSE)/HLOOKUP($I$11,$Y$7:$AC$8,2,FALSE) -> 24048.19392 | C17: =(Petroleum!$C221*Petroleum!$G$218+Petroleum!$G221)/1000000*HLOOKUP($G$10,$Y$3:$AC$4,2,FALSE)/HLOOKUP($I$11,$Y$7:$AC$8,2,FALSE) -> 21896.20932 | D17: =((1-Vehicles!$C$26)*(1-Vehicles!$C$7)*Fuel_Specs!$B$11/((1-Vehicles!$C$26)*(1-Vehicles!$C$7)*Fuel_Specs!$B$11+Vehicles!$C$26*(1-Vehicles!$C$7)*Fuel_Specs!$B$13+Vehicles!$C$7*Fuel_Specs!$B$26)*(Petroleum!$B221*Petroleum!$D$218+Petroleum!$D221)+Vehicles!$C$26*(1-Vehicles!$C$7)*Fuel_Specs!$B$13/((1-Vehicles!$C$26)*(1-Vehicles!$C$7)*Fuel_Specs!$B$11+Vehicles!$C$26*(1-Vehicles!$C$7)*Fuel_Specs!$B$13+Vehicles!$C$7*Fuel_Specs!$B$26)*(Petroleum!B221*Petroleum!$F$218+Petroleum!$F221)+Vehicles!$C$7*Fuel_Specs!$B$26/((1-Vehicles!$C$26)*(1-Vehicles!$C$7)*Fuel_Specs!$B$11+Vehicles!$C$26*(1-Vehicles!$C$7)*Fuel_Specs!$B$13+Vehicles!$C$7*Fuel_Specs!$B$26)*(EtOH!BE404*EtOH!$BF$401+EtOH!$BF404))/1000000*HLOOKUP($G$10,$Y$3:$AC$4,2,FALSE)/HLOOKUP($I$11,$Y$7:$AC$8,2,FALSE) -> 24044.25461 | E17: =(Inputs!$E$88*(IF(Inputs!F$92=1,Petroleum!$B221,Petroleum!$C221)*Petroleum!$K$218+Petroleum!$K221)+(1-Inputs!$E$88)*(IF(Inputs!F$91=1,Petroleum!$B221,Petroleum!$C221)*Petroleum!$J$218+Petroleum!$J221))/1000000*HLOOKUP($G$10,$Y$3:$AC$4,2,FALSE)/HLOOKUP($I$11,$Y$7:$AC$8,2,FALSE) -> 23179.60222 | F17: =(NG!$H83*NG!$I$80+NG!$I83)/1000000*HLOOKUP($G$10,$Y$3:$AC$4,2,FALSE)/HLOOKUP($I$11,$Y$7:$AC$8,2,FALSE) -> 34052.00775 | G17: =(NG!$P83*NG!$Q$80+NG!$Q83)/1000000*HLOOKUP($G$10,$Y$3:$AC$4,2,FALSE)/HLOOKUP($I$11,$Y$7:$AC$8,2,FALSE) -> 4824.843938 | H17: =(NG!$V83*NG!$W$80+NG!$W83)/1000000*HLOOKUP($G$10,$Y$3:$AC$4,2,FALSE)/HLOOKUP($I$11,$Y$7:$AC$8,2,FALSE) -> 14135.08572 | I17: =('MeOH&FTD'!AV135*'MeOH&FTD'!AW$132+'MeOH&FTD'!AW135)/1000000*HLOOKUP($G$10,$Y$3:$AC$4,2,FALSE)/HLOOKUP($I$11,$Y$7:$AC$8,2,FALSE) -> 4710.109002 | J17: =((1-Vehicles!$C$25)*(1-Vehicles!$C$5)*Fuel_Specs!$B$11/((1-Vehicles!$C$25)*(1-Vehicles!$C$5)*Fuel_Specs!$B$11+Vehicles!$C$25*(1-Vehicles!$C$5)*Fuel_Specs!$B$13+Vehicles!$C$5*Fuel_Specs!$B$25)*(Petroleum!$B221*Petroleum!$D$218+Petroleum!$D221)+Vehicles!$C$25*(1-Vehicles!$C$5)*Fuel_Specs!$B$13/((1-Vehicles!$C$25)*(1-Vehicles!$C$5)*Fuel_Specs!$B$11+Vehicles!$C$25*(1-Vehicles!$C$5)*Fuel_Specs!$B$13+Vehicles!$C$5*Fuel_Specs!$B$25)*(Petroleum!B221*Petroleum!$F$218+Petroleum!$F221)+Vehicles!$C$5*Fuel_Specs!$B$25/((1-Vehicles!$C$25)*(1-Vehicles!$C$5)*Fuel_Specs!$B$11+Vehicles!$C$25*(1-Vehicles!$C$5)*Fuel_Specs!$B$13+Vehicles!$C$5*Fuel_Specs!$B$25)*('MeOH&FTD'!$L135*'MeOH&FTD'!$M$132+'MeOH&FTD'!$M135))/1000000*HLOOKUP($G$10,$Y$3:$AC$4,2,FALSE)/HLOOKUP($I$11,$Y$7:$AC$8,2,FALSE) -> 14296.18587 | K17: =((1-Vehicles!$C$25)*(1-Vehicles!$C$6)*Fuel_Specs!$B$11/((1-Vehicles!$C$25)*(1-Vehicles!$C$6)*Fuel_Specs!$B$11+Vehicles!$C$25*(1-Vehicles!$C$6)*Fuel_Specs!$B$13+Vehicles!$C$6*Fuel_Specs!$B$25)*(Petroleum!$B221*Petroleum!$D$218+Petroleum!$D221)+Vehicles!$C$25*(1-Vehicles!$C$6)*Fuel_Specs!$B$13/((1-Vehicles!$C$25)*(1-Vehicles!$C$6)*Fuel_Specs!$B$11+Vehicles!$C$25*(1-Vehicles!$C$6)*Fuel_Specs!$B$13+Vehicles!$C$6*Fuel_Specs!$B$25)*(Petroleum!B221*Petroleum!$F$218+Petroleum!$F221)+Vehicles!$C$6*Fuel_Specs!$B$25/((1-Vehicles!$C$25)*(1-Vehicles!$C$6)*Fuel_Specs!$B$11+Vehicles!$C$25*(1-Vehicles!$C$6)*Fuel_Specs!$B$13+Vehicles!$C$6*Fuel_Specs!$B$25)*('MeOH&FTD'!$L135*'MeOH&FTD'!$M$132+'MeOH&FTD'!$M135))/1000000*HLOOKUP($G$10,$Y$3:$AC$4,2,FALSE)/HLOOKUP($I$11,$Y$7:$AC$8,2,FALSE) -> 13217.78498 | L17: =('MeOH&FTD'!$L135*'MeOH&FTD'!$M$132+'MeOH&FTD'!$M135)/1000000*HLOOKUP($G$10,$Y$3:$AC$4,2,FALSE)/HLOOKUP($I$11,$Y$7:$AC$8,2,FALSE) -> 10728.47782 | M17: =((1-Vehicles!$C$27)*(1-Vehicles!$C$8)*Fuel_Specs!$B$11/((1-Vehicles!$C$27)*(1-Vehicles!$C$8)*Fuel_Specs!$B$11+Vehicles!$C$27*(1-Vehicles!$C$8)*Fuel_Specs!$B$13+Vehicles!$C$8*Fuel_Specs!$B$26)*(Petroleum!$B221*Petroleum!$D$218+Petroleum!$D221)+Vehicles!$C$27*(1-Vehicles!$C$8)*Fuel_Specs!$B$13/((1-Vehicles!$C$27)*(1-Vehicles!$C$8)*Fuel_Specs!$B$11+Vehicles!$C$27*(1-Vehicles!$C$8)*Fuel_Specs!$B$13+Vehicles!$C$8*Fuel_Specs!$B$26)*(Petroleum!B221*Petroleum!$F$218+Petroleum!$F221)+Vehicles!$C$8*Fuel_Specs!$B$26/((1-Vehicles!$C$27)*(1-Vehicles!$C$8)*Fuel_Specs!$B$11+Vehicles!$C$27*(1-Vehicles!$C$8)*Fuel_Specs!$B$13+Vehicles!$C$8*Fuel_Specs!$B$26)*(EtOH!BE404*EtOH!$BF$401+EtOH!$BF404))/1000000*HLOOKUP($G$10,$Y$3:$AC$4,2,FALSE)/HLOOKUP($I$11,$Y$7:$AC$8,2,FALSE) -> 21714.73687 | N17: =((1-Vehicles!$C$28)*(1-Vehicles!$C$10)*Fuel_Specs!$B$11/((1-Vehicles!$C$28)*(1-Vehicles!$C$10)*Fuel_Specs!$B$11+Vehicles!$C$28*(1-Vehicles!$C$10)*Fuel_Specs!$B$13+Vehicles!$C$10*Fuel_Specs!$B$27)*(Petroleum!$B221*Petroleum!$D$218+Petroleum!$D221)+Vehicles!$C$28*(1-Vehicles!$C$10)*Fuel_Specs!$B$13/((1-Vehicles!$C$28)*(1-Vehicles!$C$10)*Fuel_Specs!$B$11+Vehicles!$C$28*(1-Vehicles!$C$10)*Fuel_Specs!$B$13+Vehicles!$C$10*Fuel_Specs!$B$27)*(Petroleum!B221*Petroleum!$F$218+Petroleum!$F221)+Vehicles!$C$10*Fuel_Specs!$B$27/((1-Vehicles!$C$28)*(1-Vehicles!$C$10)*Fuel_Specs!$B$11+Vehicles!$C$28*(1-Vehicles!$C$10)*Fuel_Specs!$B$13+Vehicles!$C$10*Fuel_Specs!$B$27)*(EtOH!$BI404*EtOH!$BJ$401+EtOH!$BJ404))/1000000*HLOOKUP($G$10,$Y$3:$AC$4,2,FALSE)/HLOOKUP($I$11,$Y$7:$AC$8,2,FALSE) -> 44188.21286 | O17: =((1-Vehicles!$C$27)*(1-Vehicles!$C$9)*Fuel_Specs!$B$11/((1-Vehicles!$C$27)*(1-Vehicles!$C$9)*Fuel_Specs!$B$11+Vehicles!$C$27*(1-Vehicles!$C$9)*Fuel_Specs!$B$13+Vehicles!$C$9*Fuel_Specs!$B$26)*(Petroleum!$B221*Petroleum!$D$218+Petroleum!$D221)+Vehicles!$C$27*(1-Vehicles!$C$9)*Fuel_Specs!$B$13/((1-Vehicles!$C$27)*(1-Vehicles!$C$9)*Fuel_Specs!$B$11+Vehicles!$C$27*(1-Vehicles!$C$9)*Fuel_Specs!$B$13+Vehicles!$C$9*Fuel_Specs!$B$26)*(Petroleum!B221*Petroleum!$F$218+Petroleum!$F221)+Vehicles!$C$9*Fuel_Specs!$B$26/((1-Vehicles!$C$27)*(1-Vehicles!$C$9)*Fuel_Specs!$B$11+Vehicles!$C$27*(1-Vehicles!$C$9)*Fuel_Specs!$B$13+Vehicles!$C$9*Fuel_Specs!$B$26)*(EtOH!BE404*EtOH!$BF$401+EtOH!$BF404))/1000000*HLOOKUP($G$10,$Y$3:$AC$4,2,FALSE)/HLOOKUP($I$11,$Y$7:$AC$8,2,FALSE) -> 21714.73687 | P17: =(EtOH!$BE404*EtOH!$BF$401+EtOH!$BF404)/1000000*HLOOKUP($G$10,$Y$3:$AC$4,2,FALSE)/HLOOKUP($I$11,$Y$7:$AC$8,2,FALSE) -> 20936.75824 | Q17: =((1-Vehicles!$C$29)*(1-Vehicles!$C$14)*Fuel_Specs!$B$11/((1-Vehicles!$C$29)*(1-Vehicles!$C$14)*Fuel_Specs!$B$11+Vehicles!$C$29*(1-Vehicles!$C$14)*Fuel_Specs!$B$13+Vehicles!$C$14*Fuel_Specs!$B$39)*(Petroleum!$B221*Petroleum!$D$218+Petroleum!$D221)+Vehicles!$C$29*(1-Vehicles!$C$14)*Fuel_Specs!$B$13/((1-Vehicles!$C$29)*(1-Vehicles!$C$14)*Fuel_Specs!$B$11+Vehicles!$C$29*(1-Vehicles!$C$14)*Fuel_Specs!$B$13+Vehicles!$C$14*Fuel_Specs!$B$39)*(Petroleum!B221*Petroleum!$F$218+Petroleum!$F221)+Vehicles!$C$14*Fuel_Specs!$B$39/((1-Vehicles!$C$29)*(1-Vehicles!$C$14)*Fuel_Specs!$B$11+Vehicles!$C$29*(1-Vehicles!$C$14)*Fuel_Specs!$B$13+Vehicles!$C$14*Fuel_Specs!$B$39)*(BioOil!$BQ317*BioOil!$BR$313+BioOil!$BR317))/1000000*HLOOKUP($G$10,$Y$3:$AC$4,2,FALSE)/HLOOKUP($I$11,$Y$7:$AC$8,2,FALSE) -> 131458.1555 | R17: =((1-Vehicles!$C$29)*(1-Vehicles!$C$14)*Fuel_Specs!$B$11/((1-Vehicles!$C$29)*(1-Vehicles!$C$14)*Fuel_Specs!$B$11+Vehicles!$C$29*(1-Vehicles!$C$14)*Fuel_Specs!$B$13+Vehicles!$C$14*Fuel_Specs!$B$39)*(Petroleum!$B221*Petroleum!$D$218+Petroleum!$D221)+Vehicles!$C$29*(1-Vehicles!$C$14)*Fuel_Specs!$B$13/((1-Vehicles!$C$29)*(1-Vehicles!$C$14)*Fuel_Specs!$B$11+Vehicles!$C$29*(1-Vehicles!$C$14)*Fuel_Specs!$B$13+Vehicles!$C$14*Fuel_Specs!$B$39)*(Petroleum!B221*Petroleum!$F$218+Petroleum!$F221)+Vehicles!$C$14*Fuel_Specs!$B$39/((1-Vehicles!$C$29)*(1-Vehicles!$C$14)*Fuel_Specs!$B$11+Vehicles!$C$29*(1-Vehicles!$C$14)*Fuel_Specs!$B$13+Vehicles!$C$14*Fuel_Specs!$B$39)*(Pyrolysis!$Z169*Pyrolysis!$AA$166+Pyrolysis!$AA169))/1000000*HLOOKUP($G$10,$Y$3:$AC$4,2,FALSE)/HLOOKUP($I$11,$Y$7:$AC$8,2,FALSE) -> 69493.96853 | S17: =AN17*(Vehicles!$C$21/Vehicles!$AN$53)/(Vehicles!$C$21*(1/Vehicles!$AN$53+1/Vehicles!$AO$53)+Vehicles!$C$22/Vehicles!$AP$53)+B17*(Vehicles!$C$21/Vehicles!$AO$53+Vehicles!$C$22/Vehicles!$AP$53)/(Vehicles!$C$21*(1/Vehicles!$AN$53+1/Vehicles!$AO$53)+Vehicles!$C$22/Vehicles!$AP$53) -> 211038.0806 | T17: =AN17*(Vehicles!$D$21/Vehicles!$AR$53)/(Vehicles!$D$21*(1/Vehicles!$AR$53+1/Vehicles!$AS$53)+Vehicles!$D$22/Vehicles!$AT$53)+C17*(Vehicles!$D$21/Vehicles!$AS$53+Vehicles!$D$22/Vehicles!$AT$53)/(Vehicles!$D$21*(1/Vehicles!$AR$53+1/Vehicles!$AS$53)+Vehicles!$D$22/Vehicles!$AT$53) -> 209385.0152 | U17: =AN17*(Vehicles!$F$21/Vehicles!$AZ$53)/(Vehicles!$F$21*(1/Vehicles!$AZ$53+1/Vehicles!$BA$53)+Vehicles!$F$22/Vehicles!$BB$53)+D17*(Vehicles!$F$21/Vehicles!$BA$53+Vehicles!$F$22/Vehicles!$BB$53)/(Vehicles!$F$21*(1/Vehicles!$AZ$53+1/Vehicles!$BA$53)+Vehicles!$F$22/Vehicles!$BB$53) -> 211035.0546 | V17: =AN17*(Vehicles!$G$21/Vehicles!$BD$53)/(Vehicles!$G$21*(1/Vehicles!$BD$53+1/Vehicles!$BE$53)+Vehicles!$G$22/Vehicles!$BF$53)+F17*(Vehicles!$G$21/Vehicles!$BE$53+Vehicles!$G$22/Vehicles!$BF$53)/(Vehicles!$G$21*(1/Vehicles!$BD$53+1/Vehicles!$BE$53)+Vehicles!$G$22/Vehicles!$BF$53) -> 218722.596 | W17: =AN17*(Vehicles!$H$21/Vehicles!$BH$53)/(Vehicles!$H$21*(1/Vehicles!$BH$53+1/Vehicles!$BI$53)+Vehicles!$H$22/Vehicles!$BJ$53)+G17*(Vehicles!$H$21/Vehicles!$BI$53+Vehicles!$H$22/Vehicles!$BJ$53)/(Vehicles!$H$21*(1/Vehicles!$BH$53+1/Vehicles!$BI$53)+Vehicles!$H$22/Vehicles!$BJ$53) -> 196271.4996 | X17: =AN17*(Vehicles!$I$21/Vehicles!$BL$53)/(Vehicles!$I$21*(1/Vehicles!$BL$53+1/Vehicles!$BM$53)+Vehicles!$I$22/Vehicles!$BN$53)+H17*(Vehicles!$I$21/Vehicles!$BM$53+Vehicles!$I$22/Vehicles!$BN$53)/(Vehicles!$I$21*(1/Vehicles!$BL$53+1/Vehicles!$BM$53)+Vehicles!$I$22/Vehicles!$BN$53) -> 203423.2416 | Y17: =AN17*(Vehicles!$J$21/Vehicles!$BP$53)/(Vehicles!$J$21*(1/Vehicles!$BP$53+1/Vehicles!$BQ$53)+Vehicles!$J$22/Vehicles!$BR$53)+K17*(Vehicles!$J$21/Vehicles!$BQ$53+Vehicles!$J$22/Vehicles!$BR$53)/(Vehicles!$J$21*(1/Vehicles!$BP$53+1/Vehicles!$BQ$53)+Vehicles!$J$22/Vehicles!$BR$53) -> 202718.6092 | Z17: =AN17*(Vehicles!$K$21/Vehicles!$BT$53)/(Vehicles!$K$21*(1/Vehicles!$BT$53+1/Vehicles!$BU$53)+Vehicles!$K$22/Vehicles!$BV$53)+O17*(Vehicles!$K$21/Vehicles!$BU$53+Vehicles!$K$22/Vehicles!$BV$53)/(Vehicles!$K$21*(1/Vehicles!$BT$53+1/Vehicles!$BU$53)+Vehicles!$K$22/Vehicles!$BV$53) -> 199912.0396 | AA17: =AN17*(Vehicles!$L$21/Vehicles!$BX$53)/(Vehicles!$L$21*(1/Vehicles!$BX$53+1/Vehicles!$BY$53)+Vehicles!$L$22/Vehicles!$BZ$53)+AO17*(Vehicles!$L$21/Vehicles!$BY$53+Vehicles!$L$22/Vehicles!$BZ$53)/(Vehicles!$L$21*(1/Vehicles!$BX$53+1/Vehicles!$BY$53)+Vehicles!$L$22/Vehicles!$BZ$53) -> 327065.0946 | AB17: =AN17*(Vehicles!$L$21/Vehicles!$BX$53)/(Vehicles!$L$21*(1/Vehicles!$BX$53+1/Vehicles!$BY$53)+Vehicles!$L$22/Vehicles!$CA$53)+AP17*(Vehicles!$L$21/Vehicles!$BY$53+Vehicles!$L$22/Vehicles!$CA$53)/(Vehicles!$L$21*(1/Vehicles!$BX$53+1/Vehicles!$BY$53)+Vehicles!$L$22/Vehicles!$CA$53) -> 659051.9177 | AC17: =('MeOH&FTD'!$X135*'MeOH&FTD'!$Y$132+'MeOH&FTD'!$Y135)/1000000*HLOOKUP($G$10,$Y$3:$AC$4,2,FALSE)/HLOOKUP($I$11,$Y$7:$AC$8,2,FALSE) -> 12446.51821 | AD17: =((1-Vehicles!$C$30)*(1-Vehicles!$C$11)*Fuel_Specs!$B$15/((1-Vehicles!$C$30)*(1-Vehicles!$C$11)*Fuel_Specs!$B$15+Vehicles!$C$30*(1-Vehicles!$C$11)*Fuel_Specs!$B$18+Vehicles!$C$11*Fuel_Specs!$B$35)*(Petroleum!B221*Petroleum!$J$218+Petroleum!$J221)+Vehicles!$C$30*(1-Vehicles!$C$11)*Fuel_Specs!$B$18/((1-Vehicles!$C$30)*(1-Vehicles!$C$11)*Fuel_Specs!$B$15+Vehicles!$C$30*(1-Vehicles!$C$11)*Fuel_Specs!$B$18+Vehicles!$C$11*Fuel_Specs!$B$35)*(Petroleum!B221*Petroleum!$K$218+Petroleum!$K221)+Vehicles!$C$11*Fuel_Specs!$B$35/((1-Vehicles!$C$30)*(1-Vehicles!$C$11)*Fuel_Specs!$B$15+Vehicles!$C$30*(1-Vehicles!$C$11)*Fuel_Specs!$B$18+Vehicles!$C$11*Fuel_Specs!$B$35)*('MeOH&FTD'!$AL135*'MeOH&FTD'!$AM$132+'MeOH&FTD'!$AM135))/1000000*HLOOKUP($G$10,$Y$3:$AC$4,2,FALSE)/HLOOKUP($I$11,$Y$7:$AC$8,2,FALSE) -> 10773.48163 | AE17: =((1-Vehicles!$C$31)*(1-Vehicles!$C$12)*Fuel_Specs!$B$15/((1-Vehicles!$C$31)*(1-Vehicles!$C$12)*Fuel_Specs!$B$15+Vehicles!$C$31*(1-Vehicles!$C$12)*Fuel_Specs!$B$18+Vehicles!$C$12*Fuel_Specs!$B$34)*(Petroleum!B221*Petroleum!$J$218+Petroleum!$J221)+Vehicles!$C$31*(1-Vehicles!$C$12)*Fuel_Specs!$B$18/((1-Vehicles!$C$31)*(1-Vehicles!$C$12)*Fuel_Specs!$B$15+Vehicles!$C$31*(1-Vehicles!$C$12)*Fuel_Specs!$B$18+Vehicles!$C$12*Fuel_Specs!$B$34)*(Petroleum!B221*Petroleum!$K$218+Petroleum!$K221)+Vehicles!$C$12*Fuel_Specs!$B$34/((1-Vehicles!$C$31)*(1-Vehicles!$C$12)*Fuel_Specs!$B$15+Vehicles!$C$31*(1-Vehicles!$C$12)*Fuel_Specs!$B$18+Vehicles!$C$12*Fuel_Specs!$B$34)*(BioOil!$Y317*BioOil!$Z$313+BioOil!$Z317))/1000000*HLOOKUP($G$10,$Y$3:$AC$4,2,FALSE)/HLOOKUP($I$11,$Y$7:$AC$8,2,FALSE) -> 33750.23448 | AF17: =((1-Vehicles!$C$32)*(1-Vehicles!$C$13)*Fuel_Specs!$B$15/((1-Vehicles!$C$32)*(1-Vehicles!$C$13)*Fuel_Specs!$B$15+Vehicles!$C$32*(1-Vehicles!$C$13)*Fuel_Specs!$B$18+Vehicles!$C$13*IF(Inputs!$E$499=1,IF(Inputs!$E$499=1,Fuel_Specs!$B$36,IF(Inputs!$E$499=3,Fuel_Specs!$B$38,Fuel_Specs!$B$37)),Fuel_Specs!$B$37))*(Petroleum!B221*Petroleum!$J$218+Petroleum!$J221)+Vehicles!$C$32*(1-Vehicles!$C$13)*Fuel_Specs!$B$18/((1-Vehicles!$C$32)*(1-Vehicles!$C$13)*Fuel_Specs!$B$15+Vehicles!$C$32*(1-Vehicles!$C$13)*Fuel_Specs!$B$18+Vehicles!$C$13*IF(Inputs!$E$499=1,IF(Inputs!$E$499=1,Fuel_Specs!$B$36,IF(Inputs!$E$499=3,Fuel_Specs!$B$38,Fuel_Specs!$B$37)),Fuel_Specs!$B$37))*(Petroleum!B221*Petroleum!$K$218+Petroleum!$K221)+Vehicles!$C$13*IF(Inputs!$E$499=1,IF(Inputs!$E$499=1,Fuel_Specs!$B$36,IF(Inputs!$E$499=3,Fuel_Specs!$B$38,Fuel_Specs!$B$37)),Fuel_Specs!$B$37)/((1-Vehicles!$C$32)*(1-Vehicles!$C$13)*Fuel_Specs!$B$15+Vehicles!$C$32*(1-Vehicles!$C$13)*Fuel_Specs!$B$18+Vehicles!$C$13*IF(Inputs!$E$499=1,IF(Inputs!$E$499=1,Fuel_Specs!$B$36,IF(Inputs!$E$499=3,Fuel_Specs!$B$38,Fuel_Specs!$B$37)),Fuel_Specs!$B$37))*(BioOil!$BE317*BioOil!$BF$313+BioOil!$BF317))/1000000*HLOOKUP($G$10,$Y$3:$AC$4,2,FALSE)/HLOOKUP($I$11,$Y$7:$AC$8,2,FALSE) -> 17100.07544 | AG17: =((1-Vehicles!$C$32)*(1-Vehicles!$C$13)*Fuel_Specs!$B$15/((1-Vehicles!$C$32)*(1-Vehicles!$C$13)*Fuel_Specs!$B$15+Vehicles!$C$32*(1-Vehicles!$C$13)*Fuel_Specs!$B$18+Vehicles!$C$13*IF(Inputs!$E$499=1,Fuel_Specs!$B$36,Fuel_Specs!$B$37))*(Petroleum!B221*Petroleum!$J$218+Petroleum!$J221)+Vehicles!$C$32*(1-Vehicles!$C$13)*Fuel_Specs!$B$18/((1-Vehicles!$C$32)*(1-Vehicles!$C$13)*Fuel_Specs!$B$15+Vehicles!$C$32*(1-Vehicles!$C$13)*Fuel_Specs!$B$18+Vehicles!$C$13*IF(Inputs!$E$499=1,Fuel_Specs!$B$36,Fuel_Specs!$B$37))*(Petroleum!B221*Petroleum!$K$218+Petroleum!$K221)+Vehicles!$C$13*IF(Inputs!$E$499=1,Fuel_Specs!$B$36,Fuel_Specs!$B$37)/((1-Vehicles!$C$32)*(1-Vehicles!$C$13)*Fuel_Specs!$B$15+Vehicles!$C$32*(1-Vehicles!$C$13)*Fuel_Specs!$B$18+Vehicles!$C$13*IF(Inputs!$E$499=1,Fuel_Specs!$B$36,Fuel_Specs!$B$37))*(Pyrolysis!$AB169*Pyrolysis!$AC$166+Pyrolysis!$AC169))/1000000*HLOOKUP($G$10,$Y$3:$AC$4,2,FALSE)/HLOOKUP($I$11,$Y$7:$AC$8,2,FALSE) -> 65177.56121 | AH17: =(((1-Vehicles!$C$33)*(1-Vehicles!$C$15-Vehicles!$C$16)*Fuel_Specs!$B$15*(Petroleum!B221*Petroleum!$J$218+Petroleum!$J221)+Vehicles!$C$33*(1-Vehicles!$C$15-Vehicles!$C$16)*Fuel_Specs!$B$18*(Petroleum!B221*Petroleum!$K$218+Petroleum!$K221)+Vehicles!$C$15*Fuel_Specs!$B$26*(EtOH!BE404*EtOH!$BF$401+EtOH!$BF404)+Vehicles!$C$16*Fuel_Specs!$B$29*('E-D Additives'!$B51*'E-D Additives'!$B$48))/((1-Vehicles!$C$33)*(1-Vehicles!$C$15-Vehicles!$C$16)*Fuel_Specs!$B$15+Vehicles!$C$33*(1-Vehicles!$C$15-Vehicles!$C$16)*Fuel_Specs!$B$18+Vehicles!$C$15*Fuel_Specs!$B$26+Vehicles!$C$16*Fuel_Specs!$B$29))/1000000*HLOOKUP($G$10,$Y$3:$AC$4,2,FALSE)/HLOOKUP($I$11,$Y$7:$AC$8,2,FALSE) -> 23642.27817 | AI17: =AN17*(Vehicles!$M$21/Vehicles!$CI$53)/(Vehicles!$M$21*(1/Vehicles!$CI$53+1/Vehicles!$CJ$53)+Vehicles!$M$22/Vehicles!$CK$53)+E17*(Vehicles!$M$21/Vehicles!$CJ$53+Vehicles!$M$22/Vehicles!$CK$53)/(Vehicles!$M$21*(1/Vehicles!$CI$53+1/Vehicles!$CJ$53)+Vehicles!$M$22/Vehicles!$CK$53) -> 217336.0456 | AJ17: =AN17*(Vehicles!$N$21/Vehicles!$CM$53)/(Vehicles!$N$21*(1/Vehicles!$CM$53+1/Vehicles!$CN$53)+Vehicles!$N$22/Vehicles!$CO$53)+AC17*(Vehicles!$N$21/Vehicles!$CN$53+Vehicles!$N$22/Vehicles!$CO$53)/(Vehicles!$N$21*(1/Vehicles!$CM$53+1/Vehicles!$CN$53)+Vehicles!$N$22/Vehicles!$CO$53) -> 209183.9248 | AK17: =AN17*(Vehicles!$O$21/Vehicles!$CQ$53)/(Vehicles!$O$21*(1/Vehicles!$CQ$53+1/Vehicles!$CR$53)+Vehicles!$O$22/Vehicles!$CS$53)+AD17*(Vehicles!$O$21/Vehicles!$CR$53+Vehicles!$O$22/Vehicles!$CS$53)/(Vehicles!$O$21*(1/Vehicles!$CQ$53+1/Vehicles!$CR$53)+Vehicles!$O$22/Vehicles!$CS$53) -> 207913.2 | AL17: =AN17*(Vehicles!$P$21/Vehicles!$CU$53)/(Vehicles!$P$21*(1/Vehicles!$CU$53+1/Vehicles!$CV$53)+Vehicles!$P$22/Vehicles!$CW$53)+AE17*(Vehicles!$P$21/Vehicles!$CV$53+Vehicles!$P$22/Vehicles!$CW$53)/(Vehicles!$P$21*(1/Vehicles!$CU$53+1/Vehicles!$CV$53)+Vehicles!$P$22/Vehicles!$CW$53) -> 225364.7792 | AM17: =AN17*(Vehicles!$R$21/Vehicles!$DC$53)/(Vehicles!$R$21*(1/Vehicles!$DC$53+1/Vehicles!$DD$53)+Vehicles!$R$22/Vehicles!$DE$53)+AH17*(Vehicles!$R$21/Vehicles!$DD$53+Vehicles!$R$22/Vehicles!$DE$53)/(Vehicles!$R$21*(1/Vehicles!$DC$53+1/Vehicles!$DD$53)+Vehicles!$R$22/Vehicles!$DE$53) -> 217687.4628 | AN17: =(Electric!$G173+Electric!$F173-1000000*(Electric!$F173+Electric!$G173)/(Electric!$F$171+Electric!$G$171))/1000000*HLOOKUP($G$10,$Y$3:$AC$4,2,FALSE)/HLOOKUP($I$11,$Y$7:$AC$8,2,FALSE) -> 830590.3498 | AO17: =((Hydrogen!$Z150*Hydrogen!$AA$147+Hydrogen!$AA150)-1000000*(Hydrogen!$K$7+Hydrogen!$C$7+Hydrogen!$D$7+Hydrogen!$E$7))/1000000*HLOOKUP($G$10,$Y$3:$AC$4,2,FALSE)/HLOOKUP($I$11,$Y$7:$AC$8,2,FALSE) -> 162327.9241 | AP17: =((Hydrogen!$AX150*Hydrogen!$AY$147+Hydrogen!$AY150)-1000000*(Hydrogen!$K$8+Hydrogen!$C$8+Hydrogen!$D$8+Hydrogen!$E$8))/1000000*HLOOKUP($G$10,$Y$3:$AC$4,2,FALSE)/HLOOKUP($I$11,$Y$7:$AC$8,2,FALSE) -> 602930.0933 | AQ17: =AN17*(Vehicles!$S$21/Vehicles!$DS$53)/(Vehicles!$S$21*(1/Vehicles!$DS$53+1/Vehicles!$DT$53)+Vehicles!$S$22/Vehicles!$DU$53)+AO17*(Vehicles!$S$21/Vehicles!$DT$53+Vehicles!$S$22/Vehicles!$DU$53)/(Vehicles!$S$21*(1/Vehicles!$DS$53+1/Vehicles!$DT$53)+Vehicles!$S$22/Vehicles!$DU$53) -> 366328.8644 | AR17: =AN17*(Vehicles!$S$21/Vehicles!$DS$53)/(Vehicles!$S$21*(1/Vehicles!$DS$53+1/Vehicles!$DT$53)+Vehicles!$S$22/Vehicles!$DU$53)+AP17*(Vehicles!$S$21/Vehicles!$DT$53+Vehicles!$S$22/Vehicles!$DU$53)/(Vehicles!$S$21*(1/Vehicles!$DS$53+1/Vehicles!$DT$53)+Vehicles!$S$22/Vehicles!$DU$53) -> 672428.0998
A18: Natural Gas | B18: =B16-B17-B19 -> 138912.78 | C18: 221380.9281 | D18: 138892.2965 | E18: 161446.0953 | F18: 132552.4051 | G18: 256859.3154 | H18: 114934.6209 | I18: 677223.0248 | J18: 452997.8148 | K18: 488715.1111 | L18: 571162.4846 | M18: 307936.575 | N18: 610217.8527 | O18: 307936.575 | P18: 364391.537 | Q18: 50745.31674 | R18: 266465.5988 | S18: 194816.4417 | T18: 258165.0565 | U18: 194800.7072 | V18: 189930.6653 | W18: 285418.0837 | X18: 176397.4134 | Y18: 463520.1002 | Z18: 323821.5015 | AA18: 563119.9714 | AB18: 740725.0897 | AC18: 518421.7056 | AD18: 678810.3221 | AE18: 158434.6098 | AF18: 49224.44913 | AG18: =((1-Vehicles!$C$32)*(1-Vehicles!$C$13)*Fuel_Specs!$B$15/((1-Vehicles!$C$32)*(1-Vehicles!$C$13)*Fuel_Specs!$B$15+Vehicles!$C$32*(1-Vehicles!$C$13)*Fuel_Specs!$B$18+Vehicles!$C$13*IF(Inputs!$E$499=1,Fuel_Specs!$B$36,Fuel_Specs!$B$37))*(Petroleum!B222*Petroleum!$J$218+Petroleum!$J222)+Vehicles!$C$32*(1-Vehicles!$C$13)*Fuel_Specs!$B$18/((1-Vehicles!$C$32)*(1-Vehicles!$C$13)*Fuel_Specs!$B$15+Vehicles!$C$32*(1-Vehicles!$C$13)*Fuel_Specs!$B$18+Vehicles!$C$13*IF(Inputs!$E$499=1,Fuel_Specs!$B$36,Fuel_Specs!$B$37))*(Petroleum!B222*Petroleum!$K$218+Petroleum!$K222)+Vehicles!$C$13*IF(Inputs!$E$499=1,Fuel_Specs!$B$36,Fuel_Specs!$B$37)/((1-Vehicles!$C$32)*(1-Vehicles!$C$13)*Fuel_Specs!$B$15+Vehicles!$C$32*(1-Vehicles!$C$13)*Fuel_Specs!$B$18+Vehicles!$C$13*IF(Inputs!$E$499=1,Fuel_Specs!$B$36,Fuel_Specs!$B$37))*(Pyrolysis!$AB170*Pyrolysis!$AC$166+Pyrolysis!$AC170))/1000000*HLOOKUP($G$10,$Y$3:$AC$4,2,FALSE)/HLOOKUP($I$11,$Y$7:$AC$8,2,FALSE) -> 281080.682 | AH18: 175570.6488 | AI18: 214011.3297 | AJ18: 485145.7309 | AK18: 606966.0183 | AL18: 211724.0101 | AM18: 224739.3802 | AN18: 380041.6488 | AO18: 623017.2745 | AP18: 858729.0406 | AQ18: 548843.9345 | AR18: 712599.8041
A19: Petroleum | B19: =(Inputs!$E$1056*(Petroleum!$B223*Petroleum!$F$218+Petroleum!$F223)+(1-Inputs!$E$1056)*(Petroleum!$B223*Petroleum!$D$218+Petroleum!$D223))/1000000*HLOOKUP($G$10,$Y$3:$AC$4,2,FALSE)/HLOOKUP($I$11,$Y$7:$AC$8,2,FALSE) -> 81454.50935 | C19: =(Petroleum!$C223*Petroleum!$G$218+Petroleum!$G223)/1000000*HLOOKUP($G$10,$Y$3:$AC$4,2,FALSE)/HLOOKUP($I$11,$Y$7:$AC$8,2,FALSE) -> 57559.00798 | D19: =((1-Vehicles!$C$26)*(1-Vehicles!$C$7)*Fuel_Specs!$B$11/((1-Vehicles!$C$26)*(1-Vehicles!$C$7)*Fuel_Specs!$B$11+Vehicles!$C$26*(1-Vehicles!$C$7)*Fuel_Specs!$B$13+Vehicles!$C$7*Fuel_Specs!$B$26)*(Petroleum!$B223*Petroleum!$D$218+Petroleum!$D223)+Vehicles!$C$26*(1-Vehicles!$C$7)*Fuel_Specs!$B$13/((1-Vehicles!$C$26)*(1-Vehicles!$C$7)*Fuel_Specs!$B$11+Vehicles!$C$26*(1-Vehicles!$C$7)*Fuel_Specs!$B$13+Vehicles!$C$7*Fuel_Specs!$B$26)*(Petroleum!B223*Petroleum!$F$218+Petroleum!$F223)+Vehicles!$C$7*Fuel_Specs!$B$26/((1-Vehicles!$C$26)*(1-Vehicles!$C$7)*Fuel_Specs!$B$11+Vehicles!$C$26*(1-Vehicles!$C$7)*Fuel_Specs!$B$13+Vehicles!$C$7*Fuel_Specs!$B$26)*(EtOH!BE406*EtOH!$BF$401+EtOH!$BF406))/1000000*HLOOKUP($G$10,$Y$3:$AC$4,2,FALSE)/HLOOKUP($I$11,$Y$7:$AC$8,2,FALSE) -> 81273.61452 | E19: =(Inputs!$E$88*(IF(Inputs!F$92=1,Petroleum!$B223,Petroleum!$C223)*Petroleum!$K$218+Petroleum!$K223)+(1-Inputs!$E$88)*(IF(Inputs!F$91=1,Petroleum!$B223,Petroleum!$C223)*Petroleum!$J$218+Petroleum!$J223))/1000000*HLOOKUP($G$10,$Y$3:$AC$4,2,FALSE)/HLOOKUP($I$11,$Y$7:$AC$8,2,FALSE) -> 69018.82736 | F19: =(NG!$H85*NG!$I$80+NG!$I85)/1000000*HLOOKUP($G$10,$Y$3:$AC$4,2,FALSE)/HLOOKUP($I$11,$Y$7:$AC$8,2,FALSE) -> 6084.502254 | G19: =(NG!$P85*NG!$Q$80+NG!$Q85)/1000000*HLOOKUP($G$10,$Y$3:$AC$4,2,FALSE)/HLOOKUP($I$11,$Y$7:$AC$8,2,FALSE) -> 9249.476201 | H19: =(NG!$V85*NG!$W$80+NG!$W85)/1000000*HLOOKUP($G$10,$Y$3:$AC$4,2,FALSE)/HLOOKUP($I$11,$Y$7:$AC$8,2,FALSE) -> 35856.31203 | I19: =('MeOH&FTD'!AV137*'MeOH&FTD'!AW$132+'MeOH&FTD'!AW137)/1000000*HLOOKUP($G$10,$Y$3:$AC$4,2,FALSE)/HLOOKUP($I$11,$Y$7:$AC$8,2,FALSE) -> 10591.57791 | J19: =((1-Vehicles!$C$25)*(1-Vehicles!$C$5)*Fuel_Specs!$B$11/((1-Vehicles!$C$25)*(1-Vehicles!$C$5)*Fuel_Specs!$B$11+Vehicles!$C$25*(1-Vehicles!$C$5)*Fuel_Specs!$B$13+Vehicles!$C$5*Fuel_Specs!$B$25)*(Petroleum!$B223*Petroleum!$D$218+Petroleum!$D223)+Vehicles!$C$25*(1-Vehicles!$C$5)*Fuel_Specs!$B$13/((1-Vehicles!$C$25)*(1-Vehicles!$C$5)*Fuel_Specs!$B$11+Vehicles!$C$25*(1-Vehicles!$C$5)*Fuel_Specs!$B$13+Vehicles!$C$5*Fuel_Specs!$B$25)*(Petroleum!B223*Petroleum!$F$218+Petroleum!$F223)+Vehicles!$C$5*Fuel_Specs!$B$25/((1-Vehicles!$C$25)*(1-Vehicles!$C$5)*Fuel_Specs!$B$11+Vehicles!$C$25*(1-Vehicles!$C$5)*Fuel_Specs!$B$13+Vehicles!$C$5*Fuel_Specs!$B$25)*('MeOH&FTD'!$L137*'MeOH&FTD'!$M$132+'MeOH&FTD'!$M137))/1000000*HLOOKUP($G$10,$Y$3:$AC$4,2,FALSE)/HLOOKUP($I$11,$Y$7:$AC$8,2,FALSE) -> 36844.49526 | K19: =((1-Vehicles!$C$25)*(1-Vehicles!$C$6)*Fuel_Specs!$B$11/((1-Vehicles!$C$25)*(1-Vehicles!$C$6)*Fuel_Specs!$B$11+Vehicles!$C$25*(1-Vehicles!$C$6)*Fuel_Specs!$B$13+Vehicles!$C$6*Fuel_Specs!$B$25)*(Petroleum!$B223*Petroleum!$D$218+Petroleum!$D223)+Vehicles!$C$25*(1-Vehicles!$C$6)*Fuel_Specs!$B$13/((1-Vehicles!$C$25)*(1-Vehicles!$C$6)*Fuel_Specs!$B$11+Vehicles!$C$25*(1-Vehicles!$C$6)*Fuel_Specs!$B$13+Vehicles!$C$6*Fuel_Specs!$B$25)*(Petroleum!B223*Petroleum!$F$218+Petroleum!$F223)+Vehicles!$C$6*Fuel_Specs!$B$25/((1-Vehicles!$C$25)*(1-Vehicles!$C$6)*Fuel_Specs!$B$11+Vehicles!$C$25*(1-Vehicles!$C$6)*Fuel_Specs!$B$13+Vehicles!$C$6*Fuel_Specs!$B$25)*('MeOH&FTD'!$L137*'MeOH&FTD'!$M$132+'MeOH&FTD'!$M137))/1000000*HLOOKUP($G$10,$Y$3:$AC$4,2,FALSE)/HLOOKUP($I$11,$Y$7:$AC$8,2,FALSE) -> 31909.03958 | L19: =('MeOH&FTD'!$L137*'MeOH&FTD'!$M$132+'MeOH&FTD'!$M137)/1000000*HLOOKUP($G$10,$Y$3:$AC$4,2,FALSE)/HLOOKUP($I$11,$Y$7:$AC$8,2,FALSE) -> 20516.36989 | M19: =((1-Vehicles!$C$27)*(1-Vehicles!$C$8)*Fuel_Specs!$B$11/((1-Vehicles!$C$27)*(1-Vehicles!$C$8)*Fuel_Specs!$B$11+Vehicles!$C$27*(1-Vehicles!$C$8)*Fuel_Specs!$B$13+Vehicles!$C$8*Fuel_Specs!$B$26)*(Petroleum!$B223*Petroleum!$D$218+Petroleum!$D223)+Vehicles!$C$27*(1-Vehicles!$C$8)*Fuel_Specs!$B$13/((1-Vehicles!$C$27)*(1-Vehicles!$C$8)*Fuel_Specs!$B$11+Vehicles!$C$27*(1-Vehicles!$C$8)*Fuel_Specs!$B$13+Vehicles!$C$8*Fuel_Specs!$B$26)*(Petroleum!B223*Petroleum!$F$218+Petroleum!$F223)+Vehicles!$C$8*Fuel_Specs!$B$26/((1-Vehicles!$C$27)*(1-Vehicles!$C$8)*Fuel_Specs!$B$11+Vehicles!$C$27*(1-Vehicles!$C$8)*Fuel_Specs!$B$13+Vehicles!$C$8*Fuel_Specs!$B$26)*(EtOH!BE406*EtOH!$BF$401+EtOH!$BF406))/1000000*HLOOKUP($G$10,$Y$3:$AC$4,2,FALSE)/HLOOKUP($I$11,$Y$7:$AC$8,2,FALSE) -> 68678.12649 | N19: =((1-Vehicles!$C$28)*(1-Vehicles!$C$10)*Fuel_Specs!$B$11/((1-Vehicles!$C$28)*(1-Vehicles!$C$10)*Fuel_Specs!$B$11+Vehicles!$C$28*(1-Vehicles!$C$10)*Fuel_Specs!$B$13+Vehicles!$C$10*Fuel_Specs!$B$27)*(Petroleum!$B223*Petroleum!$D$218+Petroleum!$D223)+Vehicles!$C$28*(1-Vehicles!$C$10)*Fuel_Specs!$B$13/((1-Vehicles!$C$28)*(1-Vehicles!$C$10)*Fuel_Specs!$B$11+Vehicles!$C$28*(1-Vehicles!$C$10)*Fuel_Specs!$B$13+Vehicles!$C$10*Fuel_Specs!$B$27)*(Petroleum!B223*Petroleum!$F$218+Petroleum!$F223)+Vehicles!$C$10*Fuel_Specs!$B$27/((1-Vehicles!$C$28)*(1-Vehicles!$C$10)*Fuel_Specs!$B$11+Vehicles!$C$28*(1-Vehicles!$C$10)*Fuel_Specs!$B$13+Vehicles!$C$10*Fuel_Specs!$B$27)*(EtOH!$BI406*EtOH!$BJ$401+EtOH!$BJ406))/1000000*HLOOKUP($G$10,$Y$3:$AC$4,2,FALSE)/HLOOKUP($I$11,$Y$7:$AC$8,2,FALSE) -> 61499.97597 | O19: =((1-Vehicles!$C$27)*(1-Vehicles!$C$9)*Fuel_Specs!$B$11/((1-Vehicles!$C$27)*(1-Vehicles!$C$9)*Fuel_Specs!$B$11+Vehicles!$C$27*(1-Vehicles!$C$9)*Fuel_Specs!$B$13+Vehicles!$C$9*Fuel_Specs!$B$26)*(Petroleum!$B223*Petroleum!$D$218+Petroleum!$D223)+Vehicles!$C$27*(1-Vehicles!$C$9)*Fuel_Specs!$B$13/((1-Vehicles!$C$27)*(1-Vehicles!$C$9)*Fuel_Specs!$B$11+Vehicles!$C$27*(1-Vehicles!$C$9)*Fuel_Specs!$B$13+Vehicles!$C$9*Fuel_Specs!$B$26)*(Petroleum!B223*Petroleum!$F$218+Petroleum!$F223)+Vehicles!$C$9*Fuel_Specs!$B$26/((1-Vehicles!$C$27)*(1-Vehicles!$C$9)*Fuel_Specs!$B$11+Vehicles!$C$27*(1-Vehicles!$C$9)*Fuel_Specs!$B$13+Vehicles!$C$9*Fuel_Specs!$B$26)*(EtOH!BE406*EtOH!$BF$401+EtOH!$BF406))/1000000*HLOOKUP($G$10,$Y$3:$AC$4,2,FALSE)/HLOOKUP($I$11,$Y$7:$AC$8,2,FALSE) -> 68678.12649 | P19: =(EtOH!$BE406*EtOH!$BF$401+EtOH!$BF406)/1000000*HLOOKUP($G$10,$Y$3:$AC$4,2,FALSE)/HLOOKUP($I$11,$Y$7:$AC$8,2,FALSE) -> 64471.66766 | Q19: =((1-Vehicles!$C$29)*(1-Vehicles!$C$14)*Fuel_Specs!$B$11/((1-Vehicles!$C$29)*(1-Vehicles!$C$14)*Fuel_Specs!$B$11+Vehicles!$C$29*(1-Vehicles!$C$14)*Fuel_Specs!$B$13+Vehicles!$C$14*Fuel_Specs!$B$39)*(Petroleum!$B223*Petroleum!$D$218+Petroleum!$D223)+Vehicles!$C$29*(1-Vehicles!$C$14)*Fuel_Specs!$B$13/((1-Vehicles!$C$29)*(1-Vehicles!$C$14)*Fuel_Specs!$B$11+Vehicles!$C$29*(1-Vehicles!$C$14)*Fuel_Specs!$B$13+Vehicles!$C$14*Fuel_Specs!$B$39)*(Petroleum!B223*Petroleum!$F$218+Petroleum!$F223)+Vehicles!$C$14*Fuel_Specs!$B$39/((1-Vehicles!$C$29)*(1-Vehicles!$C$14)*Fuel_Specs!$B$11+Vehicles!$C$29*(1-Vehicles!$C$14)*Fuel_Specs!$B$13+Vehicles!$C$14*Fuel_Specs!$B$39)*(BioOil!$BQ319*BioOil!$BR$313+BioOil!$BR319))/1000000*HLOOKUP($G$10,$Y$3:$AC$4,2,FALSE)/HLOOKUP($I$11,$Y$7:$AC$8,2,FALSE) -> 85980.27962 | R19: =((1-Vehicles!$C$29)*(1-Vehicles!$C$14)*Fuel_Specs!$B$11/((1-Vehicles!$C$29)*(1-Vehicles!$C$14)*Fuel_Specs!$B$11+Vehicles!$C$29*(1-Vehicles!$C$14)*Fuel_Specs!$B$13+Vehicles!$C$14*Fuel_Specs!$B$39)*(Petroleum!$B223*Petroleum!$D$218+Petroleum!$D223)+Vehicles!$C$29*(1-Vehicles!$C$14)*Fuel_Specs!$B$13/((1-Vehicles!$C$29)*(1-Vehicles!$C$14)*Fuel_Specs!$B$11+Vehicles!$C$29*(1-Vehicles!$C$14)*Fuel_Specs!$B$13+Vehicles!$C$14*Fuel_Specs!$B$39)*(Petroleum!B223*Petroleum!$F$218+Petroleum!$F223)+Vehicles!$C$14*Fuel_Specs!$B$39/((1-Vehicles!$C$29)*(1-Vehicles!$C$14)*Fuel_Specs!$B$11+Vehicles!$C$29*(1-Vehicles!$C$14)*Fuel_Specs!$B$13+Vehicles!$C$14*Fuel_Specs!$B$39)*(Pyrolysis!$Z171*Pyrolysis!$AA$166+Pyrolysis!$AA171))/1000000*HLOOKUP($G$10,$Y$3:$AC$4,2,FALSE)/HLOOKUP($I$11,$Y$7:$AC$8,2,FALSE) -> 92094.37908 | S19: =AN19*(Vehicles!$C$21/Vehicles!$AN$53)/(Vehicles!$C$21*(1/Vehicles!$AN$53+1/Vehicles!$AO$53)+Vehicles!$C$22/Vehicles!$AP$53)+B19*(Vehicles!$C$21/Vehicles!$AO$53+Vehicles!$C$22/Vehicles!$AP$53)/(Vehicles!$C$21*(1/Vehicles!$AN$53+1/Vehicles!$AO$53)+Vehicles!$C$22/Vehicles!$AP$53) -> 73016.8311 | T19: =AN19*(Vehicles!$D$21/Vehicles!$AR$53)/(Vehicles!$D$21*(1/Vehicles!$AR$53+1/Vehicles!$AS$53)+Vehicles!$D$22/Vehicles!$AT$53)+C19*(Vehicles!$D$21/Vehicles!$AS$53+Vehicles!$D$22/Vehicles!$AT$53)/(Vehicles!$D$21*(1/Vehicles!$AR$53+1/Vehicles!$AS$53)+Vehicles!$D$22/Vehicles!$AT$53) -> 54661.29694 | U19: =AN19*(Vehicles!$F$21/Vehicles!$AZ$53)/(Vehicles!$F$21*(1/Vehicles!$AZ$53+1/Vehicles!$BA$53)+Vehicles!$F$22/Vehicles!$BB$53)+D19*(Vehicles!$F$21/Vehicles!$BA$53+Vehicles!$F$22/Vehicles!$BB$53)/(Vehicles!$F$21*(1/Vehicles!$AZ$53+1/Vehicles!$BA$53)+Vehicles!$F$22/Vehicles!$BB$53) -> 72877.87518 | V19: =AN19*(Vehicles!$G$21/Vehicles!$BD$53)/(Vehicles!$G$21*(1/Vehicles!$BD$53+1/Vehicles!$BE$53)+Vehicles!$G$22/Vehicles!$BF$53)+F19*(Vehicles!$G$21/Vehicles!$BE$53+Vehicles!$G$22/Vehicles!$BF$53)/(Vehicles!$G$21*(1/Vehicles!$BD$53+1/Vehicles!$BE$53)+Vehicles!$G$22/Vehicles!$BF$53) -> 15120.71422 | W19: =AN19*(Vehicles!$H$21/Vehicles!$BH$53)/(Vehicles!$H$21*(1/Vehicles!$BH$53+1/Vehicles!$BI$53)+Vehicles!$H$22/Vehicles!$BJ$53)+G19*(Vehicles!$H$21/Vehicles!$BI$53+Vehicles!$H$22/Vehicles!$BJ$53)/(Vehicles!$H$21*(1/Vehicles!$BH$53+1/Vehicles!$BI$53)+Vehicles!$H$22/Vehicles!$BJ$53) -> 17551.91608 | X19: =AN19*(Vehicles!$I$21/Vehicles!$BL$53)/(Vehicles!$I$21*(1/Vehicles!$BL$53+1/Vehicles!$BM$53)+Vehicles!$I$22/Vehicles!$BN$53)+H19*(Vehicles!$I$21/Vehicles!$BM$53+Vehicles!$I$22/Vehicles!$BN$53)/(Vehicles!$I$21*(1/Vehicles!$BL$53+1/Vehicles!$BM$53)+Vehicles!$I$22/Vehicles!$BN$53) -> 37990.18505 | Y19: =AN19*(Vehicles!$J$21/Vehicles!$BP$53)/(Vehicles!$J$21*(1/Vehicles!$BP$53+1/Vehicles!$BQ$53)+Vehicles!$J$22/Vehicles!$BR$53)+K19*(Vehicles!$J$21/Vehicles!$BQ$53+Vehicles!$J$22/Vehicles!$BR$53)/(Vehicles!$J$21*(1/Vehicles!$BP$53+1/Vehicles!$BQ$53)+Vehicles!$J$22/Vehicles!$BR$53) -> 34958.05388 | Z19: =AN19*(Vehicles!$K$21/Vehicles!$BT$53)/(Vehicles!$K$21*(1/Vehicles!$BT$53+1/Vehicles!$BU$53)+Vehicles!$K$22/Vehicles!$BV$53)+O19*(Vehicles!$K$21/Vehicles!$BU$53+Vehicles!$K$22/Vehicles!$BV$53)/(Vehicles!$K$21*(1/Vehicles!$BT$53+1/Vehicles!$BU$53)+Vehicles!$K$22/Vehicles!$BV$53) -> 63475.06769 | AA19: =AN19*(Vehicles!$L$21/Vehicles!$BX$53)/(Vehicles!$L$21*(1/Vehicles!$BX$53+1/Vehicles!$BY$53)+Vehicles!$L$22/Vehicles!$BZ$53)+AO19*(Vehicles!$L$21/Vehicles!$BY$53+Vehicles!$L$22/Vehicles!$BZ$53)/(Vehicles!$L$21*(1/Vehicles!$BX$53+1/Vehicles!$BY$53)+Vehicles!$L$22/Vehicles!$BZ$53) -> 22170.34897 | AB19: =AN19*(Vehicles!$L$21/Vehicles!$BX$53)/(Vehicles!$L$21*(1/Vehicles!$BX$53+1/Vehicles!$BY$53)+Vehicles!$L$22/Vehicles!$CA$53)+AP19*(Vehicles!$L$21/Vehicles!$BY$53+Vehicles!$L$22/Vehicles!$CA$53)/(Vehicles!$L$21*(1/Vehicles!$BX$53+1/Vehicles!$BY$53)+Vehicles!$L$22/Vehicles!$CA$53) -> 45511.97303 | AC19: =('MeOH&FTD'!$X137*'MeOH&FTD'!$Y$132+'MeOH&FTD'!$Y137)/1000000*HLOOKUP($G$10,$Y$3:$AC$4,2,FALSE)/HLOOKUP($I$11,$Y$7:$AC$8,2,FALSE) -> 14012.04365 | AD19: =((1-Vehicles!$C$30)*(1-Vehicles!$C$11)*Fuel_Specs!$B$15/((1-Vehicles!$C$30)*(1-Vehicles!$C$11)*Fuel_Specs!$B$15+Vehicles!$C$30*(1-Vehicles!$C$11)*Fuel_Specs!$B$18+Vehicles!$C$11*Fuel_Specs!$B$35)*(Petroleum!B223*Petroleum!$J$218+Petroleum!$J223)+Vehicles!$C$30*(1-Vehicles!$C$11)*Fuel_Specs!$B$18/((1-Vehicles!$C$30)*(1-Vehicles!$C$11)*Fuel_Specs!$B$15+Vehicles!$C$30*(1-Vehicles!$C$11)*Fuel_Specs!$B$18+Vehicles!$C$11*Fuel_Specs!$B$35)*(Petroleum!B223*Petroleum!$K$218+Petroleum!$K223)+Vehicles!$C$11*Fuel_Specs!$B$35/((1-Vehicles!$C$30)*(1-Vehicles!$C$11)*Fuel_Specs!$B$15+Vehicles!$C$30*(1-Vehicles!$C$11)*Fuel_Specs!$B$18+Vehicles!$C$11*Fuel_Specs!$B$35)*('MeOH&FTD'!$AL137*'MeOH&FTD'!$AM$132+'MeOH&FTD'!$AM137))/1000000*HLOOKUP($G$10,$Y$3:$AC$4,2,FALSE)/HLOOKUP($I$11,$Y$7:$AC$8,2,FALSE) -> 10691.30983 | AE19: =((1-Vehicles!$C$31)*(1-Vehicles!$C$12)*Fuel_Specs!$B$15/((1-Vehicles!$C$31)*(1-Vehicles!$C$12)*Fuel_Specs!$B$15+Vehicles!$C$31*(1-Vehicles!$C$12)*Fuel_Specs!$B$18+Vehicles!$C$12*Fuel_Specs!$B$34)*(Petroleum!B223*Petroleum!$J$218+Petroleum!$J223)+Vehicles!$C$31*(1-Vehicles!$C$12)*Fuel_Specs!$B$18/((1-Vehicles!$C$31)*(1-Vehicles!$C$12)*Fuel_Specs!$B$15+Vehicles!$C$31*(1-Vehicles!$C$12)*Fuel_Specs!$B$18+Vehicles!$C$12*Fuel_Specs!$B$34)*(Petroleum!B223*Petroleum!$K$218+Petroleum!$K223)+Vehicles!$C$12*Fuel_Specs!$B$34/((1-Vehicles!$C$31)*(1-Vehicles!$C$12)*Fuel_Specs!$B$15+Vehicles!$C$31*(1-Vehicles!$C$12)*Fuel_Specs!$B$18+Vehicles!$C$12*Fuel_Specs!$B$34)*(BioOil!$Y319*BioOil!$Z$313+BioOil!$Z319))/1000000*HLOOKUP($G$10,$Y$3:$AC$4,2,FALSE)/HLOOKUP($I$11,$Y$7:$AC$8,2,FALSE) -> 71071.6188 | AF19: =((1-Vehicles!$C$32)*(1-Vehicles!$C$13)*Fuel_Specs!$B$15/((1-Vehicles!$C$32)*(1-Vehicles!$C$13)*Fuel_Specs!$B$15+Vehicles!$C$32*(1-Vehicles!$C$13)*Fuel_Specs!$B$18+Vehicles!$C$13*IF(Inputs!$E$499=1,IF(Inputs!$E$499=1,Fuel_Specs!$B$36,IF(Inputs!$E$499=3,Fuel_Specs!$B$38,Fuel_Specs!$B$37)),Fuel_Specs!$B$37))*(Petroleum!B223*Petroleum!$J$218+Petroleum!$J223)+Vehicles!$C$32*(1-Vehicles!$C$13)*Fuel_Specs!$B$18/((1-Vehicles!$C$32)*(1-Vehicles!$C$13)*Fuel_Specs!$B$15+Vehicles!$C$32*(1-Vehicles!$C$13)*Fuel_Specs!$B$18+Vehicles!$C$13*IF(Inputs!$E$499=1,IF(Inputs!$E$499=1,Fuel_Specs!$B$36,IF(Inputs!$E$499=3,Fuel_Specs!$B$38,Fuel_Specs!$B$37)),Fuel_Specs!$B$37))*(Petroleum!B223*Petroleum!$K$218+Petroleum!$K223)+Vehicles!$C$13*IF(Inputs!$E$499=1,IF(Inputs!$E$499=1,Fuel_Specs!$B$36,IF(Inputs!$E$499=3,Fuel_Specs!$B$38,Fuel_Specs!$B$37)),Fuel_Specs!$B$37)/((1-Vehicles!$C$32)*(1-Vehicles!$C$13)*Fuel_Specs!$B$15+Vehicles!$C$32*(1-Vehicles!$C$13)*Fuel_Specs!$B$18+Vehicles!$C$13*IF(Inputs!$E$499=1,IF(Inputs!$E$499=1,Fuel_Specs!$B$36,IF(Inputs!$E$499=3,Fuel_Specs!$B$38,Fuel_Specs!$B$37)),Fuel_Specs!$B$37))*(BioOil!$BE319*BioOil!$BF$313+BioOil!$BF319))/1000000*HLOOKUP($G$10,$Y$3:$AC$4,2,FALSE)/HLOOKUP($I$11,$Y$7:$AC$8,2,FALSE) -> 53472.82383 | AG19: =((1-Vehicles!$C$32)*(1-Vehicles!$C$13)*Fuel_Specs!$B$15/((1-Vehicles!$C$32)*(1-Vehicles!$C$13)*Fuel_Specs!$B$15+Vehicles!$C$32*(1-Vehicles!$C$13)*Fuel_Specs!$B$18+Vehicles!$C$13*IF(Inputs!$E$499=1,Fuel_Specs!$B$36,Fuel_Specs!$B$37))*(Petroleum!B223*Petroleum!$J$218+Petroleum!$J223)+Vehicles!$C$32*(1-Vehicles!$C$13)*Fuel_Specs!$B$18/((1-Vehicles!$C$32)*(1-Vehicles!$C$13)*Fuel_Specs!$B$15+Vehicles!$C$32*(1-Vehicles!$C$13)*Fuel_Specs!$B$18+Vehicles!$C$13*IF(Inputs!$E$499=1,Fuel_Specs!$B$36,Fuel_Specs!$B$37))*(Petroleum!B223*Petroleum!$K$218+Petroleum!$K223)+Vehicles!$C$13*IF(Inputs!$E$499=1,Fuel_Specs!$B$36,Fuel_Specs!$B$37)/((1-Vehicles!$C$32)*(1-Vehicles!$C$13)*Fuel_Specs!$B$15+Vehicles!$C$32*(1-Vehicles!$C$13)*Fuel_Specs!$B$18+Vehicles!$C$13*IF(Inputs!$E$499=1,Fuel_Specs!$B$36,Fuel_Specs!$B$37))*(Pyrolysis!$AB171*Pyrolysis!$AC$166+Pyrolysis!$AC171))/1000000*HLOOKUP($G$10,$Y$3:$AC$4,2,FALSE)/HLOOKUP($I$11,$Y$7:$AC$8,2,FALSE) -> 97844.35911 | AH19: =(((1-Vehicles!$C$33)*(1-Vehicles!$C$15-Vehicles!$C$16)*Fuel_Specs!$B$15*(Petroleum!B223*Petroleum!$J$218+Petroleum!$J223)+Vehicles!$C$33*(1-Vehicles!$C$15-Vehicles!$C$16)*Fuel_Specs!$B$18*(Petroleum!B223*Petroleum!$K$218+Petroleum!$K223)+Vehicles!$C$15*Fuel_Specs!$B$26*(EtOH!BE406*EtOH!$BF$401+EtOH!$BF406)+Vehicles!$C$16*Fuel_Specs!$B$29*('E-D Additives'!$B53*'E-D Additives'!$B$48))/((1-Vehicles!$C$33)*(1-Vehicles!$C$15-Vehicles!$C$16)*Fuel_Specs!$B$15+Vehicles!$C$33*(1-Vehicles!$C$15-Vehicles!$C$16)*Fuel_Specs!$B$18+Vehicles!$C$15*Fuel_Specs!$B$26+Vehicles!$C$16*Fuel_Specs!$B$29))/1000000*HLOOKUP($G$10,$Y$3:$AC$4,2,FALSE)/HLOOKUP($I$11,$Y$7:$AC$8,2,FALSE) -> 68218.62936 | AI19: =AN19*(Vehicles!$M$21/Vehicles!$CI$53)/(Vehicles!$M$21*(1/Vehicles!$CI$53+1/Vehicles!$CJ$53)+Vehicles!$M$22/Vehicles!$CK$53)+E19*(Vehicles!$M$21/Vehicles!$CJ$53+Vehicles!$M$22/Vehicles!$CK$53)/(Vehicles!$M$21*(1/Vehicles!$CI$53+1/Vehicles!$CJ$53)+Vehicles!$M$22/Vehicles!$CK$53) -> 63257.57589 | AJ19: =AN19*(Vehicles!$N$21/Vehicles!$CM$53)/(Vehicles!$N$21*(1/Vehicles!$CM$53+1/Vehicles!$CN$53)+Vehicles!$N$22/Vehicles!$CO$53)+AC19*(Vehicles!$N$21/Vehicles!$CN$53+Vehicles!$N$22/Vehicles!$CO$53)/(Vehicles!$N$21*(1/Vehicles!$CM$53+1/Vehicles!$CN$53)+Vehicles!$N$22/Vehicles!$CO$53) -> 21478.16315 | AK19: =AN19*(Vehicles!$O$21/Vehicles!$CQ$53)/(Vehicles!$O$21*(1/Vehicles!$CQ$53+1/Vehicles!$CR$53)+Vehicles!$O$22/Vehicles!$CS$53)+AD19*(Vehicles!$O$21/Vehicles!$CR$53+Vehicles!$O$22/Vehicles!$CS$53)/(Vehicles!$O$21*(1/Vehicles!$CQ$53+1/Vehicles!$CR$53)+Vehicles!$O$22/Vehicles!$CS$53) -> 18955.95953 | AL19: =AN19*(Vehicles!$P$21/Vehicles!$CU$53)/(Vehicles!$P$21*(1/Vehicles!$CU$53+1/Vehicles!$CV$53)+Vehicles!$P$22/Vehicles!$CW$53)+AE19*(Vehicles!$P$21/Vehicles!$CV$53+Vehicles!$P$22/Vehicles!$CW$53)/(Vehicles!$P$21*(1/Vehicles!$CU$53+1/Vehicles!$CV$53)+Vehicles!$P$22/Vehicles!$CW$53) -> 64816.73668 | AM19: =AN19*(Vehicles!$R$21/Vehicles!$DC$53)/(Vehicles!$R$21*(1/Vehicles!$DC$53+1/Vehicles!$DD$53)+Vehicles!$R$22/Vehicles!$DE$53)+AH19*(Vehicles!$R$21/Vehicles!$DD$53+Vehicles!$R$22/Vehicles!$DE$53)/(Vehicles!$R$21*(1/Vehicles!$DC$53+1/Vehicles!$DD$53)+Vehicles!$R$22/Vehicles!$DE$53) -> 62649.79989 | AN19: =(Electric!$G175+Electric!$F175-1000000*(Electric!$F175+Electric!$G175)/(Electric!$F$171+Electric!$G$171))/1000000*HLOOKUP($G$10,$Y$3:$AC$4,2,FALSE)/HLOOKUP($I$11,$Y$7:$AC$8,2,FALSE) -> 45060.33142 | AO19: =((Hydrogen!$Z152*Hydrogen!$AA$147+Hydrogen!$AA152)-1000000*(Hydrogen!$K$7+Hydrogen!$C$7+Hydrogen!$D$7+Hydrogen!$E$7))/1000000*HLOOKUP($G$10,$Y$3:$AC$4,2,FALSE)/HLOOKUP($I$11,$Y$7:$AC$8,2,FALSE) -> 14681.48738 | AP19: =((Hydrogen!$AX152*Hydrogen!$AY$147+Hydrogen!$AY152)-1000000*(Hydrogen!$K$8+Hydrogen!$C$8+Hydrogen!$D$8+Hydrogen!$E$8))/1000000*HLOOKUP($G$10,$Y$3:$AC$4,2,FALSE)/HLOOKUP($I$11,$Y$7:$AC$8,2,FALSE) -> 45659.73555 | AQ19: =AN19*(Vehicles!$S$21/Vehicles!$DS$53)/(Vehicles!$S$21*(1/Vehicles!$DS$53+1/Vehicles!$DT$53)+Vehicles!$S$22/Vehicles!$DU$53)+AO19*(Vehicles!$S$21/Vehicles!$DT$53+Vehicles!$S$22/Vehicles!$DU$53)/(Vehicles!$S$21*(1/Vehicles!$DS$53+1/Vehicles!$DT$53)+Vehicles!$S$22/Vehicles!$DU$53) -> 23955.25845 | AR19: =AN19*(Vehicles!$S$21/Vehicles!$DS$53)/(Vehicles!$S$21*(1/Vehicles!$DS$53+1/Vehicles!$DT$53)+Vehicles!$S$22/Vehicles!$DU$53)+AP19*(Vehicles!$S$21/Vehicles!$DT$53+Vehicles!$S$22/Vehicles!$DU$53)/(Vehicles!$S$21*(1/Vehicles!$DS$53+1/Vehicles!$DT$53)+Vehicles!$S$22/Vehicles!$DU$53) -> 45476.75503
A20: CO2 (w/ C in VOC & CO) | B20: =(Inputs!$E$1056*(Petroleum!$B232*Petroleum!$F$218+Petroleum!$F232)+(1-Inputs!$E$1056)*(Petroleum!$B232*Petroleum!$D$218+Petroleum!$D232)+Vehicles!B74/Vehicles!B54*1000000)/1000000*HLOOKUP($I$10,$Y$5:$AC$6,2,FALSE)/HLOOKUP($I$11,$Y$7:$AC$8,2,FALSE)+B24*Fuel_Specs!$B$92/Fuel_Specs!$B$95+B25*Fuel_Specs!$B$93/Fuel_Specs!$B$95 -> 14865.1498 | C20: =((Petroleum!$C232*Petroleum!$G$218+Petroleum!$G232)+Vehicles!C74/Vehicles!C54*1000000)/1000000*HLOOKUP($I$10,$Y$5:$AC$6,2,FALSE)/HLOOKUP($I$11,$Y$7:$AC$8,2,FALSE)+C24*Fuel_Specs!$B$92/Fuel_Specs!$B$95+C25*Fuel_Specs!$B$93/Fuel_Specs!$B$95 -> 20555.46462 | D20: =((1-Vehicles!$C$26)*(1-Vehicles!$C$7)*Fuel_Specs!$B$11/((1-Vehicles!$C$26)*(1-Vehicles!$C$7)*Fuel_Specs!$B$11+Vehicles!$C$26*(1-Vehicles!$C$7)*Fuel_Specs!$B$13+Vehicles!$C$7*Fuel_Specs!$B$26)*(Petroleum!$B232*Petroleum!$D$218+Petroleum!$D232)+Vehicles!$C$26*(1-Vehicles!$C$7)*Fuel_Specs!$B$13/((1-Vehicles!$C$26)*(1-Vehicles!$C$7)*Fuel_Specs!$B$11+Vehicles!$C$26*(1-Vehicles!$C$7)*Fuel_Specs!$B$13+Vehicles!$C$7*Fuel_Specs!$B$26)*(Petroleum!B232*Petroleum!$F$218+Petroleum!$F232)+Vehicles!$C$7*Fuel_Specs!$B$26/((1-Vehicles!$C$26)*(1-Vehicles!$C$7)*Fuel_Specs!$B$11+Vehicles!$C$26*(1-Vehicles!$C$7)*Fuel_Specs!$B$13+Vehicles!$C$7*Fuel_Specs!$B$26)*(EtOH!BE415*EtOH!$BF$401+EtOH!$BF415)+Vehicles!D74/Vehicles!D54*1000000)/1000000*HLOOKUP($I$10,$Y$5:$AC$6,2,FALSE)/HLOOKUP($I$11,$Y$7:$AC$8,2,FALSE)+D24*Fuel_Specs!$B$92/Fuel_Specs!$B$95+D25*Fuel_Specs!$B$93/Fuel_Specs!$B$95 -> 14848.91248 | E20: =(Inputs!$E$88*(IF(Inputs!F$92=1,Petroleum!$B232,Petroleum!$C232)*Petroleum!$K$218+Petroleum!$K232)+(1-Inputs!$E$88)*(IF(Inputs!F$91=1,Petroleum!$B232,Petroleum!$C232)*Petroleum!$J$218+Petroleum!$J232))/1000000*HLOOKUP($I$10,$Y$5:$AC$6,2,FALSE)/HLOOKUP($I$11,$Y$7:$AC$8,2,FALSE)+E24*Fuel_Specs!$B$92/Fuel_Specs!$B$95+E25*Fuel_Specs!$B$93/Fuel_Specs!$B$95 -> 22043.92032 | F20: =(NG!$H94*NG!$I$80+NG!$I94)/1000000*HLOOKUP($I$10,$Y$5:$AC$6,2,FALSE)/HLOOKUP($I$11,$Y$7:$AC$8,2,FALSE)+F24*Fuel_Specs!$B$92/Fuel_Specs!$B$95+F25*Fuel_Specs!$B$93/Fuel_Specs!$B$95 -> 11001.72632 | G20: =(NG!$P94*NG!$Q$80+NG!$Q94)/1000000*HLOOKUP($I$10,$Y$5:$AC$6,2,FALSE)/HLOOKUP($I$11,$Y$7:$AC$8,2,FALSE)+G24*Fuel_Specs!$B$92/Fuel_Specs!$B$95+G25*Fuel_Specs!$B$93/Fuel_Specs!$B$95 -> 15059.89156 | H20: =(NG!$V94*NG!$W$80+NG!$W94)/1000000*HLOOKUP($I$10,$Y$5:$AC$6,2,FALSE)/HLOOKUP($I$11,$Y$7:$AC$8,2,FALSE)+H24*Fuel_Specs!$B$92/Fuel_Specs!$B$95+H25*Fuel_Specs!$B$93/Fuel_Specs!$B$95 -> 13491.53219 | I20: =('MeOH&FTD'!AV146*'MeOH&FTD'!AW$132+'MeOH&FTD'!AW146)/1000000*HLOOKUP($I$10,$Y$5:$AC$6,2,FALSE)/HLOOKUP($I$11,$Y$7:$AC$8,2,FALSE)+I24*Fuel_Specs!$B$92/Fuel_Specs!$B$95+I25*Fuel_Specs!$B$93/Fuel_Specs!$B$95 -> 28249.80068 | J20: =((1-Vehicles!$C$25)*(1-Vehicles!$C$5)*Fuel_Specs!$B$11/((1-Vehicles!$C$25)*(1-Vehicles!$C$5)*Fuel_Specs!$B$11+Vehicles!$C$25*(1-Vehicles!$C$5)*Fuel_Specs!$B$13+Vehicles!$C$5*Fuel_Specs!$B$25)*(Petroleum!$B232*Petroleum!$D$218+Petroleum!$D232)+Vehicles!$C$25*(1-Vehicles!$C$5)*Fuel_Specs!$B$13/((1-Vehicles!$C$25)*(1-Vehicles!$C$5)*Fuel_Specs!$B$11+Vehicles!$C$25*(1-Vehicles!$C$5)*Fuel_Specs!$B$13+Vehicles!$C$5*Fuel_Specs!$B$25)*(Petroleum!B232*Petroleum!$F$218+Petroleum!$F232)+Vehicles!$C$5*Fuel_Specs!$B$25/((1-Vehicles!$C$25)*(1-Vehicles!$C$5)*Fuel_Specs!$B$11+Vehicles!$C$25*(1-Vehicles!$C$5)*Fuel_Specs!$B$13+Vehicles!$C$5*Fuel_Specs!$B$25)*('MeOH&FTD'!$L146*'MeOH&FTD'!$M$132+'MeOH&FTD'!$M146)+Vehicles!I74/Vehicles!I54*1000000)/1000000*HLOOKUP($I$10,$Y$5:$AC$6,2,FALSE)/HLOOKUP($I$11,$Y$7:$AC$8,2,FALSE)+J24*Fuel_Specs!$B$92/Fuel_Specs!$B$95+J25*Fuel_Specs!$B$93/Fuel_Specs!$B$95 -> 23187.45784 | K20: =((1-Vehicles!$C$25)*(1-Vehicles!$C$6)*Fuel_Specs!$B$11/((1-Vehicles!$C$25)*(1-Vehicles!$C$6)*Fuel_Specs!$B$11+Vehicles!$C$25*(1-Vehicles!$C$6)*Fuel_Specs!$B$13+Vehicles!$C$6*Fuel_Specs!$B$25)*(Petroleum!$B232*Petroleum!$D$218+Petroleum!$D232)+Vehicles!$C$25*(1-Vehicles!$C$6)*Fuel_Specs!$B$13/((1-Vehicles!$C$25)*(1-Vehicles!$C$6)*Fuel_Specs!$B$11+Vehicles!$C$25*(1-Vehicles!$C$6)*Fuel_Specs!$B$13+Vehicles!$C$6*Fuel_Specs!$B$25)*(Petroleum!B232*Petroleum!$F$218+Petroleum!$F232)+Vehicles!$C$6*Fuel_Specs!$B$25/((1-Vehicles!$C$25)*(1-Vehicles!$C$6)*Fuel_Specs!$B$11+Vehicles!$C$25*(1-Vehicles!$C$6)*Fuel_Specs!$B$13+Vehicles!$C$6*Fuel_Specs!$B$25)*('MeOH&FTD'!$L146*'MeOH&FTD'!$M$132+'MeOH&FTD'!$M146)+Vehicles!J74/Vehicles!J54*1000000)/1000000*HLOOKUP($I$10,$Y$5:$AC$6,2,FALSE)/HLOOKUP($I$11,$Y$7:$AC$8,2,FALSE)+K24*Fuel_Specs!$B$92/Fuel_Specs!$B$95+K25*Fuel_Specs!$B$93/Fuel_Specs!$B$95 -> 23631.1074 | L20: =('MeOH&FTD'!$L146*'MeOH&FTD'!$M$132+'MeOH&FTD'!$M146)/1000000*HLOOKUP($I$10,$Y$5:$AC$6,2,FALSE)/HLOOKUP($I$11,$Y$7:$AC$8,2,FALSE)+L24*Fuel_Specs!$B$92/Fuel_Specs!$B$95+L25*Fuel_Specs!$B$93/Fuel_Specs!$B$95 -> 24655.1978 | M20: =((1-Vehicles!$C$27)*(1-Vehicles!$C$8)*Fuel_Specs!$B$11/((1-Vehicles!$C$27)*(1-Vehicles!$C$8)*Fuel_Specs!$B$11+Vehicles!$C$27*(1-Vehicles!$C$8)*Fuel_Specs!$B$13+Vehicles!$C$8*Fuel_Specs!$B$26)*(Petroleum!$B232*Petroleum!$D$218+Petroleum!$D232)+Vehicles!$C$27*(1-Vehicles!$C$8)*Fuel_Specs!$B$13/((1-Vehicles!$C$27)*(1-Vehicles!$C$8)*Fuel_Specs!$B$11+Vehicles!$C$27*(1-Vehicles!$C$8)*Fuel_Specs!$B$13+Vehicles!$C$8*Fuel_Specs!$B$26)*(Petroleum!B232*Petroleum!$F$218+Petroleum!$F232)+Vehicles!$C$8*Fuel_Specs!$B$26/((1-Vehicles!$C$27)*(1-Vehicles!$C$8)*Fuel_Specs!$B$11+Vehicles!$C$27*(1-Vehicles!$C$8)*Fuel_Specs!$B$13+Vehicles!$C$8*Fuel_Specs!$B$26)*(EtOH!BE415*EtOH!$BF$401+EtOH!$BF415)+Vehicles!K74/Vehicles!K54*1000000)/1000000*HLOOKUP($I$10,$Y$5:$AC$6,2,FALSE)/HLOOKUP($I$11,$Y$7:$AC$8,2,FALSE)+M24*Fuel_Specs!$B$92/Fuel_Specs!$B$95+M25*Fuel_Specs!$B$93/Fuel_Specs!$B$95 -> -29612.60072 | N20: =((1-Vehicles!$C$28)*(1-Vehicles!$C$10)*Fuel_Specs!$B$11/((1-Vehicles!$C$28)*(1-Vehicles!$C$10)*Fuel_Specs!$B$11+Vehicles!$C$28*(1-Vehicles!$C$10)*Fuel_Specs!$B$13+Vehicles!$C$10*Fuel_Specs!$B$27)*(Petroleum!$B232*Petroleum!$D$218+Petroleum!$D232)+Vehicles!$C$28*(1-Vehicles!$C$10)*Fuel_Specs!$B$13/((1-Vehicles!$C$28)*(1-Vehicles!$C$10)*Fuel_Specs!$B$11+Vehicles!$C$28*(1-Vehicles!$C$10)*Fuel_Specs!$B$13+Vehicles!$C$10*Fuel_Specs!$B$27)*(Petroleum!B232*Petroleum!$F$218+Petroleum!$F232)+Vehicles!$C$10*Fuel_Specs!$B$27/((1-Vehicles!$C$28)*(1-Vehicles!$C$10)*Fuel_Specs!$B$11+Vehicles!$C$28*(1-Vehicles!$C$10)*Fuel_Specs!$B$13+Vehicles!$C$10*Fuel_Specs!$B$27)*(EtOH!$BI415*EtOH!$BJ$401+EtOH!$BJ415)+Vehicles!L74/Vehicles!L54*1000000)/1000000*HLOOKUP($I$10,$Y$5:$AC$6,2,FALSE)/HLOOKUP($I$11,$Y$7:$AC$8,2,FALSE)+N24*Fuel_Specs!$B$92/Fuel_Specs!$B$95+N25*Fuel_Specs!$B$93/Fuel_Specs!$B$95 -> -26481.69225 | O20: =((1-Vehicles!$C$27)*(1-Vehicles!$C$9)*Fuel_Specs!$B$11/((1-Vehicles!$C$27)*(1-Vehicles!$C$9)*Fuel_Specs!$B$11+Vehicles!$C$27*(1-Vehicles!$C$9)*Fuel_Specs!$B$13+Vehicles!$C$9*Fuel_Specs!$B$26)*(Petroleum!$B232*Petroleum!$D$218+Petroleum!$D232)+Vehicles!$C$27*(1-Vehicles!$C$9)*Fuel_Specs!$B$13/((1-Vehicles!$C$27)*(1-Vehicles!$C$9)*Fuel_Specs!$B$11+Vehicles!$C$27*(1-Vehicles!$C$9)*Fuel_Specs!$B$13+Vehicles!$C$9*Fuel_Specs!$B$26)*(Petroleum!B232*Petroleum!$F$218+Petroleum!$F232)+Vehicles!$C$9*Fuel_Specs!$B$26/((1-Vehicles!$C$27)*(1-Vehicles!$C$9)*Fuel_Specs!$B$11+Vehicles!$C$27*(1-Vehicles!$C$9)*Fuel_Specs!$B$13+Vehicles!$C$9*Fuel_Specs!$B$26)*(EtOH!BE415*EtOH!$BF$401+EtOH!$BF415)+Vehicles!M74/Vehicles!M54*1000000)/1000000*HLOOKUP($I$10,$Y$5:$AC$6,2,FALSE)/HLOOKUP($I$11,$Y$7:$AC$8,2,FALSE)+O24*Fuel_Specs!$B$92/Fuel_Specs!$B$95+O25*Fuel_Specs!$B$93/Fuel_Specs!$B$95 -> -29612.60072 | P20: =(EtOH!$BE415*EtOH!$BF$401+EtOH!$BF415+Vehicles!DM74/Vehicles!DM54*1000000)/1000000*HLOOKUP($I$10,$Y$5:$AC$6,2,FALSE)/HLOOKUP($I$11,$Y$7:$AC$8,2,FALSE)+P24*Fuel_Specs!$B$92/Fuel_Specs!$B$95+P25*Fuel_Specs!$B$93/Fuel_Specs!$B$95 -> -44461.21354 | Q20: =((1-Vehicles!$C$29)*(1-Vehicles!$C$14)*Fuel_Specs!$B$11/((1-Vehicles!$C$29)*(1-Vehicles!$C$14)*Fuel_Specs!$B$11+Vehicles!$C$29*(1-Vehicles!$C$14)*Fuel_Specs!$B$13+Vehicles!$C$14*Fuel_Specs!$B39)*(Petroleum!$B232*Petroleum!$D$218+Petroleum!$D232)+Vehicles!$C$29*(1-Vehicles!$C$14)*Fuel_Specs!$B$13/((1-Vehicles!$C$29)*(1-Vehicles!$C$14)*Fuel_Specs!$B$11+Vehicles!$C$29*(1-Vehicles!$C$14)*Fuel_Specs!$B$13+Vehicles!$C$14*Fuel_Specs!$B39)*(Petroleum!B232*Petroleum!$F$218+Petroleum!$F232)+Vehicles!$C$14*Fuel_Specs!$B39/((1-Vehicles!$C$29)*(1-Vehicles!$C$14)*Fuel_Specs!$B$11+Vehicles!$C$29*(1-Vehicles!$C$14)*Fuel_Specs!$B$13+Vehicles!$C$14*Fuel_Specs!$B39)*(BioOil!$BQ328*BioOil!$BR$313+BioOil!$BR328)+Vehicles!P74/Vehicles!P54*1000000)/1000000*HLOOKUP($I$10,$Y$5:$AC$6,2,FALSE)/HLOOKUP($I$11,$Y$7:$AC$8,2,FALSE)+Q24*Fuel_Specs!$B$92/Fuel_Specs!$B$95+Q25*Fuel_Specs!$B$93/Fuel_Specs!$B$95 -> -54445.47713 | R20: =((1-Vehicles!$C$29)*(1-Vehicles!$C$14)*Fuel_Specs!$B$11/((1-Vehicles!$C$29)*(1-Vehicles!$C$14)*Fuel_Specs!$B$11+Vehicles!$C$29*(1-Vehicles!$C$14)*Fuel_Specs!$B$13+Vehicles!$C$14*Fuel_Specs!$B39)*(Petroleum!$B232*Petroleum!$D$218+Petroleum!$D232)+Vehicles!$C$29*(1-Vehicles!$C$14)*Fuel_Specs!$B$13/((1-Vehicles!$C$29)*(1-Vehicles!$C$14)*Fuel_Specs!$B$11+Vehicles!$C$29*(1-Vehicles!$C$14)*Fuel_Specs!$B$13+Vehicles!$C$14*Fuel_Specs!$B39)*(Petroleum!B232*Petroleum!$F$218+Petroleum!$F232)+Vehicles!$C$14*Fuel_Specs!$B39/((1-Vehicles!$C$29)*(1-Vehicles!$C$14)*Fuel_Specs!$B$11+Vehicles!$C$29*(1-Vehicles!$C$14)*Fuel_Specs!$B$13+Vehicles!$C$14*Fuel_Specs!$B39)*(Pyrolysis!$Z180*Pyrolysis!$AA$166+Pyrolysis!$AA180)+Vehicles!P74/Vehicles!P54*1000000)/1000000*HLOOKUP($I$10,$Y$5:$AC$6,2,FALSE)/HLOOKUP($I$11,$Y$7:$AC$8,2,FALSE)+R24*Fuel_Specs!$B$92/Fuel_Specs!$B$95+R25*Fuel_Specs!$B$93/Fuel_Specs!$B$95 -> -45252.34691 | S20: =AN20*(Vehicles!$C$21/Vehicles!$AN$53)/(Vehicles!$C$21*(1/Vehicles!$AN$53+1/Vehicles!$AO$53)+Vehicles!$C$22/Vehicles!$AP$53)+B20*(Vehicles!$C$21/Vehicles!$AO$53+Vehicles!$C$22/Vehicles!$AP$53)/(Vehicles!$C$21*(1/Vehicles!$AN$53+1/Vehicles!$AO$53)+Vehicles!$C$22/Vehicles!$AP$53) -> 53920.5944 | T20: =AN20*(Vehicles!$D$21/Vehicles!$AR$53)/(Vehicles!$D$21*(1/Vehicles!$AR$53+1/Vehicles!$AS$53)+Vehicles!$D$22/Vehicles!$AT$53)+C20*(Vehicles!$D$21/Vehicles!$AS$53+Vehicles!$D$22/Vehicles!$AT$53)/(Vehicles!$D$21*(1/Vehicles!$AR$53+1/Vehicles!$AS$53)+Vehicles!$D$22/Vehicles!$AT$53) -> 58291.6585 | U20: =AN20*(Vehicles!$F$21/Vehicles!$AZ$53)/(Vehicles!$F$21*(1/Vehicles!$AZ$53+1/Vehicles!$BA$53)+Vehicles!$F$22/Vehicles!$BB$53)+D20*(Vehicles!$F$21/Vehicles!$BA$53+Vehicles!$F$22/Vehicles!$BB$53)/(Vehicles!$F$21*(1/Vehicles!$AZ$53+1/Vehicles!$BA$53)+Vehicles!$F$22/Vehicles!$BB$53) -> 53908.12157 | V20: =AN20*(Vehicles!$G$21/Vehicles!$BD$53)/(Vehicles!$G$21*(1/Vehicles!$BD$53+1/Vehicles!$BE$53)+Vehicles!$G$22/Vehicles!$BF$53)+F20*(Vehicles!$G$21/Vehicles!$BE$53+Vehicles!$G$22/Vehicles!$BF$53)/(Vehicles!$G$21*(1/Vehicles!$BD$53+1/Vehicles!$BE$53)+Vehicles!$G$22/Vehicles!$BF$53) -> 50952.87255 | W20: =AN20*(Vehicles!$H$21/Vehicles!$BH$53)/(Vehicles!$H$21*(1/Vehicles!$BH$53+1/Vehicles!$BI$53)+Vehicles!$H$22/Vehicles!$BJ$53)+G20*(Vehicles!$H$21/Vehicles!$BI$53+Vehicles!$H$22/Vehicles!$BJ$53)/(Vehicles!$H$21*(1/Vehicles!$BH$53+1/Vehicles!$BI$53)+Vehicles!$H$22/Vehicles!$BJ$53) -> 54070.18695 | X20: =AN20*(Vehicles!$I$21/Vehicles!$BL$53)/(Vehicles!$I$21*(1/Vehicles!$BL$53+1/Vehicles!$BM$53)+Vehicles!$I$22/Vehicles!$BN$53)+H20*(Vehicles!$I$21/Vehicles!$BM$53+Vehicles!$I$22/Vehicles!$BN$53)/(Vehicles!$I$21*(1/Vehicles!$BL$53+1/Vehicles!$BM$53)+Vehicles!$I$22/Vehicles!$BN$53) -> 52865.43826 | Y20: =AN20*(Vehicles!$J$21/Vehicles!$BP$53)/(Vehicles!$J$21*(1/Vehicles!$BP$53+1/Vehicles!$BQ$53)+Vehicles!$J$22/Vehicles!$BR$53)+K20*(Vehicles!$J$21/Vehicles!$BQ$53+Vehicles!$J$22/Vehicles!$BR$53)/(Vehicles!$J$21*(1/Vehicles!$BP$53+1/Vehicles!$BQ$53)+Vehicles!$J$22/Vehicles!$BR$53) -> 60654.23985 | Z20: =AN20*(Vehicles!$K$21/Vehicles!$BT$53)/(Vehicles!$K$21*(1/Vehicles!$BT$53+1/Vehicles!$BU$53)+Vehicles!$K$22/Vehicles!$BV$53)+O20*(Vehicles!$K$21/Vehicles!$BU$53+Vehicles!$K$22/Vehicles!$BV$53)/(Vehicles!$K$21*(1/Vehicles!$BT$53+1/Vehicles!$BU$53)+Vehicles!$K$22/Vehicles!$BV$53) -> 17297.5789 | AA20: =AN20*(Vehicles!$L$21/Vehicles!$BX$53)/(Vehicles!$L$21*(1/Vehicles!$BX$53+1/Vehicles!$BY$53)+Vehicles!$L$22/Vehicles!$BZ$53)+AO20*(Vehicles!$L$21/Vehicles!$BY$53+Vehicles!$L$22/Vehicles!$BZ$53)/(Vehicles!$L$21*(1/Vehicles!$BX$53+1/Vehicles!$BY$53)+Vehicles!$L$22/Vehicles!$BZ$53) -> 130078.1875 | AB20: =AN20*(Vehicles!$L$21/Vehicles!$BX$53)/(Vehicles!$L$21*(1/Vehicles!$BX$53+1/Vehicles!$BY$53)+Vehicles!$L$22/Vehicles!$CA$53)+AP20*(Vehicles!$L$21/Vehicles!$BY$53+Vehicles!$L$22/Vehicles!$CA$53)/(Vehicles!$L$21*(1/Vehicles!$BX$53+1/Vehicles!$BY$53)+Vehicles!$L$22/Vehicles!$CA$53) -> 177057.5361 | AC20: =('MeOH&FTD'!$X146*'MeOH&FTD'!$Y$132+'MeOH&FTD'!$Y146+Vehicles!W74/Vehicles!W54*1000000)/1000000*HLOOKUP($I$10,$Y$5:$AC$6,2,FALSE)/HLOOKUP($I$11,$Y$7:$AC$8,2,FALSE)+AC24*Fuel_Specs!$B$92/Fuel_Specs!$B$95+AC25*Fuel_Specs!$B$93/Fuel_Specs!$B$95 -> 23403.74399 | AD20: =((1-Vehicles!$C$30)*(1-Vehicles!$C$11)*Fuel_Specs!$B$15/((1-Vehicles!$C$30)*(1-Vehicles!$C$11)*Fuel_Specs!$B$15+Vehicles!$C$30*(1-Vehicles!$C$11)*Fuel_Specs!$B$18+Vehicles!$C$11*Fuel_Specs!$B$35)*(Petroleum!B232*Petroleum!$J$218+Petroleum!$J232)+Vehicles!$C$30*(1-Vehicles!$C$11)*Fuel_Specs!$B$18/((1-Vehicles!$C$30)*(1-Vehicles!$C$11)*Fuel_Specs!$B$15+Vehicles!$C$30*(1-Vehicles!$C$11)*Fuel_Specs!$B$18+Vehicles!$C$11*Fuel_Specs!$B$35)*(Petroleum!B232*Petroleum!$K$218+Petroleum!$K232)+Vehicles!$C$11*Fuel_Specs!$B$35/((1-Vehicles!$C$30)*(1-Vehicles!$C$11)*Fuel_Specs!$B$15+Vehicles!$C$30*(1-Vehicles!$C$11)*Fuel_Specs!$B$18+Vehicles!$C$11*Fuel_Specs!$B$35)*('MeOH&FTD'!$AL146*'MeOH&FTD'!$AM$132+'MeOH&FTD'!$AM146)+Vehicles!X74/Vehicles!X54*1000000)/1000000*HLOOKUP($I$10,$Y$5:$AC$6,2,FALSE)/HLOOKUP($I$11,$Y$7:$AC$8,2,FALSE)+AD24*Fuel_Specs!$B$92/Fuel_Specs!$B$95+AD25*Fuel_Specs!$B$93/Fuel_Specs!$B$95 -> 26047.70147 | AE20: =((1-Vehicles!$C$31)*(1-Vehicles!$C$12)*Fuel_Specs!$B$15/((1-Vehicles!$C$31)*(1-Vehicles!$C$12)*Fuel_Specs!$B$15+Vehicles!$C$31*(1-Vehicles!$C$12)*Fuel_Specs!$B$18+Vehicles!$C$12*Fuel_Specs!$B34)*(Petroleum!B232*Petroleum!$J$218+Petroleum!$J232)+Vehicles!$C$31*(1-Vehicles!$C$12)*Fuel_Specs!$B$18/((1-Vehicles!$C$31)*(1-Vehicles!$C$12)*Fuel_Specs!$B$15+Vehicles!$C$31*(1-Vehicles!$C$12)*Fuel_Specs!$B$18+Vehicles!$C$12*Fuel_Specs!$B34)*(Petroleum!B232*Petroleum!$K$218+Petroleum!$K232)+Vehicles!$C$12*Fuel_Specs!$B34/((1-Vehicles!$C$31)*(1-Vehicles!$C$12)*Fuel_Specs!$B$15+Vehicles!$C$31*(1-Vehicles!$C$12)*Fuel_Specs!$B$18+Vehicles!$C$12*Fuel_Specs!$B34)*(BioOil!$Y328*BioOil!$Z$313+BioOil!$Z328)+Vehicles!Y74/Vehicles!Y54*1000000)/1000000*HLOOKUP($I$10,$Y$5:$AC$6,2,FALSE)/HLOOKUP($I$11,$Y$7:$AC$8,2,FALSE)+AE24*Fuel_Specs!$B$92/Fuel_Specs!$B$95+AE25*Fuel_Specs!$B$93/Fuel_Specs!$B$95 -> 6812.477767 | AF20: =((1-Vehicles!$C$32)*(1-Vehicles!$C$13)*Fuel_Specs!$B$15/((1-Vehicles!$C$32)*(1-Vehicles!$C$13)*Fuel_Specs!$B$15+Vehicles!$C$32*(1-Vehicles!$C$13)*Fuel_Specs!$B$18+Vehicles!$C$13*IF(Inputs!$E$499=1,Fuel_Specs!$B$36,Fuel_Specs!$B$37))*(Petroleum!B232*Petroleum!$J$218+Petroleum!$J232)+Vehicles!$C$32*(1-Vehicles!$C$13)*Fuel_Specs!$B$18/((1-Vehicles!$C$32)*(1-Vehicles!$C$13)*Fuel_Specs!$B$15+Vehicles!$C$32*(1-Vehicles!$C$13)*Fuel_Specs!$B$18+Vehicles!$C$13*IF(Inputs!$E$499=1,Fuel_Specs!$B$36,Fuel_Specs!$B$37))*(Petroleum!B232*Petroleum!$K$218+Petroleum!$K232)+Vehicles!$C$13*IF(Inputs!$E$499=1,Fuel_Specs!$B$36,Fuel_Specs!$B$37)/((1-Vehicles!$C$32)*(1-Vehicles!$C$13)*Fuel_Specs!$B$15+Vehicles!$C$32*(1-Vehicles!$C$13)*Fuel_Specs!$B$18+Vehicles!$C$13*IF(Inputs!$E$499=1,Fuel_Specs!$B$36,Fuel_Specs!$B$37))*(BioOil!$BE328*BioOil!$BF$313+BioOil!$BF328)+Vehicles!Z74/Vehicles!Z54*1000000)/1000000*HLOOKUP($I$10,$Y$5:$AC$6,2,FALSE)/HLOOKUP($I$11,$Y$7:$AC$8,2,FALSE)+AF24*Fuel_Specs!$B$92/Fuel_Specs!$B$95+AF25*Fuel_Specs!$B$93/Fuel_Specs!$B$95 -> -63710.54802 | AG20: =((1-Vehicles!$C$32)*(1-Vehicles!$C$13)*Fuel_Specs!$B$15/((1-Vehicles!$C$32)*(1-Vehicles!$C$13)*Fuel_Specs!$B$15+Vehicles!$C$32*(1-Vehicles!$C$13)*Fuel_Specs!$B$18+Vehicles!$C$13*IF(Inputs!$E$499=1,Fuel_Specs!$B$36,Fuel_Specs!$B$37))*(Petroleum!B232*Petroleum!$J$218+Petroleum!$J232)+Vehicles!$C$32*(1-Vehicles!$C$13)*Fuel_Specs!$B$18/((1-Vehicles!$C$32)*(1-Vehicles!$C$13)*Fuel_Specs!$B$15+Vehicles!$C$32*(1-Vehicles!$C$13)*Fuel_Specs!$B$18+Vehicles!$C$13*IF(Inputs!$E$499=1,Fuel_Specs!$B$36,Fuel_Specs!$B$37))*(Petroleum!B232*Petroleum!$K$218+Petroleum!$K232)+Vehicles!$C$13*IF(Inputs!$E$499=1,Fuel_Specs!$B$36,Fuel_Specs!$B$37)/((1-Vehicles!$C$32)*(1-Vehicles!$C$13)*Fuel_Specs!$B$15+Vehicles!$C$32*(1-Vehicles!$C$13)*Fuel_Specs!$B$18+Vehicles!$C$13*IF(Inputs!$E$499=1,Fuel_Specs!$B$36,Fuel_Specs!$B$37))*(Pyrolysis!$AB180*Pyrolysis!$AC$166+Pyrolysis!$AC180)+Vehicles!Z74/Vehicles!Z54*1000000)/1000000*HLOOKUP($I$10,$Y$5:$AC$6,2,FALSE)/HLOOKUP($I$11,$Y$7:$AC$8,2,FALSE)+AG24*Fuel_Specs!$B$92/Fuel_Specs!$B$95+AG25*Fuel_Specs!$B$93/Fuel_Specs!$B$95 -> -44966.19806 | AH20: =(((1-Vehicles!$C$33)*(1-Vehicles!$C$15-Vehicles!$C$16)*Fuel_Specs!$B$15*(Petroleum!B232*Petroleum!$J$218+Petroleum!$J232)+Vehicles!$C$33*(1-Vehicles!$C$15-Vehicles!$C$16)*Fuel_Specs!$B$18*(Petroleum!B232*Petroleum!$K$218+Petroleum!$K232)+Vehicles!$C$15*Fuel_Specs!$B$26*(EtOH!BE415*EtOH!$BF$401+EtOH!$BF415)+Vehicles!$C$16*Fuel_Specs!$B$29*('E-D Additives'!$B62*'E-D Additives'!$B$48))/((1-Vehicles!$C$33)*(1-Vehicles!$C$15-Vehicles!$C$16)*Fuel_Specs!$B$15+Vehicles!$C$33*(1-Vehicles!$C$15-Vehicles!$C$16)*Fuel_Specs!$B$18+Vehicles!$C$15*Fuel_Specs!$B$26+Vehicles!$C$16*Fuel_Specs!$B$29)+Vehicles!AA74/Vehicles!AA54*1000000)/1000000*HLOOKUP($I$10,$Y$5:$AC$6,2,FALSE)/HLOOKUP($I$11,$Y$7:$AC$8,2,FALSE)+AH24*Fuel_Specs!$B$92/Fuel_Specs!$B$95+AH25*Fuel_Specs!$B$93/Fuel_Specs!$B$95 -> 17951.13217 | AI20: =AN20*(Vehicles!$M$21/Vehicles!$CI$53)/(Vehicles!$M$21*(1/Vehicles!$CI$53+1/Vehicles!$CJ$53)+Vehicles!$M$22/Vehicles!$CK$53)+E20*(Vehicles!$M$21/Vehicles!$CJ$53+Vehicles!$M$22/Vehicles!$CK$53)/(Vehicles!$M$21*(1/Vehicles!$CI$53+1/Vehicles!$CJ$53)+Vehicles!$M$22/Vehicles!$CK$53) -> 60826.31055 | AJ20: =AN20*(Vehicles!$N$21/Vehicles!$CM$53)/(Vehicles!$N$21*(1/Vehicles!$CM$53+1/Vehicles!$CN$53)+Vehicles!$N$22/Vehicles!$CO$53)+AC20*(Vehicles!$N$21/Vehicles!$CN$53+Vehicles!$N$22/Vehicles!$CO$53)/(Vehicles!$N$21*(1/Vehicles!$CM$53+1/Vehicles!$CN$53)+Vehicles!$N$22/Vehicles!$CO$53) -> 61859.14015 | AK20: =AN20*(Vehicles!$O$21/Vehicles!$CQ$53)/(Vehicles!$O$21*(1/Vehicles!$CQ$53+1/Vehicles!$CR$53)+Vehicles!$O$22/Vehicles!$CS$53)+AD20*(Vehicles!$O$21/Vehicles!$CR$53+Vehicles!$O$22/Vehicles!$CS$53)/(Vehicles!$O$21*(1/Vehicles!$CQ$53+1/Vehicles!$CR$53)+Vehicles!$O$22/Vehicles!$CS$53) -> 63867.31047 | AL20: =AN20*(Vehicles!$P$21/Vehicles!$CU$53)/(Vehicles!$P$21*(1/Vehicles!$CU$53+1/Vehicles!$CV$53)+Vehicles!$P$22/Vehicles!$CW$53)+AE20*(Vehicles!$P$21/Vehicles!$CV$53+Vehicles!$P$22/Vehicles!$CW$53)/(Vehicles!$P$21*(1/Vehicles!$CU$53+1/Vehicles!$CV$53)+Vehicles!$P$22/Vehicles!$CW$53) -> 49257.54244 | AM20: =AN20*(Vehicles!$R$21/Vehicles!$DC$53)/(Vehicles!$R$21*(1/Vehicles!$DC$53+1/Vehicles!$DD$53)+Vehicles!$R$22/Vehicles!$DE$53)+AH20*(Vehicles!$R$21/Vehicles!$DD$53+Vehicles!$R$22/Vehicles!$DE$53)/(Vehicles!$R$21*(1/Vehicles!$DC$53+1/Vehicles!$DD$53)+Vehicles!$R$22/Vehicles!$DE$53) -> 57717.70696 | AN20: =(Electric!$G184+Electric!$F184)/1000000*HLOOKUP($I$10,$Y$5:$AC$6,2,FALSE)/HLOOKUP($I$11,$Y$7:$AC$8,2,FALSE)+AN24*Fuel_Specs!$B$92/Fuel_Specs!$B$95+AN25*Fuel_Specs!$B$93/Fuel_Specs!$B$95 -> 183322.7228 | AO20: =(Hydrogen!$Z161*Hydrogen!$AA$147+Hydrogen!$AA161)/1000000*HLOOKUP($I$10,$Y$5:$AC$6,2,FALSE)/HLOOKUP($I$11,$Y$7:$AC$8,2,FALSE)+AO24*Fuel_Specs!$B$92/Fuel_Specs!$B$95+AO25*Fuel_Specs!$B$93/Fuel_Specs!$B$95 -> 112658.2985 | AP20: =(Hydrogen!$AX161*Hydrogen!$AY$147+Hydrogen!$AY161)/1000000*HLOOKUP($I$10,$Y$5:$AC$6,2,FALSE)/HLOOKUP($I$11,$Y$7:$AC$8,2,FALSE)+AP24*Fuel_Specs!$B$92/Fuel_Specs!$B$95+AP25*Fuel_Specs!$B$93/Fuel_Specs!$B$95 -> 175007.7697 | AQ20: =AN20*(Vehicles!$S$21/Vehicles!$DS$53)/(Vehicles!$S$21*(1/Vehicles!$DS$53+1/Vehicles!$DT$53)+Vehicles!$S$22/Vehicles!$DU$53)+AO20*(Vehicles!$S$21/Vehicles!$DT$53+Vehicles!$S$22/Vehicles!$DU$53)/(Vehicles!$S$21*(1/Vehicles!$DS$53+1/Vehicles!$DT$53)+Vehicles!$S$22/Vehicles!$DU$53) -> 134230.0769 | AR20: =AN20*(Vehicles!$S$21/Vehicles!$DS$53)/(Vehicles!$S$21*(1/Vehicles!$DS$53+1/Vehicles!$DT$53)+Vehicles!$S$22/Vehicles!$DU$53)+AP20*(Vehicles!$S$21/Vehicles!$DT$53+Vehicles!$S$22/Vehicles!$DU$53)/(Vehicles!$S$21*(1/Vehicles!$DS$53+1/Vehicles!$DT$53)+Vehicles!$S$22/Vehicles!$DU$53) -> 177546.0813
A21: CH4 | B21: =(Inputs!$E$1056*(Petroleum!$B230*Petroleum!$F$218+Petroleum!$F230)+(1-Inputs!$E$1056)*(Petroleum!$B230*Petroleum!$D$218+Petroleum!$D230))/1000000*HLOOKUP($I$10,$Y$5:$AC$6,2,FALSE)/HLOOKUP($I$11,$Y$7:$AC$8,2,FALSE) -> 116.267217 | C21: =(Petroleum!$C230*Petroleum!$G$218+Petroleum!$G230)/1000000*HLOOKUP($I$10,$Y$5:$AC$6,2,FALSE)/HLOOKUP($I$11,$Y$7:$AC$8,2,FALSE) -> 131.3934603 | D21: =((1-Vehicles!$C$26)*(1-Vehicles!$C$7)*Fuel_Specs!$B$11/((1-Vehicles!$C$26)*(1-Vehicles!$C$7)*Fuel_Specs!$B$11+Vehicles!$C$26*(1-Vehicles!$C$7)*Fuel_Specs!$B$13+Vehicles!$C$7*Fuel_Specs!$B$26)*(Petroleum!$B230*Petroleum!$D$218+Petroleum!$D230)+Vehicles!$C$26*(1-Vehicles!$C$7)*Fuel_Specs!$B$13/((1-Vehicles!$C$26)*(1-Vehicles!$C$7)*Fuel_Specs!$B$11+Vehicles!$C$26*(1-Vehicles!$C$7)*Fuel_Specs!$B$13+Vehicles!$C$7*Fuel_Specs!$B$26)*(Petroleum!B230*Petroleum!$F$218+Petroleum!$F230)+Vehicles!$C$7*Fuel_Specs!$B$26/((1-Vehicles!$C$26)*(1-Vehicles!$C$7)*Fuel_Specs!$B$11+Vehicles!$C$26*(1-Vehicles!$C$7)*Fuel_Specs!$B$13+Vehicles!$C$7*Fuel_Specs!$B$26)*(EtOH!BE413*EtOH!$BF$401+EtOH!$BF413))/1000000*HLOOKUP($I$10,$Y$5:$AC$6,2,FALSE)/HLOOKUP($I$11,$Y$7:$AC$8,2,FALSE) -> 116.2456428 | E21: =(Inputs!$E$88*(IF(Inputs!F$92=1,Petroleum!$B230,Petroleum!$C230)*Petroleum!$K$218+Petroleum!$K230)+(1-Inputs!$E$88)*(IF(Inputs!F$91=1,Petroleum!$B230,Petroleum!$C230)*Petroleum!$J$218+Petroleum!$J230))/1000000*HLOOKUP($I$10,$Y$5:$AC$6,2,FALSE)/HLOOKUP($I$11,$Y$7:$AC$8,2,FALSE) -> 125.1809495 | F21: =(NG!$H92*NG!$I$80+NG!$I92)/1000000*HLOOKUP($I$10,$Y$5:$AC$6,2,FALSE)/HLOOKUP($I$11,$Y$7:$AC$8,2,FALSE) -> 274.7311072 | G21: =(NG!$P92*NG!$Q$80+NG!$Q92)/1000000*HLOOKUP($I$10,$Y$5:$AC$6,2,FALSE)/HLOOKUP($I$11,$Y$7:$AC$8,2,FALSE) -> 336.301896 | H21: =(NG!$V92*NG!$W$80+NG!$W92)/1000000*HLOOKUP($I$10,$Y$5:$AC$6,2,FALSE)/HLOOKUP($I$11,$Y$7:$AC$8,2,FALSE) -> 151.9867441 | I21: =('MeOH&FTD'!AV144*'MeOH&FTD'!AW$132+'MeOH&FTD'!AW144)/1000000*HLOOKUP($I$10,$Y$5:$AC$6,2,FALSE)/HLOOKUP($I$11,$Y$7:$AC$8,2,FALSE) -> 173.0529763 | J21: =((1-Vehicles!$C$25)*(1-Vehicles!$C$5)*Fuel_Specs!$B$11/((1-Vehicles!$C$25)*(1-Vehicles!$C$5)*Fuel_Specs!$B$11+Vehicles!$C$25*(1-Vehicles!$C$5)*Fuel_Specs!$B$13+Vehicles!$C$5*Fuel_Specs!$B$25)*(Petroleum!$B230*Petroleum!$D$218+Petroleum!$D230)+Vehicles!$C$25*(1-Vehicles!$C$5)*Fuel_Specs!$B$13/((1-Vehicles!$C$25)*(1-Vehicles!$C$5)*Fuel_Specs!$B$11+Vehicles!$C$25*(1-Vehicles!$C$5)*Fuel_Specs!$B$13+Vehicles!$C$5*Fuel_Specs!$B$25)*(Petroleum!B230*Petroleum!$F$218+Petroleum!$F230)+Vehicles!$C$5*Fuel_Specs!$B$25/((1-Vehicles!$C$25)*(1-Vehicles!$C$5)*Fuel_Specs!$B$11+Vehicles!$C$25*(1-Vehicles!$C$5)*Fuel_Specs!$B$13+Vehicles!$C$5*Fuel_Specs!$B$25)*('MeOH&FTD'!$L144*'MeOH&FTD'!$M$132+'MeOH&FTD'!$M144))/1000000*HLOOKUP($I$10,$Y$5:$AC$6,2,FALSE)/HLOOKUP($I$11,$Y$7:$AC$8,2,FALSE) -> 152.7638995 | K21: =((1-Vehicles!$C$25)*(1-Vehicles!$C$6)*Fuel_Specs!$B$11/((1-Vehicles!$C$25)*(1-Vehicles!$C$6)*Fuel_Specs!$B$11+Vehicles!$C$25*(1-Vehicles!$C$6)*Fuel_Specs!$B$13+Vehicles!$C$6*Fuel_Specs!$B$25)*(Petroleum!$B230*Petroleum!$D$218+Petroleum!$D230)+Vehicles!$C$25*(1-Vehicles!$C$6)*Fuel_Specs!$B$13/((1-Vehicles!$C$25)*(1-Vehicles!$C$6)*Fuel_Specs!$B$11+Vehicles!$C$25*(1-Vehicles!$C$6)*Fuel_Specs!$B$13+Vehicles!$C$6*Fuel_Specs!$B$25)*(Petroleum!B230*Petroleum!$F$218+Petroleum!$F230)+Vehicles!$C$6*Fuel_Specs!$B$25/((1-Vehicles!$C$25)*(1-Vehicles!$C$6)*Fuel_Specs!$B$11+Vehicles!$C$25*(1-Vehicles!$C$6)*Fuel_Specs!$B$13+Vehicles!$C$6*Fuel_Specs!$B$25)*('MeOH&FTD'!$L144*'MeOH&FTD'!$M$132+'MeOH&FTD'!$M144))/1000000*HLOOKUP($I$10,$Y$5:$AC$6,2,FALSE)/HLOOKUP($I$11,$Y$7:$AC$8,2,FALSE) -> 156.3952044 | L21: =('MeOH&FTD'!$L144*'MeOH&FTD'!$M$132+'MeOH&FTD'!$M144)/1000000*HLOOKUP($I$10,$Y$5:$AC$6,2,FALSE)/HLOOKUP($I$11,$Y$7:$AC$8,2,FALSE) -> 164.7774613 | M21: =((1-Vehicles!$C$27)*(1-Vehicles!$C$8)*Fuel_Specs!$B$11/((1-Vehicles!$C$27)*(1-Vehicles!$C$8)*Fuel_Specs!$B$11+Vehicles!$C$27*(1-Vehicles!$C$8)*Fuel_Specs!$B$13+Vehicles!$C$8*Fuel_Specs!$B$26)*(Petroleum!$B230*Petroleum!$D$218+Petroleum!$D230)+Vehicles!$C$27*(1-Vehicles!$C$8)*Fuel_Specs!$B$13/((1-Vehicles!$C$27)*(1-Vehicles!$C$8)*Fuel_Specs!$B$11+Vehicles!$C$27*(1-Vehicles!$C$8)*Fuel_Specs!$B$13+Vehicles!$C$8*Fuel_Specs!$B$26)*(Petroleum!B230*Petroleum!$F$218+Petroleum!$F230)+Vehicles!$C$8*Fuel_Specs!$B$26/((1-Vehicles!$C$27)*(1-Vehicles!$C$8)*Fuel_Specs!$B$11+Vehicles!$C$27*(1-Vehicles!$C$8)*Fuel_Specs!$B$13+Vehicles!$C$8*Fuel_Specs!$B$26)*(EtOH!BE413*EtOH!$BF$401+EtOH!$BF413))/1000000*HLOOKUP($I$10,$Y$5:$AC$6,2,FALSE)/HLOOKUP($I$11,$Y$7:$AC$8,2,FALSE) -> 85.33039628 | N21: =((1-Vehicles!$C$28)*(1-Vehicles!$C$10)*Fuel_Specs!$B$11/((1-Vehicles!$C$28)*(1-Vehicles!$C$10)*Fuel_Specs!$B$11+Vehicles!$C$28*(1-Vehicles!$C$10)*Fuel_Specs!$B$13+Vehicles!$C$10*Fuel_Specs!$B$27)*(Petroleum!$B230*Petroleum!$D$218+Petroleum!$D230)+Vehicles!$C$28*(1-Vehicles!$C$10)*Fuel_Specs!$B$13/((1-Vehicles!$C$28)*(1-Vehicles!$C$10)*Fuel_Specs!$B$11+Vehicles!$C$28*(1-Vehicles!$C$10)*Fuel_Specs!$B$13+Vehicles!$C$10*Fuel_Specs!$B$27)*(Petroleum!B230*Petroleum!$F$218+Petroleum!$F230)+Vehicles!$C$10*Fuel_Specs!$B$27/((1-Vehicles!$C$28)*(1-Vehicles!$C$10)*Fuel_Specs!$B$11+Vehicles!$C$28*(1-Vehicles!$C$10)*Fuel_Specs!$B$13+Vehicles!$C$10*Fuel_Specs!$B$27)*(EtOH!$BI413*EtOH!$BJ$401+EtOH!$BJ413))/1000000*HLOOKUP($I$10,$Y$5:$AC$6,2,FALSE)/HLOOKUP($I$11,$Y$7:$AC$8,2,FALSE) -> 124.8219726 | O21: =((1-Vehicles!$C$27)*(1-Vehicles!$C$9)*Fuel_Specs!$B$11/((1-Vehicles!$C$27)*(1-Vehicles!$C$9)*Fuel_Specs!$B$11+Vehicles!$C$27*(1-Vehicles!$C$9)*Fuel_Specs!$B$13+Vehicles!$C$9*Fuel_Specs!$B$26)*(Petroleum!$B230*Petroleum!$D$218+Petroleum!$D230)+Vehicles!$C$27*(1-Vehicles!$C$9)*Fuel_Specs!$B$13/((1-Vehicles!$C$27)*(1-Vehicles!$C$9)*Fuel_Specs!$B$11+Vehicles!$C$27*(1-Vehicles!$C$9)*Fuel_Specs!$B$13+Vehicles!$C$9*Fuel_Specs!$B$26)*(Petroleum!B230*Petroleum!$F$218+Petroleum!$F230)+Vehicles!$C$9*Fuel_Specs!$B$26/((1-Vehicles!$C$27)*(1-Vehicles!$C$9)*Fuel_Specs!$B$11+Vehicles!$C$27*(1-Vehicles!$C$9)*Fuel_Specs!$B$13+Vehicles!$C$9*Fuel_Specs!$B$26)*(EtOH!BE413*EtOH!$BF$401+EtOH!$BF413))/1000000*HLOOKUP($I$10,$Y$5:$AC$6,2,FALSE)/HLOOKUP($I$11,$Y$7:$AC$8,2,FALSE) -> 85.33039628 | P21: =(EtOH!$BE413*EtOH!$BF$401+EtOH!$BF413)/1000000*HLOOKUP($I$10,$Y$5:$AC$6,2,FALSE)/HLOOKUP($I$11,$Y$7:$AC$8,2,FALSE) -> 75.00576959 | Q21: =((1-Vehicles!$C$29)*(1-Vehicles!$C$14)*Fuel_Specs!$B$11/((1-Vehicles!$C$29)*(1-Vehicles!$C$14)*Fuel_Specs!$B$11+Vehicles!$C$29*(1-Vehicles!$C$14)*Fuel_Specs!$B$13+Vehicles!$C$14*Fuel_Specs!$B$39)*(Petroleum!$B230*Petroleum!$D$218+Petroleum!$D230)+Vehicles!$C$29*(1-Vehicles!$C$14)*Fuel_Specs!$B$13/((1-Vehicles!$C$29)*(1-Vehicles!$C$14)*Fuel_Specs!$B$11+Vehicles!$C$29*(1-Vehicles!$C$14)*Fuel_Specs!$B$13+Vehicles!$C$14*Fuel_Specs!$B$39)*(Petroleum!B230*Petroleum!$F$218+Petroleum!$F230)+Vehicles!$C$14*Fuel_Specs!$B$39/((1-Vehicles!$C$29)*(1-Vehicles!$C$14)*Fuel_Specs!$B$11+Vehicles!$C$29*(1-Vehicles!$C$14)*Fuel_Specs!$B$13+Vehicles!$C$14*Fuel_Specs!$B$39)*(BioOil!$BQ326*BioOil!$BR$313+BioOil!$BR326))/1000000*HLOOKUP($I$10,$Y$5:$AC$6,2,FALSE)/HLOOKUP($I$11,$Y$7:$AC$8,2,FALSE) -> 39.76426128 | R21: =((1-Vehicles!$C$29)*(1-Vehicles!$C$14)*Fuel_Specs!$B$11/((1-Vehicles!$C$29)*(1-Vehicles!$C$14)*Fuel_Specs!$B$11+Vehicles!$C$29*(1-Vehicles!$C$14)*Fuel_Specs!$B$13+Vehicles!$C$14*Fuel_Specs!$B$39)*(Petroleum!$B230*Petroleum!$D$218+Petroleum!$D230)+Vehicles!$C$29*(1-Vehicles!$C$14)*Fuel_Specs!$B$13/((1-Vehicles!$C$29)*(1-Vehicles!$C$14)*Fuel_Specs!$B$11+Vehicles!$C$29*(1-Vehicles!$C$14)*Fuel_Specs!$B$13+Vehicles!$C$14*Fuel_Specs!$B$39)*(Petroleum!B230*Petroleum!$F$218+Petroleum!$F230)+Vehicles!$C$14*Fuel_Specs!$B$39/((1-Vehicles!$C$29)*(1-Vehicles!$C$14)*Fuel_Specs!$B$11+Vehicles!$C$29*(1-Vehicles!$C$14)*Fuel_Specs!$B$13+Vehicles!$C$14*Fuel_Specs!$B$39)*(Pyrolysis!$Z178*Pyrolysis!$AA$166+Pyrolysis!$AA178))/1000000*HLOOKUP($I$10,$Y$5:$AC$6,2,FALSE)/HLOOKUP($I$11,$Y$7:$AC$8,2,FALSE) -> 67.36309194 | S21: =AN21*(Vehicles!$C$21/Vehicles!$AN$53)/(Vehicles!$C$21*(1/Vehicles!$AN$53+1/Vehicles!$AO$53)+Vehicles!$C$22/Vehicles!$AP$53)+B21*(Vehicles!$C$21/Vehicles!$AO$53+Vehicles!$C$22/Vehicles!$AP$53)/(Vehicles!$C$21*(1/Vehicles!$AN$53+1/Vehicles!$AO$53)+Vehicles!$C$22/Vehicles!$AP$53) -> 166.0380674 | T21: =AN21*(Vehicles!$D$21/Vehicles!$AR$53)/(Vehicles!$D$21*(1/Vehicles!$AR$53+1/Vehicles!$AS$53)+Vehicles!$D$22/Vehicles!$AT$53)+C21*(Vehicles!$D$21/Vehicles!$AS$53+Vehicles!$D$22/Vehicles!$AT$53)/(Vehicles!$D$21*(1/Vehicles!$AR$53+1/Vehicles!$AS$53)+Vehicles!$D$22/Vehicles!$AT$53) -> 177.6574208 | U21: =AN21*(Vehicles!$F$21/Vehicles!$AZ$53)/(Vehicles!$F$21*(1/Vehicles!$AZ$53+1/Vehicles!$BA$53)+Vehicles!$F$22/Vehicles!$BB$53)+D21*(Vehicles!$F$21/Vehicles!$BA$53+Vehicles!$F$22/Vehicles!$BB$53)/(Vehicles!$F$21*(1/Vehicles!$AZ$53+1/Vehicles!$BA$53)+Vehicles!$F$22/Vehicles!$BB$53) -> 166.021495 | V21: =AN21*(Vehicles!$G$21/Vehicles!$BD$53)/(Vehicles!$G$21*(1/Vehicles!$BD$53+1/Vehicles!$BE$53)+Vehicles!$G$22/Vehicles!$BF$53)+F21*(Vehicles!$G$21/Vehicles!$BE$53+Vehicles!$G$22/Vehicles!$BF$53)/(Vehicles!$G$21*(1/Vehicles!$BD$53+1/Vehicles!$BE$53)+Vehicles!$G$22/Vehicles!$BF$53) -> 287.7634627 | W21: =AN21*(Vehicles!$H$21/Vehicles!$BH$53)/(Vehicles!$H$21*(1/Vehicles!$BH$53+1/Vehicles!$BI$53)+Vehicles!$H$22/Vehicles!$BJ$53)+G21*(Vehicles!$H$21/Vehicles!$BI$53+Vehicles!$H$22/Vehicles!$BJ$53)/(Vehicles!$H$21*(1/Vehicles!$BH$53+1/Vehicles!$BI$53)+Vehicles!$H$22/Vehicles!$BJ$53) -> 335.0595918 | X21: =AN21*(Vehicles!$I$21/Vehicles!$BL$53)/(Vehicles!$I$21*(1/Vehicles!$BL$53+1/Vehicles!$BM$53)+Vehicles!$I$22/Vehicles!$BN$53)+H21*(Vehicles!$I$21/Vehicles!$BM$53+Vehicles!$I$22/Vehicles!$BN$53)/(Vehicles!$I$21*(1/Vehicles!$BL$53+1/Vehicles!$BM$53)+Vehicles!$I$22/Vehicles!$BN$53) -> 193.4763283 | Y21: =AN21*(Vehicles!$J$21/Vehicles!$BP$53)/(Vehicles!$J$21*(1/Vehicles!$BP$53+1/Vehicles!$BQ$53)+Vehicles!$J$22/Vehicles!$BR$53)+K21*(Vehicles!$J$21/Vehicles!$BQ$53+Vehicles!$J$22/Vehicles!$BR$53)/(Vehicles!$J$21*(1/Vehicles!$BP$53+1/Vehicles!$BQ$53)+Vehicles!$J$22/Vehicles!$BR$53) -> 196.8627248 | Z21: =AN21*(Vehicles!$K$21/Vehicles!$BT$53)/(Vehicles!$K$21*(1/Vehicles!$BT$53+1/Vehicles!$BU$53)+Vehicles!$K$22/Vehicles!$BV$53)+O21*(Vehicles!$K$21/Vehicles!$BU$53+Vehicles!$K$22/Vehicles!$BV$53)/(Vehicles!$K$21*(1/Vehicles!$BT$53+1/Vehicles!$BU$53)+Vehicles!$K$22/Vehicles!$BV$53) -> 139.4395662 | AA21: =AN21*(Vehicles!$L$21/Vehicles!$BX$53)/(Vehicles!$L$21*(1/Vehicles!$BX$53+1/Vehicles!$BY$53)+Vehicles!$L$22/Vehicles!$BZ$53)+AO21*(Vehicles!$L$21/Vehicles!$BY$53+Vehicles!$L$22/Vehicles!$BZ$53)/(Vehicles!$L$21*(1/Vehicles!$BX$53+1/Vehicles!$BY$53)+Vehicles!$L$22/Vehicles!$BZ$53) -> 390.2004983 | AB21: =AN21*(Vehicles!$L$21/Vehicles!$BX$53)/(Vehicles!$L$21*(1/Vehicles!$BX$53+1/Vehicles!$BY$53)+Vehicles!$L$22/Vehicles!$CA$53)+AP21*(Vehicles!$L$21/Vehicles!$BY$53+Vehicles!$L$22/Vehicles!$CA$53)/(Vehicles!$L$21*(1/Vehicles!$BX$53+1/Vehicles!$BY$53)+Vehicles!$L$22/Vehicles!$CA$53) -> 538.549694 | AC21: =('MeOH&FTD'!$X144*'MeOH&FTD'!$Y$132+'MeOH&FTD'!$Y144)/1000000*HLOOKUP($I$10,$Y$5:$AC$6,2,FALSE)/HLOOKUP($I$11,$Y$7:$AC$8,2,FALSE) -> 158.8182602 | AD21: =((1-Vehicles!$C$30)*(1-Vehicles!$C$11)*Fuel_Specs!$B$15/((1-Vehicles!$C$30)*(1-Vehicles!$C$11)*Fuel_Specs!$B$15+Vehicles!$C$30*(1-Vehicles!$C$11)*Fuel_Specs!$B$18+Vehicles!$C$11*Fuel_Specs!$B$35)*(Petroleum!B230*Petroleum!$J$218+Petroleum!$J230)+Vehicles!$C$30*(1-Vehicles!$C$11)*Fuel_Specs!$B$18/((1-Vehicles!$C$30)*(1-Vehicles!$C$11)*Fuel_Specs!$B$15+Vehicles!$C$30*(1-Vehicles!$C$11)*Fuel_Specs!$B$18+Vehicles!$C$11*Fuel_Specs!$B$35)*(Petroleum!B230*Petroleum!$K$218+Petroleum!$K230)+Vehicles!$C$11*Fuel_Specs!$B$35/((1-Vehicles!$C$30)*(1-Vehicles!$C$11)*Fuel_Specs!$B$15+Vehicles!$C$30*(1-Vehicles!$C$11)*Fuel_Specs!$B$18+Vehicles!$C$11*Fuel_Specs!$B$35)*('MeOH&FTD'!$AL144*'MeOH&FTD'!$AM$132+'MeOH&FTD'!$AM144))/1000000*HLOOKUP($I$10,$Y$5:$AC$6,2,FALSE)/HLOOKUP($I$11,$Y$7:$AC$8,2,FALSE) -> 174.3495771 | AE21: =((1-Vehicles!$C$31)*(1-Vehicles!$C$12)*Fuel_Specs!$B$15/((1-Vehicles!$C$31)*(1-Vehicles!$C$12)*Fuel_Specs!$B$15+Vehicles!$C$31*(1-Vehicles!$C$12)*Fuel_Specs!$B$18+Vehicles!$C$12*Fuel_Specs!$B$34)*(Petroleum!B230*Petroleum!$J$218+Petroleum!$J230)+Vehicles!$C$31*(1-Vehicles!$C$12)*Fuel_Specs!$B$18/((1-Vehicles!$C$31)*(1-Vehicles!$C$12)*Fuel_Specs!$B$15+Vehicles!$C$31*(1-Vehicles!$C$12)*Fuel_Specs!$B$18+Vehicles!$C$12*Fuel_Specs!$B$34)*(Petroleum!B230*Petroleum!$K$218+Petroleum!$K230)+Vehicles!$C$12*Fuel_Specs!$B$34/((1-Vehicles!$C$31)*(1-Vehicles!$C$12)*Fuel_Specs!$B$15+Vehicles!$C$31*(1-Vehicles!$C$12)*Fuel_Specs!$B$18+Vehicles!$C$12*Fuel_Specs!$B$34)*(BioOil!$Y326*BioOil!$Z$313+BioOil!$Z326))/1000000*HLOOKUP($I$10,$Y$5:$AC$6,2,FALSE)/HLOOKUP($I$11,$Y$7:$AC$8,2,FALSE) -> 109.2430084 | AF21: =((1-Vehicles!$C$32)*(1-Vehicles!$C$13)*Fuel_Specs!$B$15/((1-Vehicles!$C$32)*(1-Vehicles!$C$13)*Fuel_Specs!$B$15+Vehicles!$C$32*(1-Vehicles!$C$13)*Fuel_Specs!$B$18+Vehicles!$C$13*IF(Inputs!$E$499=1,IF(Inputs!$E$499=1,Fuel_Specs!$B$36,IF(Inputs!$E$499=3,Fuel_Specs!$B$38,Fuel_Specs!$B$37)),Fuel_Specs!$B$37))*(Petroleum!B230*Petroleum!$J$218+Petroleum!$J230)+Vehicles!$C$32*(1-Vehicles!$C$13)*Fuel_Specs!$B$18/((1-Vehicles!$C$32)*(1-Vehicles!$C$13)*Fuel_Specs!$B$15+Vehicles!$C$32*(1-Vehicles!$C$13)*Fuel_Specs!$B$18+Vehicles!$C$13*IF(Inputs!$E$499=1,IF(Inputs!$E$499=1,Fuel_Specs!$B$36,IF(Inputs!$E$499=3,Fuel_Specs!$B$38,Fuel_Specs!$B$37)),Fuel_Specs!$B$37))*(Petroleum!B230*Petroleum!$K$218+Petroleum!$K230)+Vehicles!$C$13*IF(Inputs!$E$499=1,IF(Inputs!$E$499=1,Fuel_Specs!$B$36,IF(Inputs!$E$499=3,Fuel_Specs!$B$38,Fuel_Specs!$B$37)),Fuel_Specs!$B$37)/((1-Vehicles!$C$32)*(1-Vehicles!$C$13)*Fuel_Specs!$B$15+Vehicles!$C$32*(1-Vehicles!$C$13)*Fuel_Specs!$B$18+Vehicles!$C$13*IF(Inputs!$E$499=1,IF(Inputs!$E$499=1,Fuel_Specs!$B$36,IF(Inputs!$E$499=3,Fuel_Specs!$B$38,Fuel_Specs!$B$37)),Fuel_Specs!$B$37))*(BioOil!$BE326*BioOil!$BF$313+BioOil!$BF326))/1000000*HLOOKUP($I$10,$Y$5:$AC$6,2,FALSE)/HLOOKUP($I$11,$Y$7:$AC$8,2,FALSE) -> 28.12665538 | AG21: =((1-Vehicles!$C$32)*(1-Vehicles!$C$13)*Fuel_Specs!$B$15/((1-Vehicles!$C$32)*(1-Vehicles!$C$13)*Fuel_Specs!$B$15+Vehicles!$C$32*(1-Vehicles!$C$13)*Fuel_Specs!$B$18+Vehicles!$C$13*IF(Inputs!$E$499=1,Fuel_Specs!$B$36,Fuel_Specs!$B$37))*(Petroleum!B230*Petroleum!$J$218+Petroleum!$J230)+Vehicles!$C$32*(1-Vehicles!$C$13)*Fuel_Specs!$B$18/((1-Vehicles!$C$32)*(1-Vehicles!$C$13)*Fuel_Specs!$B$15+Vehicles!$C$32*(1-Vehicles!$C$13)*Fuel_Specs!$B$18+Vehicles!$C$13*IF(Inputs!$E$499=1,Fuel_Specs!$B$36,Fuel_Specs!$B$37))*(Petroleum!B230*Petroleum!$K$218+Petroleum!$K230)+Vehicles!$C$13*IF(Inputs!$E$499=1,Fuel_Specs!$B$36,Fuel_Specs!$B$37)/((1-Vehicles!$C$32)*(1-Vehicles!$C$13)*Fuel_Specs!$B$15+Vehicles!$C$32*(1-Vehicles!$C$13)*Fuel_Specs!$B$18+Vehicles!$C$13*IF(Inputs!$E$499=1,Fuel_Specs!$B$36,Fuel_Specs!$B$37))*(Pyrolysis!$AB178*Pyrolysis!$AC$166+Pyrolysis!$AC178))/1000000*HLOOKUP($I$10,$Y$5:$AC$6,2,FALSE)/HLOOKUP($I$11,$Y$7:$AC$8,2,FALSE) -> 70.11818383 | AH21: =(((1-Vehicles!$C$33)*(1-Vehicles!$C$15-Vehicles!$C$16)*Fuel_Specs!$B$15*(Petroleum!B230*Petroleum!$J$218+Petroleum!$J230)+Vehicles!$C$33*(1-Vehicles!$C$15-Vehicles!$C$16)*Fuel_Specs!$B$18*(Petroleum!B230*Petroleum!$K$218+Petroleum!$K230)+Vehicles!$C$15*Fuel_Specs!$B$26*(EtOH!BE413*EtOH!$BF$401+EtOH!$BF413)+Vehicles!$C$16*Fuel_Specs!$B$29*('E-D Additives'!$B60*'E-D Additives'!$B$48))/((1-Vehicles!$C$33)*(1-Vehicles!$C$15-Vehicles!$C$16)*Fuel_Specs!$B$15+Vehicles!$C$33*(1-Vehicles!$C$15-Vehicles!$C$16)*Fuel_Specs!$B$18+Vehicles!$C$15*Fuel_Specs!$B$26+Vehicles!$C$16*Fuel_Specs!$B$29))/1000000*HLOOKUP($I$10,$Y$5:$AC$6,2,FALSE)/HLOOKUP($I$11,$Y$7:$AC$8,2,FALSE) -> 121.5396351 | AI21: =AN21*(Vehicles!$M$21/Vehicles!$CI$53)/(Vehicles!$M$21*(1/Vehicles!$CI$53+1/Vehicles!$CJ$53)+Vehicles!$M$22/Vehicles!$CK$53)+E21*(Vehicles!$M$21/Vehicles!$CJ$53+Vehicles!$M$22/Vehicles!$CK$53)/(Vehicles!$M$21*(1/Vehicles!$CI$53+1/Vehicles!$CJ$53)+Vehicles!$M$22/Vehicles!$CK$53) -> 174.6602512 | AJ21: =AN21*(Vehicles!$N$21/Vehicles!$CM$53)/(Vehicles!$N$21*(1/Vehicles!$CM$53+1/Vehicles!$CN$53)+Vehicles!$N$22/Vehicles!$CO$53)+AC21*(Vehicles!$N$21/Vehicles!$CN$53+Vehicles!$N$22/Vehicles!$CO$53)/(Vehicles!$N$21*(1/Vehicles!$CM$53+1/Vehicles!$CN$53)+Vehicles!$N$22/Vehicles!$CO$53) -> 200.2088653 | AK21: =AN21*(Vehicles!$O$21/Vehicles!$CQ$53)/(Vehicles!$O$21*(1/Vehicles!$CQ$53+1/Vehicles!$CR$53)+Vehicles!$O$22/Vehicles!$CS$53)+AD21*(Vehicles!$O$21/Vehicles!$CR$53+Vehicles!$O$22/Vehicles!$CS$53)/(Vehicles!$O$21*(1/Vehicles!$CQ$53+1/Vehicles!$CR$53)+Vehicles!$O$22/Vehicles!$CS$53) -> 212.0053975 | AL21: =AN21*(Vehicles!$P$21/Vehicles!$CU$53)/(Vehicles!$P$21*(1/Vehicles!$CU$53+1/Vehicles!$CV$53)+Vehicles!$P$22/Vehicles!$CW$53)+AE21*(Vehicles!$P$21/Vehicles!$CV$53+Vehicles!$P$22/Vehicles!$CW$53)/(Vehicles!$P$21*(1/Vehicles!$CU$53+1/Vehicles!$CV$53)+Vehicles!$P$22/Vehicles!$CW$53) -> 162.5548748 | AM21: =AN21*(Vehicles!$R$21/Vehicles!$DC$53)/(Vehicles!$R$21*(1/Vehicles!$DC$53+1/Vehicles!$DD$53)+Vehicles!$R$22/Vehicles!$DE$53)+AH21*(Vehicles!$R$21/Vehicles!$DD$53+Vehicles!$R$22/Vehicles!$DE$53)/(Vehicles!$R$21*(1/Vehicles!$DC$53+1/Vehicles!$DD$53)+Vehicles!$R$22/Vehicles!$DE$53) -> 171.8945563 | AN21: =(Electric!$G182+Electric!$F182)/1000000*HLOOKUP($I$10,$Y$5:$AC$6,2,FALSE)/HLOOKUP($I$11,$Y$7:$AC$8,2,FALSE) -> 330.9434741 | AO21: =(Hydrogen!$Z159*Hydrogen!$AA$147+Hydrogen!$AA159)/1000000*HLOOKUP($I$10,$Y$5:$AC$6,2,FALSE)/HLOOKUP($I$11,$Y$7:$AC$8,2,FALSE) -> 409.5874792 | AP21: =(Hydrogen!$AX159*Hydrogen!$AY$147+Hydrogen!$AY159)/1000000*HLOOKUP($I$10,$Y$5:$AC$6,2,FALSE)/HLOOKUP($I$11,$Y$7:$AC$8,2,FALSE) -> 606.4717315 | AQ21: =AN21*(Vehicles!$S$21/Vehicles!$DS$53)/(Vehicles!$S$21*(1/Vehicles!$DS$53+1/Vehicles!$DT$53)+Vehicles!$S$22/Vehicles!$DU$53)+AO21*(Vehicles!$S$21/Vehicles!$DT$53+Vehicles!$S$22/Vehicles!$DU$53)/(Vehicles!$S$21*(1/Vehicles!$DS$53+1/Vehicles!$DT$53)+Vehicles!$S$22/Vehicles!$DU$53) -> 385.5797685 | AR21: =AN21*(Vehicles!$S$21/Vehicles!$DS$53)/(Vehicles!$S$21*(1/Vehicles!$DS$53+1/Vehicles!$DT$53)+Vehicles!$S$22/Vehicles!$DU$53)+AP21*(Vehicles!$S$21/Vehicles!$DT$53+Vehicles!$S$22/Vehicles!$DU$53)/(Vehicles!$S$21*(1/Vehicles!$DS$53+1/Vehicles!$DT$53)+Vehicles!$S$22/Vehicles!$DU$53) -> 522.3610267
A22: N2O | B22: =(Inputs!$E$1056*(Petroleum!$B231*Petroleum!$F$218+Petroleum!$F231)+(1-Inputs!$E$1056)*(Petroleum!$B231*Petroleum!$D$218+Petroleum!$D231))/1000000*HLOOKUP($I$10,$Y$5:$AC$6,2,FALSE)/HLOOKUP($I$11,$Y$7:$AC$8,2,FALSE) -> 2.964208069 | C22: =(Petroleum!$C231*Petroleum!$G$218+Petroleum!$G231)/1000000*HLOOKUP($I$10,$Y$5:$AC$6,2,FALSE)/HLOOKUP($I$11,$Y$7:$AC$8,2,FALSE) -> 3.012891446 | D22: =((1-Vehicles!$C$26)*(1-Vehicles!$C$7)*Fuel_Specs!$B$11/((1-Vehicles!$C$26)*(1-Vehicles!$C$7)*Fuel_Specs!$B$11+Vehicles!$C$26*(1-Vehicles!$C$7)*Fuel_Specs!$B$13+Vehicles!$C$7*Fuel_Specs!$B$26)*(Petroleum!$B231*Petroleum!$D$218+Petroleum!$D231)+Vehicles!$C$26*(1-Vehicles!$C$7)*Fuel_Specs!$B$13/((1-Vehicles!$C$26)*(1-Vehicles!$C$7)*Fuel_Specs!$B$11+Vehicles!$C$26*(1-Vehicles!$C$7)*Fuel_Specs!$B$13+Vehicles!$C$7*Fuel_Specs!$B$26)*(Petroleum!B231*Petroleum!$F$218+Petroleum!$F231)+Vehicles!$C$7*Fuel_Specs!$B$26/((1-Vehicles!$C$26)*(1-Vehicles!$C$7)*Fuel_Specs!$B$11+Vehicles!$C$26*(1-Vehicles!$C$7)*Fuel_Specs!$B$13+Vehicles!$C$7*Fuel_Specs!$B$26)*(EtOH!BE414*EtOH!$BF$401+EtOH!$BF414))/1000000*HLOOKUP($I$10,$Y$5:$AC$6,2,FALSE)/HLOOKUP($I$11,$Y$7:$AC$8,2,FALSE) -> 2.963971268 | E22: =(Inputs!$E$88*(IF(Inputs!F$92=1,Petroleum!$B231,Petroleum!$C231)*Petroleum!$K$218+Petroleum!$K231)+(1-Inputs!$E$88)*(IF(Inputs!F$91=1,Petroleum!$B231,Petroleum!$C231)*Petroleum!$J$218+Petroleum!$J231))/1000000*HLOOKUP($I$10,$Y$5:$AC$6,2,FALSE)/HLOOKUP($I$11,$Y$7:$AC$8,2,FALSE) -> 0.3859530281 | F22: =(NG!$H93*NG!$I$80+NG!$I93)/1000000*HLOOKUP($I$10,$Y$5:$AC$6,2,FALSE)/HLOOKUP($I$11,$Y$7:$AC$8,2,FALSE) -> 1.502147747 | G22: =(NG!$P93*NG!$Q$80+NG!$Q93)/1000000*HLOOKUP($I$10,$Y$5:$AC$6,2,FALSE)/HLOOKUP($I$11,$Y$7:$AC$8,2,FALSE) -> 2.319636452 | H22: =(NG!$V93*NG!$W$80+NG!$W93)/1000000*HLOOKUP($I$10,$Y$5:$AC$6,2,FALSE)/HLOOKUP($I$11,$Y$7:$AC$8,2,FALSE) -> 0.23031046 | I22: =('MeOH&FTD'!AV145*'MeOH&FTD'!AW$132+'MeOH&FTD'!AW145)/1000000*HLOOKUP($I$10,$Y$5:$AC$6,2,FALSE)/HLOOKUP($I$11,$Y$7:$AC$8,2,FALSE) -> 0.03228938115 | J22: =((1-Vehicles!$C$25)*(1-Vehicles!$C$5)*Fuel_Specs!$B$11/((1-Vehicles!$C$25)*(1-Vehicles!$C$5)*Fuel_Specs!$B$11+Vehicles!$C$25*(1-Vehicles!$C$5)*Fuel_Specs!$B$13+Vehicles!$C$5*Fuel_Specs!$B$25)*(Petroleum!$B231*Petroleum!$D$218+Petroleum!$D231)+Vehicles!$C$25*(1-Vehicles!$C$5)*Fuel_Specs!$B$13/((1-Vehicles!$C$25)*(1-Vehicles!$C$5)*Fuel_Specs!$B$11+Vehicles!$C$25*(1-Vehicles!$C$5)*Fuel_Specs!$B$13+Vehicles!$C$5*Fuel_Specs!$B$25)*(Petroleum!B231*Petroleum!$F$218+Petroleum!$F231)+Vehicles!$C$5*Fuel_Specs!$B$25/((1-Vehicles!$C$25)*(1-Vehicles!$C$5)*Fuel_Specs!$B$11+Vehicles!$C$25*(1-Vehicles!$C$5)*Fuel_Specs!$B$13+Vehicles!$C$5*Fuel_Specs!$B$25)*('MeOH&FTD'!$L145*'MeOH&FTD'!$M$132+'MeOH&FTD'!$M145))/1000000*HLOOKUP($I$10,$Y$5:$AC$6,2,FALSE)/HLOOKUP($I$11,$Y$7:$AC$8,2,FALSE) -> 0.3532181905 | K22: =((1-Vehicles!$C$25)*(1-Vehicles!$C$6)*Fuel_Specs!$B$11/((1-Vehicles!$C$25)*(1-Vehicles!$C$6)*Fuel_Specs!$B$11+Vehicles!$C$25*(1-Vehicles!$C$6)*Fuel_Specs!$B$13+Vehicles!$C$6*Fuel_Specs!$B$25)*(Petroleum!$B231*Petroleum!$D$218+Petroleum!$D231)+Vehicles!$C$25*(1-Vehicles!$C$6)*Fuel_Specs!$B$13/((1-Vehicles!$C$25)*(1-Vehicles!$C$6)*Fuel_Specs!$B$11+Vehicles!$C$25*(1-Vehicles!$C$6)*Fuel_Specs!$B$13+Vehicles!$C$6*Fuel_Specs!$B$25)*(Petroleum!B231*Petroleum!$F$218+Petroleum!$F231)+Vehicles!$C$6*Fuel_Specs!$B$25/((1-Vehicles!$C$25)*(1-Vehicles!$C$6)*Fuel_Specs!$B$11+Vehicles!$C$25*(1-Vehicles!$C$6)*Fuel_Specs!$B$13+Vehicles!$C$6*Fuel_Specs!$B$25)*('MeOH&FTD'!$L145*'MeOH&FTD'!$M$132+'MeOH&FTD'!$M145))/1000000*HLOOKUP($I$10,$Y$5:$AC$6,2,FALSE)/HLOOKUP($I$11,$Y$7:$AC$8,2,FALSE) -> 0.3570118044 | L22: =('MeOH&FTD'!$L145*'MeOH&FTD'!$M$132+'MeOH&FTD'!$M145)/1000000*HLOOKUP($I$10,$Y$5:$AC$6,2,FALSE)/HLOOKUP($I$11,$Y$7:$AC$8,2,FALSE) -> 0.3657687242 | M22: =((1-Vehicles!$C$27)*(1-Vehicles!$C$8)*Fuel_Specs!$B$11/((1-Vehicles!$C$27)*(1-Vehicles!$C$8)*Fuel_Specs!$B$11+Vehicles!$C$27*(1-Vehicles!$C$8)*Fuel_Specs!$B$13+Vehicles!$C$8*Fuel_Specs!$B$26)*(Petroleum!$B231*Petroleum!$D$218+Petroleum!$D231)+Vehicles!$C$27*(1-Vehicles!$C$8)*Fuel_Specs!$B$13/((1-Vehicles!$C$27)*(1-Vehicles!$C$8)*Fuel_Specs!$B$11+Vehicles!$C$27*(1-Vehicles!$C$8)*Fuel_Specs!$B$13+Vehicles!$C$8*Fuel_Specs!$B$26)*(Petroleum!B231*Petroleum!$F$218+Petroleum!$F231)+Vehicles!$C$8*Fuel_Specs!$B$26/((1-Vehicles!$C$27)*(1-Vehicles!$C$8)*Fuel_Specs!$B$11+Vehicles!$C$27*(1-Vehicles!$C$8)*Fuel_Specs!$B$13+Vehicles!$C$8*Fuel_Specs!$B$26)*(EtOH!BE414*EtOH!$BF$401+EtOH!$BF414))/1000000*HLOOKUP($I$10,$Y$5:$AC$6,2,FALSE)/HLOOKUP($I$11,$Y$7:$AC$8,2,FALSE) -> 30.72890647 | N22: =((1-Vehicles!$C$28)*(1-Vehicles!$C$10)*Fuel_Specs!$B$11/((1-Vehicles!$C$28)*(1-Vehicles!$C$10)*Fuel_Specs!$B$11+Vehicles!$C$28*(1-Vehicles!$C$10)*Fuel_Specs!$B$13+Vehicles!$C$10*Fuel_Specs!$B$27)*(Petroleum!$B231*Petroleum!$D$218+Petroleum!$D231)+Vehicles!$C$28*(1-Vehicles!$C$10)*Fuel_Specs!$B$13/((1-Vehicles!$C$28)*(1-Vehicles!$C$10)*Fuel_Specs!$B$11+Vehicles!$C$28*(1-Vehicles!$C$10)*Fuel_Specs!$B$13+Vehicles!$C$10*Fuel_Specs!$B$27)*(Petroleum!B231*Petroleum!$F$218+Petroleum!$F231)+Vehicles!$C$10*Fuel_Specs!$B$27/((1-Vehicles!$C$28)*(1-Vehicles!$C$10)*Fuel_Specs!$B$11+Vehicles!$C$28*(1-Vehicles!$C$10)*Fuel_Specs!$B$13+Vehicles!$C$10*Fuel_Specs!$B$27)*(EtOH!$BI414*EtOH!$BJ$401+EtOH!$BJ414))/1000000*HLOOKUP($I$10,$Y$5:$AC$6,2,FALSE)/HLOOKUP($I$11,$Y$7:$AC$8,2,FALSE) -> 36.6078994 | O22: =((1-Vehicles!$C$27)*(1-Vehicles!$C$9)*Fuel_Specs!$B$11/((1-Vehicles!$C$27)*(1-Vehicles!$C$9)*Fuel_Specs!$B$11+Vehicles!$C$27*(1-Vehicles!$C$9)*Fuel_Specs!$B$13+Vehicles!$C$9*Fuel_Specs!$B$26)*(Petroleum!$B231*Petroleum!$D$218+Petroleum!$D231)+Vehicles!$C$27*(1-Vehicles!$C$9)*Fuel_Specs!$B$13/((1-Vehicles!$C$27)*(1-Vehicles!$C$9)*Fuel_Specs!$B$11+Vehicles!$C$27*(1-Vehicles!$C$9)*Fuel_Specs!$B$13+Vehicles!$C$9*Fuel_Specs!$B$26)*(Petroleum!B231*Petroleum!$F$218+Petroleum!$F231)+Vehicles!$C$9*Fuel_Specs!$B$26/((1-Vehicles!$C$27)*(1-Vehicles!$C$9)*Fuel_Specs!$B$11+Vehicles!$C$27*(1-Vehicles!$C$9)*Fuel_Specs!$B$13+Vehicles!$C$9*Fuel_Specs!$B$26)*(EtOH!BE414*EtOH!$BF$401+EtOH!$BF414))/1000000*HLOOKUP($I$10,$Y$5:$AC$6,2,FALSE)/HLOOKUP($I$11,$Y$7:$AC$8,2,FALSE) -> 30.72890647 | P22: =(EtOH!$BE414*EtOH!$BF$401+EtOH!$BF414)/1000000*HLOOKUP($I$10,$Y$5:$AC$6,2,FALSE)/HLOOKUP($I$11,$Y$7:$AC$8,2,FALSE) -> 40.00143777 | Q22: =((1-Vehicles!$C$29)*(1-Vehicles!$C$14)*Fuel_Specs!$B$11/((1-Vehicles!$C$29)*(1-Vehicles!$C$14)*Fuel_Specs!$B$11+Vehicles!$C$29*(1-Vehicles!$C$14)*Fuel_Specs!$B$13+Vehicles!$C$14*Fuel_Specs!$B$39)*(Petroleum!$B231*Petroleum!$D$218+Petroleum!$D231)+Vehicles!$C$29*(1-Vehicles!$C$14)*Fuel_Specs!$B$13/((1-Vehicles!$C$29)*(1-Vehicles!$C$14)*Fuel_Specs!$B$11+Vehicles!$C$29*(1-Vehicles!$C$14)*Fuel_Specs!$B$13+Vehicles!$C$14*Fuel_Specs!$B$39)*(Petroleum!B231*Petroleum!$F$218+Petroleum!$F231)+Vehicles!$C$14*Fuel_Specs!$B$39/((1-Vehicles!$C$29)*(1-Vehicles!$C$14)*Fuel_Specs!$B$11+Vehicles!$C$29*(1-Vehicles!$C$14)*Fuel_Specs!$B$13+Vehicles!$C$14*Fuel_Specs!$B$39)*(BioOil!$BQ327*BioOil!$BR$313+BioOil!$BR327))/1000000*HLOOKUP($I$10,$Y$5:$AC$6,2,FALSE)/HLOOKUP($I$11,$Y$7:$AC$8,2,FALSE) -> 12.82336433 | R22: =((1-Vehicles!$C$29)*(1-Vehicles!$C$14)*Fuel_Specs!$B$11/((1-Vehicles!$C$29)*(1-Vehicles!$C$14)*Fuel_Specs!$B$11+Vehicles!$C$29*(1-Vehicles!$C$14)*Fuel_Specs!$B$13+Vehicles!$C$14*Fuel_Specs!$B$39)*(Petroleum!$B231*Petroleum!$D$218+Petroleum!$D231)+Vehicles!$C$29*(1-Vehicles!$C$14)*Fuel_Specs!$B$13/((1-Vehicles!$C$29)*(1-Vehicles!$C$14)*Fuel_Specs!$B$11+Vehicles!$C$29*(1-Vehicles!$C$14)*Fuel_Specs!$B$13+Vehicles!$C$14*Fuel_Specs!$B$39)*(Petroleum!B231*Petroleum!$F$218+Petroleum!$F231)+Vehicles!$C$14*Fuel_Specs!$B$39/((1-Vehicles!$C$29)*(1-Vehicles!$C$14)*Fuel_Specs!$B$11+Vehicles!$C$29*(1-Vehicles!$C$14)*Fuel_Specs!$B$13+Vehicles!$C$14*Fuel_Specs!$B$39)*(Pyrolysis!$Z179*Pyrolysis!$AA$166+Pyrolysis!$AA179))/1000000*HLOOKUP($I$10,$Y$5:$AC$6,2,FALSE)/HLOOKUP($I$11,$Y$7:$AC$8,2,FALSE) -> 0.5854046433 | S22: =AN22*(Vehicles!$C$21/Vehicles!$AN$53)/(Vehicles!$C$21*(1/Vehicles!$AN$53+1/Vehicles!$AO$53)+Vehicles!$C$22/Vehicles!$AP$53)+B22*(Vehicles!$C$21/Vehicles!$AO$53+Vehicles!$C$22/Vehicles!$AP$53)/(Vehicles!$C$21*(1/Vehicles!$AN$53+1/Vehicles!$AO$53)+Vehicles!$C$22/Vehicles!$AP$53) -> 3.116652317 | T22: =AN22*(Vehicles!$D$21/Vehicles!$AR$53)/(Vehicles!$D$21*(1/Vehicles!$AR$53+1/Vehicles!$AS$53)+Vehicles!$D$22/Vehicles!$AT$53)+C22*(Vehicles!$D$21/Vehicles!$AS$53+Vehicles!$D$22/Vehicles!$AT$53)/(Vehicles!$D$21*(1/Vehicles!$AR$53+1/Vehicles!$AS$53)+Vehicles!$D$22/Vehicles!$AT$53) -> 3.15404887 | U22: =AN22*(Vehicles!$F$21/Vehicles!$AZ$53)/(Vehicles!$F$21*(1/Vehicles!$AZ$53+1/Vehicles!$BA$53)+Vehicles!$F$22/Vehicles!$BB$53)+D22*(Vehicles!$F$21/Vehicles!$BA$53+Vehicles!$F$22/Vehicles!$BB$53)/(Vehicles!$F$21*(1/Vehicles!$AZ$53+1/Vehicles!$BA$53)+Vehicles!$F$22/Vehicles!$BB$53) -> 3.116470416 | V22: =AN22*(Vehicles!$G$21/Vehicles!$BD$53)/(Vehicles!$G$21*(1/Vehicles!$BD$53+1/Vehicles!$BE$53)+Vehicles!$G$22/Vehicles!$BF$53)+F22*(Vehicles!$G$21/Vehicles!$BE$53+Vehicles!$G$22/Vehicles!$BF$53)/(Vehicles!$G$21*(1/Vehicles!$BD$53+1/Vehicles!$BE$53)+Vehicles!$G$22/Vehicles!$BF$53) -> 1.993558151 | W22: =AN22*(Vehicles!$H$21/Vehicles!$BH$53)/(Vehicles!$H$21*(1/Vehicles!$BH$53+1/Vehicles!$BI$53)+Vehicles!$H$22/Vehicles!$BJ$53)+G22*(Vehicles!$H$21/Vehicles!$BI$53+Vehicles!$H$22/Vehicles!$BJ$53)/(Vehicles!$H$21*(1/Vehicles!$BH$53+1/Vehicles!$BI$53)+Vehicles!$H$22/Vehicles!$BJ$53) -> 2.621519105 | X22: =AN22*(Vehicles!$I$21/Vehicles!$BL$53)/(Vehicles!$I$21*(1/Vehicles!$BL$53+1/Vehicles!$BM$53)+Vehicles!$I$22/Vehicles!$BN$53)+H22*(Vehicles!$I$21/Vehicles!$BM$53+Vehicles!$I$22/Vehicles!$BN$53)/(Vehicles!$I$21*(1/Vehicles!$BL$53+1/Vehicles!$BM$53)+Vehicles!$I$22/Vehicles!$BN$53) -> 1.016585439 | Y22: =AN22*(Vehicles!$J$21/Vehicles!$BP$53)/(Vehicles!$J$21*(1/Vehicles!$BP$53+1/Vehicles!$BQ$53)+Vehicles!$J$22/Vehicles!$BR$53)+K22*(Vehicles!$J$21/Vehicles!$BQ$53+Vehicles!$J$22/Vehicles!$BR$53)/(Vehicles!$J$21*(1/Vehicles!$BP$53+1/Vehicles!$BQ$53)+Vehicles!$J$22/Vehicles!$BR$53) -> 1.113912162 | Z22: =AN22*(Vehicles!$K$21/Vehicles!$BT$53)/(Vehicles!$K$21*(1/Vehicles!$BT$53+1/Vehicles!$BU$53)+Vehicles!$K$22/Vehicles!$BV$53)+O22*(Vehicles!$K$21/Vehicles!$BU$53+Vehicles!$K$22/Vehicles!$BV$53)/(Vehicles!$K$21*(1/Vehicles!$BT$53+1/Vehicles!$BU$53)+Vehicles!$K$22/Vehicles!$BV$53) -> 24.75713155 | AA22: =AN22*(Vehicles!$L$21/Vehicles!$BX$53)/(Vehicles!$L$21*(1/Vehicles!$BX$53+1/Vehicles!$BY$53)+Vehicles!$L$22/Vehicles!$BZ$53)+AO22*(Vehicles!$L$21/Vehicles!$BY$53+Vehicles!$L$22/Vehicles!$BZ$53)/(Vehicles!$L$21*(1/Vehicles!$BX$53+1/Vehicles!$BY$53)+Vehicles!$L$22/Vehicles!$BZ$53) -> 2.85901329 | AB22: =AN22*(Vehicles!$L$21/Vehicles!$BX$53)/(Vehicles!$L$21*(1/Vehicles!$BX$53+1/Vehicles!$BY$53)+Vehicles!$L$22/Vehicles!$CA$53)+AP22*(Vehicles!$L$21/Vehicles!$BY$53+Vehicles!$L$22/Vehicles!$CA$53)/(Vehicles!$L$21*(1/Vehicles!$BX$53+1/Vehicles!$BY$53)+Vehicles!$L$22/Vehicles!$CA$53) -> 3.906900803 | AC22: =('MeOH&FTD'!$X145*'MeOH&FTD'!$Y$132+'MeOH&FTD'!$Y145)/1000000*HLOOKUP($I$10,$Y$5:$AC$6,2,FALSE)/HLOOKUP($I$11,$Y$7:$AC$8,2,FALSE) -> 0.1877889023 | AD22: =((1-Vehicles!$C$30)*(1-Vehicles!$C$11)*Fuel_Specs!$B$15/((1-Vehicles!$C$30)*(1-Vehicles!$C$11)*Fuel_Specs!$B$15+Vehicles!$C$30*(1-Vehicles!$C$11)*Fuel_Specs!$B$18+Vehicles!$C$11*Fuel_Specs!$B$35)*(Petroleum!B231*Petroleum!$J$218+Petroleum!$J231)+Vehicles!$C$30*(1-Vehicles!$C$11)*Fuel_Specs!$B$18/((1-Vehicles!$C$30)*(1-Vehicles!$C$11)*Fuel_Specs!$B$15+Vehicles!$C$30*(1-Vehicles!$C$11)*Fuel_Specs!$B$18+Vehicles!$C$11*Fuel_Specs!$B$35)*(Petroleum!B231*Petroleum!$K$218+Petroleum!$K231)+Vehicles!$C$11*Fuel_Specs!$B$35/((1-Vehicles!$C$30)*(1-Vehicles!$C$11)*Fuel_Specs!$B$15+Vehicles!$C$30*(1-Vehicles!$C$11)*Fuel_Specs!$B$18+Vehicles!$C$11*Fuel_Specs!$B$35)*('MeOH&FTD'!$AL145*'MeOH&FTD'!$AM$132+'MeOH&FTD'!$AM145))/1000000*HLOOKUP($I$10,$Y$5:$AC$6,2,FALSE)/HLOOKUP($I$11,$Y$7:$AC$8,2,FALSE) -> 0.0479167748 | AE22: =((1-Vehicles!$C$31)*(1-Vehicles!$C$12)*Fuel_Specs!$B$15/((1-Vehicles!$C$31)*(1-Vehicles!$C$12)*Fuel_Specs!$B$15+Vehicles!$C$31*(1-Vehicles!$C$12)*Fuel_Specs!$B$18+Vehicles!$C$12*Fuel_Specs!$B$34)*(Petroleum!B231*Petroleum!$J$218+Petroleum!$J231)+Vehicles!$C$31*(1-Vehicles!$C$12)*Fuel_Specs!$B$18/((1-Vehicles!$C$31)*(1-Vehicles!$C$12)*Fuel_Specs!$B$15+Vehicles!$C$31*(1-Vehicles!$C$12)*Fuel_Specs!$B$18+Vehicles!$C$12*Fuel_Specs!$B$34)*(Petroleum!B231*Petroleum!$K$218+Petroleum!$K231)+Vehicles!$C$12*Fuel_Specs!$B$34/((1-Vehicles!$C$31)*(1-Vehicles!$C$12)*Fuel_Specs!$B$15+Vehicles!$C$31*(1-Vehicles!$C$12)*Fuel_Specs!$B$18+Vehicles!$C$12*Fuel_Specs!$B$34)*(BioOil!$Y327*BioOil!$Z$313+BioOil!$Z327))/1000000*HLOOKUP($I$10,$Y$5:$AC$6,2,FALSE)/HLOOKUP($I$11,$Y$7:$AC$8,2,FALSE) -> 1.522512655 | AF22: =((1-Vehicles!$C$32)*(1-Vehicles!$C$13)*Fuel_Specs!$B$15/((1-Vehicles!$C$32)*(1-Vehicles!$C$13)*Fuel_Specs!$B$15+Vehicles!$C$32*(1-Vehicles!$C$13)*Fuel_Specs!$B$18+Vehicles!$C$13*IF(Inputs!$E$499=1,IF(Inputs!$E$499=1,Fuel_Specs!$B$36,IF(Inputs!$E$499=3,Fuel_Specs!$B$38,Fuel_Specs!$B$37)),Fuel_Specs!$B$37))*(Petroleum!B231*Petroleum!$J$218+Petroleum!$J231)+Vehicles!$C$32*(1-Vehicles!$C$13)*Fuel_Specs!$B$18/((1-Vehicles!$C$32)*(1-Vehicles!$C$13)*Fuel_Specs!$B$15+Vehicles!$C$32*(1-Vehicles!$C$13)*Fuel_Specs!$B$18+Vehicles!$C$13*IF(Inputs!$E$499=1,IF(Inputs!$E$499=1,Fuel_Specs!$B$36,IF(Inputs!$E$499=3,Fuel_Specs!$B$38,Fuel_Specs!$B$37)),Fuel_Specs!$B$37))*(Petroleum!B231*Petroleum!$K$218+Petroleum!$K231)+Vehicles!$C$13*IF(Inputs!$E$499=1,IF(Inputs!$E$499=1,Fuel_Specs!$B$36,IF(Inputs!$E$499=3,Fuel_Specs!$B$38,Fuel_Specs!$B$37)),Fuel_Specs!$B$37)/((1-Vehicles!$C$32)*(1-Vehicles!$C$13)*Fuel_Specs!$B$15+Vehicles!$C$32*(1-Vehicles!$C$13)*Fuel_Specs!$B$18+Vehicles!$C$13*IF(Inputs!$E$499=1,IF(Inputs!$E$499=1,Fuel_Specs!$B$36,IF(Inputs!$E$499=3,Fuel_Specs!$B$38,Fuel_Specs!$B$37)),Fuel_Specs!$B$37))*(BioOil!$BE327*BioOil!$BF$313+BioOil!$BF327))/1000000*HLOOKUP($I$10,$Y$5:$AC$6,2,FALSE)/HLOOKUP($I$11,$Y$7:$AC$8,2,FALSE) -> 5.355286992 | AG22: =((1-Vehicles!$C$32)*(1-Vehicles!$C$13)*Fuel_Specs!$B$15/((1-Vehicles!$C$32)*(1-Vehicles!$C$13)*Fuel_Specs!$B$15+Vehicles!$C$32*(1-Vehicles!$C$13)*Fuel_Specs!$B$18+Vehicles!$C$13*IF(Inputs!$E$499=1,Fuel_Specs!$B$36,Fuel_Specs!$B$37))*(Petroleum!B231*Petroleum!$J$218+Petroleum!$J231)+Vehicles!$C$32*(1-Vehicles!$C$13)*Fuel_Specs!$B$18/((1-Vehicles!$C$32)*(1-Vehicles!$C$13)*Fuel_Specs!$B$15+Vehicles!$C$32*(1-Vehicles!$C$13)*Fuel_Specs!$B$18+Vehicles!$C$13*IF(Inputs!$E$499=1,Fuel_Specs!$B$36,Fuel_Specs!$B$37))*(Petroleum!B231*Petroleum!$K$218+Petroleum!$K231)+Vehicles!$C$13*IF(Inputs!$E$499=1,Fuel_Specs!$B$36,Fuel_Specs!$B$37)/((1-Vehicles!$C$32)*(1-Vehicles!$C$13)*Fuel_Specs!$B$15+Vehicles!$C$32*(1-Vehicles!$C$13)*Fuel_Specs!$B$18+Vehicles!$C$13*IF(Inputs!$E$499=1,Fuel_Specs!$B$36,Fuel_Specs!$B$37))*(Pyrolysis!$AB179*Pyrolysis!$AC$166+Pyrolysis!$AC179))/1000000*HLOOKUP($I$10,$Y$5:$AC$6,2,FALSE)/HLOOKUP($I$11,$Y$7:$AC$8,2,FALSE) -> 0.6273141164 | AH22: =(((1-Vehicles!$C$33)*(1-Vehicles!$C$15-Vehicles!$C$16)*Fuel_Specs!$B$15*(Petroleum!B231*Petroleum!$J$218+Petroleum!$J231)+Vehicles!$C$33*(1-Vehicles!$C$15-Vehicles!$C$16)*Fuel_Specs!$B$18*(Petroleum!B231*Petroleum!$K$218+Petroleum!$K231)+Vehicles!$C$15*Fuel_Specs!$B$26*(EtOH!BE414*EtOH!$BF$401+EtOH!$BF414)+Vehicles!$C$16*Fuel_Specs!$B$29*('E-D Additives'!$B61*'E-D Additives'!$B$48))/((1-Vehicles!$C$33)*(1-Vehicles!$C$15-Vehicles!$C$16)*Fuel_Specs!$B$15+Vehicles!$C$33*(1-Vehicles!$C$15-Vehicles!$C$16)*Fuel_Specs!$B$18+Vehicles!$C$15*Fuel_Specs!$B$26+Vehicles!$C$16*Fuel_Specs!$B$29))/1000000*HLOOKUP($I$10,$Y$5:$AC$6,2,FALSE)/HLOOKUP($I$11,$Y$7:$AC$8,2,FALSE) -> 2.862951934 | AI22: =AN22*(Vehicles!$M$21/Vehicles!$CI$53)/(Vehicles!$M$21*(1/Vehicles!$CI$53+1/Vehicles!$CJ$53)+Vehicles!$M$22/Vehicles!$CK$53)+E22*(Vehicles!$M$21/Vehicles!$CJ$53+Vehicles!$M$22/Vehicles!$CK$53)/(Vehicles!$M$21*(1/Vehicles!$CI$53+1/Vehicles!$CJ$53)+Vehicles!$M$22/Vehicles!$CK$53) -> 1.164057379 | AJ22: =AN22*(Vehicles!$N$21/Vehicles!$CM$53)/(Vehicles!$N$21*(1/Vehicles!$CM$53+1/Vehicles!$CN$53)+Vehicles!$N$22/Vehicles!$CO$53)+AC22*(Vehicles!$N$21/Vehicles!$CN$53+Vehicles!$N$22/Vehicles!$CO$53)/(Vehicles!$N$21*(1/Vehicles!$CM$53+1/Vehicles!$CN$53)+Vehicles!$N$22/Vehicles!$CO$53) -> 1.013545383 | AK22: =AN22*(Vehicles!$O$21/Vehicles!$CQ$53)/(Vehicles!$O$21*(1/Vehicles!$CQ$53+1/Vehicles!$CR$53)+Vehicles!$O$22/Vehicles!$CS$53)+AD22*(Vehicles!$O$21/Vehicles!$CR$53+Vehicles!$O$22/Vehicles!$CS$53)/(Vehicles!$O$21*(1/Vehicles!$CQ$53+1/Vehicles!$CR$53)+Vehicles!$O$22/Vehicles!$CS$53) -> 0.9073080254 | AL22: =AN22*(Vehicles!$P$21/Vehicles!$CU$53)/(Vehicles!$P$21*(1/Vehicles!$CU$53+1/Vehicles!$CV$53)+Vehicles!$P$22/Vehicles!$CW$53)+AE22*(Vehicles!$P$21/Vehicles!$CV$53+Vehicles!$P$22/Vehicles!$CW$53)/(Vehicles!$P$21*(1/Vehicles!$CU$53+1/Vehicles!$CV$53)+Vehicles!$P$22/Vehicles!$CW$53) -> 2.027310791 | AM22: =AN22*(Vehicles!$R$21/Vehicles!$DC$53)/(Vehicles!$R$21*(1/Vehicles!$DC$53+1/Vehicles!$DD$53)+Vehicles!$R$22/Vehicles!$DE$53)+AH22*(Vehicles!$R$21/Vehicles!$DD$53+Vehicles!$R$22/Vehicles!$DE$53)/(Vehicles!$R$21*(1/Vehicles!$DC$53+1/Vehicles!$DD$53)+Vehicles!$R$22/Vehicles!$DE$53) -> 3.045417325 | AN22: =(Electric!$G183+Electric!$F183)/1000000*HLOOKUP($I$10,$Y$5:$AC$6,2,FALSE)/HLOOKUP($I$11,$Y$7:$AC$8,2,FALSE) -> 3.621744766 | AO22: =(Hydrogen!$Z160*Hydrogen!$AA$147+Hydrogen!$AA160)/1000000*HLOOKUP($I$10,$Y$5:$AC$6,2,FALSE)/HLOOKUP($I$11,$Y$7:$AC$8,2,FALSE) -> 2.609472232 | AP22: =(Hydrogen!$AX160*Hydrogen!$AY$147+Hydrogen!$AY160)/1000000*HLOOKUP($I$10,$Y$5:$AC$6,2,FALSE)/HLOOKUP($I$11,$Y$7:$AC$8,2,FALSE) -> 4.000194631 | AQ22: =AN22*(Vehicles!$S$21/Vehicles!$DS$53)/(Vehicles!$S$21*(1/Vehicles!$DS$53+1/Vehicles!$DT$53)+Vehicles!$S$22/Vehicles!$DU$53)+AO22*(Vehicles!$S$21/Vehicles!$DT$53+Vehicles!$S$22/Vehicles!$DU$53)/(Vehicles!$S$21*(1/Vehicles!$DS$53+1/Vehicles!$DT$53)+Vehicles!$S$22/Vehicles!$DU$53) -> 2.91848938 | AR22: =AN22*(Vehicles!$S$21/Vehicles!$DS$53)/(Vehicles!$S$21*(1/Vehicles!$DS$53+1/Vehicles!$DT$53)+Vehicles!$S$22/Vehicles!$DU$53)+AP22*(Vehicles!$S$21/Vehicles!$DT$53+Vehicles!$S$22/Vehicles!$DU$53)/(Vehicles!$S$21*(1/Vehicles!$DS$53+1/Vehicles!$DT$53)+Vehicles!$S$22/Vehicles!$DU$53) -> 3.884664975
A23: GHGs | B23: =(B21*Fuel_Specs!$B$85+B22*Fuel_Specs!$B$86+B20*Fuel_Specs!$B$84) -> 18655.16422 | C23: =(C21*Fuel_Specs!$B$85+C22*Fuel_Specs!$B$86+C20*Fuel_Specs!$B$84) -> 24738.14277 | D23: =(D21*Fuel_Specs!$B$85+D22*Fuel_Specs!$B$86+D20*Fuel_Specs!$B$84) -> 18638.31699 | E23: =(E21*Fuel_Specs!$B$85+E22*Fuel_Specs!$B$86+E20*Fuel_Specs!$B$84) -> 25288.45806 | F23: =(F21*Fuel_Specs!$B$85+F22*Fuel_Specs!$B$86+F20*Fuel_Specs!$B$84) -> 18317.64403 | G23: =(G21*Fuel_Specs!$B$85+G22*Fuel_Specs!$B$86+G20*Fuel_Specs!$B$84) -> 24158.69062 | H23: =(H21*Fuel_Specs!$B$85+H22*Fuel_Specs!$B$86+H20*Fuel_Specs!$B$84) -> 17359.83331 | I23: =(I21*Fuel_Specs!$B$85+I22*Fuel_Specs!$B$86+I20*Fuel_Specs!$B$84) -> 32585.74732 | J23: =(J21*Fuel_Specs!$B$85+J22*Fuel_Specs!$B$86+J20*Fuel_Specs!$B$84) -> 27111.81435 | K23: =(K21*Fuel_Specs!$B$85+K22*Fuel_Specs!$B$86+K20*Fuel_Specs!$B$84) -> 27647.37702 | L23: =(L21*Fuel_Specs!$B$85+L22*Fuel_Specs!$B$86+L20*Fuel_Specs!$B$84) -> 28883.63341 | M23: =(M21*Fuel_Specs!$B$85+M22*Fuel_Specs!$B$86+M20*Fuel_Specs!$B$84) -> -18322.12669 | N23: =(N21*Fuel_Specs!$B$85+N22*Fuel_Specs!$B$86+N20*Fuel_Specs!$B$84) -> -12451.98892 | O23: =(O21*Fuel_Specs!$B$85+O22*Fuel_Specs!$B$86+O20*Fuel_Specs!$B$84) -> -18322.12669 | P23: =(P21*Fuel_Specs!$B$85+P22*Fuel_Specs!$B$86+P20*Fuel_Specs!$B$84) -> -30665.64085 | Q23: =(Q21*Fuel_Specs!$B$85+Q22*Fuel_Specs!$B$86+Q20*Fuel_Specs!$B$84) -> -49630.00803 | R23: =(R21*Fuel_Specs!$B$85+R22*Fuel_Specs!$B$86+R20*Fuel_Specs!$B$84) -> -43393.81903 | S23: =(S21*Fuel_Specs!$B$85+S22*Fuel_Specs!$B$86+S20*Fuel_Specs!$B$84) -> 59000.30848 | T23: =(T21*Fuel_Specs!$B$85+T22*Fuel_Specs!$B$86+T20*Fuel_Specs!$B$84) -> 63673.00058 | U23: =AN23*(Vehicles!$F$21/Vehicles!$AZ$53)/(Vehicles!$F$21*(1/Vehicles!$AZ$53+1/Vehicles!$BA$53)+Vehicles!$F$22/Vehicles!$BB$53)+D23*(Vehicles!$F$21/Vehicles!$BA$53+Vehicles!$F$22/Vehicles!$BB$53)/(Vehicles!$F$21*(1/Vehicles!$AZ$53+1/Vehicles!$BA$53)+Vehicles!$F$22/Vehicles!$BB$53) -> 58987.36713 | V23: =AN23*(Vehicles!$G$21/Vehicles!$BD$53)/(Vehicles!$G$21*(1/Vehicles!$BD$53+1/Vehicles!$BE$53)+Vehicles!$G$22/Vehicles!$BF$53)+F23*(Vehicles!$G$21/Vehicles!$BE$53+Vehicles!$G$22/Vehicles!$BF$53)/(Vehicles!$G$21*(1/Vehicles!$BD$53+1/Vehicles!$BE$53)+Vehicles!$G$22/Vehicles!$BF$53) -> 58741.03944 | W23: =AN23*(Vehicles!$H$21/Vehicles!$BH$53)/(Vehicles!$H$21*(1/Vehicles!$BH$53+1/Vehicles!$BI$53)+Vehicles!$H$22/Vehicles!$BJ$53)+G23*(Vehicles!$H$21/Vehicles!$BI$53+Vehicles!$H$22/Vehicles!$BJ$53)/(Vehicles!$H$21*(1/Vehicles!$BH$53+1/Vehicles!$BI$53)+Vehicles!$H$22/Vehicles!$BJ$53) -> 63227.88944 | X23: =AN23*(Vehicles!$I$21/Vehicles!$BL$53)/(Vehicles!$I$21*(1/Vehicles!$BL$53+1/Vehicles!$BM$53)+Vehicles!$I$22/Vehicles!$BN$53)+H23*(Vehicles!$I$21/Vehicles!$BM$53+Vehicles!$I$22/Vehicles!$BN$53)/(Vehicles!$I$21*(1/Vehicles!$BL$53+1/Vehicles!$BM$53)+Vehicles!$I$22/Vehicles!$BN$53) -> 58005.28893 | Y23: =AN23*(Vehicles!$J$21/Vehicles!$BP$53)/(Vehicles!$J$21*(1/Vehicles!$BP$53+1/Vehicles!$BQ$53)+Vehicles!$J$22/Vehicles!$BR$53)+K23*(Vehicles!$J$21/Vehicles!$BQ$53+Vehicles!$J$22/Vehicles!$BR$53)/(Vehicles!$J$21*(1/Vehicles!$BP$53+1/Vehicles!$BQ$53)+Vehicles!$J$22/Vehicles!$BR$53) -> 65907.7538 | Z23: =(Z21*Fuel_Specs!$B$85+Z22*Fuel_Specs!$B$86+Z20*Fuel_Specs!$B$84) -> 28161.19326 | AA23: =(AA21*Fuel_Specs!$B$85+AA22*Fuel_Specs!$B$86+AA20*Fuel_Specs!$B$84) -> 140685.1859 | AB23: =(AB21*Fuel_Specs!$B$85+AB22*Fuel_Specs!$B$86+AB20*Fuel_Specs!$B$84) -> 191685.5349 | AC23: =(AC21*Fuel_Specs!$B$85+AC22*Fuel_Specs!$B$86+AC20*Fuel_Specs!$B$84) -> 27430.16159 | AD23: =(AD21*Fuel_Specs!$B$85+AD22*Fuel_Specs!$B$86+AD20*Fuel_Specs!$B$84) -> 30420.7201 | AE23: =(AE21*Fuel_Specs!$B$85+AE22*Fuel_Specs!$B$86+AE20*Fuel_Specs!$B$84) -> 9997.261749 | AF23: =(AF21*Fuel_Specs!$B$85+AF22*Fuel_Specs!$B$86+AF20*Fuel_Specs!$B$84) -> -61411.50612 | AG23: =(AG21*Fuel_Specs!$B$85+AG22*Fuel_Specs!$B$86+AG20*Fuel_Specs!$B$84) -> -43026.30386 | AH23: =(AH21*Fuel_Specs!$B$85+AH22*Fuel_Specs!$B$86+AH20*Fuel_Specs!$B$84) -> 21842.78273 | AI23: =(AI21*Fuel_Specs!$B$85+AI22*Fuel_Specs!$B$86+AI20*Fuel_Specs!$B$84) -> 65539.70593 | AJ23: =(AJ21*Fuel_Specs!$B$85+AJ22*Fuel_Specs!$B$86+AJ20*Fuel_Specs!$B$84) -> 67166.3983 | AK23: =(AK21*Fuel_Specs!$B$85+AK22*Fuel_Specs!$B$86+AK20*Fuel_Specs!$B$84) -> 69437.8232 | AL23: =(AL21*Fuel_Specs!$B$85+AL22*Fuel_Specs!$B$86+AL20*Fuel_Specs!$B$84) -> 53925.55293 | AM23: =(AM21*Fuel_Specs!$B$85+AM22*Fuel_Specs!$B$86+AM20*Fuel_Specs!$B$84) -> 62922.60523 | AN23: =(AN21*Fuel_Specs!$B$85+AN22*Fuel_Specs!$B$86+AN20*Fuel_Specs!$B$84) -> 192675.5896 | AO23: =(AO21*Fuel_Specs!$B$85+AO22*Fuel_Specs!$B$86+AO20*Fuel_Specs!$B$84) -> 123675.6082 | AP23: =(AP21*Fuel_Specs!$B$85+AP22*Fuel_Specs!$B$86+AP20*Fuel_Specs!$B$84) -> 191361.621 | AQ23: =(AQ21*Fuel_Specs!$B$85+AQ22*Fuel_Specs!$B$86+AQ20*Fuel_Specs!$B$84) -> 144739.281 | AR23: =(AR21*Fuel_Specs!$B$85+AR22*Fuel_Specs!$B$86+AR20*Fuel_Specs!$B$84) -> 191762.7371
A24: VOC: Total | B24: =(Inputs!$E$1056*(Petroleum!$B224*Petroleum!$F$218+Petroleum!$F224)+(1-Inputs!$E$1056)*(Petroleum!$B224*Petroleum!$D$218+Petroleum!$D224))/1000000*HLOOKUP($I$10,$Y$5:$AC$6,2,FALSE)/HLOOKUP($I$11,$Y$7:$AC$8,2,FALSE) -> 29.84722804 | C24: =(Petroleum!$C224*Petroleum!$G$218+Petroleum!$G224)/1000000*HLOOKUP($I$10,$Y$5:$AC$6,2,FALSE)/HLOOKUP($I$11,$Y$7:$AC$8,2,FALSE) -> 29.60789949 | D24: =((1-Vehicles!$C$26)*(1-Vehicles!$C$7)*Fuel_Specs!$B$11/((1-Vehicles!$C$26)*(1-Vehicles!$C$7)*Fuel_Specs!$B$11+Vehicles!$C$26*(1-Vehicles!$C$7)*Fuel_Specs!$B$13+Vehicles!$C$7*Fuel_Specs!$B$26)*(Petroleum!$B224*Petroleum!$D$218+Petroleum!$D224)+Vehicles!$C$26*(1-Vehicles!$C$7)*Fuel_Specs!$B$13/((1-Vehicles!$C$26)*(1-Vehicles!$C$7)*Fuel_Specs!$B$11+Vehicles!$C$26*(1-Vehicles!$C$7)*Fuel_Specs!$B$13+Vehicles!$C$7*Fuel_Specs!$B$26)*(Petroleum!B224*Petroleum!$F$218+Petroleum!$F224)+Vehicles!$C$7*Fuel_Specs!$B$26/((1-Vehicles!$C$26)*(1-Vehicles!$C$7)*Fuel_Specs!$B$11+Vehicles!$C$26*(1-Vehicles!$C$7)*Fuel_Specs!$B$13+Vehicles!$C$7*Fuel_Specs!$B$26)*(EtOH!BE407*EtOH!$BF$401+EtOH!$BF407))/1000000*HLOOKUP($I$10,$Y$5:$AC$6,2,FALSE)/HLOOKUP($I$11,$Y$7:$AC$8,2,FALSE) -> 29.84283559 | E24: =(Inputs!$E$88*(IF(Inputs!F$92=1,Petroleum!$B224,Petroleum!$C224)*Petroleum!$K$218+Petroleum!$K224)+(1-Inputs!$E$88)*(IF(Inputs!F$91=1,Petroleum!$B224,Petroleum!$C224)*Petroleum!$J$218+Petroleum!$J224))/1000000*HLOOKUP($I$10,$Y$5:$AC$6,2,FALSE)/HLOOKUP($I$11,$Y$7:$AC$8,2,FALSE) -> 10.17259398 | F24: =(NG!$H86*NG!$I$80+NG!$I86)/1000000*HLOOKUP($I$10,$Y$5:$AC$6,2,FALSE)/HLOOKUP($I$11,$Y$7:$AC$8,2,FALSE) -> 10.96016831 | G24: =(NG!$P86*NG!$Q$80+NG!$Q86)/1000000*HLOOKUP($I$10,$Y$5:$AC$6,2,FALSE)/HLOOKUP($I$11,$Y$7:$AC$8,2,FALSE) -> 13.87848279 | H24: =(NG!$V86*NG!$W$80+NG!$W86)/1000000*HLOOKUP($I$10,$Y$5:$AC$6,2,FALSE)/HLOOKUP($I$11,$Y$7:$AC$8,2,FALSE) -> 12.06682245 | I24: =('MeOH&FTD'!AV138*'MeOH&FTD'!AW$132+'MeOH&FTD'!AW138)/1000000*HLOOKUP($I$10,$Y$5:$AC$6,2,FALSE)/HLOOKUP($I$11,$Y$7:$AC$8,2,FALSE) -> 32.38375756 | J24: =((1-Vehicles!$C$25)*(1-Vehicles!$C$5)*Fuel_Specs!$B$11/((1-Vehicles!$C$25)*(1-Vehicles!$C$5)*Fuel_Specs!$B$11+Vehicles!$C$25*(1-Vehicles!$C$5)*Fuel_Specs!$B$13+Vehicles!$C$5*Fuel_Specs!$B$25)*(Petroleum!$B224*Petroleum!$D$218+Petroleum!$D224)+Vehicles!$C$25*(1-Vehicles!$C$5)*Fuel_Specs!$B$13/((1-Vehicles!$C$25)*(1-Vehicles!$C$5)*Fuel_Specs!$B$11+Vehicles!$C$25*(1-Vehicles!$C$5)*Fuel_Specs!$B$13+Vehicles!$C$5*Fuel_Specs!$B$25)*(Petroleum!B224*Petroleum!$F$218+Petroleum!$F224)+Vehicles!$C$5*Fuel_Specs!$B$25/((1-Vehicles!$C$25)*(1-Vehicles!$C$5)*Fuel_Specs!$B$11+Vehicles!$C$25*(1-Vehicles!$C$5)*Fuel_Specs!$B$13+Vehicles!$C$5*Fuel_Specs!$B$25)*('MeOH&FTD'!$L138*'MeOH&FTD'!$M$132+'MeOH&FTD'!$M138))/1000000*HLOOKUP($I$10,$Y$5:$AC$6,2,FALSE)/HLOOKUP($I$11,$Y$7:$AC$8,2,FALSE) -> 26.71726878 | K24: =((1-Vehicles!$C$25)*(1-Vehicles!$C$6)*Fuel_Specs!$B$11/((1-Vehicles!$C$25)*(1-Vehicles!$C$6)*Fuel_Specs!$B$11+Vehicles!$C$25*(1-Vehicles!$C$6)*Fuel_Specs!$B$13+Vehicles!$C$6*Fuel_Specs!$B$25)*(Petroleum!$B224*Petroleum!$D$218+Petroleum!$D224)+Vehicles!$C$25*(1-Vehicles!$C$6)*Fuel_Specs!$B$13/((1-Vehicles!$C$25)*(1-Vehicles!$C$6)*Fuel_Specs!$B$11+Vehicles!$C$25*(1-Vehicles!$C$6)*Fuel_Specs!$B$13+Vehicles!$C$6*Fuel_Specs!$B$25)*(Petroleum!B224*Petroleum!$F$218+Petroleum!$F224)+Vehicles!$C$6*Fuel_Specs!$B$25/((1-Vehicles!$C$25)*(1-Vehicles!$C$6)*Fuel_Specs!$B$11+Vehicles!$C$25*(1-Vehicles!$C$6)*Fuel_Specs!$B$13+Vehicles!$C$6*Fuel_Specs!$B$25)*('MeOH&FTD'!$L138*'MeOH&FTD'!$M$132+'MeOH&FTD'!$M138))/1000000*HLOOKUP($I$10,$Y$5:$AC$6,2,FALSE)/HLOOKUP($I$11,$Y$7:$AC$8,2,FALSE) -> 26.55901054 | L24: =('MeOH&FTD'!$L138*'MeOH&FTD'!$M$132+'MeOH&FTD'!$M138)/1000000*HLOOKUP($I$10,$Y$5:$AC$6,2,FALSE)/HLOOKUP($I$11,$Y$7:$AC$8,2,FALSE) -> 26.19369799 | M24: =((1-Vehicles!$C$27)*(1-Vehicles!$C$8)*Fuel_Specs!$B$11/((1-Vehicles!$C$27)*(1-Vehicles!$C$8)*Fuel_Specs!$B$11+Vehicles!$C$27*(1-Vehicles!$C$8)*Fuel_Specs!$B$13+Vehicles!$C$8*Fuel_Specs!$B$26)*(Petroleum!$B224*Petroleum!$D$218+Petroleum!$D224)+Vehicles!$C$27*(1-Vehicles!$C$8)*Fuel_Specs!$B$13/((1-Vehicles!$C$27)*(1-Vehicles!$C$8)*Fuel_Specs!$B$11+Vehicles!$C$27*(1-Vehicles!$C$8)*Fuel_Specs!$B$13+Vehicles!$C$8*Fuel_Specs!$B$26)*(Petroleum!B224*Petroleum!$F$218+Petroleum!$F224)+Vehicles!$C$8*Fuel_Specs!$B$26/((1-Vehicles!$C$27)*(1-Vehicles!$C$8)*Fuel_Specs!$B$11+Vehicles!$C$27*(1-Vehicles!$C$8)*Fuel_Specs!$B$13+Vehicles!$C$8*Fuel_Specs!$B$26)*(EtOH!BE407*EtOH!$BF$401+EtOH!$BF407))/1000000*HLOOKUP($I$10,$Y$5:$AC$6,2,FALSE)/HLOOKUP($I$11,$Y$7:$AC$8,2,FALSE) -> 47.28819046 | N24: =((1-Vehicles!$C$28)*(1-Vehicles!$C$10)*Fuel_Specs!$B$11/((1-Vehicles!$C$28)*(1-Vehicles!$C$10)*Fuel_Specs!$B$11+Vehicles!$C$28*(1-Vehicles!$C$10)*Fuel_Specs!$B$13+Vehicles!$C$10*Fuel_Specs!$B$27)*(Petroleum!$B224*Petroleum!$D$218+Petroleum!$D224)+Vehicles!$C$28*(1-Vehicles!$C$10)*Fuel_Specs!$B$13/((1-Vehicles!$C$28)*(1-Vehicles!$C$10)*Fuel_Specs!$B$11+Vehicles!$C$28*(1-Vehicles!$C$10)*Fuel_Specs!$B$13+Vehicles!$C$10*Fuel_Specs!$B$27)*(Petroleum!B224*Petroleum!$F$218+Petroleum!$F224)+Vehicles!$C$10*Fuel_Specs!$B$27/((1-Vehicles!$C$28)*(1-Vehicles!$C$10)*Fuel_Specs!$B$11+Vehicles!$C$28*(1-Vehicles!$C$10)*Fuel_Specs!$B$13+Vehicles!$C$10*Fuel_Specs!$B$27)*(EtOH!$BI407*EtOH!$BJ$401+EtOH!$BJ407))/1000000*HLOOKUP($I$10,$Y$5:$AC$6,2,FALSE)/HLOOKUP($I$11,$Y$7:$AC$8,2,FALSE) -> 60.16633517 | O24: =((1-Vehicles!$C$27)*(1-Vehicles!$C$9)*Fuel_Specs!$B$11/((1-Vehicles!$C$27)*(1-Vehicles!$C$9)*Fuel_Specs!$B$11+Vehicles!$C$27*(1-Vehicles!$C$9)*Fuel_Specs!$B$13+Vehicles!$C$9*Fuel_Specs!$B$26)*(Petroleum!$B224*Petroleum!$D$218+Petroleum!$D224)+Vehicles!$C$27*(1-Vehicles!$C$9)*Fuel_Specs!$B$13/((1-Vehicles!$C$27)*(1-Vehicles!$C$9)*Fuel_Specs!$B$11+Vehicles!$C$27*(1-Vehicles!$C$9)*Fuel_Specs!$B$13+Vehicles!$C$9*Fuel_Specs!$B$26)*(Petroleum!B224*Petroleum!$F$218+Petroleum!$F224)+Vehicles!$C$9*Fuel_Specs!$B$26/((1-Vehicles!$C$27)*(1-Vehicles!$C$9)*Fuel_Specs!$B$11+Vehicles!$C$27*(1-Vehicles!$C$9)*Fuel_Specs!$B$13+Vehicles!$C$9*Fuel_Specs!$B$26)*(EtOH!BE407*EtOH!$BF$401+EtOH!$BF407))/1000000*HLOOKUP($I$10,$Y$5:$AC$6,2,FALSE)/HLOOKUP($I$11,$Y$7:$AC$8,2,FALSE) -> 47.28819046 | P24: =(EtOH!$BE407*EtOH!$BF$401+EtOH!$BF407)/1000000*HLOOKUP($I$10,$Y$5:$AC$6,2,FALSE)/HLOOKUP($I$11,$Y$7:$AC$8,2,FALSE) -> 53.11433764 | Q24: =((1-Vehicles!$C$29)*(1-Vehicles!$C$14)*Fuel_Specs!$B$11/((1-Vehicles!$C$29)*(1-Vehicles!$C$14)*Fuel_Specs!$B$11+Vehicles!$C$29*(1-Vehicles!$C$14)*Fuel_Specs!$B$13+Vehicles!$C$14*Fuel_Specs!$B$39)*(Petroleum!$B224*Petroleum!$D$218+Petroleum!$D224)+Vehicles!$C$29*(1-Vehicles!$C$14)*Fuel_Specs!$B$13/((1-Vehicles!$C$29)*(1-Vehicles!$C$14)*Fuel_Specs!$B$11+Vehicles!$C$29*(1-Vehicles!$C$14)*Fuel_Specs!$B$13+Vehicles!$C$14*Fuel_Specs!$B$39)*(Petroleum!B224*Petroleum!$F$218+Petroleum!$F224)+Vehicles!$C$14*Fuel_Specs!$B$39/((1-Vehicles!$C$29)*(1-Vehicles!$C$14)*Fuel_Specs!$B$11+Vehicles!$C$29*(1-Vehicles!$C$14)*Fuel_Specs!$B$13+Vehicles!$C$14*Fuel_Specs!$B$39)*(BioOil!$BQ320*BioOil!$BR$313+BioOil!$BR320))/1000000*HLOOKUP($I$10,$Y$5:$AC$6,2,FALSE)/HLOOKUP($I$11,$Y$7:$AC$8,2,FALSE) -> 50.9175156 | R24: =((1-Vehicles!$C$29)*(1-Vehicles!$C$14)*Fuel_Specs!$B$11/((1-Vehicles!$C$29)*(1-Vehicles!$C$14)*Fuel_Specs!$B$11+Vehicles!$C$29*(1-Vehicles!$C$14)*Fuel_Specs!$B$13+Vehicles!$C$14*Fuel_Specs!$B$39)*(Petroleum!$B224*Petroleum!$D$218+Petroleum!$D224)+Vehicles!$C$29*(1-Vehicles!$C$14)*Fuel_Specs!$B$13/((1-Vehicles!$C$29)*(1-Vehicles!$C$14)*Fuel_Specs!$B$11+Vehicles!$C$29*(1-Vehicles!$C$14)*Fuel_Specs!$B$13+Vehicles!$C$14*Fuel_Specs!$B$39)*(Petroleum!B224*Petroleum!$F$218+Petroleum!$F224)+Vehicles!$C$14*Fuel_Specs!$B$39/((1-Vehicles!$C$29)*(1-Vehicles!$C$14)*Fuel_Specs!$B$11+Vehicles!$C$29*(1-Vehicles!$C$14)*Fuel_Specs!$B$13+Vehicles!$C$14*Fuel_Specs!$B$39)*(Pyrolysis!$Z172*Pyrolysis!$AA$166+Pyrolysis!$AA172))/1000000*HLOOKUP($I$10,$Y$5:$AC$6,2,FALSE)/HLOOKUP($I$11,$Y$7:$AC$8,2,FALSE) -> 8.718855872 | S24: =AN24*(Vehicles!$C$21/Vehicles!$AN$53)/(Vehicles!$C$21*(1/Vehicles!$AN$53+1/Vehicles!$AO$53)+Vehicles!$C$22/Vehicles!$AP$53)+B24*(Vehicles!$C$21/Vehicles!$AO$53+Vehicles!$C$22/Vehicles!$AP$53)/(Vehicles!$C$21*(1/Vehicles!$AN$53+1/Vehicles!$AO$53)+Vehicles!$C$22/Vehicles!$AP$53) -> 27.81561675 | T24: =AN24*(Vehicles!$D$21/Vehicles!$AR$53)/(Vehicles!$D$21*(1/Vehicles!$AR$53+1/Vehicles!$AS$53)+Vehicles!$D$22/Vehicles!$AT$53)+C24*(Vehicles!$D$21/Vehicles!$AS$53+Vehicles!$D$22/Vehicles!$AT$53)/(Vehicles!$D$21*(1/Vehicles!$AR$53+1/Vehicles!$AS$53)+Vehicles!$D$22/Vehicles!$AT$53) -> 27.63177448 | U24: =AN24*(Vehicles!$F$21/Vehicles!$AZ$53)/(Vehicles!$F$21*(1/Vehicles!$AZ$53+1/Vehicles!$BA$53)+Vehicles!$F$22/Vehicles!$BB$53)+D24*(Vehicles!$F$21/Vehicles!$BA$53+Vehicles!$F$22/Vehicles!$BB$53)/(Vehicles!$F$21*(1/Vehicles!$AZ$53+1/Vehicles!$BA$53)+Vehicles!$F$22/Vehicles!$BB$53) -> 27.81224266 | V24: =AN24*(Vehicles!$G$21/Vehicles!$BD$53)/(Vehicles!$G$21*(1/Vehicles!$BD$53+1/Vehicles!$BE$53)+Vehicles!$G$22/Vehicles!$BF$53)+F24*(Vehicles!$G$21/Vehicles!$BE$53+Vehicles!$G$22/Vehicles!$BF$53)/(Vehicles!$G$21*(1/Vehicles!$BD$53+1/Vehicles!$BE$53)+Vehicles!$G$22/Vehicles!$BF$53) -> 13.30735996 | W24: =AN24*(Vehicles!$H$21/Vehicles!$BH$53)/(Vehicles!$H$21*(1/Vehicles!$BH$53+1/Vehicles!$BI$53)+Vehicles!$H$22/Vehicles!$BJ$53)+G24*(Vehicles!$H$21/Vehicles!$BI$53+Vehicles!$H$22/Vehicles!$BJ$53)/(Vehicles!$H$21*(1/Vehicles!$BH$53+1/Vehicles!$BI$53)+Vehicles!$H$22/Vehicles!$BJ$53) -> 15.54908824 | X24: =AN24*(Vehicles!$I$21/Vehicles!$BL$53)/(Vehicles!$I$21*(1/Vehicles!$BL$53+1/Vehicles!$BM$53)+Vehicles!$I$22/Vehicles!$BN$53)+H24*(Vehicles!$I$21/Vehicles!$BM$53+Vehicles!$I$22/Vehicles!$BN$53)/(Vehicles!$I$21*(1/Vehicles!$BL$53+1/Vehicles!$BM$53)+Vehicles!$I$22/Vehicles!$BN$53) -> 14.15744582 | Y24: =AN24*(Vehicles!$J$21/Vehicles!$BP$53)/(Vehicles!$J$21*(1/Vehicles!$BP$53+1/Vehicles!$BQ$53)+Vehicles!$J$22/Vehicles!$BR$53)+K24*(Vehicles!$J$21/Vehicles!$BQ$53+Vehicles!$J$22/Vehicles!$BR$53)/(Vehicles!$J$21*(1/Vehicles!$BP$53+1/Vehicles!$BQ$53)+Vehicles!$J$22/Vehicles!$BR$53) -> 25.2897443 | Z24: =AN24*(Vehicles!$K$21/Vehicles!$BT$53)/(Vehicles!$K$21*(1/Vehicles!$BT$53+1/Vehicles!$BU$53)+Vehicles!$K$22/Vehicles!$BV$53)+O24*(Vehicles!$K$21/Vehicles!$BU$53+Vehicles!$K$22/Vehicles!$BV$53)/(Vehicles!$K$21*(1/Vehicles!$BT$53+1/Vehicles!$BU$53)+Vehicles!$K$22/Vehicles!$BV$53) -> 41.51540699 | AA24: =AN24*(Vehicles!$L$21/Vehicles!$BX$53)/(Vehicles!$L$21*(1/Vehicles!$BX$53+1/Vehicles!$BY$53)+Vehicles!$L$22/Vehicles!$BZ$53)+AO24*(Vehicles!$L$21/Vehicles!$BY$53+Vehicles!$L$22/Vehicles!$BZ$53)/(Vehicles!$L$21*(1/Vehicles!$BX$53+1/Vehicles!$BY$53)+Vehicles!$L$22/Vehicles!$BZ$53) -> 19.94117055 | AB24: =AN24*(Vehicles!$L$21/Vehicles!$BX$53)/(Vehicles!$L$21*(1/Vehicles!$BX$53+1/Vehicles!$BY$53)+Vehicles!$L$22/Vehicles!$CA$53)+AP24*(Vehicles!$L$21/Vehicles!$BY$53+Vehicles!$L$22/Vehicles!$CA$53)/(Vehicles!$L$21*(1/Vehicles!$BX$53+1/Vehicles!$BY$53)+Vehicles!$L$22/Vehicles!$CA$53) -> 25.87534537 | AC24: =('MeOH&FTD'!$X138*'MeOH&FTD'!$Y$132+'MeOH&FTD'!$Y138)/1000000*HLOOKUP($I$10,$Y$5:$AC$6,2,FALSE)/HLOOKUP($I$11,$Y$7:$AC$8,2,FALSE) -> 13.24908963 | AD24: =((1-Vehicles!$C$30)*(1-Vehicles!$C$11)*Fuel_Specs!$B$15/((1-Vehicles!$C$30)*(1-Vehicles!$C$11)*Fuel_Specs!$B$15+Vehicles!$C$30*(1-Vehicles!$C$11)*Fuel_Specs!$B$18+Vehicles!$C$11*Fuel_Specs!$B$35)*(Petroleum!B224*Petroleum!$J$218+Petroleum!$J224)+Vehicles!$C$30*(1-Vehicles!$C$11)*Fuel_Specs!$B$18/((1-Vehicles!$C$30)*(1-Vehicles!$C$11)*Fuel_Specs!$B$15+Vehicles!$C$30*(1-Vehicles!$C$11)*Fuel_Specs!$B$18+Vehicles!$C$11*Fuel_Specs!$B$35)*(Petroleum!B224*Petroleum!$K$218+Petroleum!$K224)+Vehicles!$C$11*Fuel_Specs!$B$35/((1-Vehicles!$C$30)*(1-Vehicles!$C$11)*Fuel_Specs!$B$15+Vehicles!$C$30*(1-Vehicles!$C$11)*Fuel_Specs!$B$18+Vehicles!$C$11*Fuel_Specs!$B$35)*('MeOH&FTD'!$AL138*'MeOH&FTD'!$AM$132+'MeOH&FTD'!$AM138))/1000000*HLOOKUP($I$10,$Y$5:$AC$6,2,FALSE)/HLOOKUP($I$11,$Y$7:$AC$8,2,FALSE) -> 13.80166159 | AE24: =((1-Vehicles!$C$31)*(1-Vehicles!$C$12)*Fuel_Specs!$B$15/((1-Vehicles!$C$31)*(1-Vehicles!$C$12)*Fuel_Specs!$B$15+Vehicles!$C$31*(1-Vehicles!$C$12)*Fuel_Specs!$B$18+Vehicles!$C$12*Fuel_Specs!$B$34)*(Petroleum!B224*Petroleum!$J$218+Petroleum!$J224)+Vehicles!$C$31*(1-Vehicles!$C$12)*Fuel_Specs!$B$18/((1-Vehicles!$C$31)*(1-Vehicles!$C$12)*Fuel_Specs!$B$15+Vehicles!$C$31*(1-Vehicles!$C$12)*Fuel_Specs!$B$18+Vehicles!$C$12*Fuel_Specs!$B$34)*(Petroleum!B224*Petroleum!$K$218+Petroleum!$K224)+Vehicles!$C$12*Fuel_Specs!$B$34/((1-Vehicles!$C$31)*(1-Vehicles!$C$12)*Fuel_Specs!$B$15+Vehicles!$C$31*(1-Vehicles!$C$12)*Fuel_Specs!$B$18+Vehicles!$C$12*Fuel_Specs!$B$34)*(BioOil!$Y320*BioOil!$Z$313+BioOil!$Z320))/1000000*HLOOKUP($I$10,$Y$5:$AC$6,2,FALSE)/HLOOKUP($I$11,$Y$7:$AC$8,2,FALSE) -> 13.66338089 | AF24: =((1-Vehicles!$C$32)*(1-Vehicles!$C$13)*Fuel_Specs!$B$15/((1-Vehicles!$C$32)*(1-Vehicles!$C$13)*Fuel_Specs!$B$15+Vehicles!$C$32*(1-Vehicles!$C$13)*Fuel_Specs!$B$18+Vehicles!$C$13*IF(Inputs!$E$499=1,IF(Inputs!$E$499=1,Fuel_Specs!$B$36,IF(Inputs!$E$499=3,Fuel_Specs!$B$38,Fuel_Specs!$B$37)),Fuel_Specs!$B$37))*(Petroleum!B224*Petroleum!$J$218+Petroleum!$J224)+Vehicles!$C$32*(1-Vehicles!$C$13)*Fuel_Specs!$B$18/((1-Vehicles!$C$32)*(1-Vehicles!$C$13)*Fuel_Specs!$B$15+Vehicles!$C$32*(1-Vehicles!$C$13)*Fuel_Specs!$B$18+Vehicles!$C$13*IF(Inputs!$E$499=1,IF(Inputs!$E$499=1,Fuel_Specs!$B$36,IF(Inputs!$E$499=3,Fuel_Specs!$B$38,Fuel_Specs!$B$37)),Fuel_Specs!$B$37))*(Petroleum!B224*Petroleum!$K$218+Petroleum!$K224)+Vehicles!$C$13*IF(Inputs!$E$499=1,IF(Inputs!$E$499=1,Fuel_Specs!$B$36,IF(Inputs!$E$499=3,Fuel_Specs!$B$38,Fuel_Specs!$B$37)),Fuel_Specs!$B$37)/((1-Vehicles!$C$32)*(1-Vehicles!$C$13)*Fuel_Specs!$B$15+Vehicles!$C$32*(1-Vehicles!$C$13)*Fuel_Specs!$B$18+Vehicles!$C$13*IF(Inputs!$E$499=1,IF(Inputs!$E$499=1,Fuel_Specs!$B$36,IF(Inputs!$E$499=3,Fuel_Specs!$B$38,Fuel_Specs!$B$37)),Fuel_Specs!$B$37))*(BioOil!$BE320*BioOil!$BF$313+BioOil!$BF320))/1000000*HLOOKUP($I$10,$Y$5:$AC$6,2,FALSE)/HLOOKUP($I$11,$Y$7:$AC$8,2,FALSE) -> 14.90272728 | AG24: =((1-Vehicles!$C$32)*(1-Vehicles!$C$13)*Fuel_Specs!$B$15/((1-Vehicles!$C$32)*(1-Vehicles!$C$13)*Fuel_Specs!$B$15+Vehicles!$C$32*(1-Vehicles!$C$13)*Fuel_Specs!$B$18+Vehicles!$C$13*IF(Inputs!$E$499=1,Fuel_Specs!$B$36,Fuel_Specs!$B$37))*(Petroleum!B224*Petroleum!$J$218+Petroleum!$J224)+Vehicles!$C$32*(1-Vehicles!$C$13)*Fuel_Specs!$B$18/((1-Vehicles!$C$32)*(1-Vehicles!$C$13)*Fuel_Specs!$B$15+Vehicles!$C$32*(1-Vehicles!$C$13)*Fuel_Specs!$B$18+Vehicles!$C$13*IF(Inputs!$E$499=1,Fuel_Specs!$B$36,Fuel_Specs!$B$37))*(Petroleum!B224*Petroleum!$K$218+Petroleum!$K224)+Vehicles!$C$13*IF(Inputs!$E$499=1,Fuel_Specs!$B$36,Fuel_Specs!$B$37)/((1-Vehicles!$C$32)*(1-Vehicles!$C$13)*Fuel_Specs!$B$15+Vehicles!$C$32*(1-Vehicles!$C$13)*Fuel_Specs!$B$18+Vehicles!$C$13*IF(Inputs!$E$499=1,Fuel_Specs!$B$36,Fuel_Specs!$B$37))*(Pyrolysis!$AB172*Pyrolysis!$AC$166+Pyrolysis!$AC172))/1000000*HLOOKUP($I$10,$Y$5:$AC$6,2,FALSE)/HLOOKUP($I$11,$Y$7:$AC$8,2,FALSE) -> 9.497026025 | AH24: =(((1-Vehicles!$C$33)*(1-Vehicles!$C$15-Vehicles!$C$16)*Fuel_Specs!$B$15*(Petroleum!B224*Petroleum!$J$218+Petroleum!$J224)+Vehicles!$C$33*(1-Vehicles!$C$15-Vehicles!$C$16)*Fuel_Specs!$B$18*(Petroleum!B224*Petroleum!$K$218+Petroleum!$K224)+Vehicles!$C$15*Fuel_Specs!$B$26*(EtOH!BE407*EtOH!$BF$401+EtOH!$BF407)+Vehicles!$C$16*Fuel_Specs!$B$29*('E-D Additives'!$B54*'E-D Additives'!$B$48))/((1-Vehicles!$C$33)*(1-Vehicles!$C$15-Vehicles!$C$16)*Fuel_Specs!$B$15+Vehicles!$C$33*(1-Vehicles!$C$15-Vehicles!$C$16)*Fuel_Specs!$B$18+Vehicles!$C$15*Fuel_Specs!$B$26+Vehicles!$C$16*Fuel_Specs!$B$29))/1000000*HLOOKUP($I$10,$Y$5:$AC$6,2,FALSE)/HLOOKUP($I$11,$Y$7:$AC$8,2,FALSE) -> 12.80228053 | AI24: =AN24*(Vehicles!$M$21/Vehicles!$CI$53)/(Vehicles!$M$21*(1/Vehicles!$CI$53+1/Vehicles!$CJ$53)+Vehicles!$M$22/Vehicles!$CK$53)+E24*(Vehicles!$M$21/Vehicles!$CJ$53+Vehicles!$M$22/Vehicles!$CK$53)/(Vehicles!$M$21*(1/Vehicles!$CI$53+1/Vehicles!$CJ$53)+Vehicles!$M$22/Vehicles!$CK$53) -> 12.79650848 | AJ24: =AN24*(Vehicles!$N$21/Vehicles!$CM$53)/(Vehicles!$N$21*(1/Vehicles!$CM$53+1/Vehicles!$CN$53)+Vehicles!$N$22/Vehicles!$CO$53)+AC24*(Vehicles!$N$21/Vehicles!$CN$53+Vehicles!$N$22/Vehicles!$CO$53)/(Vehicles!$N$21*(1/Vehicles!$CM$53+1/Vehicles!$CN$53)+Vehicles!$N$22/Vehicles!$CO$53) -> 15.13320538 | AK24: =AN24*(Vehicles!$O$21/Vehicles!$CQ$53)/(Vehicles!$O$21*(1/Vehicles!$CQ$53+1/Vehicles!$CR$53)+Vehicles!$O$22/Vehicles!$CS$53)+AD24*(Vehicles!$O$21/Vehicles!$CR$53+Vehicles!$O$22/Vehicles!$CS$53)/(Vehicles!$O$21*(1/Vehicles!$CQ$53+1/Vehicles!$CR$53)+Vehicles!$O$22/Vehicles!$CS$53) -> 15.55290147 | AL24: =AN24*(Vehicles!$P$21/Vehicles!$CU$53)/(Vehicles!$P$21*(1/Vehicles!$CU$53+1/Vehicles!$CV$53)+Vehicles!$P$22/Vehicles!$CW$53)+AE24*(Vehicles!$P$21/Vehicles!$CV$53+Vehicles!$P$22/Vehicles!$CW$53)/(Vehicles!$P$21*(1/Vehicles!$CU$53+1/Vehicles!$CV$53)+Vehicles!$P$22/Vehicles!$CW$53) -> 15.44787286 | AM24: =AN24*(Vehicles!$R$21/Vehicles!$DC$53)/(Vehicles!$R$21*(1/Vehicles!$DC$53+1/Vehicles!$DD$53)+Vehicles!$R$22/Vehicles!$DE$53)+AH24*(Vehicles!$R$21/Vehicles!$DD$53+Vehicles!$R$22/Vehicles!$DE$53)/(Vehicles!$R$21*(1/Vehicles!$DC$53+1/Vehicles!$DD$53)+Vehicles!$R$22/Vehicles!$DE$53) -> 14.79383957 | AN24: =(Electric!$G176+Electric!$F176)/1000000*HLOOKUP($I$10,$Y$5:$AC$6,2,FALSE)/HLOOKUP($I$11,$Y$7:$AC$8,2,FALSE) -> 21.08429346 | AO24: =(Hydrogen!$Z153*Hydrogen!$AA$147+Hydrogen!$AA153)/1000000*HLOOKUP($I$10,$Y$5:$AC$6,2,FALSE)/HLOOKUP($I$11,$Y$7:$AC$8,2,FALSE) -> 19.56717772 | AP24: =(Hydrogen!$AX153*Hydrogen!$AY$147+Hydrogen!$AY153)/1000000*HLOOKUP($I$10,$Y$5:$AC$6,2,FALSE)/HLOOKUP($I$11,$Y$7:$AC$8,2,FALSE) -> 27.44282253 | AQ24: =AN24*(Vehicles!$S$21/Vehicles!$DS$53)/(Vehicles!$S$21*(1/Vehicles!$DS$53+1/Vehicles!$DT$53)+Vehicles!$S$22/Vehicles!$DU$53)+AO24*(Vehicles!$S$21/Vehicles!$DT$53+Vehicles!$S$22/Vehicles!$DU$53)/(Vehicles!$S$21*(1/Vehicles!$DS$53+1/Vehicles!$DT$53)+Vehicles!$S$22/Vehicles!$DU$53) -> 20.03030871 | AR24: =AN24*(Vehicles!$S$21/Vehicles!$DS$53)/(Vehicles!$S$21*(1/Vehicles!$DS$53+1/Vehicles!$DT$53)+Vehicles!$S$22/Vehicles!$DU$53)+AP24*(Vehicles!$S$21/Vehicles!$DT$53+Vehicles!$S$22/Vehicles!$DU$53)/(Vehicles!$S$21*(1/Vehicles!$DS$53+1/Vehicles!$DT$53)+Vehicles!$S$22/Vehicles!$DU$53) -> 25.50174989
A25: CO: Total | B25: =(Inputs!$E$1056*(Petroleum!$B225*Petroleum!$F$218+Petroleum!$F225)+(1-Inputs!$E$1056)*(Petroleum!$B225*Petroleum!$D$218+Petroleum!$D225))/1000000*HLOOKUP($I$10,$Y$5:$AC$6,2,FALSE)/HLOOKUP($I$11,$Y$7:$AC$8,2,FALSE) -> 23.30409841 | C25: =(Petroleum!$C225*Petroleum!$G$218+Petroleum!$G225)/1000000*HLOOKUP($I$10,$Y$5:$AC$6,2,FALSE)/HLOOKUP($I$11,$Y$7:$AC$8,2,FALSE) -> 21.02338599 | D25: =((1-Vehicles!$C$26)*(1-Vehicles!$C$7)*Fuel_Specs!$B$11/((1-Vehicles!$C$26)*(1-Vehicles!$C$7)*Fuel_Specs!$B$11+Vehicles!$C$26*(1-Vehicles!$C$7)*Fuel_Specs!$B$13+Vehicles!$C$7*Fuel_Specs!$B$26)*(Petroleum!$B225*Petroleum!$D$218+Petroleum!$D225)+Vehicles!$C$26*(1-Vehicles!$C$7)*Fuel_Specs!$B$13/((1-Vehicles!$C$26)*(1-Vehicles!$C$7)*Fuel_Specs!$B$11+Vehicles!$C$26*(1-Vehicles!$C$7)*Fuel_Specs!$B$13+Vehicles!$C$7*Fuel_Specs!$B$26)*(Petroleum!B225*Petroleum!$F$218+Petroleum!$F225)+Vehicles!$C$7*Fuel_Specs!$B$26/((1-Vehicles!$C$26)*(1-Vehicles!$C$7)*Fuel_Specs!$B$11+Vehicles!$C$26*(1-Vehicles!$C$7)*Fuel_Specs!$B$13+Vehicles!$C$7*Fuel_Specs!$B$26)*(EtOH!BE408*EtOH!$BF$401+EtOH!$BF408))/1000000*HLOOKUP($I$10,$Y$5:$AC$6,2,FALSE)/HLOOKUP($I$11,$Y$7:$AC$8,2,FALSE) -> 23.28910469 | E25: =(Inputs!$E$88*(IF(Inputs!F$92=1,Petroleum!$B225,Petroleum!$C225)*Petroleum!$K$218+Petroleum!$K225)+(1-Inputs!$E$88)*(IF(Inputs!F$91=1,Petroleum!$B225,Petroleum!$C225)*Petroleum!$J$218+Petroleum!$J225))/1000000*HLOOKUP($I$10,$Y$5:$AC$6,2,FALSE)/HLOOKUP($I$11,$Y$7:$AC$8,2,FALSE) -> 22.80512341 | F25: =(NG!$H87*NG!$I$80+NG!$I87)/1000000*HLOOKUP($I$10,$Y$5:$AC$6,2,FALSE)/HLOOKUP($I$11,$Y$7:$AC$8,2,FALSE) -> 34.50735173 | G25: =(NG!$P87*NG!$Q$80+NG!$Q87)/1000000*HLOOKUP($I$10,$Y$5:$AC$6,2,FALSE)/HLOOKUP($I$11,$Y$7:$AC$8,2,FALSE) -> 51.28214721 | H25: =(NG!$V87*NG!$W$80+NG!$W87)/1000000*HLOOKUP($I$10,$Y$5:$AC$6,2,FALSE)/HLOOKUP($I$11,$Y$7:$AC$8,2,FALSE) -> 19.21198608 | I25: =('MeOH&FTD'!AV139*'MeOH&FTD'!AW$132+'MeOH&FTD'!AW139)/1000000*HLOOKUP($I$10,$Y$5:$AC$6,2,FALSE)/HLOOKUP($I$11,$Y$7:$AC$8,2,FALSE) -> 29.37197973 | J25: =((1-Vehicles!$C$25)*(1-Vehicles!$C$5)*Fuel_Specs!$B$11/((1-Vehicles!$C$25)*(1-Vehicles!$C$5)*Fuel_Specs!$B$11+Vehicles!$C$25*(1-Vehicles!$C$5)*Fuel_Specs!$B$13+Vehicles!$C$5*Fuel_Specs!$B$25)*(Petroleum!$B225*Petroleum!$D$218+Petroleum!$D225)+Vehicles!$C$25*(1-Vehicles!$C$5)*Fuel_Specs!$B$13/((1-Vehicles!$C$25)*(1-Vehicles!$C$5)*Fuel_Specs!$B$11+Vehicles!$C$25*(1-Vehicles!$C$5)*Fuel_Specs!$B$13+Vehicles!$C$5*Fuel_Specs!$B$25)*(Petroleum!B225*Petroleum!$F$218+Petroleum!$F225)+Vehicles!$C$5*Fuel_Specs!$B$25/((1-Vehicles!$C$25)*(1-Vehicles!$C$5)*Fuel_Specs!$B$11+Vehicles!$C$25*(1-Vehicles!$C$5)*Fuel_Specs!$B$13+Vehicles!$C$5*Fuel_Specs!$B$25)*('MeOH&FTD'!$L139*'MeOH&FTD'!$M$132+'MeOH&FTD'!$M139))/1000000*HLOOKUP($I$10,$Y$5:$AC$6,2,FALSE)/HLOOKUP($I$11,$Y$7:$AC$8,2,FALSE) -> 32.81180294 | K25: =((1-Vehicles!$C$25)*(1-Vehicles!$C$6)*Fuel_Specs!$B$11/((1-Vehicles!$C$25)*(1-Vehicles!$C$6)*Fuel_Specs!$B$11+Vehicles!$C$25*(1-Vehicles!$C$6)*Fuel_Specs!$B$13+Vehicles!$C$6*Fuel_Specs!$B$25)*(Petroleum!$B225*Petroleum!$D$218+Petroleum!$D225)+Vehicles!$C$25*(1-Vehicles!$C$6)*Fuel_Specs!$B$13/((1-Vehicles!$C$25)*(1-Vehicles!$C$6)*Fuel_Specs!$B$11+Vehicles!$C$25*(1-Vehicles!$C$6)*Fuel_Specs!$B$13+Vehicles!$C$6*Fuel_Specs!$B$25)*(Petroleum!B225*Petroleum!$F$218+Petroleum!$F225)+Vehicles!$C$6*Fuel_Specs!$B$25/((1-Vehicles!$C$25)*(1-Vehicles!$C$6)*Fuel_Specs!$B$11+Vehicles!$C$25*(1-Vehicles!$C$6)*Fuel_Specs!$B$13+Vehicles!$C$6*Fuel_Specs!$B$25)*('MeOH&FTD'!$L139*'MeOH&FTD'!$M$132+'MeOH&FTD'!$M139))/1000000*HLOOKUP($I$10,$Y$5:$AC$6,2,FALSE)/HLOOKUP($I$11,$Y$7:$AC$8,2,FALSE) -> 34.12571842 | L25: =('MeOH&FTD'!$L139*'MeOH&FTD'!$M$132+'MeOH&FTD'!$M139)/1000000*HLOOKUP($I$10,$Y$5:$AC$6,2,FALSE)/HLOOKUP($I$11,$Y$7:$AC$8,2,FALSE) -> 37.15867141 | M25: =((1-Vehicles!$C$27)*(1-Vehicles!$C$8)*Fuel_Specs!$B$11/((1-Vehicles!$C$27)*(1-Vehicles!$C$8)*Fuel_Specs!$B$11+Vehicles!$C$27*(1-Vehicles!$C$8)*Fuel_Specs!$B$13+Vehicles!$C$8*Fuel_Specs!$B$26)*(Petroleum!$B225*Petroleum!$D$218+Petroleum!$D225)+Vehicles!$C$27*(1-Vehicles!$C$8)*Fuel_Specs!$B$13/((1-Vehicles!$C$27)*(1-Vehicles!$C$8)*Fuel_Specs!$B$11+Vehicles!$C$27*(1-Vehicles!$C$8)*Fuel_Specs!$B$13+Vehicles!$C$8*Fuel_Specs!$B$26)*(Petroleum!B225*Petroleum!$F$218+Petroleum!$F225)+Vehicles!$C$8*Fuel_Specs!$B$26/((1-Vehicles!$C$27)*(1-Vehicles!$C$8)*Fuel_Specs!$B$11+Vehicles!$C$27*(1-Vehicles!$C$8)*Fuel_Specs!$B$13+Vehicles!$C$8*Fuel_Specs!$B$26)*(EtOH!BE408*EtOH!$BF$401+EtOH!$BF408))/1000000*HLOOKUP($I$10,$Y$5:$AC$6,2,FALSE)/HLOOKUP($I$11,$Y$7:$AC$8,2,FALSE) -> 50.8328101 | N25: =((1-Vehicles!$C$28)*(1-Vehicles!$C$10)*Fuel_Specs!$B$11/((1-Vehicles!$C$28)*(1-Vehicles!$C$10)*Fuel_Specs!$B$11+Vehicles!$C$28*(1-Vehicles!$C$10)*Fuel_Specs!$B$13+Vehicles!$C$10*Fuel_Specs!$B$27)*(Petroleum!$B225*Petroleum!$D$218+Petroleum!$D225)+Vehicles!$C$28*(1-Vehicles!$C$10)*Fuel_Specs!$B$13/((1-Vehicles!$C$28)*(1-Vehicles!$C$10)*Fuel_Specs!$B$11+Vehicles!$C$28*(1-Vehicles!$C$10)*Fuel_Specs!$B$13+Vehicles!$C$10*Fuel_Specs!$B$27)*(Petroleum!B225*Petroleum!$F$218+Petroleum!$F225)+Vehicles!$C$10*Fuel_Specs!$B$27/((1-Vehicles!$C$28)*(1-Vehicles!$C$10)*Fuel_Specs!$B$11+Vehicles!$C$28*(1-Vehicles!$C$10)*Fuel_Specs!$B$13+Vehicles!$C$10*Fuel_Specs!$B$27)*(EtOH!$BI408*EtOH!$BJ$401+EtOH!$BJ408))/1000000*HLOOKUP($I$10,$Y$5:$AC$6,2,FALSE)/HLOOKUP($I$11,$Y$7:$AC$8,2,FALSE) -> 84.86326216 | O25: =((1-Vehicles!$C$27)*(1-Vehicles!$C$9)*Fuel_Specs!$B$11/((1-Vehicles!$C$27)*(1-Vehicles!$C$9)*Fuel_Specs!$B$11+Vehicles!$C$27*(1-Vehicles!$C$9)*Fuel_Specs!$B$13+Vehicles!$C$9*Fuel_Specs!$B$26)*(Petroleum!$B225*Petroleum!$D$218+Petroleum!$D225)+Vehicles!$C$27*(1-Vehicles!$C$9)*Fuel_Specs!$B$13/((1-Vehicles!$C$27)*(1-Vehicles!$C$9)*Fuel_Specs!$B$11+Vehicles!$C$27*(1-Vehicles!$C$9)*Fuel_Specs!$B$13+Vehicles!$C$9*Fuel_Specs!$B$26)*(Petroleum!B225*Petroleum!$F$218+Petroleum!$F225)+Vehicles!$C$9*Fuel_Specs!$B$26/((1-Vehicles!$C$27)*(1-Vehicles!$C$9)*Fuel_Specs!$B$11+Vehicles!$C$27*(1-Vehicles!$C$9)*Fuel_Specs!$B$13+Vehicles!$C$9*Fuel_Specs!$B$26)*(EtOH!BE408*EtOH!$BF$401+EtOH!$BF408))/1000000*HLOOKUP($I$10,$Y$5:$AC$6,2,FALSE)/HLOOKUP($I$11,$Y$7:$AC$8,2,FALSE) -> 50.8328101 | P25: =(EtOH!$BE408*EtOH!$BF$401+EtOH!$BF408)/1000000*HLOOKUP($I$10,$Y$5:$AC$6,2,FALSE)/HLOOKUP($I$11,$Y$7:$AC$8,2,FALSE) -> 60.03145828 | Q25: =((1-Vehicles!$C$29)*(1-Vehicles!$C$14)*Fuel_Specs!$B$11/((1-Vehicles!$C$29)*(1-Vehicles!$C$14)*Fuel_Specs!$B$11+Vehicles!$C$29*(1-Vehicles!$C$14)*Fuel_Specs!$B$13+Vehicles!$C$14*Fuel_Specs!$B$39)*(Petroleum!$B225*Petroleum!$D$218+Petroleum!$D225)+Vehicles!$C$29*(1-Vehicles!$C$14)*Fuel_Specs!$B$13/((1-Vehicles!$C$29)*(1-Vehicles!$C$14)*Fuel_Specs!$B$11+Vehicles!$C$29*(1-Vehicles!$C$14)*Fuel_Specs!$B$13+Vehicles!$C$14*Fuel_Specs!$B$39)*(Petroleum!B225*Petroleum!$F$218+Petroleum!$F225)+Vehicles!$C$14*Fuel_Specs!$B$39/((1-Vehicles!$C$29)*(1-Vehicles!$C$14)*Fuel_Specs!$B$11+Vehicles!$C$29*(1-Vehicles!$C$14)*Fuel_Specs!$B$13+Vehicles!$C$14*Fuel_Specs!$B$39)*(BioOil!$BQ321*BioOil!$BR$313+BioOil!$BR321))/1000000*HLOOKUP($I$10,$Y$5:$AC$6,2,FALSE)/HLOOKUP($I$11,$Y$7:$AC$8,2,FALSE) -> 169.7119156 | R25: =((1-Vehicles!$C$29)*(1-Vehicles!$C$14)*Fuel_Specs!$B$11/((1-Vehicles!$C$29)*(1-Vehicles!$C$14)*Fuel_Specs!$B$11+Vehicles!$C$29*(1-Vehicles!$C$14)*Fuel_Specs!$B$13+Vehicles!$C$14*Fuel_Specs!$B$39)*(Petroleum!$B225*Petroleum!$D$218+Petroleum!$D225)+Vehicles!$C$29*(1-Vehicles!$C$14)*Fuel_Specs!$B$13/((1-Vehicles!$C$29)*(1-Vehicles!$C$14)*Fuel_Specs!$B$11+Vehicles!$C$29*(1-Vehicles!$C$14)*Fuel_Specs!$B$13+Vehicles!$C$14*Fuel_Specs!$B$39)*(Petroleum!B225*Petroleum!$F$218+Petroleum!$F225)+Vehicles!$C$14*Fuel_Specs!$B$39/((1-Vehicles!$C$29)*(1-Vehicles!$C$14)*Fuel_Specs!$B$11+Vehicles!$C$29*(1-Vehicles!$C$14)*Fuel_Specs!$B$13+Vehicles!$C$14*Fuel_Specs!$B$39)*(Pyrolysis!$Z173*Pyrolysis!$AA$166+Pyrolysis!$AA173))/1000000*HLOOKUP($I$10,$Y$5:$AC$6,2,FALSE)/HLOOKUP($I$11,$Y$7:$AC$8,2,FALSE) -> 26.88076133 | S25: =AN25*(Vehicles!$C$21/Vehicles!$AN$53)/(Vehicles!$C$21*(1/Vehicles!$AN$53+1/Vehicles!$AO$53)+Vehicles!$C$22/Vehicles!$AP$53)+B25*(Vehicles!$C$21/Vehicles!$AO$53+Vehicles!$C$22/Vehicles!$AP$53)/(Vehicles!$C$21*(1/Vehicles!$AN$53+1/Vehicles!$AO$53)+Vehicles!$C$22/Vehicles!$AP$53) -> 36.03583443 | T25: =AN25*(Vehicles!$D$21/Vehicles!$AR$53)/(Vehicles!$D$21*(1/Vehicles!$AR$53+1/Vehicles!$AS$53)+Vehicles!$D$22/Vehicles!$AT$53)+C25*(Vehicles!$D$21/Vehicles!$AS$53+Vehicles!$D$22/Vehicles!$AT$53)/(Vehicles!$D$21*(1/Vehicles!$AR$53+1/Vehicles!$AS$53)+Vehicles!$D$22/Vehicles!$AT$53) -> 34.28388564 | U25: =AN25*(Vehicles!$F$21/Vehicles!$AZ$53)/(Vehicles!$F$21*(1/Vehicles!$AZ$53+1/Vehicles!$BA$53)+Vehicles!$F$22/Vehicles!$BB$53)+D25*(Vehicles!$F$21/Vehicles!$BA$53+Vehicles!$F$22/Vehicles!$BB$53)/(Vehicles!$F$21*(1/Vehicles!$AZ$53+1/Vehicles!$BA$53)+Vehicles!$F$22/Vehicles!$BB$53) -> 36.02431688 | V25: =AN25*(Vehicles!$G$21/Vehicles!$BD$53)/(Vehicles!$G$21*(1/Vehicles!$BD$53+1/Vehicles!$BE$53)+Vehicles!$G$22/Vehicles!$BF$53)+F25*(Vehicles!$G$21/Vehicles!$BE$53+Vehicles!$G$22/Vehicles!$BF$53)/(Vehicles!$G$21*(1/Vehicles!$BD$53+1/Vehicles!$BE$53)+Vehicles!$G$22/Vehicles!$BF$53) -> 44.64170949 | W25: =AN25*(Vehicles!$H$21/Vehicles!$BH$53)/(Vehicles!$H$21*(1/Vehicles!$BH$53+1/Vehicles!$BI$53)+Vehicles!$H$22/Vehicles!$BJ$53)+G25*(Vehicles!$H$21/Vehicles!$BI$53+Vehicles!$H$22/Vehicles!$BJ$53)/(Vehicles!$H$21*(1/Vehicles!$BH$53+1/Vehicles!$BI$53)+Vehicles!$H$22/Vehicles!$BJ$53) -> 57.52741239 | X25: =AN25*(Vehicles!$I$21/Vehicles!$BL$53)/(Vehicles!$I$21*(1/Vehicles!$BL$53+1/Vehicles!$BM$53)+Vehicles!$I$22/Vehicles!$BN$53)+H25*(Vehicles!$I$21/Vehicles!$BM$53+Vehicles!$I$22/Vehicles!$BN$53)/(Vehicles!$I$21*(1/Vehicles!$BL$53+1/Vehicles!$BM$53)+Vehicles!$I$22/Vehicles!$BN$53) -> 32.89244328 | Y25: =AN25*(Vehicles!$J$21/Vehicles!$BP$53)/(Vehicles!$J$21*(1/Vehicles!$BP$53+1/Vehicles!$BQ$53)+Vehicles!$J$22/Vehicles!$BR$53)+K25*(Vehicles!$J$21/Vehicles!$BQ$53+Vehicles!$J$22/Vehicles!$BR$53)/(Vehicles!$J$21*(1/Vehicles!$BP$53+1/Vehicles!$BQ$53)+Vehicles!$J$22/Vehicles!$BR$53) -> 44.34855459 | Z25: =AN25*(Vehicles!$K$21/Vehicles!$BT$53)/(Vehicles!$K$21*(1/Vehicles!$BT$53+1/Vehicles!$BU$53)+Vehicles!$K$22/Vehicles!$BV$53)+O25*(Vehicles!$K$21/Vehicles!$BU$53+Vehicles!$K$22/Vehicles!$BV$53)/(Vehicles!$K$21*(1/Vehicles!$BT$53+1/Vehicles!$BU$53)+Vehicles!$K$22/Vehicles!$BV$53) -> 56.86623305 | AA25: =AN25*(Vehicles!$L$21/Vehicles!$BX$53)/(Vehicles!$L$21*(1/Vehicles!$BX$53+1/Vehicles!$BY$53)+Vehicles!$L$22/Vehicles!$BZ$53)+AO25*(Vehicles!$L$21/Vehicles!$BY$53+Vehicles!$L$22/Vehicles!$BZ$53)/(Vehicles!$L$21*(1/Vehicles!$BX$53+1/Vehicles!$BY$53)+Vehicles!$L$22/Vehicles!$BZ$53) -> 71.23739118 | AB25: =AN25*(Vehicles!$L$21/Vehicles!$BX$53)/(Vehicles!$L$21*(1/Vehicles!$BX$53+1/Vehicles!$BY$53)+Vehicles!$L$22/Vehicles!$CA$53)+AP25*(Vehicles!$L$21/Vehicles!$BY$53+Vehicles!$L$22/Vehicles!$CA$53)/(Vehicles!$L$21*(1/Vehicles!$BX$53+1/Vehicles!$BY$53)+Vehicles!$L$22/Vehicles!$CA$53) -> 94.29692353 | AC25: =('MeOH&FTD'!$X139*'MeOH&FTD'!$Y$132+'MeOH&FTD'!$Y139)/1000000*HLOOKUP($I$10,$Y$5:$AC$6,2,FALSE)/HLOOKUP($I$11,$Y$7:$AC$8,2,FALSE) -> 30.33049687 | AD25: =((1-Vehicles!$C$30)*(1-Vehicles!$C$11)*Fuel_Specs!$B$15/((1-Vehicles!$C$30)*(1-Vehicles!$C$11)*Fuel_Specs!$B$15+Vehicles!$C$30*(1-Vehicles!$C$11)*Fuel_Specs!$B$18+Vehicles!$C$11*Fuel_Specs!$B$35)*(Petroleum!B225*Petroleum!$J$218+Petroleum!$J225)+Vehicles!$C$30*(1-Vehicles!$C$11)*Fuel_Specs!$B$18/((1-Vehicles!$C$30)*(1-Vehicles!$C$11)*Fuel_Specs!$B$15+Vehicles!$C$30*(1-Vehicles!$C$11)*Fuel_Specs!$B$18+Vehicles!$C$11*Fuel_Specs!$B$35)*(Petroleum!B225*Petroleum!$K$218+Petroleum!$K225)+Vehicles!$C$11*Fuel_Specs!$B$35/((1-Vehicles!$C$30)*(1-Vehicles!$C$11)*Fuel_Specs!$B$15+Vehicles!$C$30*(1-Vehicles!$C$11)*Fuel_Specs!$B$18+Vehicles!$C$11*Fuel_Specs!$B$35)*('MeOH&FTD'!$AL139*'MeOH&FTD'!$AM$132+'MeOH&FTD'!$AM139))/1000000*HLOOKUP($I$10,$Y$5:$AC$6,2,FALSE)/HLOOKUP($I$11,$Y$7:$AC$8,2,FALSE) -> 29.68869931 | AE25: =((1-Vehicles!$C$31)*(1-Vehicles!$C$12)*Fuel_Specs!$B$15/((1-Vehicles!$C$31)*(1-Vehicles!$C$12)*Fuel_Specs!$B$15+Vehicles!$C$31*(1-Vehicles!$C$12)*Fuel_Specs!$B$18+Vehicles!$C$12*Fuel_Specs!$B$34)*(Petroleum!B225*Petroleum!$J$218+Petroleum!$J225)+Vehicles!$C$31*(1-Vehicles!$C$12)*Fuel_Specs!$B$18/((1-Vehicles!$C$31)*(1-Vehicles!$C$12)*Fuel_Specs!$B$15+Vehicles!$C$31*(1-Vehicles!$C$12)*Fuel_Specs!$B$18+Vehicles!$C$12*Fuel_Specs!$B$34)*(Petroleum!B225*Petroleum!$K$218+Petroleum!$K225)+Vehicles!$C$12*Fuel_Specs!$B$34/((1-Vehicles!$C$31)*(1-Vehicles!$C$12)*Fuel_Specs!$B$15+Vehicles!$C$31*(1-Vehicles!$C$12)*Fuel_Specs!$B$18+Vehicles!$C$12*Fuel_Specs!$B$34)*(BioOil!$Y321*BioOil!$Z$313+BioOil!$Z321))/1000000*HLOOKUP($I$10,$Y$5:$AC$6,2,FALSE)/HLOOKUP($I$11,$Y$7:$AC$8,2,FALSE) -> 29.57934069 | AF25: =((1-Vehicles!$C$32)*(1-Vehicles!$C$13)*Fuel_Specs!$B$15/((1-Vehicles!$C$32)*(1-Vehicles!$C$13)*Fuel_Specs!$B$15+Vehicles!$C$32*(1-Vehicles!$C$13)*Fuel_Specs!$B$18+Vehicles!$C$13*IF(Inputs!$E$499=1,IF(Inputs!$E$499=1,Fuel_Specs!$B$36,IF(Inputs!$E$499=3,Fuel_Specs!$B$38,Fuel_Specs!$B$37)),Fuel_Specs!$B$37))*(Petroleum!B225*Petroleum!$J$218+Petroleum!$J225)+Vehicles!$C$32*(1-Vehicles!$C$13)*Fuel_Specs!$B$18/((1-Vehicles!$C$32)*(1-Vehicles!$C$13)*Fuel_Specs!$B$15+Vehicles!$C$32*(1-Vehicles!$C$13)*Fuel_Specs!$B$18+Vehicles!$C$13*IF(Inputs!$E$499=1,IF(Inputs!$E$499=1,Fuel_Specs!$B$36,IF(Inputs!$E$499=3,Fuel_Specs!$B$38,Fuel_Specs!$B$37)),Fuel_Specs!$B$37))*(Petroleum!B225*Petroleum!$K$218+Petroleum!$K225)+Vehicles!$C$13*IF(Inputs!$E$499=1,IF(Inputs!$E$499=1,Fuel_Specs!$B$36,IF(Inputs!$E$499=3,Fuel_Specs!$B$38,Fuel_Specs!$B$37)),Fuel_Specs!$B$37)/((1-Vehicles!$C$32)*(1-Vehicles!$C$13)*Fuel_Specs!$B$15+Vehicles!$C$32*(1-Vehicles!$C$13)*Fuel_Specs!$B$18+Vehicles!$C$13*IF(Inputs!$E$499=1,IF(Inputs!$E$499=1,Fuel_Specs!$B$36,IF(Inputs!$E$499=3,Fuel_Specs!$B$38,Fuel_Specs!$B$37)),Fuel_Specs!$B$37))*(BioOil!$BE321*BioOil!$BF$313+BioOil!$BF321))/1000000*HLOOKUP($I$10,$Y$5:$AC$6,2,FALSE)/HLOOKUP($I$11,$Y$7:$AC$8,2,FALSE) -> 45.3482969 | AG25: =((1-Vehicles!$C$32)*(1-Vehicles!$C$13)*Fuel_Specs!$B$15/((1-Vehicles!$C$32)*(1-Vehicles!$C$13)*Fuel_Specs!$B$15+Vehicles!$C$32*(1-Vehicles!$C$13)*Fuel_Specs!$B$18+Vehicles!$C$13*IF(Inputs!$E$499=1,Fuel_Specs!$B$36,Fuel_Specs!$B$37))*(Petroleum!B225*Petroleum!$J$218+Petroleum!$J225)+Vehicles!$C$32*(1-Vehicles!$C$13)*Fuel_Specs!$B$18/((1-Vehicles!$C$32)*(1-Vehicles!$C$13)*Fuel_Specs!$B$15+Vehicles!$C$32*(1-Vehicles!$C$13)*Fuel_Specs!$B$18+Vehicles!$C$13*IF(Inputs!$E$499=1,Fuel_Specs!$B$36,Fuel_Specs!$B$37))*(Petroleum!B225*Petroleum!$K$218+Petroleum!$K225)+Vehicles!$C$13*IF(Inputs!$E$499=1,Fuel_Specs!$B$36,Fuel_Specs!$B$37)/((1-Vehicles!$C$32)*(1-Vehicles!$C$13)*Fuel_Specs!$B$15+Vehicles!$C$32*(1-Vehicles!$C$13)*Fuel_Specs!$B$18+Vehicles!$C$13*IF(Inputs!$E$499=1,Fuel_Specs!$B$36,Fuel_Specs!$B$37))*(Pyrolysis!$AB173*Pyrolysis!$AC$166+Pyrolysis!$AC173))/1000000*HLOOKUP($I$10,$Y$5:$AC$6,2,FALSE)/HLOOKUP($I$11,$Y$7:$AC$8,2,FALSE) -> 29.53506691 | AH25: =(((1-Vehicles!$C$33)*(1-Vehicles!$C$15-Vehicles!$C$16)*Fuel_Specs!$B$15*(Petroleum!B225*Petroleum!$J$218+Petroleum!$J225)+Vehicles!$C$33*(1-Vehicles!$C$15-Vehicles!$C$16)*Fuel_Specs!$B$18*(Petroleum!B225*Petroleum!$K$218+Petroleum!$K225)+Vehicles!$C$15*Fuel_Specs!$B$26*(EtOH!BE408*EtOH!$BF$401+EtOH!$BF408)+Vehicles!$C$16*Fuel_Specs!$B$29*('E-D Additives'!$B55*'E-D Additives'!$B$48))/((1-Vehicles!$C$33)*(1-Vehicles!$C$15-Vehicles!$C$16)*Fuel_Specs!$B$15+Vehicles!$C$33*(1-Vehicles!$C$15-Vehicles!$C$16)*Fuel_Specs!$B$18+Vehicles!$C$15*Fuel_Specs!$B$26+Vehicles!$C$16*Fuel_Specs!$B$29))/1000000*HLOOKUP($I$10,$Y$5:$AC$6,2,FALSE)/HLOOKUP($I$11,$Y$7:$AC$8,2,FALSE) -> 25.09738004 | AI25: =AN25*(Vehicles!$M$21/Vehicles!$CI$53)/(Vehicles!$M$21*(1/Vehicles!$CI$53+1/Vehicles!$CJ$53)+Vehicles!$M$22/Vehicles!$CK$53)+E25*(Vehicles!$M$21/Vehicles!$CJ$53+Vehicles!$M$22/Vehicles!$CK$53)/(Vehicles!$M$21*(1/Vehicles!$CI$53+1/Vehicles!$CJ$53)+Vehicles!$M$22/Vehicles!$CK$53) -> 36.13058086 | AJ25: =AN25*(Vehicles!$N$21/Vehicles!$CM$53)/(Vehicles!$N$21*(1/Vehicles!$CM$53+1/Vehicles!$CN$53)+Vehicles!$N$22/Vehicles!$CO$53)+AC25*(Vehicles!$N$21/Vehicles!$CN$53+Vehicles!$N$22/Vehicles!$CO$53)/(Vehicles!$N$21*(1/Vehicles!$CM$53+1/Vehicles!$CN$53)+Vehicles!$N$22/Vehicles!$CO$53) -> 41.84634285 | AK25: =AN25*(Vehicles!$O$21/Vehicles!$CQ$53)/(Vehicles!$O$21*(1/Vehicles!$CQ$53+1/Vehicles!$CR$53)+Vehicles!$O$22/Vehicles!$CS$53)+AD25*(Vehicles!$O$21/Vehicles!$CR$53+Vehicles!$O$22/Vehicles!$CS$53)/(Vehicles!$O$21*(1/Vehicles!$CQ$53+1/Vehicles!$CR$53)+Vehicles!$O$22/Vehicles!$CS$53) -> 41.35887706 | AL25: =AN25*(Vehicles!$P$21/Vehicles!$CU$53)/(Vehicles!$P$21*(1/Vehicles!$CU$53+1/Vehicles!$CV$53)+Vehicles!$P$22/Vehicles!$CW$53)+AE25*(Vehicles!$P$21/Vehicles!$CV$53+Vehicles!$P$22/Vehicles!$CW$53)/(Vehicles!$P$21*(1/Vehicles!$CU$53+1/Vehicles!$CV$53)+Vehicles!$P$22/Vehicles!$CW$53) -> 41.27581569 | AM25: =AN25*(Vehicles!$R$21/Vehicles!$DC$53)/(Vehicles!$R$21*(1/Vehicles!$DC$53+1/Vehicles!$DD$53)+Vehicles!$R$22/Vehicles!$DE$53)+AH25*(Vehicles!$R$21/Vehicles!$DD$53+Vehicles!$R$22/Vehicles!$DE$53)/(Vehicles!$R$21*(1/Vehicles!$DC$53+1/Vehicles!$DD$53)+Vehicles!$R$22/Vehicles!$DE$53) -> 37.87162313 | AN25: =(Electric!$G177+Electric!$F177)/1000000*HLOOKUP($I$10,$Y$5:$AC$6,2,FALSE)/HLOOKUP($I$11,$Y$7:$AC$8,2,FALSE) -> 78.21980535 | AO25: =(Hydrogen!$Z154*Hydrogen!$AA$147+Hydrogen!$AA154)/1000000*HLOOKUP($I$10,$Y$5:$AC$6,2,FALSE)/HLOOKUP($I$11,$Y$7:$AC$8,2,FALSE) -> 68.9529712 | AP25: =(Hydrogen!$AX154*Hydrogen!$AY$147+Hydrogen!$AY154)/1000000*HLOOKUP($I$10,$Y$5:$AC$6,2,FALSE)/HLOOKUP($I$11,$Y$7:$AC$8,2,FALSE) -> 99.55683638 | AQ25: =AN25*(Vehicles!$S$21/Vehicles!$DS$53)/(Vehicles!$S$21*(1/Vehicles!$DS$53+1/Vehicles!$DT$53)+Vehicles!$S$22/Vehicles!$DU$53)+AO25*(Vehicles!$S$21/Vehicles!$DT$53+Vehicles!$S$22/Vehicles!$DU$53)/(Vehicles!$S$21*(1/Vehicles!$DS$53+1/Vehicles!$DT$53)+Vehicles!$S$22/Vehicles!$DU$53) -> 71.78186418 | AR25: =AN25*(Vehicles!$S$21/Vehicles!$DS$53)/(Vehicles!$S$21*(1/Vehicles!$DS$53+1/Vehicles!$DT$53)+Vehicles!$S$22/Vehicles!$DU$53)+AP25*(Vehicles!$S$21/Vehicles!$DT$53+Vehicles!$S$22/Vehicles!$DU$53)/(Vehicles!$S$21*(1/Vehicles!$DS$53+1/Vehicles!$DT$53)+Vehicles!$S$22/Vehicles!$DU$53) -> 93.04326592
A26: NOx: Total | B26: =(Inputs!$E$1056*(Petroleum!$B226*Petroleum!$F$218+Petroleum!$F226)+(1-Inputs!$E$1056)*(Petroleum!$B226*Petroleum!$D$218+Petroleum!$D226))/1000000*HLOOKUP($I$10,$Y$5:$AC$6,2,FALSE)/HLOOKUP($I$11,$Y$7:$AC$8,2,FALSE) -> 54.60873437 | C26: =(Petroleum!$C226*Petroleum!$G$218+Petroleum!$G226)/1000000*HLOOKUP($I$10,$Y$5:$AC$6,2,FALSE)/HLOOKUP($I$11,$Y$7:$AC$8,2,FALSE) -> 46.49642615 | D26: =((1-Vehicles!$C$26)*(1-Vehicles!$C$7)*Fuel_Specs!$B$11/((1-Vehicles!$C$26)*(1-Vehicles!$C$7)*Fuel_Specs!$B$11+Vehicles!$C$26*(1-Vehicles!$C$7)*Fuel_Specs!$B$13+Vehicles!$C$7*Fuel_Specs!$B$26)*(Petroleum!$B226*Petroleum!$D$218+Petroleum!$D226)+Vehicles!$C$26*(1-Vehicles!$C$7)*Fuel_Specs!$B$13/((1-Vehicles!$C$26)*(1-Vehicles!$C$7)*Fuel_Specs!$B$11+Vehicles!$C$26*(1-Vehicles!$C$7)*Fuel_Specs!$B$13+Vehicles!$C$7*Fuel_Specs!$B$26)*(Petroleum!B226*Petroleum!$F$218+Petroleum!$F226)+Vehicles!$C$7*Fuel_Specs!$B$26/((1-Vehicles!$C$26)*(1-Vehicles!$C$7)*Fuel_Specs!$B$11+Vehicles!$C$26*(1-Vehicles!$C$7)*Fuel_Specs!$B$13+Vehicles!$C$7*Fuel_Specs!$B$26)*(EtOH!BE409*EtOH!$BF$401+EtOH!$BF409))/1000000*HLOOKUP($I$10,$Y$5:$AC$6,2,FALSE)/HLOOKUP($I$11,$Y$7:$AC$8,2,FALSE) -> 54.56779428 | E26: =(Inputs!$E$88*(IF(Inputs!F$92=1,Petroleum!$B226,Petroleum!$C226)*Petroleum!$K$218+Petroleum!$K226)+(1-Inputs!$E$88)*(IF(Inputs!F$91=1,Petroleum!$B226,Petroleum!$C226)*Petroleum!$J$218+Petroleum!$J226))/1000000*HLOOKUP($I$10,$Y$5:$AC$6,2,FALSE)/HLOOKUP($I$11,$Y$7:$AC$8,2,FALSE) -> 53.43963315 | F26: =(NG!$H88*NG!$I$80+NG!$I88)/1000000*HLOOKUP($I$10,$Y$5:$AC$6,2,FALSE)/HLOOKUP($I$11,$Y$7:$AC$8,2,FALSE) -> 46.95832526 | G26: =(NG!$P88*NG!$Q$80+NG!$Q88)/1000000*HLOOKUP($I$10,$Y$5:$AC$6,2,FALSE)/HLOOKUP($I$11,$Y$7:$AC$8,2,FALSE) -> 62.42426741 | H26: =(NG!$V88*NG!$W$80+NG!$W88)/1000000*HLOOKUP($I$10,$Y$5:$AC$6,2,FALSE)/HLOOKUP($I$11,$Y$7:$AC$8,2,FALSE) -> 37.50883912 | I26: =('MeOH&FTD'!AV140*'MeOH&FTD'!AW$132+'MeOH&FTD'!AW140)/1000000*HLOOKUP($I$10,$Y$5:$AC$6,2,FALSE)/HLOOKUP($I$11,$Y$7:$AC$8,2,FALSE) -> 43.36541964 | J26: =((1-Vehicles!$C$25)*(1-Vehicles!$C$5)*Fuel_Specs!$B$11/((1-Vehicles!$C$25)*(1-Vehicles!$C$5)*Fuel_Specs!$B$11+Vehicles!$C$25*(1-Vehicles!$C$5)*Fuel_Specs!$B$13+Vehicles!$C$5*Fuel_Specs!$B$25)*(Petroleum!$B226*Petroleum!$D$218+Petroleum!$D226)+Vehicles!$C$25*(1-Vehicles!$C$5)*Fuel_Specs!$B$13/((1-Vehicles!$C$25)*(1-Vehicles!$C$5)*Fuel_Specs!$B$11+Vehicles!$C$25*(1-Vehicles!$C$5)*Fuel_Specs!$B$13+Vehicles!$C$5*Fuel_Specs!$B$25)*(Petroleum!B226*Petroleum!$F$218+Petroleum!$F226)+Vehicles!$C$5*Fuel_Specs!$B$25/((1-Vehicles!$C$25)*(1-Vehicles!$C$5)*Fuel_Specs!$B$11+Vehicles!$C$25*(1-Vehicles!$C$5)*Fuel_Specs!$B$13+Vehicles!$C$5*Fuel_Specs!$B$25)*('MeOH&FTD'!$L140*'MeOH&FTD'!$M$132+'MeOH&FTD'!$M140))/1000000*HLOOKUP($I$10,$Y$5:$AC$6,2,FALSE)/HLOOKUP($I$11,$Y$7:$AC$8,2,FALSE) -> 57.88176305 | K26: =((1-Vehicles!$C$25)*(1-Vehicles!$C$6)*Fuel_Specs!$B$11/((1-Vehicles!$C$25)*(1-Vehicles!$C$6)*Fuel_Specs!$B$11+Vehicles!$C$25*(1-Vehicles!$C$6)*Fuel_Specs!$B$13+Vehicles!$C$6*Fuel_Specs!$B$25)*(Petroleum!$B226*Petroleum!$D$218+Petroleum!$D226)+Vehicles!$C$25*(1-Vehicles!$C$6)*Fuel_Specs!$B$13/((1-Vehicles!$C$25)*(1-Vehicles!$C$6)*Fuel_Specs!$B$11+Vehicles!$C$25*(1-Vehicles!$C$6)*Fuel_Specs!$B$13+Vehicles!$C$6*Fuel_Specs!$B$25)*(Petroleum!B226*Petroleum!$F$218+Petroleum!$F226)+Vehicles!$C$6*Fuel_Specs!$B$25/((1-Vehicles!$C$25)*(1-Vehicles!$C$6)*Fuel_Specs!$B$11+Vehicles!$C$25*(1-Vehicles!$C$6)*Fuel_Specs!$B$13+Vehicles!$C$6*Fuel_Specs!$B$25)*('MeOH&FTD'!$L140*'MeOH&FTD'!$M$132+'MeOH&FTD'!$M140))/1000000*HLOOKUP($I$10,$Y$5:$AC$6,2,FALSE)/HLOOKUP($I$11,$Y$7:$AC$8,2,FALSE) -> 58.61201935 | L26: =('MeOH&FTD'!$L140*'MeOH&FTD'!$M$132+'MeOH&FTD'!$M140)/1000000*HLOOKUP($I$10,$Y$5:$AC$6,2,FALSE)/HLOOKUP($I$11,$Y$7:$AC$8,2,FALSE) -> 60.29769323 | M26: =((1-Vehicles!$C$27)*(1-Vehicles!$C$8)*Fuel_Specs!$B$11/((1-Vehicles!$C$27)*(1-Vehicles!$C$8)*Fuel_Specs!$B$11+Vehicles!$C$27*(1-Vehicles!$C$8)*Fuel_Specs!$B$13+Vehicles!$C$8*Fuel_Specs!$B$26)*(Petroleum!$B226*Petroleum!$D$218+Petroleum!$D226)+Vehicles!$C$27*(1-Vehicles!$C$8)*Fuel_Specs!$B$13/((1-Vehicles!$C$27)*(1-Vehicles!$C$8)*Fuel_Specs!$B$11+Vehicles!$C$27*(1-Vehicles!$C$8)*Fuel_Specs!$B$13+Vehicles!$C$8*Fuel_Specs!$B$26)*(Petroleum!B226*Petroleum!$F$218+Petroleum!$F226)+Vehicles!$C$8*Fuel_Specs!$B$26/((1-Vehicles!$C$27)*(1-Vehicles!$C$8)*Fuel_Specs!$B$11+Vehicles!$C$27*(1-Vehicles!$C$8)*Fuel_Specs!$B$13+Vehicles!$C$8*Fuel_Specs!$B$26)*(EtOH!BE409*EtOH!$BF$401+EtOH!$BF409))/1000000*HLOOKUP($I$10,$Y$5:$AC$6,2,FALSE)/HLOOKUP($I$11,$Y$7:$AC$8,2,FALSE) -> 90.63954583 | N26: =((1-Vehicles!$C$28)*(1-Vehicles!$C$10)*Fuel_Specs!$B$11/((1-Vehicles!$C$28)*(1-Vehicles!$C$10)*Fuel_Specs!$B$11+Vehicles!$C$28*(1-Vehicles!$C$10)*Fuel_Specs!$B$13+Vehicles!$C$10*Fuel_Specs!$B$27)*(Petroleum!$B226*Petroleum!$D$218+Petroleum!$D226)+Vehicles!$C$28*(1-Vehicles!$C$10)*Fuel_Specs!$B$13/((1-Vehicles!$C$28)*(1-Vehicles!$C$10)*Fuel_Specs!$B$11+Vehicles!$C$28*(1-Vehicles!$C$10)*Fuel_Specs!$B$13+Vehicles!$C$10*Fuel_Specs!$B$27)*(Petroleum!B226*Petroleum!$F$218+Petroleum!$F226)+Vehicles!$C$10*Fuel_Specs!$B$27/((1-Vehicles!$C$28)*(1-Vehicles!$C$10)*Fuel_Specs!$B$11+Vehicles!$C$28*(1-Vehicles!$C$10)*Fuel_Specs!$B$13+Vehicles!$C$10*Fuel_Specs!$B$27)*(EtOH!$BI409*EtOH!$BJ$401+EtOH!$BJ409))/1000000*HLOOKUP($I$10,$Y$5:$AC$6,2,FALSE)/HLOOKUP($I$11,$Y$7:$AC$8,2,FALSE) -> 115.3051897 | O26: =((1-Vehicles!$C$27)*(1-Vehicles!$C$9)*Fuel_Specs!$B$11/((1-Vehicles!$C$27)*(1-Vehicles!$C$9)*Fuel_Specs!$B$11+Vehicles!$C$27*(1-Vehicles!$C$9)*Fuel_Specs!$B$13+Vehicles!$C$9*Fuel_Specs!$B$26)*(Petroleum!$B226*Petroleum!$D$218+Petroleum!$D226)+Vehicles!$C$27*(1-Vehicles!$C$9)*Fuel_Specs!$B$13/((1-Vehicles!$C$27)*(1-Vehicles!$C$9)*Fuel_Specs!$B$11+Vehicles!$C$27*(1-Vehicles!$C$9)*Fuel_Specs!$B$13+Vehicles!$C$9*Fuel_Specs!$B$26)*(Petroleum!B226*Petroleum!$F$218+Petroleum!$F226)+Vehicles!$C$9*Fuel_Specs!$B$26/((1-Vehicles!$C$27)*(1-Vehicles!$C$9)*Fuel_Specs!$B$11+Vehicles!$C$27*(1-Vehicles!$C$9)*Fuel_Specs!$B$13+Vehicles!$C$9*Fuel_Specs!$B$26)*(EtOH!BE409*EtOH!$BF$401+EtOH!$BF409))/1000000*HLOOKUP($I$10,$Y$5:$AC$6,2,FALSE)/HLOOKUP($I$11,$Y$7:$AC$8,2,FALSE) -> 90.63954583 | P26: =(EtOH!$BE409*EtOH!$BF$401+EtOH!$BF409)/1000000*HLOOKUP($I$10,$Y$5:$AC$6,2,FALSE)/HLOOKUP($I$11,$Y$7:$AC$8,2,FALSE) -> 102.6862675 | Q26: =((1-Vehicles!$C$29)*(1-Vehicles!$C$14)*Fuel_Specs!$B$11/((1-Vehicles!$C$29)*(1-Vehicles!$C$14)*Fuel_Specs!$B$11+Vehicles!$C$29*(1-Vehicles!$C$14)*Fuel_Specs!$B$13+Vehicles!$C$14*Fuel_Specs!$B$39)*(Petroleum!$B226*Petroleum!$D$218+Petroleum!$D226)+Vehicles!$C$29*(1-Vehicles!$C$14)*Fuel_Specs!$B$13/((1-Vehicles!$C$29)*(1-Vehicles!$C$14)*Fuel_Specs!$B$11+Vehicles!$C$29*(1-Vehicles!$C$14)*Fuel_Specs!$B$13+Vehicles!$C$14*Fuel_Specs!$B$39)*(Petroleum!B226*Petroleum!$F$218+Petroleum!$F226)+Vehicles!$C$14*Fuel_Specs!$B$39/((1-Vehicles!$C$29)*(1-Vehicles!$C$14)*Fuel_Specs!$B$11+Vehicles!$C$29*(1-Vehicles!$C$14)*Fuel_Specs!$B$13+Vehicles!$C$14*Fuel_Specs!$B$39)*(BioOil!$BQ322*BioOil!$BR$313+BioOil!$BR322))/1000000*HLOOKUP($I$10,$Y$5:$AC$6,2,FALSE)/HLOOKUP($I$11,$Y$7:$AC$8,2,FALSE) -> 191.3566542 | R26: =((1-Vehicles!$C$29)*(1-Vehicles!$C$14)*Fuel_Specs!$B$11/((1-Vehicles!$C$29)*(1-Vehicles!$C$14)*Fuel_Specs!$B$11+Vehicles!$C$29*(1-Vehicles!$C$14)*Fuel_Specs!$B$13+Vehicles!$C$14*Fuel_Specs!$B$39)*(Petroleum!$B226*Petroleum!$D$218+Petroleum!$D226)+Vehicles!$C$29*(1-Vehicles!$C$14)*Fuel_Specs!$B$13/((1-Vehicles!$C$29)*(1-Vehicles!$C$14)*Fuel_Specs!$B$11+Vehicles!$C$29*(1-Vehicles!$C$14)*Fuel_Specs!$B$13+Vehicles!$C$14*Fuel_Specs!$B$39)*(Petroleum!B226*Petroleum!$F$218+Petroleum!$F226)+Vehicles!$C$14*Fuel_Specs!$B$39/((1-Vehicles!$C$29)*(1-Vehicles!$C$14)*Fuel_Specs!$B$11+Vehicles!$C$29*(1-Vehicles!$C$14)*Fuel_Specs!$B$13+Vehicles!$C$14*Fuel_Specs!$B$39)*(Pyrolysis!$Z174*Pyrolysis!$AA$166+Pyrolysis!$AA174))/1000000*HLOOKUP($I$10,$Y$5:$AC$6,2,FALSE)/HLOOKUP($I$11,$Y$7:$AC$8,2,FALSE) -> 54.501818 | S26: =AN26*(Vehicles!$C$21/Vehicles!$AN$53)/(Vehicles!$C$21*(1/Vehicles!$AN$53+1/Vehicles!$AO$53)+Vehicles!$C$22/Vehicles!$AP$53)+B26*(Vehicles!$C$21/Vehicles!$AO$53+Vehicles!$C$22/Vehicles!$AP$53)/(Vehicles!$C$21*(1/Vehicles!$AN$53+1/Vehicles!$AO$53)+Vehicles!$C$22/Vehicles!$AP$53) -> 101.2067486 | T26: =AN26*(Vehicles!$D$21/Vehicles!$AR$53)/(Vehicles!$D$21*(1/Vehicles!$AR$53+1/Vehicles!$AS$53)+Vehicles!$D$22/Vehicles!$AT$53)+C26*(Vehicles!$D$21/Vehicles!$AS$53+Vehicles!$D$22/Vehicles!$AT$53)/(Vehicles!$D$21*(1/Vehicles!$AR$53+1/Vehicles!$AS$53)+Vehicles!$D$22/Vehicles!$AT$53) -> 94.97520949 | U26: =AN26*(Vehicles!$F$21/Vehicles!$AZ$53)/(Vehicles!$F$21*(1/Vehicles!$AZ$53+1/Vehicles!$BA$53)+Vehicles!$F$22/Vehicles!$BB$53)+D26*(Vehicles!$F$21/Vehicles!$BA$53+Vehicles!$F$22/Vehicles!$BB$53)/(Vehicles!$F$21*(1/Vehicles!$AZ$53+1/Vehicles!$BA$53)+Vehicles!$F$22/Vehicles!$BB$53) -> 101.1753001 | V26: =AN26*(Vehicles!$G$21/Vehicles!$BD$53)/(Vehicles!$G$21*(1/Vehicles!$BD$53+1/Vehicles!$BE$53)+Vehicles!$G$22/Vehicles!$BF$53)+F26*(Vehicles!$G$21/Vehicles!$BE$53+Vehicles!$G$22/Vehicles!$BF$53)/(Vehicles!$G$21*(1/Vehicles!$BD$53+1/Vehicles!$BE$53)+Vehicles!$G$22/Vehicles!$BF$53) -> 95.33002125 | W26: =AN26*(Vehicles!$H$21/Vehicles!$BH$53)/(Vehicles!$H$21*(1/Vehicles!$BH$53+1/Vehicles!$BI$53)+Vehicles!$H$22/Vehicles!$BJ$53)+G26*(Vehicles!$H$21/Vehicles!$BI$53+Vehicles!$H$22/Vehicles!$BJ$53)/(Vehicles!$H$21*(1/Vehicles!$BH$53+1/Vehicles!$BI$53)+Vehicles!$H$22/Vehicles!$BJ$53) -> 107.2103173 | X26: =AN26*(Vehicles!$I$21/Vehicles!$BL$53)/(Vehicles!$I$21*(1/Vehicles!$BL$53+1/Vehicles!$BM$53)+Vehicles!$I$22/Vehicles!$BN$53)+H26*(Vehicles!$I$21/Vehicles!$BM$53+Vehicles!$I$22/Vehicles!$BN$53)/(Vehicles!$I$21*(1/Vehicles!$BL$53+1/Vehicles!$BM$53)+Vehicles!$I$22/Vehicles!$BN$53) -> 88.07131749 | Y26: =AN26*(Vehicles!$J$21/Vehicles!$BP$53)/(Vehicles!$J$21*(1/Vehicles!$BP$53+1/Vehicles!$BQ$53)+Vehicles!$J$22/Vehicles!$BR$53)+K26*(Vehicles!$J$21/Vehicles!$BQ$53+Vehicles!$J$22/Vehicles!$BR$53)/(Vehicles!$J$21*(1/Vehicles!$BP$53+1/Vehicles!$BQ$53)+Vehicles!$J$22/Vehicles!$BR$53) -> 104.2819062 | Z26: =AN26*(Vehicles!$K$21/Vehicles!$BT$53)/(Vehicles!$K$21*(1/Vehicles!$BT$53+1/Vehicles!$BU$53)+Vehicles!$K$22/Vehicles!$BV$53)+O26*(Vehicles!$K$21/Vehicles!$BU$53+Vehicles!$K$22/Vehicles!$BV$53)/(Vehicles!$K$21*(1/Vehicles!$BT$53+1/Vehicles!$BU$53)+Vehicles!$K$22/Vehicles!$BV$53) -> 126.980659 | AA26: =AN26*(Vehicles!$L$21/Vehicles!$BX$53)/(Vehicles!$L$21*(1/Vehicles!$BX$53+1/Vehicles!$BY$53)+Vehicles!$L$22/Vehicles!$BZ$53)+AO26*(Vehicles!$L$21/Vehicles!$BY$53+Vehicles!$L$22/Vehicles!$BZ$53)/(Vehicles!$L$21*(1/Vehicles!$BX$53+1/Vehicles!$BY$53)+Vehicles!$L$22/Vehicles!$BZ$53) -> 144.9969323 | AB26: =AN26*(Vehicles!$L$21/Vehicles!$BX$53)/(Vehicles!$L$21*(1/Vehicles!$BX$53+1/Vehicles!$BY$53)+Vehicles!$L$22/Vehicles!$CA$53)+AP26*(Vehicles!$L$21/Vehicles!$BY$53+Vehicles!$L$22/Vehicles!$CA$53)/(Vehicles!$L$21*(1/Vehicles!$BX$53+1/Vehicles!$BY$53)+Vehicles!$L$22/Vehicles!$CA$53) -> 214.526888 | AC26: =('MeOH&FTD'!$X140*'MeOH&FTD'!$Y$132+'MeOH&FTD'!$Y140)/1000000*HLOOKUP($I$10,$Y$5:$AC$6,2,FALSE)/HLOOKUP($I$11,$Y$7:$AC$8,2,FALSE) -> 48.22126805 | AD26: =((1-Vehicles!$C$30)*(1-Vehicles!$C$11)*Fuel_Specs!$B$15/((1-Vehicles!$C$30)*(1-Vehicles!$C$11)*Fuel_Specs!$B$15+Vehicles!$C$30*(1-Vehicles!$C$11)*Fuel_Specs!$B$18+Vehicles!$C$11*Fuel_Specs!$B$35)*(Petroleum!B226*Petroleum!$J$218+Petroleum!$J226)+Vehicles!$C$30*(1-Vehicles!$C$11)*Fuel_Specs!$B$18/((1-Vehicles!$C$30)*(1-Vehicles!$C$11)*Fuel_Specs!$B$15+Vehicles!$C$30*(1-Vehicles!$C$11)*Fuel_Specs!$B$18+Vehicles!$C$11*Fuel_Specs!$B$35)*(Petroleum!B226*Petroleum!$K$218+Petroleum!$K226)+Vehicles!$C$11*Fuel_Specs!$B$35/((1-Vehicles!$C$30)*(1-Vehicles!$C$11)*Fuel_Specs!$B$15+Vehicles!$C$30*(1-Vehicles!$C$11)*Fuel_Specs!$B$18+Vehicles!$C$11*Fuel_Specs!$B$35)*('MeOH&FTD'!$AL140*'MeOH&FTD'!$AM$132+'MeOH&FTD'!$AM140))/1000000*HLOOKUP($I$10,$Y$5:$AC$6,2,FALSE)/HLOOKUP($I$11,$Y$7:$AC$8,2,FALSE) -> 44.46751843 | AE26: =((1-Vehicles!$C$31)*(1-Vehicles!$C$12)*Fuel_Specs!$B$15/((1-Vehicles!$C$31)*(1-Vehicles!$C$12)*Fuel_Specs!$B$15+Vehicles!$C$31*(1-Vehicles!$C$12)*Fuel_Specs!$B$18+Vehicles!$C$12*Fuel_Specs!$B$34)*(Petroleum!B226*Petroleum!$J$218+Petroleum!$J226)+Vehicles!$C$31*(1-Vehicles!$C$12)*Fuel_Specs!$B$18/((1-Vehicles!$C$31)*(1-Vehicles!$C$12)*Fuel_Specs!$B$15+Vehicles!$C$31*(1-Vehicles!$C$12)*Fuel_Specs!$B$18+Vehicles!$C$12*Fuel_Specs!$B$34)*(Petroleum!B226*Petroleum!$K$218+Petroleum!$K226)+Vehicles!$C$12*Fuel_Specs!$B$34/((1-Vehicles!$C$31)*(1-Vehicles!$C$12)*Fuel_Specs!$B$15+Vehicles!$C$31*(1-Vehicles!$C$12)*Fuel_Specs!$B$18+Vehicles!$C$12*Fuel_Specs!$B$34)*(BioOil!$Y322*BioOil!$Z$313+BioOil!$Z322))/1000000*HLOOKUP($I$10,$Y$5:$AC$6,2,FALSE)/HLOOKUP($I$11,$Y$7:$AC$8,2,FALSE) -> 57.92626581 | AF26: =((1-Vehicles!$C$32)*(1-Vehicles!$C$13)*Fuel_Specs!$B$15/((1-Vehicles!$C$32)*(1-Vehicles!$C$13)*Fuel_Specs!$B$15+Vehicles!$C$32*(1-Vehicles!$C$13)*Fuel_Specs!$B$18+Vehicles!$C$13*IF(Inputs!$E$499=1,IF(Inputs!$E$499=1,Fuel_Specs!$B$36,IF(Inputs!$E$499=3,Fuel_Specs!$B$38,Fuel_Specs!$B$37)),Fuel_Specs!$B$37))*(Petroleum!B226*Petroleum!$J$218+Petroleum!$J226)+Vehicles!$C$32*(1-Vehicles!$C$13)*Fuel_Specs!$B$18/((1-Vehicles!$C$32)*(1-Vehicles!$C$13)*Fuel_Specs!$B$15+Vehicles!$C$32*(1-Vehicles!$C$13)*Fuel_Specs!$B$18+Vehicles!$C$13*IF(Inputs!$E$499=1,IF(Inputs!$E$499=1,Fuel_Specs!$B$36,IF(Inputs!$E$499=3,Fuel_Specs!$B$38,Fuel_Specs!$B$37)),Fuel_Specs!$B$37))*(Petroleum!B226*Petroleum!$K$218+Petroleum!$K226)+Vehicles!$C$13*IF(Inputs!$E$499=1,IF(Inputs!$E$499=1,Fuel_Specs!$B$36,IF(Inputs!$E$499=3,Fuel_Specs!$B$38,Fuel_Specs!$B$37)),Fuel_Specs!$B$37)/((1-Vehicles!$C$32)*(1-Vehicles!$C$13)*Fuel_Specs!$B$15+Vehicles!$C$32*(1-Vehicles!$C$13)*Fuel_Specs!$B$18+Vehicles!$C$13*IF(Inputs!$E$499=1,IF(Inputs!$E$499=1,Fuel_Specs!$B$36,IF(Inputs!$E$499=3,Fuel_Specs!$B$38,Fuel_Specs!$B$37)),Fuel_Specs!$B$37))*(BioOil!$BE322*BioOil!$BF$313+BioOil!$BF322))/1000000*HLOOKUP($I$10,$Y$5:$AC$6,2,FALSE)/HLOOKUP($I$11,$Y$7:$AC$8,2,FALSE) -> 51.34848391 | AG26: =((1-Vehicles!$C$32)*(1-Vehicles!$C$13)*Fuel_Specs!$B$15/((1-Vehicles!$C$32)*(1-Vehicles!$C$13)*Fuel_Specs!$B$15+Vehicles!$C$32*(1-Vehicles!$C$13)*Fuel_Specs!$B$18+Vehicles!$C$13*IF(Inputs!$E$499=1,Fuel_Specs!$B$36,Fuel_Specs!$B$37))*(Petroleum!B226*Petroleum!$J$218+Petroleum!$J226)+Vehicles!$C$32*(1-Vehicles!$C$13)*Fuel_Specs!$B$18/((1-Vehicles!$C$32)*(1-Vehicles!$C$13)*Fuel_Specs!$B$15+Vehicles!$C$32*(1-Vehicles!$C$13)*Fuel_Specs!$B$18+Vehicles!$C$13*IF(Inputs!$E$499=1,Fuel_Specs!$B$36,Fuel_Specs!$B$37))*(Petroleum!B226*Petroleum!$K$218+Petroleum!$K226)+Vehicles!$C$13*IF(Inputs!$E$499=1,Fuel_Specs!$B$36,Fuel_Specs!$B$37)/((1-Vehicles!$C$32)*(1-Vehicles!$C$13)*Fuel_Specs!$B$15+Vehicles!$C$32*(1-Vehicles!$C$13)*Fuel_Specs!$B$18+Vehicles!$C$13*IF(Inputs!$E$499=1,Fuel_Specs!$B$36,Fuel_Specs!$B$37))*(Pyrolysis!$AB174*Pyrolysis!$AC$166+Pyrolysis!$AC174))/1000000*HLOOKUP($I$10,$Y$5:$AC$6,2,FALSE)/HLOOKUP($I$11,$Y$7:$AC$8,2,FALSE) -> 65.01618811 | AH26: =(((1-Vehicles!$C$33)*(1-Vehicles!$C$15-Vehicles!$C$16)*Fuel_Specs!$B$15*(Petroleum!B226*Petroleum!$J$218+Petroleum!$J226)+Vehicles!$C$33*(1-Vehicles!$C$15-Vehicles!$C$16)*Fuel_Specs!$B$18*(Petroleum!B226*Petroleum!$K$218+Petroleum!$K226)+Vehicles!$C$15*Fuel_Specs!$B$26*(EtOH!BE409*EtOH!$BF$401+EtOH!$BF409)+Vehicles!$C$16*Fuel_Specs!$B$29*('E-D Additives'!$B56*'E-D Additives'!$B$48))/((1-Vehicles!$C$33)*(1-Vehicles!$C$15-Vehicles!$C$16)*Fuel_Specs!$B$15+Vehicles!$C$33*(1-Vehicles!$C$15-Vehicles!$C$16)*Fuel_Specs!$B$18+Vehicles!$C$15*Fuel_Specs!$B$26+Vehicles!$C$16*Fuel_Specs!$B$29))/1000000*HLOOKUP($I$10,$Y$5:$AC$6,2,FALSE)/HLOOKUP($I$11,$Y$7:$AC$8,2,FALSE) -> 56.36255795 | AI26: =AN26*(Vehicles!$M$21/Vehicles!$CI$53)/(Vehicles!$M$21*(1/Vehicles!$CI$53+1/Vehicles!$CJ$53)+Vehicles!$M$22/Vehicles!$CK$53)+E26*(Vehicles!$M$21/Vehicles!$CJ$53+Vehicles!$M$22/Vehicles!$CK$53)/(Vehicles!$M$21*(1/Vehicles!$CI$53+1/Vehicles!$CJ$53)+Vehicles!$M$22/Vehicles!$CK$53) -> 102.0526397 | AJ26: =AN26*(Vehicles!$N$21/Vehicles!$CM$53)/(Vehicles!$N$21*(1/Vehicles!$CM$53+1/Vehicles!$CN$53)+Vehicles!$N$22/Vehicles!$CO$53)+AC26*(Vehicles!$N$21/Vehicles!$CN$53+Vehicles!$N$22/Vehicles!$CO$53)/(Vehicles!$N$21*(1/Vehicles!$CM$53+1/Vehicles!$CN$53)+Vehicles!$N$22/Vehicles!$CO$53) -> 98.08912438 | AK26: =AN26*(Vehicles!$O$21/Vehicles!$CQ$53)/(Vehicles!$O$21*(1/Vehicles!$CQ$53+1/Vehicles!$CR$53)+Vehicles!$O$22/Vehicles!$CS$53)+AD26*(Vehicles!$O$21/Vehicles!$CR$53+Vehicles!$O$22/Vehicles!$CS$53)/(Vehicles!$O$21*(1/Vehicles!$CQ$53+1/Vehicles!$CR$53)+Vehicles!$O$22/Vehicles!$CS$53) -> 95.2380314 | AL26: =AN26*(Vehicles!$P$21/Vehicles!$CU$53)/(Vehicles!$P$21*(1/Vehicles!$CU$53+1/Vehicles!$CV$53)+Vehicles!$P$22/Vehicles!$CW$53)+AE26*(Vehicles!$P$21/Vehicles!$CV$53+Vehicles!$P$22/Vehicles!$CW$53)/(Vehicles!$P$21*(1/Vehicles!$CU$53+1/Vehicles!$CV$53)+Vehicles!$P$22/Vehicles!$CW$53) -> 105.4603808 | AM26: =AN26*(Vehicles!$R$21/Vehicles!$DC$53)/(Vehicles!$R$21*(1/Vehicles!$DC$53+1/Vehicles!$DD$53)+Vehicles!$R$22/Vehicles!$DE$53)+AH26*(Vehicles!$R$21/Vehicles!$DD$53+Vehicles!$R$22/Vehicles!$DE$53)/(Vehicles!$R$21*(1/Vehicles!$DC$53+1/Vehicles!$DD$53)+Vehicles!$R$22/Vehicles!$DE$53) -> 104.2726946 | AN26: =(Electric!$G178+Electric!$F178)/1000000*HLOOKUP($I$10,$Y$5:$AC$6,2,FALSE)/HLOOKUP($I$11,$Y$7:$AC$8,2,FALSE) -> 255.5996195 | AO26: =(Hydrogen!$Z155*Hydrogen!$AA$147+Hydrogen!$AA155)/1000000*HLOOKUP($I$10,$Y$5:$AC$6,2,FALSE)/HLOOKUP($I$11,$Y$7:$AC$8,2,FALSE) -> 108.8113119 | AP26: =(Hydrogen!$AX155*Hydrogen!$AY$147+Hydrogen!$AY155)/1000000*HLOOKUP($I$10,$Y$5:$AC$6,2,FALSE)/HLOOKUP($I$11,$Y$7:$AC$8,2,FALSE) -> 201.0892192 | AQ26: =AN26*(Vehicles!$S$21/Vehicles!$DS$53)/(Vehicles!$S$21*(1/Vehicles!$DS$53+1/Vehicles!$DT$53)+Vehicles!$S$22/Vehicles!$DU$53)+AO26*(Vehicles!$S$21/Vehicles!$DT$53+Vehicles!$S$22/Vehicles!$DU$53)/(Vehicles!$S$21*(1/Vehicles!$DS$53+1/Vehicles!$DT$53)+Vehicles!$S$22/Vehicles!$DU$53) -> 153.6214817 | AR26: =AN26*(Vehicles!$S$21/Vehicles!$DS$53)/(Vehicles!$S$21*(1/Vehicles!$DS$53+1/Vehicles!$DT$53)+Vehicles!$S$22/Vehicles!$DU$53)+AP26*(Vehicles!$S$21/Vehicles!$DT$53+Vehicles!$S$22/Vehicles!$DU$53)/(Vehicles!$S$21*(1/Vehicles!$DS$53+1/Vehicles!$DT$53)+Vehicles!$S$22/Vehicles!$DU$53) -> 217.7296474
A27: PM10: Total | B27: =(Inputs!$E$1056*(Petroleum!$B227*Petroleum!$F$218+Petroleum!$F227)+(1-Inputs!$E$1056)*(Petroleum!$B227*Petroleum!$D$218+Petroleum!$D227))/1000000*HLOOKUP($I$10,$Y$5:$AC$6,2,FALSE)/HLOOKUP($I$11,$Y$7:$AC$8,2,FALSE) -> 5.366204538 | C27: =(Petroleum!$C227*Petroleum!$G$218+Petroleum!$G227)/1000000*HLOOKUP($I$10,$Y$5:$AC$6,2,FALSE)/HLOOKUP($I$11,$Y$7:$AC$8,2,FALSE) -> 5.247090274 | D27: =((1-Vehicles!$C$26)*(1-Vehicles!$C$7)*Fuel_Specs!$B$11/((1-Vehicles!$C$26)*(1-Vehicles!$C$7)*Fuel_Specs!$B$11+Vehicles!$C$26*(1-Vehicles!$C$7)*Fuel_Specs!$B$13+Vehicles!$C$7*Fuel_Specs!$B$26)*(Petroleum!$B227*Petroleum!$D$218+Petroleum!$D227)+Vehicles!$C$26*(1-Vehicles!$C$7)*Fuel_Specs!$B$13/((1-Vehicles!$C$26)*(1-Vehicles!$C$7)*Fuel_Specs!$B$11+Vehicles!$C$26*(1-Vehicles!$C$7)*Fuel_Specs!$B$13+Vehicles!$C$7*Fuel_Specs!$B$26)*(Petroleum!B227*Petroleum!$F$218+Petroleum!$F227)+Vehicles!$C$7*Fuel_Specs!$B$26/((1-Vehicles!$C$26)*(1-Vehicles!$C$7)*Fuel_Specs!$B$11+Vehicles!$C$26*(1-Vehicles!$C$7)*Fuel_Specs!$B$13+Vehicles!$C$7*Fuel_Specs!$B$26)*(EtOH!BE410*EtOH!$BF$401+EtOH!$BF410))/1000000*HLOOKUP($I$10,$Y$5:$AC$6,2,FALSE)/HLOOKUP($I$11,$Y$7:$AC$8,2,FALSE) -> 5.36520434 | E27: =(Inputs!$E$88*(IF(Inputs!F$92=1,Petroleum!$B227,Petroleum!$C227)*Petroleum!$K$218+Petroleum!$K227)+(1-Inputs!$E$88)*(IF(Inputs!F$91=1,Petroleum!$B227,Petroleum!$C227)*Petroleum!$J$218+Petroleum!$J227))/1000000*HLOOKUP($I$10,$Y$5:$AC$6,2,FALSE)/HLOOKUP($I$11,$Y$7:$AC$8,2,FALSE) -> 4.81768411 | F27: =(NG!$H89*NG!$I$80+NG!$I89)/1000000*HLOOKUP($I$10,$Y$5:$AC$6,2,FALSE)/HLOOKUP($I$11,$Y$7:$AC$8,2,FALSE) -> 1.856527826 | G27: =(NG!$P89*NG!$Q$80+NG!$Q89)/1000000*HLOOKUP($I$10,$Y$5:$AC$6,2,FALSE)/HLOOKUP($I$11,$Y$7:$AC$8,2,FALSE) -> 1.09819738 | H27: =(NG!$V89*NG!$W$80+NG!$W89)/1000000*HLOOKUP($I$10,$Y$5:$AC$6,2,FALSE)/HLOOKUP($I$11,$Y$7:$AC$8,2,FALSE) -> 2.417643178 | I27: =('MeOH&FTD'!AV141*'MeOH&FTD'!AW$132+'MeOH&FTD'!AW141)/1000000*HLOOKUP($I$10,$Y$5:$AC$6,2,FALSE)/HLOOKUP($I$11,$Y$7:$AC$8,2,FALSE) -> 15.22326992 | J27: =((1-Vehicles!$C$25)*(1-Vehicles!$C$5)*Fuel_Specs!$B$11/((1-Vehicles!$C$25)*(1-Vehicles!$C$5)*Fuel_Specs!$B$11+Vehicles!$C$25*(1-Vehicles!$C$5)*Fuel_Specs!$B$13+Vehicles!$C$5*Fuel_Specs!$B$25)*(Petroleum!$B227*Petroleum!$D$218+Petroleum!$D227)+Vehicles!$C$25*(1-Vehicles!$C$5)*Fuel_Specs!$B$13/((1-Vehicles!$C$25)*(1-Vehicles!$C$5)*Fuel_Specs!$B$11+Vehicles!$C$25*(1-Vehicles!$C$5)*Fuel_Specs!$B$13+Vehicles!$C$5*Fuel_Specs!$B$25)*(Petroleum!B227*Petroleum!$F$218+Petroleum!$F227)+Vehicles!$C$5*Fuel_Specs!$B$25/((1-Vehicles!$C$25)*(1-Vehicles!$C$5)*Fuel_Specs!$B$11+Vehicles!$C$25*(1-Vehicles!$C$5)*Fuel_Specs!$B$13+Vehicles!$C$5*Fuel_Specs!$B$25)*('MeOH&FTD'!$L141*'MeOH&FTD'!$M$132+'MeOH&FTD'!$M141))/1000000*HLOOKUP($I$10,$Y$5:$AC$6,2,FALSE)/HLOOKUP($I$11,$Y$7:$AC$8,2,FALSE) -> 12.17839732 | K27: =((1-Vehicles!$C$25)*(1-Vehicles!$C$6)*Fuel_Specs!$B$11/((1-Vehicles!$C$25)*(1-Vehicles!$C$6)*Fuel_Specs!$B$11+Vehicles!$C$25*(1-Vehicles!$C$6)*Fuel_Specs!$B$13+Vehicles!$C$6*Fuel_Specs!$B$25)*(Petroleum!$B227*Petroleum!$D$218+Petroleum!$D227)+Vehicles!$C$25*(1-Vehicles!$C$6)*Fuel_Specs!$B$13/((1-Vehicles!$C$25)*(1-Vehicles!$C$6)*Fuel_Specs!$B$11+Vehicles!$C$25*(1-Vehicles!$C$6)*Fuel_Specs!$B$13+Vehicles!$C$6*Fuel_Specs!$B$25)*(Petroleum!B227*Petroleum!$F$218+Petroleum!$F227)+Vehicles!$C$6*Fuel_Specs!$B$25/((1-Vehicles!$C$25)*(1-Vehicles!$C$6)*Fuel_Specs!$B$11+Vehicles!$C$25*(1-Vehicles!$C$6)*Fuel_Specs!$B$13+Vehicles!$C$6*Fuel_Specs!$B$25)*('MeOH&FTD'!$L141*'MeOH&FTD'!$M$132+'MeOH&FTD'!$M141))/1000000*HLOOKUP($I$10,$Y$5:$AC$6,2,FALSE)/HLOOKUP($I$11,$Y$7:$AC$8,2,FALSE) -> 13.00211422 | L27: =('MeOH&FTD'!$L141*'MeOH&FTD'!$M$132+'MeOH&FTD'!$M141)/1000000*HLOOKUP($I$10,$Y$5:$AC$6,2,FALSE)/HLOOKUP($I$11,$Y$7:$AC$8,2,FALSE) -> 14.90352622 | M27: =((1-Vehicles!$C$27)*(1-Vehicles!$C$8)*Fuel_Specs!$B$11/((1-Vehicles!$C$27)*(1-Vehicles!$C$8)*Fuel_Specs!$B$11+Vehicles!$C$27*(1-Vehicles!$C$8)*Fuel_Specs!$B$13+Vehicles!$C$8*Fuel_Specs!$B$26)*(Petroleum!$B227*Petroleum!$D$218+Petroleum!$D227)+Vehicles!$C$27*(1-Vehicles!$C$8)*Fuel_Specs!$B$13/((1-Vehicles!$C$27)*(1-Vehicles!$C$8)*Fuel_Specs!$B$11+Vehicles!$C$27*(1-Vehicles!$C$8)*Fuel_Specs!$B$13+Vehicles!$C$8*Fuel_Specs!$B$26)*(Petroleum!B227*Petroleum!$F$218+Petroleum!$F227)+Vehicles!$C$8*Fuel_Specs!$B$26/((1-Vehicles!$C$27)*(1-Vehicles!$C$8)*Fuel_Specs!$B$11+Vehicles!$C$27*(1-Vehicles!$C$8)*Fuel_Specs!$B$13+Vehicles!$C$8*Fuel_Specs!$B$26)*(EtOH!BE410*EtOH!$BF$401+EtOH!$BF410))/1000000*HLOOKUP($I$10,$Y$5:$AC$6,2,FALSE)/HLOOKUP($I$11,$Y$7:$AC$8,2,FALSE) -> 13.78394768 | N27: =((1-Vehicles!$C$28)*(1-Vehicles!$C$10)*Fuel_Specs!$B$11/((1-Vehicles!$C$28)*(1-Vehicles!$C$10)*Fuel_Specs!$B$11+Vehicles!$C$28*(1-Vehicles!$C$10)*Fuel_Specs!$B$13+Vehicles!$C$10*Fuel_Specs!$B$27)*(Petroleum!$B227*Petroleum!$D$218+Petroleum!$D227)+Vehicles!$C$28*(1-Vehicles!$C$10)*Fuel_Specs!$B$13/((1-Vehicles!$C$28)*(1-Vehicles!$C$10)*Fuel_Specs!$B$11+Vehicles!$C$28*(1-Vehicles!$C$10)*Fuel_Specs!$B$13+Vehicles!$C$10*Fuel_Specs!$B$27)*(Petroleum!B227*Petroleum!$F$218+Petroleum!$F227)+Vehicles!$C$10*Fuel_Specs!$B$27/((1-Vehicles!$C$28)*(1-Vehicles!$C$10)*Fuel_Specs!$B$11+Vehicles!$C$28*(1-Vehicles!$C$10)*Fuel_Specs!$B$13+Vehicles!$C$10*Fuel_Specs!$B$27)*(EtOH!$BI410*EtOH!$BJ$401+EtOH!$BJ410))/1000000*HLOOKUP($I$10,$Y$5:$AC$6,2,FALSE)/HLOOKUP($I$11,$Y$7:$AC$8,2,FALSE) -> 15.87861802 | O27: =((1-Vehicles!$C$27)*(1-Vehicles!$C$9)*Fuel_Specs!$B$11/((1-Vehicles!$C$27)*(1-Vehicles!$C$9)*Fuel_Specs!$B$11+Vehicles!$C$27*(1-Vehicles!$C$9)*Fuel_Specs!$B$13+Vehicles!$C$9*Fuel_Specs!$B$26)*(Petroleum!$B227*Petroleum!$D$218+Petroleum!$D227)+Vehicles!$C$27*(1-Vehicles!$C$9)*Fuel_Specs!$B$13/((1-Vehicles!$C$27)*(1-Vehicles!$C$9)*Fuel_Specs!$B$11+Vehicles!$C$27*(1-Vehicles!$C$9)*Fuel_Specs!$B$13+Vehicles!$C$9*Fuel_Specs!$B$26)*(Petroleum!B227*Petroleum!$F$218+Petroleum!$F227)+Vehicles!$C$9*Fuel_Specs!$B$26/((1-Vehicles!$C$27)*(1-Vehicles!$C$9)*Fuel_Specs!$B$11+Vehicles!$C$27*(1-Vehicles!$C$9)*Fuel_Specs!$B$13+Vehicles!$C$9*Fuel_Specs!$B$26)*(EtOH!BE410*EtOH!$BF$401+EtOH!$BF410))/1000000*HLOOKUP($I$10,$Y$5:$AC$6,2,FALSE)/HLOOKUP($I$11,$Y$7:$AC$8,2,FALSE) -> 13.78394768 | P27: =(EtOH!$BE410*EtOH!$BF$401+EtOH!$BF410)/1000000*HLOOKUP($I$10,$Y$5:$AC$6,2,FALSE)/HLOOKUP($I$11,$Y$7:$AC$8,2,FALSE) -> 16.59551776 | Q27: =((1-Vehicles!$C$29)*(1-Vehicles!$C$14)*Fuel_Specs!$B$11/((1-Vehicles!$C$29)*(1-Vehicles!$C$14)*Fuel_Specs!$B$11+Vehicles!$C$29*(1-Vehicles!$C$14)*Fuel_Specs!$B$13+Vehicles!$C$14*Fuel_Specs!$B$39)*(Petroleum!$B227*Petroleum!$D$218+Petroleum!$D227)+Vehicles!$C$29*(1-Vehicles!$C$14)*Fuel_Specs!$B$13/((1-Vehicles!$C$29)*(1-Vehicles!$C$14)*Fuel_Specs!$B$11+Vehicles!$C$29*(1-Vehicles!$C$14)*Fuel_Specs!$B$13+Vehicles!$C$14*Fuel_Specs!$B$39)*(Petroleum!B227*Petroleum!$F$218+Petroleum!$F227)+Vehicles!$C$14*Fuel_Specs!$B$39/((1-Vehicles!$C$29)*(1-Vehicles!$C$14)*Fuel_Specs!$B$11+Vehicles!$C$29*(1-Vehicles!$C$14)*Fuel_Specs!$B$13+Vehicles!$C$14*Fuel_Specs!$B$39)*(BioOil!$BQ323*BioOil!$BR$313+BioOil!$BR323))/1000000*HLOOKUP($I$10,$Y$5:$AC$6,2,FALSE)/HLOOKUP($I$11,$Y$7:$AC$8,2,FALSE) -> 6.753819788 | R27: =((1-Vehicles!$C$29)*(1-Vehicles!$C$14)*Fuel_Specs!$B$11/((1-Vehicles!$C$29)*(1-Vehicles!$C$14)*Fuel_Specs!$B$11+Vehicles!$C$29*(1-Vehicles!$C$14)*Fuel_Specs!$B$13+Vehicles!$C$14*Fuel_Specs!$B$39)*(Petroleum!$B227*Petroleum!$D$218+Petroleum!$D227)+Vehicles!$C$29*(1-Vehicles!$C$14)*Fuel_Specs!$B$13/((1-Vehicles!$C$29)*(1-Vehicles!$C$14)*Fuel_Specs!$B$11+Vehicles!$C$29*(1-Vehicles!$C$14)*Fuel_Specs!$B$13+Vehicles!$C$14*Fuel_Specs!$B$39)*(Petroleum!B227*Petroleum!$F$218+Petroleum!$F227)+Vehicles!$C$14*Fuel_Specs!$B$39/((1-Vehicles!$C$29)*(1-Vehicles!$C$14)*Fuel_Specs!$B$11+Vehicles!$C$29*(1-Vehicles!$C$14)*Fuel_Specs!$B$13+Vehicles!$C$14*Fuel_Specs!$B$39)*(Pyrolysis!$Z175*Pyrolysis!$AA$166+Pyrolysis!$AA175))/1000000*HLOOKUP($I$10,$Y$5:$AC$6,2,FALSE)/HLOOKUP($I$11,$Y$7:$AC$8,2,FALSE) -> 8.519464831 | S27: =AN27*(Vehicles!$C$21/Vehicles!$AN$53)/(Vehicles!$C$21*(1/Vehicles!$AN$53+1/Vehicles!$AO$53)+Vehicles!$C$22/Vehicles!$AP$53)+B27*(Vehicles!$C$21/Vehicles!$AO$53+Vehicles!$C$22/Vehicles!$AP$53)/(Vehicles!$C$21*(1/Vehicles!$AN$53+1/Vehicles!$AO$53)+Vehicles!$C$22/Vehicles!$AP$53) -> 17.3782409 | T27: =AN27*(Vehicles!$D$21/Vehicles!$AR$53)/(Vehicles!$D$21*(1/Vehicles!$AR$53+1/Vehicles!$AS$53)+Vehicles!$D$22/Vehicles!$AT$53)+C27*(Vehicles!$D$21/Vehicles!$AS$53+Vehicles!$D$22/Vehicles!$AT$53)/(Vehicles!$D$21*(1/Vehicles!$AR$53+1/Vehicles!$AS$53)+Vehicles!$D$22/Vehicles!$AT$53) -> 17.28674226 | U27: =AN27*(Vehicles!$F$21/Vehicles!$AZ$53)/(Vehicles!$F$21*(1/Vehicles!$AZ$53+1/Vehicles!$BA$53)+Vehicles!$F$22/Vehicles!$BB$53)+D27*(Vehicles!$F$21/Vehicles!$BA$53+Vehicles!$F$22/Vehicles!$BB$53)/(Vehicles!$F$21*(1/Vehicles!$AZ$53+1/Vehicles!$BA$53)+Vehicles!$F$22/Vehicles!$BB$53) -> 17.37747259 | V27: =AN27*(Vehicles!$G$21/Vehicles!$BD$53)/(Vehicles!$G$21*(1/Vehicles!$BD$53+1/Vehicles!$BE$53)+Vehicles!$G$22/Vehicles!$BF$53)+F27*(Vehicles!$G$21/Vehicles!$BE$53+Vehicles!$G$22/Vehicles!$BF$53)/(Vehicles!$G$21*(1/Vehicles!$BD$53+1/Vehicles!$BE$53)+Vehicles!$G$22/Vehicles!$BF$53) -> 14.68225266 | W27: =AN27*(Vehicles!$H$21/Vehicles!$BH$53)/(Vehicles!$H$21*(1/Vehicles!$BH$53+1/Vehicles!$BI$53)+Vehicles!$H$22/Vehicles!$BJ$53)+G27*(Vehicles!$H$21/Vehicles!$BI$53+Vehicles!$H$22/Vehicles!$BJ$53)/(Vehicles!$H$21*(1/Vehicles!$BH$53+1/Vehicles!$BI$53)+Vehicles!$H$22/Vehicles!$BJ$53) -> 14.09973463 | X27: =AN27*(Vehicles!$I$21/Vehicles!$BL$53)/(Vehicles!$I$21*(1/Vehicles!$BL$53+1/Vehicles!$BM$53)+Vehicles!$I$22/Vehicles!$BN$53)+H27*(Vehicles!$I$21/Vehicles!$BM$53+Vehicles!$I$22/Vehicles!$BN$53)/(Vehicles!$I$21*(1/Vehicles!$BL$53+1/Vehicles!$BM$53)+Vehicles!$I$22/Vehicles!$BN$53) -> 15.11327822 | Y27: =AN27*(Vehicles!$J$21/Vehicles!$BP$53)/(Vehicles!$J$21*(1/Vehicles!$BP$53+1/Vehicles!$BQ$53)+Vehicles!$J$22/Vehicles!$BR$53)+K27*(Vehicles!$J$21/Vehicles!$BQ$53+Vehicles!$J$22/Vehicles!$BR$53)/(Vehicles!$J$21*(1/Vehicles!$BP$53+1/Vehicles!$BQ$53)+Vehicles!$J$22/Vehicles!$BR$53) -> 23.24383037 | Z27: =AN27*(Vehicles!$K$21/Vehicles!$BT$53)/(Vehicles!$K$21*(1/Vehicles!$BT$53+1/Vehicles!$BU$53)+Vehicles!$K$22/Vehicles!$BV$53)+O27*(Vehicles!$K$21/Vehicles!$BU$53+Vehicles!$K$22/Vehicles!$BV$53)/(Vehicles!$K$21*(1/Vehicles!$BT$53+1/Vehicles!$BU$53)+Vehicles!$K$22/Vehicles!$BV$53) -> 23.34368479 | AA27: =AN27*(Vehicles!$L$21/Vehicles!$BX$53)/(Vehicles!$L$21*(1/Vehicles!$BX$53+1/Vehicles!$BY$53)+Vehicles!$L$22/Vehicles!$BZ$53)+AO27*(Vehicles!$L$21/Vehicles!$BY$53+Vehicles!$L$22/Vehicles!$BZ$53)/(Vehicles!$L$21*(1/Vehicles!$BX$53+1/Vehicles!$BY$53)+Vehicles!$L$22/Vehicles!$BZ$53) -> 28.67165935 | AB27: =AN27*(Vehicles!$L$21/Vehicles!$BX$53)/(Vehicles!$L$21*(1/Vehicles!$BX$53+1/Vehicles!$BY$53)+Vehicles!$L$22/Vehicles!$CA$53)+AP27*(Vehicles!$L$21/Vehicles!$BY$53+Vehicles!$L$22/Vehicles!$CA$53)/(Vehicles!$L$21*(1/Vehicles!$BX$53+1/Vehicles!$BY$53)+Vehicles!$L$22/Vehicles!$CA$53) -> 43.01827561 | AC27: =('MeOH&FTD'!$X141*'MeOH&FTD'!$Y$132+'MeOH&FTD'!$Y141)/1000000*HLOOKUP($I$10,$Y$5:$AC$6,2,FALSE)/HLOOKUP($I$11,$Y$7:$AC$8,2,FALSE) -> 13.33828872 | AD27: =((1-Vehicles!$C$30)*(1-Vehicles!$C$11)*Fuel_Specs!$B$15/((1-Vehicles!$C$30)*(1-Vehicles!$C$11)*Fuel_Specs!$B$15+Vehicles!$C$30*(1-Vehicles!$C$11)*Fuel_Specs!$B$18+Vehicles!$C$11*Fuel_Specs!$B$35)*(Petroleum!B227*Petroleum!$J$218+Petroleum!$J227)+Vehicles!$C$30*(1-Vehicles!$C$11)*Fuel_Specs!$B$18/((1-Vehicles!$C$30)*(1-Vehicles!$C$11)*Fuel_Specs!$B$15+Vehicles!$C$30*(1-Vehicles!$C$11)*Fuel_Specs!$B$18+Vehicles!$C$11*Fuel_Specs!$B$35)*(Petroleum!B227*Petroleum!$K$218+Petroleum!$K227)+Vehicles!$C$11*Fuel_Specs!$B$35/((1-Vehicles!$C$30)*(1-Vehicles!$C$11)*Fuel_Specs!$B$15+Vehicles!$C$30*(1-Vehicles!$C$11)*Fuel_Specs!$B$18+Vehicles!$C$11*Fuel_Specs!$B$35)*('MeOH&FTD'!$AL141*'MeOH&FTD'!$AM$132+'MeOH&FTD'!$AM141))/1000000*HLOOKUP($I$10,$Y$5:$AC$6,2,FALSE)/HLOOKUP($I$11,$Y$7:$AC$8,2,FALSE) -> 15.46298259 | AE27: =((1-Vehicles!$C$31)*(1-Vehicles!$C$12)*Fuel_Specs!$B$15/((1-Vehicles!$C$31)*(1-Vehicles!$C$12)*Fuel_Specs!$B$15+Vehicles!$C$31*(1-Vehicles!$C$12)*Fuel_Specs!$B$18+Vehicles!$C$12*Fuel_Specs!$B$34)*(Petroleum!B227*Petroleum!$J$218+Petroleum!$J227)+Vehicles!$C$31*(1-Vehicles!$C$12)*Fuel_Specs!$B$18/((1-Vehicles!$C$31)*(1-Vehicles!$C$12)*Fuel_Specs!$B$15+Vehicles!$C$31*(1-Vehicles!$C$12)*Fuel_Specs!$B$18+Vehicles!$C$12*Fuel_Specs!$B$34)*(Petroleum!B227*Petroleum!$K$218+Petroleum!$K227)+Vehicles!$C$12*Fuel_Specs!$B$34/((1-Vehicles!$C$31)*(1-Vehicles!$C$12)*Fuel_Specs!$B$15+Vehicles!$C$31*(1-Vehicles!$C$12)*Fuel_Specs!$B$18+Vehicles!$C$12*Fuel_Specs!$B$34)*(BioOil!$Y323*BioOil!$Z$313+BioOil!$Z323))/1000000*HLOOKUP($I$10,$Y$5:$AC$6,2,FALSE)/HLOOKUP($I$11,$Y$7:$AC$8,2,FALSE) -> 4.99056087 | AF27: =((1-Vehicles!$C$32)*(1-Vehicles!$C$13)*Fuel_Specs!$B$15/((1-Vehicles!$C$32)*(1-Vehicles!$C$13)*Fuel_Specs!$B$15+Vehicles!$C$32*(1-Vehicles!$C$13)*Fuel_Specs!$B$18+Vehicles!$C$13*IF(Inputs!$E$499=1,IF(Inputs!$E$499=1,Fuel_Specs!$B$36,IF(Inputs!$E$499=3,Fuel_Specs!$B$38,Fuel_Specs!$B$37)),Fuel_Specs!$B$37))*(Petroleum!B227*Petroleum!$J$218+Petroleum!$J227)+Vehicles!$C$32*(1-Vehicles!$C$13)*Fuel_Specs!$B$18/((1-Vehicles!$C$32)*(1-Vehicles!$C$13)*Fuel_Specs!$B$15+Vehicles!$C$32*(1-Vehicles!$C$13)*Fuel_Specs!$B$18+Vehicles!$C$13*IF(Inputs!$E$499=1,IF(Inputs!$E$499=1,Fuel_Specs!$B$36,IF(Inputs!$E$499=3,Fuel_Specs!$B$38,Fuel_Specs!$B$37)),Fuel_Specs!$B$37))*(Petroleum!B227*Petroleum!$K$218+Petroleum!$K227)+Vehicles!$C$13*IF(Inputs!$E$499=1,IF(Inputs!$E$499=1,Fuel_Specs!$B$36,IF(Inputs!$E$499=3,Fuel_Specs!$B$38,Fuel_Specs!$B$37)),Fuel_Specs!$B$37)/((1-Vehicles!$C$32)*(1-Vehicles!$C$13)*Fuel_Specs!$B$15+Vehicles!$C$32*(1-Vehicles!$C$13)*Fuel_Specs!$B$18+Vehicles!$C$13*IF(Inputs!$E$499=1,IF(Inputs!$E$499=1,Fuel_Specs!$B$36,IF(Inputs!$E$499=3,Fuel_Specs!$B$38,Fuel_Specs!$B$37)),Fuel_Specs!$B$37))*(BioOil!$BE323*BioOil!$BF$313+BioOil!$BF323))/1000000*HLOOKUP($I$10,$Y$5:$AC$6,2,FALSE)/HLOOKUP($I$11,$Y$7:$AC$8,2,FALSE) -> 3.43950903 | AG27: =((1-Vehicles!$C$32)*(1-Vehicles!$C$13)*Fuel_Specs!$B$15/((1-Vehicles!$C$32)*(1-Vehicles!$C$13)*Fuel_Specs!$B$15+Vehicles!$C$32*(1-Vehicles!$C$13)*Fuel_Specs!$B$18+Vehicles!$C$13*IF(Inputs!$E$499=1,Fuel_Specs!$B$36,Fuel_Specs!$B$37))*(Petroleum!B227*Petroleum!$J$218+Petroleum!$J227)+Vehicles!$C$32*(1-Vehicles!$C$13)*Fuel_Specs!$B$18/((1-Vehicles!$C$32)*(1-Vehicles!$C$13)*Fuel_Specs!$B$15+Vehicles!$C$32*(1-Vehicles!$C$13)*Fuel_Specs!$B$18+Vehicles!$C$13*IF(Inputs!$E$499=1,Fuel_Specs!$B$36,Fuel_Specs!$B$37))*(Petroleum!B227*Petroleum!$K$218+Petroleum!$K227)+Vehicles!$C$13*IF(Inputs!$E$499=1,Fuel_Specs!$B$36,Fuel_Specs!$B$37)/((1-Vehicles!$C$32)*(1-Vehicles!$C$13)*Fuel_Specs!$B$15+Vehicles!$C$32*(1-Vehicles!$C$13)*Fuel_Specs!$B$18+Vehicles!$C$13*IF(Inputs!$E$499=1,Fuel_Specs!$B$36,Fuel_Specs!$B$37))*(Pyrolysis!$AB175*Pyrolysis!$AC$166+Pyrolysis!$AC175))/1000000*HLOOKUP($I$10,$Y$5:$AC$6,2,FALSE)/HLOOKUP($I$11,$Y$7:$AC$8,2,FALSE) -> 8.677899204 | AH27: =(((1-Vehicles!$C$33)*(1-Vehicles!$C$15-Vehicles!$C$16)*Fuel_Specs!$B$15*(Petroleum!B227*Petroleum!$J$218+Petroleum!$J227)+Vehicles!$C$33*(1-Vehicles!$C$15-Vehicles!$C$16)*Fuel_Specs!$B$18*(Petroleum!B227*Petroleum!$K$218+Petroleum!$K227)+Vehicles!$C$15*Fuel_Specs!$B$26*(EtOH!BE410*EtOH!$BF$401+EtOH!$BF410)+Vehicles!$C$16*Fuel_Specs!$B$29*('E-D Additives'!$B57*'E-D Additives'!$B$48))/((1-Vehicles!$C$33)*(1-Vehicles!$C$15-Vehicles!$C$16)*Fuel_Specs!$B$15+Vehicles!$C$33*(1-Vehicles!$C$15-Vehicles!$C$16)*Fuel_Specs!$B$18+Vehicles!$C$15*Fuel_Specs!$B$26+Vehicles!$C$16*Fuel_Specs!$B$29))/1000000*HLOOKUP($I$10,$Y$5:$AC$6,2,FALSE)/HLOOKUP($I$11,$Y$7:$AC$8,2,FALSE) -> 5.550845692 | AI27: =AN27*(Vehicles!$M$21/Vehicles!$CI$53)/(Vehicles!$M$21*(1/Vehicles!$CI$53+1/Vehicles!$CJ$53)+Vehicles!$M$22/Vehicles!$CK$53)+E27*(Vehicles!$M$21/Vehicles!$CJ$53+Vehicles!$M$22/Vehicles!$CK$53)/(Vehicles!$M$21*(1/Vehicles!$CI$53+1/Vehicles!$CJ$53)+Vehicles!$M$22/Vehicles!$CK$53) -> 17.40857675 | AJ27: =AN27*(Vehicles!$N$21/Vehicles!$CM$53)/(Vehicles!$N$21*(1/Vehicles!$CM$53+1/Vehicles!$CN$53)+Vehicles!$N$22/Vehicles!$CO$53)+AC27*(Vehicles!$N$21/Vehicles!$CN$53+Vehicles!$N$22/Vehicles!$CO$53)/(Vehicles!$N$21*(1/Vehicles!$CM$53+1/Vehicles!$CN$53)+Vehicles!$N$22/Vehicles!$CO$53) -> 23.88024866 | AK27: =AN27*(Vehicles!$O$21/Vehicles!$CQ$53)/(Vehicles!$O$21*(1/Vehicles!$CQ$53+1/Vehicles!$CR$53)+Vehicles!$O$22/Vehicles!$CS$53)+AD27*(Vehicles!$O$21/Vehicles!$CR$53+Vehicles!$O$22/Vehicles!$CS$53)/(Vehicles!$O$21*(1/Vehicles!$CQ$53+1/Vehicles!$CR$53)+Vehicles!$O$22/Vehicles!$CS$53) -> 25.49402165 | AL27: =AN27*(Vehicles!$P$21/Vehicles!$CU$53)/(Vehicles!$P$21*(1/Vehicles!$CU$53+1/Vehicles!$CV$53)+Vehicles!$P$22/Vehicles!$CW$53)+AE27*(Vehicles!$P$21/Vehicles!$CV$53+Vehicles!$P$22/Vehicles!$CW$53)/(Vehicles!$P$21*(1/Vehicles!$CU$53+1/Vehicles!$CV$53)+Vehicles!$P$22/Vehicles!$CW$53) -> 17.53988219 | AM27: =AN27*(Vehicles!$R$21/Vehicles!$DC$53)/(Vehicles!$R$21*(1/Vehicles!$DC$53+1/Vehicles!$DD$53)+Vehicles!$R$22/Vehicles!$DE$53)+AH27*(Vehicles!$R$21/Vehicles!$DD$53+Vehicles!$R$22/Vehicles!$DE$53)/(Vehicles!$R$21*(1/Vehicles!$DC$53+1/Vehicles!$DD$53)+Vehicles!$R$22/Vehicles!$DE$53) -> 17.96543644 | AN27: =(Electric!$G179+Electric!$F179)/1000000*HLOOKUP($I$10,$Y$5:$AC$6,2,FALSE)/HLOOKUP($I$11,$Y$7:$AC$8,2,FALSE) -> 57.17763603 | AO27: =(Hydrogen!$Z156*Hydrogen!$AA$147+Hydrogen!$AA156)/1000000*HLOOKUP($I$10,$Y$5:$AC$6,2,FALSE)/HLOOKUP($I$11,$Y$7:$AC$8,2,FALSE) -> 19.34542617 | AP27: =(Hydrogen!$AX156*Hydrogen!$AY$147+Hydrogen!$AY156)/1000000*HLOOKUP($I$10,$Y$5:$AC$6,2,FALSE)/HLOOKUP($I$11,$Y$7:$AC$8,2,FALSE) -> 38.38579104 | AQ27: =AN27*(Vehicles!$S$21/Vehicles!$DS$53)/(Vehicles!$S$21*(1/Vehicles!$DS$53+1/Vehicles!$DT$53)+Vehicles!$S$22/Vehicles!$DU$53)+AO27*(Vehicles!$S$21/Vehicles!$DT$53+Vehicles!$S$22/Vehicles!$DU$53)/(Vehicles!$S$21*(1/Vehicles!$DS$53+1/Vehicles!$DT$53)+Vehicles!$S$22/Vehicles!$DU$53) -> 30.89449146 | AR27: =AN27*(Vehicles!$S$21/Vehicles!$DS$53)/(Vehicles!$S$21*(1/Vehicles!$DS$53+1/Vehicles!$DT$53)+Vehicles!$S$22/Vehicles!$DU$53)+AP27*(Vehicles!$S$21/Vehicles!$DT$53+Vehicles!$S$22/Vehicles!$DU$53)/(Vehicles!$S$21*(1/Vehicles!$DS$53+1/Vehicles!$DT$53)+Vehicles!$S$22/Vehicles!$DU$53) -> 44.12239077
